Workbook

Sheet Contents
A1: 80 | M1: ESC USE ONLY
D2: ESSENTIAL SERVICES COMMISSION
D3: Water Price Review
D4: Financial Model Template
B7: Table of Contents | F7: Water Business: | H7: =+N24 -> GWM Water | I7: =+O24 -> GWMW
B8: Section & Sheet Titles | F8: Regulatory Period: | H8: 2018-19 to 2022-23 (Fourth) | N8: [Decision] | O8: [Month] | P8: [Year] | Q8: [Version]
F9: Model Name: | H9: =I7&"_Price Review Template_"&O9&P9&Q9 -> GWMW_Price Review Template_Apr2017- v1.2 | N9: Draft | O9: Apr | P9: 2017 | Q9: - v1.2 | R9: << Select
B10: a. | C10: =+KeyAssumptionsPriceControl_FO!B1 -> Key Assumptions Price Control | F10: Decision type: | H10: =+N9&" Decision" -> Draft Decision | N10: Draft | O10: Jan | P10: 2016 | Q10: - v1
B11: b. | C11: Expenditure Detail - Removed as it contained confidential information | N11: Final | O11: Feb | P11: 2017 | Q11: - v1.2
B12: c. | C12: =Opex_FO!B1 -> Operating Expenditure - Forecast | F12: Model Key: | O12: Mar | P12: 2018 | Q12: - v2
B13: d. | C13: =Opex_Breakdown!B1 -> Operating Expenditure - Breakdown | O13: Apr | P13: 2019 | Q13: - v2.1
B14: e. | C14: =+'Capex_FO input'!B1 -> Capital Expenditure - Forecast Input | G14: BLUE | H14: =+I7&" - DATA INPUT CELL" -> GWMW - DATA INPUT CELL | O14: May | P14: 2020 | Q14: - v3
B15: f. | C15: =Capex_FO_AC!B1 -> Capital Expenditure - Asset Category Breakdown | O15: Jun | P15: 2021 | Q15: - v3.1
B16: g. | C16: =ExpSummary_FO!B1 -> Expenditure Summary | G16: YELLOW | H16: NOTES / INSTRUCTIONS | O16: Jul | Q16: - v4
B17: h. | C17: =RollForward_FO!B1 -> Rolled forward regulatory asset base (RAB) | O17: Aug | Q17: - v4.1
B18: i. | C18: =PrevPerAdj_FO!B1 -> Previous period adjustments | G18: GREY | H18: MODEL PARAMETERS / ASSUMPTIONS | O18: Sep | Q18: - v5
B19: j. | C19: =RevenuePriceCap_FO!C1 -> Revenue forecast (price caps) | O19: Oct | Q19: - v5.1
B20: k. | C20: Revenue forecast (tariff basket) | G20: WHITE | H20: FORMULA / HARDCODED VALUES | O20: Nov | Q20: - v6
B21: l. | C21: =NotPres_FO!B1 -> Non Prescribed Services | O21: Dec | Q21: - v6.1
B22: m. | C22: ='Finance&Tax_FO'!B1 -> Cash, debt and tax assumptions | G22: ORANGE | H22: FORMULA DIFFERENT TO ADJACENT CELL
B23: n. | C23: ='Rev&RAV_FO'!B1 -> Revenue requirement detail | N23: [Business]
B24: o. | C24: =Indicators_FO!B1 -> Financial indicators | G24: GREEN | H24: DATA FROM 2013 DECISION OR PERFORMANCE REPORT | N24: GWM Water | O24: =+VLOOKUP(N24,N25:O42,2,FALSE) -> GWMW
B25: p. | C25: =Outcomes!B1 -> Outcomes | N25: Barwon Water | O25: BW | P25: Urban model
B26: q. | C26: =GSL!B1 -> Guaranteed Service Levels (GSL) | G26: RED | H26: ERROR CHECK | N26: Central Highlands Water | O26: CHW | P26: Urban model
N27: City West Water | O27: CWW | P27: Urban model
N28: Coliban Water | O28: CW | P28: Urban model
N29: East Gippsland Water | O29: EGW | P29: Urban model
N30: Gippsland Water | O30: CGW | P30: Urban model
N31: Goulburn Valley Water | O31: GVW | P31: Urban model
M32: >>>> | N32: GWM Water | O32: GWMW | P32: GWMW model
N33: Lower Murray Water - Urban | O33: LMW-U | P33: Urban model
N34: Lower Murray Water - Rural | O34: LMW-R | P34: LMW-R model
N35: North East Water | O35: NEW | P35: Urban model
N36: South East Water | O36: SEW | P36: Urban model
N37: South Gippsland Water | O37: SGW | P37: Urban model
N38: Southern Rural Water | O38: SRW | P38: SRW model
N39: Wannon Water | O39: WNW | P39: Urban model
N40: Western Water | O40: WW | P40: Urban model
N41: Westernport Water | O41: WPW | P41: Urban model
N42: Yarra Valley Water | O42: YVW | P42: Urban model

Sheet KeyAssumptionsPriceControl_FO
A1: 80 | B1: Key Assumptions Price Control
B2: =+Contents!H7 -> GWM Water
B3: Go to Table of Contents
L4: FIRST REG PERIOD | P4: SECOND REG PERIOD | U4: THIRD REG PERIOD | Z4: FOURTH REG PERIOD | AC4: FIFTH REG PERIOD
F6: Straight Line | K6: 2006 | L6: 2007 | M6: 2008 | N6: 2009 | O6: 2010 | P6: 2011 | Q6: 2012 | R6: 2013 | S6: 2014 | T6: 2015 | U6: 2016 | V6: 2017 | W6: 2018 | X6: 2019 | Y6: 2020 | Z6: 2021 | AA6: 2022 | AB6: 2023 | AC6: 2024 | AD6: 2025 | AE6: 2026 | AF6: 2027 | AG6: 2028
F7: Declining Balance | I7: 2003-04 | J7: 2004-05 | K7: =+CONCATENATE(K6-1,"-",RIGHT(K6,2)) -> 2005-06 | L7: =+CONCATENATE(L6-1,"-",RIGHT(L6,2)) -> 2006-07 | M7: 2007-08 | N7: 2008-09 | O7: 2009-10 | P7: 2010-11 | Q7: 2011-12 | R7: 2012-13 | S7: 2013-14 | T7: 2014-15 | U7: 2015-16 | V7: 2016-17 | W7: 2017-18 | X7: 2018-19 | Y7: 2019-20 | Z7: 2020-21 | AA7: 2021-22 | AB7: 2022-23 | AC7: 2023-24 | AD7: 2024-25 | AE7: 2025-26 | AF7: 2026-27 | AG7: 2027-28
E11: Inflation assumptions
W12: Estimate
F13: March quarter annual CPI | I13: 141.3 | J13: 144.1 | K13: 147.5 | L13: 151.9 | M13: 155.6 | N13: 162.2 | O13: 166.2 | P13: 171 | Q13: 176.7 | R13: 99.9 | S13: 102.4 | T13: 105.4 | U13: 106.8 | V13: 108.2 | W13: 110.5
F14: Inflation | J14: =+J13/I13-1 -> 0.01981599434 | K14: 0.02359472588 | L14: 0.02983050847 | M14: 0.02435813035 | N14: 0.04241645244 | O14: 0.02466091245 | P14: 0.02888086643 | Q14: 0.03333333333 | R14: 0.01584606678 | S14: =+IF(S13=0,$X$44,S13/R13-1) -> 0.02502502503 | T14: 0.029296875 | U14: 0.01328273245 | V14: 0.01310861423 | W14: 0.02125693161 | X14: 0.023 | Y14: 0.023 | Z14: 0.023 | AA14: 0.023 | AB14: 0.023 | AC14: 0.023 | AD14: 0.023 | AE14: 0.023 | AF14: 0.023 | AG14: 0.023
F15: Inflation factor | I15: 0.7871866295 | J15: 0.8027855153 | K15: 0.8217270195 | L15: 0.8462395543 | M15: 0.8668523677 | N15: 0.9036211699 | O15: 0.9259052925 | P15: 0.9526462396 | Q15: 0.9844011142 | R15: =+R13/$W$13 -> 0.9040723982 | S15: 0.9266968326 | T15: 0.9538461538 | U15: 0.9665158371 | V15: =+V13/$W$13 -> 0.9791855204 | W15: =+W13/$W$13 -> 1 | X15: =+W15*(1+X14) -> 1.023 | Y15: =+X15*(1+Y14) -> 1.046529 | Z15: 1.070599167 | AA15: 1.095222948 | AB15: 1.120413076 | AC15: 1.146182576 | AD15: 1.172544776 | AE15: 1.199513305 | AF15: 1.227102112 | AG15: 1.25532546
I16: CPI index re-referenced in 2012-13, shaded values have been hardcoded to lock in RAB value.
E21: Cost of debt - 10 year trailing average (Nominal)
V22: Estimate | W22: Estimate
E23: Cost of debt | L23: 0.06981666667 | M23: 0.07414 | N23: 0.0691525788 | O23: 0.07361870984 | P23: 0.07046784142 | Q23: 0.06308887941 | R23: 0.0526945046 | S23: 0.070525 | T23: 0.05360833333 | U23: 0.05270138413 | V23: 0.04908333333 | W23: 0.04908333333
E24: Re-financing weightings - average 10 yrs | L24: =1/10 -> 0.1 | M24: =1/10 -> 0.1 | N24: =1/10 -> 0.1 | O24: =1/10 -> 0.1 | P24: =1/10 -> 0.1 | Q24: 0.1 | R24: 0.1 | S24: 0.1 | T24: 0.1 | U24: 0.1 | V24: 0.1 | W24: 0.1 | X24: 0.1 | Y24: 0.1 | Z24: 0.1 | AA24: 0.1 | AB24: 0.1 | AC24: 0.1 | AD24: 0.1 | AE24: 0.1 | AF24: 0.1 | AG24: 0.1
E26: Cost of debt - 10 year trailing average | V26: =IF(U23<>"",SUMPRODUCT(L23:U23,L24:U24),"") -> 0.06498138982 | W26: =IF(V23<>"",SUMPRODUCT(M23:V23,M24:V24),"") -> 0.06290805649 | X26: =IF(W23<>"",SUMPRODUCT(N23:W23,N24:W24),"") -> 0.06040238982 | Y26: =IF(X23<>"",SUMPRODUCT(O23:X23,O24:X24),"") ->  | Z26: =IF(Y23<>"",SUMPRODUCT(P23:Y23,P24:Y24),"") -> 
E30: WACC assumptions (retained for historical purposes only) | U30: Regulatory Rate of Return (RRR) - Nominal
K32: 1st period | M32: 2nd period | O32: 3rd period | U32: Cost of Debt | X32: =+X26 -> 0.06040238982 | Y32: =+$X$32 -> 0.06040238982 | Z32: 0.06040238982 | AA32: 0.06040238982 | AB32: 0.06040238982 | AC32: 0.06040238982 | AD32: 0.06040238982 | AE32: 0.06040238982 | AF32: 0.06040238982 | AG32: 0.06040238982 | AI32: << Linked to Benchmark tax liability calculation (Rev&RAV_FO)
E33: Parameters
F34: Risk Free Rate (Real) | K34: =+HLOOKUP(Contents!$I$7&1,Determination_Lookup!$C$54:$BD$61,2,FALSE) -> 0.0267 | M34: =+HLOOKUP(Contents!$I$7&2,Determination_Lookup!$C$54:$BD$61,2,FALSE) -> 0.0323 | O34: =+HLOOKUP(Contents!$I$7&3,Determination_Lookup!$C$54:$BD$61,2,FALSE) -> 0.005959
F35: Debt Premium | K35: =+HLOOKUP(Contents!$I$7&1,Determination_Lookup!$C$54:$BD$61,3,FALSE) -> 0.0116 | M35: =+HLOOKUP(Contents!$I$7&2,Determination_Lookup!$C$54:$BD$61,3,FALSE) -> 0.0175 | O35: =+HLOOKUP(Contents!$I$7&3,Determination_Lookup!$C$54:$BD$61,3,FALSE) -> 0.0399
F36: Equity Premium | K36: =+HLOOKUP(Contents!$I$7&1,Determination_Lookup!$C$54:$BD$61,4,FALSE) -> 0.06 | M36: =+HLOOKUP(Contents!$I$7&2,Determination_Lookup!$C$54:$BD$61,4,FALSE) -> 0.06 | O36: =+HLOOKUP(Contents!$I$7&3,Determination_Lookup!$C$54:$BD$61,4,FALSE) -> 0.06 | U36: Regulatory Rate of Return (RRR) - Real
F37: Equity Beta | K37: =+HLOOKUP(Contents!$I$7&1,Determination_Lookup!$C$54:$BD$61,5,FALSE) -> 0.75 | M37: =+HLOOKUP(Contents!$I$7&2,Determination_Lookup!$C$54:$BD$61,5,FALSE) -> 0.65 | O37: =+HLOOKUP(Contents!$I$7&3,Determination_Lookup!$C$54:$BD$61,5,FALSE) -> 0.65
F38: Gearing (Debt/Assets) | K38: =+HLOOKUP(Contents!$I$7&1,Determination_Lookup!$C$54:$BD$61,6,FALSE) -> 0.6 | M38: =+HLOOKUP(Contents!$I$7&2,Determination_Lookup!$C$54:$BD$61,6,FALSE) -> 0.6 | O38: =+HLOOKUP(Contents!$I$7&3,Determination_Lookup!$C$54:$BD$61,6,FALSE) -> 0.6 | U38: Cost of Debt | X38: =(1+X32)/(1+X44)-1 -> 0.03656147587 | Y38: =+$X$38 -> 0.03656147587 | Z38: =+$X$38 -> 0.03656147587 | AA38: 0.03656147587 | AB38: 0.03656147587 | AC38: 0.03656147587 | AD38: 0.03656147587 | AE38: 0.03656147587 | AF38: 0.03656147587 | AG38: 0.03656147587
F39: Forecast Inflation | K39: =+HLOOKUP(Contents!$I$7&1,Determination_Lookup!$C$54:$BD$61,7,FALSE) -> 0.0255 | M39: =+HLOOKUP(Contents!$I$7&2,Determination_Lookup!$C$54:$BD$61,7,FALSE) -> 0.029 | O39: =+HLOOKUP(Contents!$I$7&3,Determination_Lookup!$C$54:$BD$61,7,FALSE) -> 0.0275
F40: Franking credit value | K40: =+HLOOKUP(Contents!$I$7&1,Determination_Lookup!$C$54:$BD$61,8,FALSE) -> 0.5 | M40: =+HLOOKUP(Contents!$I$7&2,Determination_Lookup!$C$54:$BD$61,8,FALSE) -> 0.5 | O40: =+HLOOKUP(Contents!$I$7&3,Determination_Lookup!$C$54:$BD$61,8,FALSE) -> 0.5 | U40: Return on Equity | X40: =IF(AG65<>0,(AG65/100),IF(AG63<>0,(AG63/100),(AG61/100))) -> 0.049 | Y40: =+$X$40 -> 0.049 | Z40: 0.049 | AA40: 0.049 | AB40: 0.049 | AC40: 0.049 | AD40: 0.049 | AE40: 0.049 | AF40: 0.049 | AG40: 0.049 | AI40: << Source: PREMO Assessment Matrix
E42: 'Vanilla' After Tax WACC (Real) | K42: =ROUND(((K34+K36*K37)*(1-K38))+((K34+K35)*K38),3) -> 0.052 | M42: =ROUND(((M34+M36*M37)*(1-M38))+((M34+M35)*M38),3) -> 0.058 | O42: =ROUND(((O34+O36*O37)*(1-O38))+((O34+O35)*O38),3) -> 0.045 | U42: RRR (real) | X42: =ROUND((X40*(1-X43)+X38*X43),3) -> 0.042 | Y42: 0.042 | Z42: 0.042 | AA42: 0.042 | AB42: 0.042 | AC42: 0.042 | AD42: 0.042 | AE42: 0.042 | AF42: 0.042 | AG42: 0.042
U43: Gearing | X43: 0.6 | Y43: =+X43 -> 0.6 | Z43: =+Y43 -> 0.6 | AA43: 0.6 | AB43: 0.6 | AC43: 0.6 | AD43: 0.6 | AE43: 0.6 | AF43: 0.6 | AG43: 0.6
U44: Forecast Inflation | X44: 0.023 | Y44: =+X44 -> 0.023 | Z44: 0.023 | AA44: 0.023 | AB44: 0.023 | AC44: 0.023 | AD44: 0.023 | AE44: 0.023 | AF44: 0.023 | AG44: 0.023
E46: Form of price control selected
E48: Price caps | I48: 2
U49: PREMO Graded Scoring System (for reference only) | AB49: PREMO Assessment Matrix (linked to Regulatory Rate of Return calculation above)
E50: Revenue cap / Hybrid Tariff Basket
V52: Water business | X52: ESC assessment | Z52: Difference | AD52: Water business self-assessment
V53: self-assessment | X53: of submission
AD54: Leading | AE54: Advanced | AF54: Standard | AG54: Basic
U55: Risk | V55: 3 | Z55: =IFERROR(IF(X55=0,"",X55-V55),"") ->  | AB55: ESC assessment of submission | AC55: Leading | AD55: 5.3
U56: Engagement | V56: 4 | Z56: =IFERROR(IF(X56=0,"",X56-V56),"") ->  | AC56: Advanced | AD56: 4.7 | AE56: 4.9
U57: Management | V57: 3.75 | Z57: =IFERROR(IF(X57=0,"",X57-V57),"") ->  | AC57: Standard | AD57: 4.1 | AE57: 4.3 | AF57: 4.5
U58: Outcomes | V58: 3.25 | Z58: =IFERROR(IF(X58=0,"",X58-V58),"") ->  | AC58: Basic | AF58: 3.9 | AG58: 4.1
U60: Total Score | V60: =SUM(V55:V58) -> 14 | X60: =SUM(X55:X58) -> 0 | Z60: =IFERROR(IF(X60=0,"",X60-V60),"") -> 
AB61: Water business self-assessment (Maximum allowable ROE) | AF61: Advanced | AG61: =+VLOOKUP(AF61,$AF$72:$AG$76,2,FALSE) -> 4.9
AB63: ROE Override (Must be less than Maximum allowable ROE) | AG63: =+IF(AF63<=AG61,AF63,"CHECK") -> 0
U64: Rating | V64: =IF(V60<4,"",IF(AND(V60>=4,V60<=7.25),"Basic",IF(AND(V60>=7.5,V60<=11.25),"Standard",IF(AND(V60>=11.5,V60<=15.25),"Advanced",IF(AND(V60>=15.5,V60<=16),"Leading"))))) -> Advanced | X64: =IF(X60<4,"",IF(AND(X60>=4,X60<=7.25),"Basic",IF(AND(X60>=7.5,X60<=11.25),"Standard",IF(AND(X60>=11.5,X60<=15.25),"Advanced",IF(AND(X60>=15.5,X60<=16),"Leading"))))) -> 
AB65: ESC assessment of submission | AG65: =IFERROR(IF(AF65=AF61,AG61,VLOOKUP(AF61&AF65,AF79:AG83,2,FALSE)),0) -> 0
AF67: Difference | AG67: =IFERROR(IF(AG65=0,"",AG65-AG61),"") -> 
U70: ESC USE ONLY
W71: [Select] | Y71: Rating | Z71: Aggregate score for overall PREMO rating | AF71: Business self assessment
W72: 1 | Y72: Leading | Z72: 15.5 to 16.0 | AF72: [Select]
W73: 1.25 | Y73: Advanced | Z73: 11.5 to 15.25 | AF73: Leading | AG73: =+AD55 -> 5.3
W74: 1.5 | Y74: Standard | Z74: 7.5 to 11.25 | AF74: Advanced | AG74: =+AE56 -> 4.9
W75: 1.75 | Y75: Basic | Z75: 4.0 to 7.25 | AF75: Standard | AG75: =+AF57 -> 4.5
W76: 2 | AF76: Basic | AG76: =+AG58 -> 4.1
W77: 2.25
W78: 2.5 | AF78: downgrading
W79: 2.75 | AF79: =AF54&AC58 -> StandardBasic | AG79: =+AF58 -> 3.9
W80: 3 | AF80: =+AE54&AC57 -> AdvancedStandard | AG80: =+AE57 -> 4.3
W81: 3.25 | AF81: =+AD54&AC56 -> LeadingAdvanced | AG81: =+AD56 -> 4.7
W82: 3.5 | AF82: =+AD54&AC57 -> LeadingStandard | AG82: =+AD57 -> 4.1
W83: 3.75 | AF83: =+AF61&"Basic" -> AdvancedBasic | AG83: CHECK
W84: 4

Sheet Opex_FO
B1: Operating Expenditure - Forecast
B2: =+Model_Name -> GWM Water
B3: Go to Table of Contents
L4: FIRST REG PERIOD | P4: SECOND REG PERIOD | S4: THIRD REG PERIOD | X4: FOURTH REG PERIOD | AC4: FIFTH REG PERIOD
K5: 2006 | L5: 2007 | M5: 2008 | N5: 2009 | O5: 2010 | P5: 2011 | Q5: 2012 | R5: 2013 | S5: 2014 | T5: 2015 | U5: 2016 | V5: 2017 | W5: 2018 | X5: 2019 | Y5: 2020 | Z5: 2021 | AA5: 2022 | AB5: 2023 | AC5: 2024 | AD5: 2025 | AE5: 2026 | AF5: 2027 | AG5: 2028
B6: $m, 01/01/18 | K6: =+CONCATENATE(K5-1,"-",RIGHT(K5,2)) -> 2005-06 | L6: =+CONCATENATE(L5-1,"-",RIGHT(L5,2)) -> 2006-07 | M6: 2007-08 | N6: 2008-09 | O6: 2009-10 | P6: 2010-11 | Q6: 2011-12 | R6: 2012-13 | S6: 2013-14 | T6: 2014-15 | U6: 2015-16 | V6: 2016-17 | W6: 2017-18 | X6: 2018-19 | Y6: 2019-20 | Z6: 2020-21 | AA6: 2021-22 | AB6: 2022-23 | AC6: 2023-24 | AD6: 2024-25 | AE6: 2025-26 | AF6: 2026-27 | AG6: 2027-28
B8: URBAN
C9: Parameters | F9: 3rd period | H9: 4th period
D11: Cost efficiency improvement rate (% per annum) | F11: 0.02 | H11: =+SUM(X11:AB11)/5 -> 0.015 | X11: 0.015 | Y11: 0.015 | Z11: 0.015 | AA11: 0.015 | AB11: 0.015 | AC11: 0 | AD11: 0 | AE11: 0 | AF11: 0 | AG11: 0
D13: Customer growth forecast (% per annum) | F13: =AVERAGE(T13:W13) -> 0.004693375924 | H13: =+SUM(X13:AB13)/5 -> 0.005 | T13: =IF(T15="","",T15/S15-1) -> 0.004793097939 | U13: =IF(U15="","",U15/T15-1) -> 0.00534266179 | V13: 0.003637743966 | W13: 0.005 | X13: 0.005 | Y13: 0.005 | Z13: 0.005 | AA13: 0.005 | AB13: 0.005 | AC13: 0.005 | AD13: 0.005 | AE13: 0.005 | AF13: 0.005 | AG13: 0.005
E14: Net baseline opex growth | F14: =IFERROR(F13-F11,"-") -> -0.01530662408 | H14: =IFERROR(H13-H11,"-") -> -0.01
D15: Water customers (No.) - Residential & Non-Residential - [BED 1] | S15: =+Determination_Lookup!BO3 -> 31295 | T15: =+Determination_Lookup!BP3 -> 31445 | U15: =+Determination_Lookup!BQ3 -> 31613 | V15: 31728 | W15: =+V$15*(1+W$13) -> 31886.64 | X15: =+W$15*(1+X$13) -> 32046.0732 | Y15: =+X$15*(1+Y$13) -> 32206.30357 | Z15: 32367.33508 | AA15: 32529.17176 | AB15: 32691.81762 | AC15: 32855.27671 | AD15: 33019.55309 | AE15: 33184.65086 | AF15: 33350.57411 | AG15: 33517.32698 | AI15: << Used as normalising metric for dashboard graphs
D17: Sewer customers (No.) - Residential & Non-Residential - [BED 2] | S17: =+Determination_Lookup!BS3 -> 25285 | T17: =+Determination_Lookup!BT3 -> 25416 | U17: =+Determination_Lookup!BU3 -> 25565 | V17: 25755 | W17: =+V$17*(1+W$13) -> 25883.775 | X17: =+W$17*(1+X$13) -> 26013.19387 | Y17: =+X$17*(1+Y$13) -> 26143.25984 | Z17: 26273.97614 | AA17: 26405.34602 | AB17: 26537.37275 | AC17: 26670.05962 | AD17: 26803.40992 | AE17: 26937.42697 | AF17: 27072.1141 | AG17: 27207.47467 | AI17: << Used as normalising metric for dashboard graphs
D19: Total metered volume of water delivered to customers (ML) - [BED 10] | S19: =+Determination_Lookup!BK3 -> 9305.5 | T19: =+Determination_Lookup!BL3 -> 9344.5 | U19: =+Determination_Lookup!BM3 -> 11992.1 | V19: 8359.619529 | W19: 9302.654882 | X19: 9349.168157 | Y19: 9395.913998 | Z19: 9442.893568 | AA19: 9490.108035 | AB19: 9537.558576 | AC19: 9585.246368 | AD19: 9633.1726 | AE19: 9681.338463 | AF19: 9729.745156 | AG19: 9778.393881 | AI19: << Used as normalising metric for dashboard graphs
D20: Residential, Non-Residential & Recycled (Residential & Non-Residential)
C24: Baseline Forecast
B27: URBAN | D27: Baseline year - total controllable operating expenditure in 2016-17 - Urban: | V27: =+Opex_Breakdown!V12+Opex_Breakdown!V13+Opex_Breakdown!V14 -> 28.11425854
Y28: Comparison with approved 2016-17 total controllable opex
D29: Adjustments for non-recurring expenditure items incurred in 2016-17 and any efficiency savings to be realised from 2016-17: | Y29: per 2013 determination model (Urban & Rural)
D31: 1 | E31: Electricity and BOOT average consumption adjustment - 2016-17 low consumption year | V31: -0.166339783
D32: 2 | Z32: 2016-17 | AA32: Difference | AB32: %
D33: 3
D34: 4 | Z34: =+Determination_Lookup!AX3 -> 31.79026246 | AA34: =+(V38+V56)-Z34 -> 0.0007955455324 | AB34: =+AA34/Z34 -> 2.502481801e-05
D35: 5
V36: =SUM(V31:V35) -> -0.166339783 | Y36: ($, 2017-18)
AD37: Urban & Rural
D38: Baseline controllable operating expenditure (2016-17) - Urban | V38: =+V27-V36 -> 28.28059832
D40: Adjusted Baseline controllable operating expenditure (Forecast) - Urban | W40: =+V38*(1+$W$13-$F$11) -> 27.85638935 | X40: =+$W$40*(1+X$13-X$11) -> 27.57782546 | Y40: =+X$40*(1+Y$13-Y$11) -> 27.3020472 | Z40: 27.02902673 | AA40: 26.75873646 | AB40: 26.4911491 | AC40: 26.62360484 | AD40: 26.75672287 | AE40: 26.89050648 | AF40: 27.02495901 | AG40: 27.16008381
B45: RURAL | D45: Baseline year - total controllable operating expenditure in 2016-17 - Rural: | V45: =+Opex_Breakdown!V15+Opex_Breakdown!V16+Opex_Breakdown!V17+Opex_Breakdown!V18 -> 3.379428128
D47: Adjustments for non-recurring expenditure items incurred in 2016-17 and any efficiency savings to be realised from 2016-17:
D49: 1 | E49: Electricity ave consumption adjustment - 2016-17 low consumption year | V49: -0.131031553
D50: 2
D51: 3
D52: 4
D53: 5
V54: =SUM(V49:V53) -> -0.131031553
D56: Baseline controllable operating expenditure (2016-17) - Rural | V56: =+V45-V54 -> 3.510459681
D58: Adjusted Baseline controllable operating expenditure (Forecast) - Rural | W58: =+V56 -> 3.510459681 | X58: =+W58 -> 3.510459681 | Y58: =+X58 -> 3.510459681 | Z58: 3.510459681 | AA58: 3.510459681 | AB58: 3.510459681 | AC58: 3.510459681 | AD58: 3.510459681 | AE58: 3.510459681 | AF58: 3.510459681 | AG58: 3.510459681
C62: Operating expenditure - reconciliation
D65: Adjusted Baseline controllable operating expenditure (Forecast) | X65: =+X40+X58 -> 31.08828514 | Y65: =+Y40+Y58 -> 30.81250688 | Z65: 30.53948641 | AA65: 30.26919614 | AB65: 30.00160878 | AC65: 30.13406452 | AD65: 30.26718255 | AE65: 30.40096616 | AF65: 30.5354187 | AG65: 30.67054349
H66: Controllable
D67: Forecast variations to baseline operating expenditure (above or below baseline) | H67: only
D69: 1 | E69: ='[1]Capex_FO input'!C44 -> Major Project 3 Treated Water Supply (Kaniva, Moyston, Ultima and Elmhurst) | H69: Urban Water | AA69: 0.11736284 | AB69: 0.11736284 | AC69: =AB69 -> 0.11736284 | AD69: 0.11736284 | AE69: 0.11736284 | AF69: 0.11736284 | AG69: 0.11736284
D70: 2 | E70: ='[1]Capex_FO input'!C45 -> Major Project 4 Goroke Sewerage | H70: Sewerage | Y70: 0.015 | Z70: =Y70 -> 0.015 | AA70: 0.015 | AB70: =AA70 -> 0.015 | AC70: 0.015 | AD70: 0.015 | AE70: 0.015 | AF70: 0.015 | AG70: 0.015
D71: 3 | E71: Major Project 5 Urban Remote Metering (included in productivity adjusted baseline expenditure) | H71: Urban Water
D72: 4 | E72: Major Project 6 Development Servicing - Pressure Improvements Commercial and Industrial - Fire Services - Opex no change | H72: Urban Water
D73: 5 | E73: Major Project 7 Asset Renewal Water - Opex no change | H73: Urban Water
D74: 6 | E74: Major Project 8 Asset Renewal Wastewater - Opex no change | H74: Sewerage
D75: 7 | E75: Major Project 9 Donald Wastewater Treatment Plant - Opex not material | H75: Sewerage
D76: 8 | E76: Major Project 10 Safe Drinking Water Act - Health Based Targets - Opex increase for PAC and UV system not material. Funded from productivity. | H76: Urban Water
D77: 9 | H77: [Service]
D78: 10 | E78: ='[1]Capex_FO input'!C53 -> Capex Included in 2017/18 South West Loddon Rural Water Supply | H78: Domestic and stock | X78: 0.165 | Y78: 0.23 | Z78: =Y78 -> 0.23 | AA78: =Z78 -> 0.23 | AB78: 0.23 | AC78: 0.23 | AD78: 0.23 | AE78: 0.23 | AF78: 0.23 | AG78: 0.23
D79: 11 | E79: ='[1]Capex_FO input'!C54 -> Capex Included in 2017/18 Mallee Towns Treated Water Supply Project | H79: Urban Water | X79: 0.075625 | Y79: 0.15 | Z79: =Y79 -> 0.15 | AA79: 0.15 | AB79: 0.15 | AC79: 0.15 | AD79: 0.15 | AE79: 0.15 | AF79: 0.15 | AG79: 0.15
D80: 12 | H80: [Service]
D81: 13 | E81: Major Scheduled Maintenance and Operations (various) | H81: Urban Water | X81: 1.066031372 | Y81: 1.187434596 | Z81: 1.292695668 | AA81: 1.395829136 | AB81: 1.43274158 | AC81: 1.358802335 | AD81: 1.19288616 | AE81: 0.8727618761 | AF81: 0.8598652737 | AG81: 0.8463578787
D82: 14 | H82: [Service]
D83: 15 | H83: [Service]
D85: Total changes required to baseline operating expenditure | X85: =SUM(X69:X84) -> 1.306656372 | Y85: 1.582434596 | Z85: 1.687695668 | AA85: 1.908191976 | AB85: 1.94510442 | AC85: 1.871165175 | AD85: 1.705249 | AE85: 1.385124716 | AF85: 1.372228114 | AG85: 1.358720719
W86: % Change in baseline opex per annum | X86: =IFERROR(X85/X65,"-") -> 0.04203050654 | Y86: =IFERROR(Y85/Y65,"-") -> 0.05135689226 | Z86: 0.05526273905 | AA86: 0.06304072188 | AB86: 0.06483333726 | AC86: 0.06209468269 | AD86: 0.05633986572 | AE86: 0.045561865 | AF86: 0.04493889956 | AG86: 0.04430051
W87: % Change in baseline opex per reg period | AB87: =IFERROR(AVERAGE(X86:AB86),"-") -> 0.0553048394 | AG87: =IFERROR(AVERAGE(AC86:AG86),"-") -> 0.05064716459
D88: Total controllable operating expenditure | X88: =+X85+X65 -> 32.39494151 | Y88: 32.39494148 | Z88: 32.22718208 | AA88: 32.17738812 | AB88: 31.9467132 | AC88: 32.0052297 | AD88: 31.97243155 | AE88: 31.78609088 | AF88: 31.90764681 | AG88: 32.02926421
W89: Controllable Opex growth from baseline to 5th year | AB89: =IFERROR(AB88-V56-V38,"-") -> 0.1556551933 | AC89: =IFERROR(AB88/(V56+V38)-1,"-") -> 0.004896194184
D90: Non-controllable operating expenditure
D91: External bulk water charges (excl. temporary purchases) | X91: =+Opex_Breakdown!X31 -> 0.230676 | Y91: =+Opex_Breakdown!Y31 -> 0.230676 | Z91: =+Opex_Breakdown!Z31 -> 0.230676 | AA91: =+Opex_Breakdown!AA31 -> 0.230676 | AB91: =+Opex_Breakdown!AB31 -> 0.230676 | AC91: =+Opex_Breakdown!AC31 -> 0.230676 | AD91: =+Opex_Breakdown!AD31 -> 0.230676 | AE91: =+Opex_Breakdown!AE31 -> 0.230676 | AF91: =+Opex_Breakdown!AF31 -> 0.230676 | AG91: =+Opex_Breakdown!AG31 -> 0.230676
D92: External temporary water purchases | X92: =+Opex_Breakdown!X32 -> 0 | Y92: =+Opex_Breakdown!Y32 -> 0 | Z92: =+Opex_Breakdown!Z32 -> 0 | AA92: =+Opex_Breakdown!AA32 -> 0 | AB92: =+Opex_Breakdown!AB32 -> 0 | AC92: =+Opex_Breakdown!AC32 -> 0 | AD92: =+Opex_Breakdown!AD32 -> 0 | AE92: =+Opex_Breakdown!AE32 -> 0 | AF92: =+Opex_Breakdown!AF32 -> 0 | AG92: =+Opex_Breakdown!AG32 -> 0
D93: Licence fees | X93: =+Opex_Breakdown!X33 -> 0.1003346208 | Y93: =+Opex_Breakdown!Y33 -> 0.1003346208 | Z93: =+Opex_Breakdown!Z33 -> 0.1003346208 | AA93: =+Opex_Breakdown!AA33 -> 0.1003346208 | AB93: =+Opex_Breakdown!AB33 -> 0.1003346208 | AC93: =+Opex_Breakdown!AC33 -> 0.1003346208 | AD93: =+Opex_Breakdown!AD33 -> 0.1003346208 | AE93: =+Opex_Breakdown!AE33 -> 0.1003346208 | AF93: =+Opex_Breakdown!AF33 -> 0.1003346208 | AG93: =+Opex_Breakdown!AG33 -> 0.1003346208
D94: Environment Contribution | X94: =+Opex_Breakdown!X34 -> 2.084 | Y94: =+Opex_Breakdown!Y34 -> 2.084 | Z94: =+Opex_Breakdown!Z34 -> 2.084 | AA94: =+Opex_Breakdown!AA34 -> 2.084 | AB94: =+Opex_Breakdown!AB34 -> 2.084 | AC94: =+Opex_Breakdown!AC34 -> 2.084 | AD94: =+Opex_Breakdown!AD34 -> 2.084 | AE94: =+Opex_Breakdown!AE34 -> 2.084 | AF94: =+Opex_Breakdown!AF34 -> 2.084 | AG94: =+Opex_Breakdown!AG34 -> 2.084
D95: Other non-controllable | X95: =+Opex_Breakdown!X35 -> 0 | Y95: =+Opex_Breakdown!Y35 -> 0 | Z95: =+Opex_Breakdown!Z35 -> 0 | AA95: =+Opex_Breakdown!AA35 -> 0 | AB95: =+Opex_Breakdown!AB35 -> 0 | AC95: =+Opex_Breakdown!AC35 -> 0 | AD95: =+Opex_Breakdown!AD35 -> 0 | AE95: =+Opex_Breakdown!AE35 -> 0 | AF95: =+Opex_Breakdown!AF35 -> 0 | AG95: =+Opex_Breakdown!AG35 -> 0
D96: Total non-controllable operating expenditure | X96: =SUM(X91:X95) -> 2.415010621 | Y96: 2.415010621 | Z96: 2.415010621 | AA96: 2.415010621 | AB96: 2.415010621 | AC96: 2.415010621 | AD96: 2.415010621 | AE96: 2.415010621 | AF96: 2.415010621 | AG96: 2.415010621
W97: Non-controllable Opex growth from baseline to 5th year | AB97: =IFERROR(AB96-V38,"-") -> -25.8655877 | AC97: =IFERROR(AB96/Opex_Breakdown!V36-1,"-") -> 0.1952663502
D99: Total prescribed operating expenditure | X99: =+X96+X88 -> 34.80995213 | Y99: 34.8099521 | Z99: 34.6421927 | AA99: 34.59239874 | AB99: 34.36172382 | AC99: 34.42024032 | AD99: 34.38744217 | AE99: 34.2011015 | AF99: 34.32265743 | AG99: =+AG96+AG88 -> 34.44427483
W100: Prescribed Opex growth from baseline to 5th year | AB100: =IFERROR(AB99-(V56+V38+Opex_Breakdown!V36),"-") -> 0.5501867632 | AC100: =IFERROR((AB99/(V56+V38+Opex_Breakdown!V36))-1,"-") -> 0.01627216066
W102: To reconcile to 'Opex_Breakdown' tab row 37 >> | X102: =+Opex_Breakdown!X39 -> 34.80995213 | Y102: =+Opex_Breakdown!Y39 -> 34.8099521 | Z102: =+Opex_Breakdown!Z39 -> 34.6421927 | AA102: =+Opex_Breakdown!AA39 -> 34.59239874 | AB102: =+Opex_Breakdown!AB39 -> 34.36172382 | AC102: =+Opex_Breakdown!AC39 -> 34.42024032 | AD102: =+Opex_Breakdown!AD39 -> 34.38744217 | AE102: =+Opex_Breakdown!AE39 -> 34.2011015 | AF102: =+Opex_Breakdown!AF39 -> 34.32265743 | AG102: =+Opex_Breakdown!AG39 -> 34.44427483
W103: Difference | X103: =+X102-X99 -> 0 | Y103: 0 | Z103: 0 | AA103: 0 | AB103: 0 | AC103: 0 | AD103: 0 | AE103: 0 | AF103: 0 | AG103: 0
W104: Test | X104: =+X102=X99 -> TRUE | Y104: TRUE | Z104: TRUE | AA104: TRUE | AB104: TRUE | AC104: TRUE | AD104: TRUE | AE104: TRUE | AF104: TRUE | AG104: TRUE
X143: =+X$164 -> 2018-19 | Y143: 2019-20 | Z143: 2020-21 | AA143: 2021-22 | AB143: 2022-23 | AC143: 2023-24 | AD143: 2024-25 | AE143: 2025-26 | AF143: 2026-27 | AG143: 2027-28
W144: Total controllable opex | X144: =+X88 -> 32.39494151 | Y144: 32.39494148 | Z144: 32.22718208 | AA144: 32.17738812 | AB144: 31.9467132 | AC144: 32.0052297 | AD144: 31.97243155 | AE144: 31.78609088 | AF144: 31.90764681 | AG144: 32.02926421
W145: Change - $ | Y145: =+Y144-X144 -> -3.000000248e-08 | Z145: -0.1677594 | AA145: -0.04979396 | AB145: -0.23067492 | AC145: 0.0585165 | AD145: -0.03279815 | AE145: -0.18634067 | AF145: 0.12155593 | AG145: 0.1216174
W146: Change - % | Y146: =IFERROR(Y145/X144,"") -> -9.260705865e-10 | Z146: -0.005178567774 | AA146: -0.001545091962 | AB146: -0.007168851591 | AC146: 0.001831690779 | AD146: -0.001024774711 | AE146: -0.005828166985 | AF146: 0.003824186197 | AG146: 0.003811544008
X148: =+X$164 -> 2018-19 | Y148: 2019-20 | Z148: 2020-21 | AA148: 2021-22 | AB148: 2022-23 | AC148: 2023-24 | AD148: 2024-25 | AE148: 2025-26 | AF148: 2026-27 | AG148: 2027-28
W149: Total non-controllable opex | X149: =+X96 -> 2.415010621 | Y149: 2.415010621 | Z149: 2.415010621 | AA149: 2.415010621 | AB149: 2.415010621 | AC149: 2.415010621 | AD149: 2.415010621 | AE149: 2.415010621 | AF149: 2.415010621 | AG149: 2.415010621
W150: Change - $ | Y150: =+Y149-X149 -> 0 | Z150: 0 | AA150: 0 | AB150: 0 | AC150: 0 | AD150: 0 | AE150: 0 | AF150: 0 | AG150: 0
W151: Change - % | Y151: =IFERROR(Y150/X149,"") -> 0 | Z151: 0 | AA151: 0 | AB151: 0 | AC151: 0 | AD151: 0 | AE151: 0 | AF151: 0 | AG151: 0
X153: =+X$164 -> 2018-19 | Y153: 2019-20 | Z153: 2020-21 | AA153: 2021-22 | AB153: 2022-23 | AC153: 2023-24 | AD153: 2024-25 | AE153: 2025-26 | AF153: 2026-27 | AG153: 2027-28
W154: Total prescribed opex | X154: =+X144+X149 -> 34.80995213 | Y154: 34.8099521 | Z154: 34.6421927 | AA154: 34.59239874 | AB154: 34.36172382 | AC154: 34.42024032 | AD154: 34.38744217 | AE154: 34.2011015 | AF154: 34.32265743 | AG154: 34.44427483
W155: Change - $ | Y155: =+Y154-X154 -> -3.000000248e-08 | Z155: -0.1677594 | AA155: -0.04979396 | AB155: -0.23067492 | AC155: 0.0585165 | AD155: -0.03279815 | AE155: -0.18634067 | AF155: 0.12155593 | AG155: 0.1216174
W156: Change - % | Y156: =IFERROR(Y155/X154,"") -> -8.618225722e-10 | Z156: -0.004819294193 | AA156: -0.001437378991 | AB156: -0.006668370174 | AC156: 0.001702955891 | AD156: -0.0009528739397 | AE156: -0.005418858113 | AF156: 0.003554152488 | AG156: 0.003543356171
W159: Controllable vs. Non-controllable opex - % | X159: =+X$164 -> 2018-19 | Y159: 2019-20 | Z159: 2020-21 | AA159: 2021-22 | AB159: 2022-23 | AC159: 2023-24 | AD159: 2024-25 | AE159: 2025-26 | AF159: 2026-27 | AG159: 2027-28
W160: Controllable opex - % | X160: =+X88/X99 -> 0.9306229836 | Y160: 0.9306229835 | Z160: 0.9302870161 | AA160: 0.9301866679 | AB160: 0.9297180015 | AC160: 0.9298374852 | AD160: 0.9297705654 | AE160: 0.9293879286 | AF160: 0.9296380059 | AG160: 0.9298864432
W161: Non-controllable opex - % | X161: =+X96/X99 -> 0.06937701643 | Y161: 0.06937701649 | Z161: 0.06971298387 | AA161: 0.06981333208 | AB161: 0.07028199847 | AC161: 0.0701625148 | AD161: 0.0702294346 | AE161: 0.07061207139 | AF161: 0.07036199413 | AG161: 0.07011355683
X162: =SUM(X160:X161) -> 1 | Y162: 1 | Z162: 1 | AA162: 1 | AB162: 1 | AC162: 1 | AD162: 1 | AE162: 1 | AF162: 1 | AG162: 1
V164: =+V6 -> 2016-17 | W164: 2017-18 | X164: 2018-19 | Y164: 2019-20 | Z164: 2020-21 | AA164: 2021-22 | AB164: 2022-23 | AC164: 2023-24 | AD164: 2024-25 | AE164: 2025-26 | AF164: 2026-27 | AG164: 2027-28
U165: Third Reg period Opex | V165: =+V173-SUM(V166:V172) -> 31.49368667 | W165: =+W173-SUM(W166:W172) -> 32.60697539
U166: Adjusted baseline opex | X166: =+X65 -> 31.08828514 | Y166: 30.81250688 | Z166: 30.53948641 | AA166: 30.26919614 | AB166: 30.00160878 | AC166: 30.13406452 | AD166: 30.26718255 | AE166: 30.40096616 | AF166: 30.5354187 | AG166: 30.67054349
U167: Forecast variations to baseline operating expenditure | X167: =+X85 -> 1.306656372 | Y167: 1.582434596 | Z167: 1.687695668 | AA167: 1.908191976 | AB167: 1.94510442 | AC167: 1.871165175 | AD167: 1.705249 | AE167: 1.385124716 | AF167: 1.372228114 | AG167: 1.358720719
U168: Licence fees | V168: =+V199 -> 0.102467427 | W168: =+W199 -> 0.1003346208 | X168: =+X93 -> 0.1003346208 | Y168: 0.1003346208 | Z168: 0.1003346208 | AA168: 0.1003346208 | AB168: 0.1003346208 | AC168: 0.1003346208 | AD168: 0.1003346208 | AE168: 0.1003346208 | AF168: 0.1003346208 | AG168: 0.1003346208
U169: Environment Contribution | V169: =+V200 -> 1.719796673 | W169: =+W200 -> 1.684 | X169: =+X94 -> 2.084 | Y169: 2.084 | Z169: 2.084 | AA169: 2.084 | AB169: 2.084 | AC169: 2.084 | AD169: 2.084 | AE169: 2.084 | AF169: 2.084 | AG169: 2.084
U170: External bulk water charges | V170: =+V197 -> 0.1982149511 | W170: =+W197 -> 0.230676 | X170: =+X91 -> 0.230676 | Y170: 0.230676 | Z170: 0.230676 | AA170: 0.230676 | AB170: 0.230676 | AC170: 0.230676 | AD170: 0.230676 | AE170: 0.230676 | AF170: 0.230676 | AG170: 0.230676
U171: External temporary water purchases | V171: =+V198 -> 0 | W171: =+W198 -> 0 | X171: =+X92 -> 0 | Y171: 0 | Z171: 0 | AA171: 0 | AB171: 0 | AC171: 0 | AD171: 0 | AE171: 0 | AF171: 0 | AG171: 0
U172: Other non-controllable | V172: =+V201 -> 0 | W172: =+W201 -> 0 | X172: =+X95 -> 0 | Y172: 0 | Z172: 0 | AA172: 0 | AB172: 0 | AC172: 0 | AD172: 0 | AE172: 0 | AF172: 0 | AG172: 0
U173: Total prescribed opex | V173: =+Opex_Breakdown!V39 -> 33.51416572 | W173: =+Opex_Breakdown!W39 -> 34.62198601 | X173: =SUM(X166:X172) -> 34.80995213 | Y173: 34.8099521 | Z173: 34.6421927 | AA173: 34.59239874 | AB173: 34.36172382 | AC173: 34.42024032 | AD173: 34.38744217 | AE173: 34.2011015 | AF173: 34.32265743 | AG173: 34.44427483
X175: =+X$164 -> 2018-19 | Y175: 2019-20 | Z175: 2020-21 | AA175: 2021-22 | AB175: 2022-23 | AC175: 2023-24 | AD175: 2024-25 | AE175: 2025-26 | AF175: 2026-27 | AG175: 2027-28
W176: Adjusted baseline opex | X176: =+X166/X$173 -> 0.8930861215 | Y176: 0.8851637254 | Z176: 0.8815690934 | AA176: 0.8750244923 | AB176: 0.8731112832 | AC176: 0.8754751345 | AD176: 0.8801812708 | AE176: 0.8888885103 | AF176: 0.8896577649 | AG176: 0.8904395184
W177: Forecast variations to baseline operating expenditure | X177: =+X167/X$173 -> 0.03753686207 | Y177: 0.04545925808 | Z177: 0.04871792276 | AA177: 0.05516217565 | AB177: 0.05660671829 | AC177: 0.05436235068 | AD177: 0.0495892946 | AE177: 0.0404994183 | AF177: 0.03998024094 | AG177: 0.03944692479
W178: Licence fees | X178: =+X168/X$173 -> 0.00288235446 | Y178: 0.002882354463 | Z178: 0.002896312646 | AA178: 0.002900481737 | AB178: 0.002919953065 | AC178: 0.002914988967 | AD178: 0.002917769234 | AE178: 0.002933666355 | AF178: 0.002923276585 | AG178: 0.002912954948
W179: Environment Contribution | X179: =+X169/X$173 -> 0.05986793639 | Y179: 0.05986793645 | Z179: 0.06015785485 | AA179: 0.06024444895 | AB179: 0.06064887812 | AC179: 0.06054577134 | AD179: 0.06060351886 | AE179: 0.06093370999 | AF179: 0.06071790928 | AG179: 0.06050352374
W180: External bulk water charges (excl. temporary purchases) | X180: =+X170/X$173 -> 0.006626725574 | Y180: 0.006626725579 | Z180: 0.006658816375 | AA180: 0.006668401395 | AB180: 0.006713167279 | AC180: 0.006701754487 | AD180: 0.006708146505 | AE180: 0.00674469505 | AF180: 0.006720808273 | AG180: 0.00669707814
W181: External temporary water purchases | X181: =+X171/X$173 -> 0 | Y181: 0 | Z181: 0 | AA181: 0 | AB181: 0 | AC181: 0 | AD181: 0 | AE181: 0 | AF181: 0 | AG181: 0
W182: Other non-controllable | X182: =+X172/X$173 -> 0 | Y182: 0 | Z182: 0 | AA182: 0 | AB182: 0 | AC182: 0 | AD182: 0 | AE182: 0 | AF182: 0 | AG182: 0
W183: Total prescribed opex | X183: =+X173/X$173 -> 1 | Y183: 1 | Z183: 1 | AA183: 1 | AB183: 1 | AC183: 1 | AD183: 1 | AE183: 1 | AF183: 1 | AG183: 1
X185: =+X$164 -> 2018-19 | Y185: 2019-20 | Z185: 2020-21 | AA185: 2021-22 | AB185: 2022-23 | AC185: 2023-24 | AD185: 2024-25 | AE185: 2025-26 | AF185: 2026-27 | AG185: 2027-28
W186: Urban Water | X186: =+SUMIF($H$69:$H$84,$W186,X$69:X$84) -> 1.141656372 | Y186: 1.337434596 | Z186: 1.442695668 | AA186: 1.663191976 | AB186: 1.70010442 | AC186: 1.626165175 | AD186: 1.460249 | AE186: 1.140124716 | AF186: 1.127228114 | AG186: 1.113720719
W187: Sewerage | X187: 0 | Y187: 0.015 | Z187: 0.015 | AA187: 0.015 | AB187: 0.015 | AC187: 0.015 | AD187: 0.015 | AE187: 0.015 | AF187: 0.015 | AG187: 0.015
W188: Recycled Water | X188: 0 | Y188: 0 | Z188: 0 | AA188: 0 | AB188: 0 | AC188: 0 | AD188: 0 | AE188: 0 | AF188: 0 | AG188: 0
W189: Bulk water - headworks | X189: 0 | Y189: 0 | Z189: 0 | AA189: 0 | AB189: 0 | AC189: 0 | AD189: 0 | AE189: 0 | AF189: 0 | AG189: 0
W190: Domestic and stock | X190: 0.165 | Y190: 0.23 | Z190: 0.23 | AA190: 0.23 | AB190: 0.23 | AC190: 0.23 | AD190: 0.23 | AE190: 0.23 | AF190: 0.23 | AG190: 0.23
W191: Surface water diversions | X191: 0 | Y191: 0 | Z191: 0 | AA191: 0 | AB191: 0 | AC191: 0 | AD191: 0 | AE191: 0 | AF191: 0 | AG191: 0
W192: Groundwater diversions | X192: 0 | Y192: 0 | Z192: 0 | AA192: 0 | AB192: 0 | AC192: 0 | AD192: 0 | AE192: 0 | AF192: 0 | AG192: 0
W193: Forecast variations to baseline operating expenditure | X193: =SUM(X186:X192) -> 1.306656372 | Y193: =SUM(Y186:Y192) -> 1.582434596 | Z193: 1.687695668 | AA193: 1.908191976 | AB193: 1.94510442 | AC193: 1.871165175 | AD193: 1.705249 | AE193: 1.385124716 | AF193: 1.372228114 | AG193: 1.358720719
V196: =+V6 -> 2016-17 | W196: 2017-18 | X196: 2018-19 | Y196: 2019-20 | Z196: 2020-21 | AA196: 2021-22 | AB196: 2022-23 | AC196: 2023-24 | AD196: 2024-25 | AE196: 2025-26 | AF196: 2026-27 | AG196: 2027-28
U197: External bulk water charges (excl. temporary purchases) | V197: =+Opex_Breakdown!V31 -> 0.1982149511 | W197: =+Opex_Breakdown!W31 -> 0.230676 | X197: =+X91 -> 0.230676 | Y197: 0.230676 | Z197: 0.230676 | AA197: 0.230676 | AB197: 0.230676 | AC197: 0.230676 | AD197: 0.230676 | AE197: 0.230676 | AF197: 0.230676 | AG197: 0.230676
U198: External temporary water purchases | V198: =+Opex_Breakdown!V32 -> 0 | W198: =+Opex_Breakdown!W32 -> 0 | X198: =+X92 -> 0 | Y198: 0 | Z198: 0 | AA198: 0 | AB198: 0 | AC198: 0 | AD198: 0 | AE198: 0 | AF198: 0 | AG198: 0
U199: Licence fees | V199: =+Opex_Breakdown!V33 -> 0.102467427 | W199: =+Opex_Breakdown!W33 -> 0.1003346208 | X199: =+X93 -> 0.1003346208 | Y199: 0.1003346208 | Z199: 0.1003346208 | AA199: 0.1003346208 | AB199: 0.1003346208 | AC199: 0.1003346208 | AD199: 0.1003346208 | AE199: 0.1003346208 | AF199: 0.1003346208 | AG199: 0.1003346208
U200: Environment Contribution | V200: =+Opex_Breakdown!V34 -> 1.719796673 | W200: =+Opex_Breakdown!W34 -> 1.684 | X200: =+X94 -> 2.084 | Y200: 2.084 | Z200: 2.084 | AA200: 2.084 | AB200: 2.084 | AC200: 2.084 | AD200: 2.084 | AE200: 2.084 | AF200: 2.084 | AG200: 2.084
U201: Other non-controllable | V201: =+Opex_Breakdown!V35 -> 0 | W201: =+Opex_Breakdown!W35 -> 0 | X201: =+X95 -> 0 | Y201: 0 | Z201: 0 | AA201: 0 | AB201: 0 | AC201: 0 | AD201: 0 | AE201: 0 | AF201: 0 | AG201: 0
U202: Total Non-controllable operating expenditure | V202: =+Opex_Breakdown!V36 -> 2.020479051 | W202: =+Opex_Breakdown!W36 -> 2.015010621 | X202: =SUM(X197:X201) -> 2.415010621 | Y202: 2.415010621 | Z202: 2.415010621 | AA202: 2.415010621 | AB202: 2.415010621 | AC202: 2.415010621 | AD202: 2.415010621 | AE202: 2.415010621 | AF202: 2.415010621 | AG202: 2.415010621
V204: ERROR CHECK | X204: =+X173=X99 -> TRUE | Y204: TRUE | Z204: TRUE | AA204: TRUE | AB204: TRUE | AC204: TRUE | AD204: TRUE | AE204: TRUE | AF204: TRUE | AG204: TRUE
X205: =+X193=X167 -> TRUE | Y205: TRUE | Z205: TRUE | AA205: TRUE | AB205: TRUE | AC205: TRUE | AD205: TRUE | AE205: TRUE | AF205: TRUE | AG205: TRUE
X206: =+X154=X173 -> TRUE | Y206: TRUE | Z206: TRUE | AA206: TRUE | AB206: TRUE | AC206: TRUE | AD206: TRUE | AE206: TRUE | AF206: TRUE | AG206: TRUE
X207: =+X202=X149 -> TRUE | Y207: TRUE | Z207: TRUE | AA207: TRUE | AB207: TRUE | AC207: TRUE | AD207: TRUE | AE207: TRUE | AF207: TRUE | AG207: TRUE

Sheet Opex_Breakdown
A1: 80 | B1: Operating Expenditure - Breakdown
B2: =+Contents!H7 -> GWM Water
B3: Go to Table of Contents
L4: FIRST REG PERIOD | P4: SECOND REG PERIOD | U4: THIRD REG PERIOD | Z4: FOURTH REG PERIOD | AC4: FIFTH REG PERIOD
K6: 2006 | L6: 2007 | M6: 2008 | N6: 2009 | O6: 2010 | P6: 2011 | Q6: 2012 | R6: 2013 | S6: 2014 | T6: 2015 | U6: 2016 | V6: 2017 | W6: 2018 | X6: 2019 | Y6: 2020 | Z6: 2021 | AA6: 2022 | AB6: 2023 | AC6: 2024 | AD6: 2025 | AE6: 2026 | AF6: 2027 | AG6: 2028
B7: $m, 01/01/18 | K7: =+CONCATENATE(K6-1,"-",RIGHT(K6,2)) -> 2005-06 | L7: =+CONCATENATE(L6-1,"-",RIGHT(L6,2)) -> 2006-07 | M7: 2007-08 | N7: 2008-09 | O7: 2009-10 | P7: 2010-11 | Q7: 2011-12 | R7: 2012-13 | S7: 2013-14 | T7: 2014-15 | U7: 2015-16 | V7: 2016-17 | W7: 2017-18 | X7: =+CONCATENATE(X6-1,"-",RIGHT(X6,2)) -> 2018-19 | Y7: =+CONCATENATE(Y6-1,"-",RIGHT(Y6,2)) -> 2019-20 | Z7: =+CONCATENATE(Z6-1,"-",RIGHT(Z6,2)) -> 2020-21 | AA7: =+CONCATENATE(AA6-1,"-",RIGHT(AA6,2)) -> 2021-22 | AB7: =+CONCATENATE(AB6-1,"-",RIGHT(AB6,2)) -> 2022-23 | AC7: =+CONCATENATE(AC6-1,"-",RIGHT(AC6,2)) -> 2023-24 | AD7: 2024-25 | AE7: 2025-26 | AF7: 2026-27 | AG7: 2027-28
D10: Operating Expenditure Summary
E12: Urban Water | H12: (Urban) | K12: =+K59-K52-K56 -> 6 | L12: 0 | M12: 0 | N12: 0 | O12: 0 | P12: 0 | Q12: 0 | R12: 20.39610883 | S12: 21.63021894 | T12: 21.07153226 | U12: 22.5329371 | V12: 20.89984813 | W12: 20.15296512 | X12: 19.07706216 | Y12: 19.03668414 | Z12: 18.94989782 | AA12: 18.93055203 | AB12: 18.72389794 | AC12: =+AC59-AC52-AC56 -> 18.75876727 | AD12: 18.65818216 | AE12: 18.22944919 | AF12: 18.4574727 | AG12: 18.50878739
E13: Sewerage | H13: (Urban) | K13: =K70-K63-K67 -> 6 | L13: 0 | M13: 0 | N13: 0 | O13: 0 | P13: 0 | Q13: 0 | R13: 6.466105075 | S13: 6.680639711 | T13: 6.280887097 | U13: 6.402732638 | V13: 7.172285184 | W13: 7.87925484 | X13: 7.803397539 | Y13: 7.749410249 | Z13: 7.700708429 | AA13: 7.658486159 | AB13: 7.636829349 | AC13: =AC70-AC63-AC67 -> 7.645977669 | AD13: 7.679078619 | AE13: 7.712556989 | AF13: 7.746419729 | AG13: 7.780673059
E14: Recycled Water | H14: (Urban) | K14: =K81-K74-K78 -> 6 | L14: 0 | M14: 0 | N14: 0 | O14: 0 | P14: 0 | Q14: 0 | R14: 0.1746226767 | S14: 0.1183248568 | T14: 0.1111290323 | U14: 0.07956678727 | V14: 0.04212522463 | W14: 0.02792445 | X14: 0.02792444 | Y14: 0.02792444 | Z14: 0.02792444 | AA14: 0.02792444 | AB14: 0.02792444 | AC14: =AC81-AC74-AC78 -> 0.02792444 | AD14: 0.02792444 | AE14: 0.02792444 | AF14: 0.02792444 | AG14: 0.02792444
E15: Bulk water - headworks | H15: (Rural) | K15: =K92-K85-K89 -> 6 | L15: 0 | M15: 0 | N15: 0 | O15: 0 | P15: 0 | Q15: 0 | R15: -6.178538553 | S15: -5.701923162 | T15: -5.23983871 | U15: -6.33333417 | V15: -6.055934842 | W15: -5.003213101 | X15: -3.517623192 | Y15: -3.545593426 | Z15: -3.55207871 | AA15: -3.553820394 | AB15: -3.544454096 | AC15: =AC92-AC85-AC89 -> -3.544041864 | AD15: -3.529903331 | AE15: -3.341768228 | AF15: -3.503112542 | AG15: -3.488316289
E16: Domestic and stock | H16: (Rural) | K16: =K102-K96-K99 -> 5 | L16: =L102-L96-L99 -> 0 | M16: 0 | N16: 0 | O16: 0 | P16: 0 | Q16: 0 | R16: 9.92842432 | S16: 9.003138626 | T16: 9.105241935 | U16: 9.141364114 | V16: 8.935876193 | W16: 8.491728108 | X16: 7.992415667 | Y16: 8.124948497 | Z16: 8.104566787 | AA16: 8.122731337 | AB16: 8.113229087 | AC16: 8.126276387 | AD16: 8.142960337 | AE16: 8.159833327 | AF16: 8.176898107 | AG16: 8.194158227
E17: Surface water diversions | H17: (Rural) | K17: =K112-K106-K109 -> 5 | L17: =L112-L106-L109 -> 0 | M17: 0 | N17: 0 | O17: 0 | P17: 0 | Q17: 0 | R17: 0.07569467613 | S17: 0.08240584411 | T17: 0.07862903226 | U17: 0.1303638864 | V17: 0.1081111268 | W17: 0.12007706 | X17: 0.07220729 | Y17: 0.07126792 | Z17: 0.07058279 | AA17: 0.0699426 | AB17: 0.0694301 | AC17: 0.06954382 | AD17: 0.06979958 | AE17: 0.07005783 | AF17: 0.07031889 | AG17: 0.07058263
E18: Groundwater diversions | H18: (Rural) | K18: =K122-K116-K119 -> 5 | L18: =L122-L116-L119 -> 0 | M18: 0 | N18: 0 | O18: 0 | P18: 0 | Q18: 0 | R18: 0.7889672986 | S18: 0.6982572054 | T18: 0.3501612903 | U18: 0.5888236956 | V18: 0.3913756505 | W18: 0.93823891 | X18: 0.93955761 | Y18: 0.93029966 | Z18: 0.92558052 | AA18: 0.92157195 | AB18: 0.91985638 | AC18: 0.92078198 | AD18: 0.92438974 | AE18: 0.92803733 | AF18: 0.93172549 | AG18: 0.93545475
E19: Total controllable operating expenditure | K19: =SUM(K12:K18) -> 39 | L19: =SUM(L12:L18) -> 0 | M19: 0 | N19: 0 | O19: 0 | P19: 0 | Q19: 0 | R19: 31.65138432 | S19: 32.51106202 | T19: 31.75774194 | U19: 32.54245405 | V19: 31.49368667 | W19: 32.60697539 | X19: 32.39494151 | Y19: 32.39494148 | Z19: 32.22718208 | AA19: 32.17738812 | AB19: 31.9467132 | AC19: 32.0052297 | AD19: 31.97243155 | AE19: 31.78609088 | AF19: 31.90764681 | AG19: 32.02926421
V20: Controllable Opex for 3rd Reg Period | W20: =SUM(S19:W19) -> 160.9119201 | AA20: Controllable Opex for 4th Reg Period | AB20: =SUM(X19:AB19) -> 161.1411664
AA21: Controllable Opex growth from 3rd to 4th Reg Period | AB21: =IFERROR(AB20-W20,"-") -> 0.2292463128 | AC21: =IFERROR(AB20/W20-1,"-") -> 0.00142466955
E22: Operations & Maintenance | K22: =K51+K62+K73+K84+K95+K105+K115 -> 7 | L22: 0 | M22: 0 | N22: 0 | O22: 0 | P22: 0 | Q22: 0 | R22: 12.90757394 | S22: 11.97184063 | T22: 11.30580645 | U22: 12.7184095 | V22: 11.52076947 | W22: 12.73627684 | X22: 12.55772911 | Y22: 12.60870939 | Z22: 12.56356855 | AA22: 12.55599196 | AB22: 12.51708784 | AC22: 12.53656605 | AD22: 12.55434828 | AE22: 12.46429518 | AF22: 12.59070607 | AG22: 12.71723109
E23: Treatment | K23: =K53+K64+K75+K86 -> 4 | L23: =L53+L64+L75+L86 -> 0 | M23: 0 | N23: 0 | O23: 0 | P23: 0 | Q23: 0 | R23: 5.494750188 | S23: 6.660912677 | T23: 6.416129032 | U23: 5.682165298 | V23: 5.796942839 | W23: 5.32586285 | X23: 5.36947205 | Y23: 5.42528953 | Z23: 5.40773031 | AA23: 5.46883048 | AB23: 5.37863165 | AC23: 5.39899653 | AD23: 5.32970499 | AE23: 5.21466945 | AF23: 5.19102841 | AG23: 5.1672975
E24: Customer Service and billing | K24: =K54+K65+K76+K87+K97+K107+K117 -> 7 | L24: 0 | M24: 0 | N24: 0 | O24: 0 | P24: 0 | Q24: 0 | R24: 2.598707034 | S24: 1.656498356 | T24: 2.04016129 | U24: 2.580759026 | V24: 2.888505826 | W24: 2.65175368 | X24: 2.63212008 | Y24: 2.61278708 | Z24: 2.59375525 | AA24: 2.57502525 | AB24: 2.55659753 | AC24: 2.55942971 | AD24: 2.5622675 | AE24: 2.56511098 | AF24: 2.56796018 | AG24: 2.57081505
E25: GSL Payments | K25: =K55+K66+K77+K88+K98+K108+K118 -> 7 | L25: =L55+L66+L77+L88+L98+L108+L118 -> 0 | M25: 0 | N25: 0 | O25: 0 | P25: 0 | Q25: 0 | R25: 0 | S25: 0 | T25: 0 | U25: 0.01924438202 | V25: 0.01772536423 | W25: 0.02628031 | X25: 0.02628031 | Y25: 0.02628031 | Z25: 0.02628031 | AA25: 0.02628031 | AB25: 0.02628031 | AC25: 0.02628031 | AD25: 0.02628031 | AE25: 0.02628031 | AF25: 0.02628031 | AG25: 0.02628031
E26: Corporate | K26: =K57+K68+K79+K90+K100+K110+K120 -> 7 | L26: 0 | M26: 0 | N26: 0 | O26: 0 | P26: 0 | Q26: 0 | R26: 10.54157398 | S26: 12.04771434 | T26: 11.79540323 | U26: 11.3224288 | V26: 11.42293171 | W26: 12.01999025 | X26: 11.80933996 | Y26: 11.72187517 | Z26: 11.63584766 | AA26: 11.55126012 | AB26: 11.46811587 | AC26: 11.4839571 | AD26: 11.49983047 | AE26: 11.51573496 | AF26: 11.53167184 | AG26: 11.54764026
E27: Other operating expenditure | K27: =K58+K69+K80+K91+K101+K111+K121 -> 7 | L27: 0 | M27: 0 | N27: 0 | O27: 0 | P27: 0 | Q27: 0 | R27: 0.1087791754 | S27: 0.1740960197 | T27: 0.2002419355 | U27: 0.2194470508 | V27: -0.1531885397 | W27: -0.1531885397 | X27: 4.440892099e-16 | Y27: -4.440892099e-16 | Z27: 4.440892099e-16 | AA27: 4.440892099e-16 | AB27: 4.440892099e-16 | AC27: -4.440892099e-16 | AD27: -4.440892099e-16 | AE27: 4.440892099e-16 | AF27: -4.440892099e-16 | AG27: -4.440892099e-16
E28: Total controllable operating expenditure | K28: =SUM(K22:K27) -> 39 | L28: =SUM(L22:L27) -> 0 | M28: 0 | N28: 0 | O28: 0 | P28: 0 | Q28: 0 | R28: 31.65138432 | S28: 32.51106202 | T28: 31.75774194 | U28: 32.54245405 | V28: 31.49368667 | W28: 32.60697539 | X28: 32.39494151 | Y28: 32.39494148 | Z28: 32.22718208 | AA28: 32.17738812 | AB28: 31.9467132 | AC28: 32.0052297 | AD28: 31.97243155 | AE28: 31.78609088 | AF28: 31.90764681 | AG28: 32.02926421
E31: External bulk water charges (excl. temporary purchases) | K31: =K52+K63+K74+K85+K96+K106+K116 -> 7 | L31: 0 | M31: 0 | N31: 0 | O31: 0 | P31: 0 | Q31: 0 | R31: 0 | S31: 0 | T31: 0 | U31: 0 | V31: 0.1982149511 | W31: 0.230676 | X31: 0.230676 | Y31: 0.230676 | Z31: 0.230676 | AA31: 0.230676 | AB31: 0.230676 | AC31: 0.230676 | AD31: 0.230676 | AE31: 0.230676 | AF31: 0.230676 | AG31: 0.230676
E32: External temporary water purchases | K32: =+K125 -> 0 | L32: 0 | M32: 0 | N32: 0 | O32: 0 | P32: 0 | Q32: 0 | R32: 0 | S32: 0 | T32: 0 | U32: 0 | V32: 0 | W32: 0 | X32: 0 | Y32: 0 | Z32: 0 | AA32: 0 | AB32: 0 | AC32: 0 | AD32: 0 | AE32: 0 | AF32: 0 | AG32: 0
E33: Licence fees | K33: =+K132 -> 0 | L33: 0 | M33: 0 | N33: 0 | O33: 0 | P33: 0 | Q33: 0 | R33: 0.2069772403 | S33: 0.1247058325 | T33: 0.09120967742 | U33: 0.1003346208 | V33: 0.102467427 | W33: 0.1003346208 | X33: 0.1003346208 | Y33: 0.1003346208 | Z33: 0.1003346208 | AA33: 0.1003346208 | AB33: 0.1003346208 | AC33: 0.1003346208 | AD33: 0.1003346208 | AE33: 0.1003346208 | AF33: 0.1003346208 | AG33: 0.1003346208
E34: Environment Contribution | K34: =K134 -> 0 | L34: 0 | M34: 0 | N34: 0 | O34: 0 | P34: 0 | Q34: 0 | R34: 1.463378378 | S34: 1.817207031 | T34: 1.765483871 | U34: 1.742340783 | V34: 1.719796673 | W34: 1.684 | X34: 2.084 | Y34: 2.084 | Z34: 2.084 | AA34: 2.084 | AB34: 2.084 | AC34: 2.084 | AD34: 2.084 | AE34: 2.084 | AF34: 2.084 | AG34: 2.084
E35: Other non-controllable | K35: =+K147 -> 0 | L35: 0 | M35: 0 | N35: 0 | O35: 0 | P35: 0 | Q35: 0 | R35: 0.2525395206 | S35: 0 | T35: 0 | U35: 0 | V35: 0 | W35: 0 | X35: 0 | Y35: 0 | Z35: 0 | AA35: 0 | AB35: 0 | AC35: 0 | AD35: 0 | AE35: 0 | AF35: 0 | AG35: =+AG147 -> 0
E36: Total non-controllable operating expenditure | K36: =SUM(K31:K35) -> 7 | L36: 0 | M36: 0 | N36: 0 | O36: 0 | P36: 0 | Q36: 0 | R36: 1.922895139 | S36: 1.941912864 | T36: 1.856693548 | U36: 1.842675403 | V36: 2.020479051 | W36: 2.015010621 | X36: 2.415010621 | Y36: 2.415010621 | Z36: 2.415010621 | AA36: 2.415010621 | AB36: 2.415010621 | AC36: 2.415010621 | AD36: 2.415010621 | AE36: 2.415010621 | AF36: 2.415010621 | AG36: 2.415010621
V37: Non-controllable Opex for 3rd Reg Period | W37: =SUM(S36:W36) -> 9.676771487 | AA37: Non-controllable Opex for 4th Reg Period | AB37: =SUM(X36:AB36) -> 12.0750531
AA38: Non-controllable Opex growth from 3rd to 4th Reg Period | AB38: =IFERROR(AB37-W37,"-") -> 2.398281617 | AC38: =IFERROR(AB37/W37-1,"-") -> 0.2478390256
E39: Total prescribed operating expenditure | K39: =+K36+K19 -> 46 | L39: 0 | M39: 0 | N39: 0 | O39: 0 | P39: 0 | Q39: 0 | R39: 33.57427946 | S39: 34.45297489 | T39: 33.61443548 | U39: 34.38512946 | V39: 33.51416572 | W39: 34.62198601 | X39: 34.80995213 | Y39: 34.8099521 | Z39: 34.6421927 | AA39: 34.59239874 | AB39: 34.36172382 | AC39: 34.42024032 | AD39: 34.38744217 | AE39: 34.2011015 | AF39: 34.32265743 | AG39: 34.44427483
V40: Prescribed Opex for 3rd Reg Period | W40: =SUM(S39:W39) -> 170.5886916 | AA40: Prescribed Opex for 4th Reg Period | AB40: =SUM(X39:AB39) -> 173.2162195
AA41: Prescribed Opex growth from 3rd to 4th Reg Period | AB41: =IFERROR(AB40-W40,"-") -> 2.62752793 | AC41: =IFERROR(AB40/W40-1,"-") -> 0.01540270873
W42: To reconcile to 'Opex_FO' tab row 123>> | X42: =+Opex_FO!X99 -> 34.80995213 | Y42: =+Opex_FO!Y99 -> 34.8099521 | Z42: =+Opex_FO!Z99 -> 34.6421927 | AA42: =+Opex_FO!AA99 -> 34.59239874 | AB42: =+Opex_FO!AB99 -> 34.36172382 | AC42: =+Opex_FO!AC99 -> 34.42024032 | AD42: =+Opex_FO!AD99 -> 34.38744217 | AE42: =+Opex_FO!AE99 -> 34.2011015 | AF42: =+Opex_FO!AF99 -> 34.32265743 | AG42: =+Opex_FO!AG99 -> 34.44427483
W43: Difference | X43: =+X42-X39 -> 0 | Y43: 0 | Z43: 0 | AA43: 0 | AB43: 0 | AC43: 0 | AD43: 0 | AE43: 0 | AF43: 0 | AG43: 0
W44: Test | X44: =+X42=X39 -> TRUE | Y44: TRUE | Z44: TRUE | AA44: TRUE | AB44: TRUE | AC44: TRUE | AD44: TRUE | AE44: TRUE | AF44: TRUE | AG44: TRUE
B48: Total operating expenditure
C50: Urban Water
D51: Operations & Maintenance | K51: 1 | R51: 5.478856129 | S51: 5.219766098 | T51: 4.624435484 | U51: 6.415938458 | V51: 5.036505767 | W51: 5.04859161 | X51: 4.71091622 | Y51: 4.67972083 | Z51: 4.65244037 | AA51: 4.62600486 | AB51: 4.6021832 | AC51: 4.60892838 | AD51: 4.61791072 | AE51: 4.51899177 | AF51: 4.63647034 | AG51: 4.75399521
D52: External bulk charges (excl. temporary purchases) | K52: 1 | R52: 0 | S52: 0 | T52: 0 | U52: 0 | V52: 0 | W52: 0 | X52: 0 | Y52: 0 | Z52: 0 | AA52: 0 | AB52: 0 | AC52: 0 | AD52: 0 | AE52: 0 | AF52: 0 | AG52: 0
D53: Treatment | K53: 1 | R53: 4.342134311 | S53: 5.153618888 | T53: 4.966209677 | U53: 4.388813351 | V53: 4.532335781 | W53: 4.08814807 | X53: 4.1397924 | Y53: 4.20522706 | Z53: 4.1963237 | AA53: 4.26582376 | AB53: 4.18349235 | AC53: 4.20254893 | AD53: 4.13147149 | AE53: 4.01463928 | AF53: 3.98919037 | AG53: 3.96364057
D54: Customer Service and billing | K54: 1 | R54: 0.9760793956 | S54: 0.6049812628 | T54: 1.3 | U54: 1.137840217 | V54: 1.234747558 | W54: 1.34266315 | X54: 1.31637472 | Y54: 1.30599259 | Z54: 1.29715662 | AA54: 1.28772041 | AB54: 1.2758382 | AC54: 1.27684574 | AD54: 1.2747219 | AE54: 1.27255377 | AF54: 1.27034064 | AG54: 1.26808158
D55: GSL Payments | K55: 1 | R55: 0 | S55: 0 | T55: 0 | U55: 0.01924438202 | V55: 0.01691823424 | W55: 0.02265996 | X55: 0.02265996 | Y55: 0.02265996 | Z55: 0.02265996 | AA55: 0.02265996 | AB55: 0.02265996 | AC55: 0.02265996 | AD55: 0.02265996 | AE55: 0.02265996 | AF55: 0.02265996 | AG55: 0.02265996
D56: Licence Fees | K56: 1 | R56: 0.06341990746 | S56: 0.04799441053 | T56: 0.0314516129 | U56: 0.03573471093 | V56: 0 | W56: 0 | X56: 0 | Y56: 0 | Z56: 0 | AA56: 0 | AB56: 0 | AC56: 0 | AD56: 0 | AE56: 0 | AF56: 0 | AG56: 0
D57: Corporate | K57: 1 | R57: 4.609389923 | S57: 5.784021228 | T57: 5.451612903 | U57: 5.90224385 | V57: 5.47244669 | W57: 5.04400823 | X57: 4.700256207 | Y57: 4.631396917 | Z57: 4.584047567 | AA57: 4.526967187 | AB57: 4.433941747 | AC57: 4.437802587 | AD57: 4.397233217 | AE57: 4.355999827 | AF57: 4.314091567 | AG57: 4.271495387
D58: Other operating expenditure | H58: (Includes bulk water headworks allocation) | K58: 1 | R58: 4.989649069 | S58: 4.867831465 | T58: 4.729274194 | U58: 4.668856843 | V58: 4.606894104 | W58: 4.606894104 | X58: 4.187062649 | Y58: 4.191686783 | Z58: 4.197269607 | AA58: 4.201375851 | AB58: 4.205782483 | AC58: 4.209981671 | AD58: 4.214184878 | AE58: 4.044604585 | AF58: 4.224719819 | AG58: 4.228914686
C59: =+CONCATENATE("Total ",C50) -> Total Urban Water | K59: =+SUM(K51:K58) -> 8 | L59: =+SUM(L51:L58) -> 0 | M59: 0 | N59: 0 | O59: 0 | P59: 0 | Q59: 0 | R59: 20.45952874 | S59: 21.67821335 | T59: 21.10298387 | U59: 22.56867181 | V59: 20.89984813 | W59: 20.15296512 | X59: 19.07706216 | Y59: 19.03668414 | Z59: 18.94989782 | AA59: 18.93055203 | AB59: 18.72389794 | AC59: =+SUM(AC51:AC58) -> 18.75876727 | AD59: 18.65818216 | AE59: 18.22944919 | AF59: 18.4574727 | AG59: 18.50878739
C61: Sewerage
D62: =+D51 -> Operations & Maintenance | K62: 1 | R62: 2.574752503 | S62: 2.105790677 | T62: 1.964677419 | U62: 2.113852771 | V62: 2.371821378 | W62: 2.74866015 | X62: 2.71706628 | Y62: 2.72074014 | Z62: 2.71047148 | AA62: 2.70073249 | AB62: 2.69242214 | AC62: 2.69401199 | AD62: 2.69713139 | AE62: 2.7002766 | AF62: 2.70344787 | AG62: 2.70664574
D63: =+D52 -> External bulk charges (excl. temporary purchases) | K63: 1 | R63: 0 | S63: 0 | T63: 0 | U63: 0 | V63: 0 | W63: 0 | X63: 0 | Y63: 0 | Z63: 0 | AA63: 0 | AB63: 0 | AC63: 0 | AD63: 0 | AE63: 0 | AF63: 0 | AG63: 0
D64: Treatment | K64: 1 | R64: 1.152615877 | S64: 1.507293789 | T64: 1.449919355 | U64: 1.293351947 | V64: 1.264607058 | W64: 1.23771478 | X64: 1.22967965 | Y64: 1.22006247 | Z64: 1.21140661 | AA64: 1.20300672 | AB64: 1.1951393 | AC64: 1.1964476 | AD64: 1.1982335 | AE64: 1.20003017 | AF64: 1.20183804 | AG64: 1.20365693
D65: Customer Service and billing | K65: 1 | R65: 0.460629935 | S65: 0.2982424891 | T65: 0.04508064516 | U65: 0.4837431649 | V65: 0.6248016206 | W65: 0.62562135 | X65: 0.62029537 | Y65: 0.61305643 | Z65: 0.60704583 | AA65: 0.601466 | AB65: 0.59714734 | AC65: 0.59810596 | AD65: 0.60047877 | AE65: 0.60287419 | AF65: 0.60529261 | AG65: 0.60773435
D66: GSL Payments | K66: 1 | R66: 0 | S66: 0 | T66: 0 | U66: 0 | V66: 0.0008071299908 | W66: 0.00362035 | X66: 0.00362035 | Y66: 0.00362035 | Z66: 0.00362035 | AA66: 0.00362035 | AB66: 0.00362035 | AC66: 0.00362035 | AD66: 0.00362035 | AE66: 0.00362035 | AF66: 0.00362035 | AG66: 0.00362035
D67: Licence Fees | K67: 1 | R67: 0.1167996927 | S67: 0.05882951957 | T67: 0.05137096774 | U67: 0.05328252523 | V67: 0 | W67: 0 | X67: 0 | Y67: 0 | Z67: 0 | AA67: 0 | AB67: 0 | AC67: 0 | AD67: 0 | AE67: 0 | AF67: 0 | AG67: 0
D68: Corporate | K68: 1 | R68: 2.27810676 | S68: 2.769312757 | T68: 2.821209677 | U68: 2.502115426 | V68: 2.910247998 | W68: 3.26363821 | X68: 3.232735889 | Y68: 3.191930859 | Z68: 3.168164159 | AA68: 3.149660599 | AB68: 3.148500219 | AC68: 3.153791769 | AD68: 3.179614609 | AE68: 3.205755679 | AF68: 3.232220859 | AG68: 3.259015689
D69: Other operating expenditure | K69: 1 | R69: 0 | S69: 0 | T69: 0 | U69: 0.009669329401 | V69: 0 | W69: 0 | X69: 0 | Y69: 0 | Z69: 0 | AA69: 0 | AB69: 0 | AC69: 0 | AD69: 0 | AE69: 0 | AF69: 0 | AG69: 0
C70: =+CONCATENATE("Total ",C61) -> Total Sewerage | K70: =+SUM(K62:K69) -> 8 | L70: 0 | M70: 0 | N70: 0 | O70: 0 | P70: 0 | Q70: 0 | R70: 6.582904767 | S70: 6.739469231 | T70: 6.332258065 | U70: 6.456015163 | V70: 7.172285184 | W70: 7.87925484 | X70: 7.803397539 | Y70: 7.749410249 | Z70: 7.700708429 | AA70: 7.658486159 | AB70: 7.636829349 | AC70: =+SUM(AC62:AC69) -> 7.645977669 | AD70: 7.679078619 | AE70: 7.712556989 | AF70: 7.746419729 | AG70: 7.780673059
C72: Recycled Water
D73: =+D62 -> Operations & Maintenance | K73: 1 | R73: 0.08494597352 | S73: 0.09803984087 | T73: 0.07548387097 | U73: 0.06991448811 | V73: 0.03707249469 | W73: 0.02792445 | X73: 0.02792444 | Y73: 0.02792444 | Z73: 0.02792444 | AA73: 0.02792444 | AB73: 0.02792444 | AC73: 0.02792444 | AD73: 0.02792444 | AE73: 0.02792444 | AF73: 0.02792444 | AG73: 0.02792444
D74: =+D63 -> External bulk charges (excl. temporary purchases) | K74: 1 | R74: 0 | S74: 0 | T74: 0 | U74: 0 | V74: 0 | W74: 0 | X74: 0 | Y74: 0 | Z74: 0 | AA74: 0 | AB74: 0 | AC74: 0 | AD74: 0 | AE74: 0 | AF74: 0 | AG74: 0
D75: Treatment | K75: 1 | R75: 0 | S75: 0 | T75: 0 | U75: 0 | V75: 0 | W75: 0 | X75: 0 | Y75: 0 | Z75: 0 | AA75: 0 | AB75: 0 | AC75: 0 | AD75: 0 | AE75: 0 | AF75: 0 | AG75: 0
D76: Customer Service and billing | K76: 1 | R76: 0.00559796982 | S76: 1.610019531e-05 | T76: 0 | U76: 0 | V76: 0.001181287893 | W76: 0 | X76: 0 | Y76: 0 | Z76: 0 | AA76: 0 | AB76: 0 | AC76: 0 | AD76: 0 | AE76: 0 | AF76: 0 | AG76: 0
D77: GSL Payments | K77: 1 | R77: 0 | S77: 0 | T77: 0 | U77: 0 | V77: 0 | W77: 0 | X77: 0 | Y77: 0 | Z77: 0 | AA77: 0 | AB77: 0 | AC77: 0 | AD77: 0 | AE77: 0 | AF77: 0 | AG77: 0
D78: Licence Fees | K78: 1 | R78: 0.0001926703297 | S78: 0.0001287599359 | T78: 0 | U78: 6.55580917e-05 | V78: 0 | W78: 0 | X78: 0 | Y78: 0 | Z78: 0 | AA78: 0 | AB78: 0 | AC78: 0 | AD78: 0 | AE78: 0 | AF78: 0 | AG78: 0
D79: Corporate | K79: 1 | R79: 0.08407873332 | S79: 0.02026891572 | T79: 0.03564516129 | U79: 0.009651171395 | V79: 0.003871442052 | W79: 0 | X79: 0 | Y79: 0 | Z79: 0 | AA79: 0 | AB79: 0 | AC79: 0 | AD79: 0 | AE79: 0 | AF79: 0 | AG79: 0
D80: Other operating expenditure | K80: 1 | R80: 0 | S80: 0 | T80: 0 | U80: 1.127762172e-06 | V80: 0 | W80: 0 | X80: 0 | Y80: 0 | Z80: 0 | AA80: 0 | AB80: 0 | AC80: 0 | AD80: 0 | AE80: 0 | AF80: 0 | AG80: 0
C81: =+CONCATENATE("Total ",C72) -> Total Recycled Water | K81: =+SUM(K73:K80) -> 8 | L81: =+SUM(L73:L80) -> 0 | M81: =+SUM(M73:M80) -> 0 | N81: =+SUM(N73:N80) -> 0 | O81: 0 | P81: 0 | Q81: 0 | R81: 0.174815347 | S81: 0.1184536167 | T81: 0.1111290323 | U81: 0.07963234536 | V81: 0.04212522463 | W81: 0.02792445 | X81: =+SUM(X73:X80) -> 0.02792444 | Y81: =+SUM(Y73:Y80) -> 0.02792444 | Z81: =+SUM(Z73:Z80) -> 0.02792444 | AA81: =+SUM(AA73:AA80) -> 0.02792444 | AB81: =+SUM(AB73:AB80) -> 0.02792444 | AC81: =+SUM(AC73:AC80) -> 0.02792444 | AD81: 0.02792444 | AE81: 0.02792444 | AF81: 0.02792444 | AG81: 0.02792444
C83: Bulk water - headworks
D84: =+D62 -> Operations & Maintenance | K84: 1 | R84: 1.467666674 | S84: 1.712812858 | T84: 1.955241935 | U84: 1.150176342 | V84: 1.326697651 | W84: 1.82644045 | X84: 1.82919359 | Y84: 1.82795887 | Z84: 1.82862108 | AA84: 1.82956403 | AB84: 1.83146711 | AC84: 1.83290874 | AD84: 1.83550073 | AE84: 1.8381131 | AF84: 1.84074608 | AG84: 1.84339997
D85: =+D63 -> External bulk charges (excl. temporary purchases) | K85: 1 | R85: 0 | S85: 0 | T85: 0 | U85: 0 | V85: 0.1982149511 | W85: 0.230676 | X85: 0.230676 | Y85: 0.230676 | Z85: 0.230676 | AA85: 0.230676 | AB85: 0.230676 | AC85: 0.230676 | AD85: 0.230676 | AE85: 0.230676 | AF85: 0.230676 | AG85: 0.230676
D86: Treatment | K86: 1 | R86: 0 | S86: 0 | T86: 0 | U86: 0 | V86: 0 | W86: 0 | X86: 0 | Y86: 0 | Z86: 0 | AA86: 0 | AB86: 0 | AC86: 0 | AD86: 0 | AE86: 0 | AF86: 0 | AG86: 0
D87: Customer Service and billing | K87: 1 | R87: 0.1655691074 | S87: 0.002121697119 | T87: 0.02096774194 | U87: 0.04895890805 | V87: 0.1370353801 | W87: 0.12809041 | X87: 0.12931316 | Y87: 0.12772812 | Z87: 0.12747226 | AA87: 0.1274087 | AB87: 0.12801736 | AC87: 0.12821243 | AD87: 0.12921752 | AE87: 0.13023475 | AF87: 0.13126425 | AG87: 0.13230628
D88: GSL Payments | K88: 1 | R88: 0 | S88: 0 | T88: 0 | U88: 0 | V88: 0 | W88: 0 | X88: 0 | Y88: 0 | Z88: 0 | AA88: 0 | AB88: 0 | AC88: 0 | AD88: 0 | AE88: 0 | AF88: 0 | AG88: 0
D89: Licence Fees | K89: 1 | R89: 0.002947979258 | S89: 0.001970109362 | T89: 0.001048387097 | U89: 0.001408964526 | V89: 0 | W89: 0 | X89: 0 | Y89: 0 | Z89: 0 | AA89: 0 | AB89: 0 | AC89: 0 | AD89: 0 | AE89: 0 | AF89: 0 | AG89: 0
D90: Corporate | K90: 1 | R90: 1.528915379 | S90: 1.627815228 | T90: 1.540080645 | U90: 1.098824306 | V90: 1.358122718 | W90: 1.92004663 | X90: 1.9440311 | Y90: 1.92350476 | Z90: 1.92219595 | AA90: 1.92368112 | AB90: 1.93494231 | AC90: 1.93791703 | AD90: 1.95266169 | AE90: 1.9675869 | AF90: 1.98269534 | AG90: 1.99799054
D91: Other operating expenditure | H91: (Includes urban bulk water headworks allocation) | K91: 1 | R91: -9.340689713 | S91: -9.044672945 | T91: -8.756129032 | U91: -8.631293725 | V91: -8.877790591 | W91: -8.877790591 | X91: =-X58-X101 -> -7.420161042 | Y91: =-Y58-Y101 -> -7.424785176 | Z91: -7.430368 | AA91: -7.434474244 | AB91: -7.438880876 | AC91: -7.443080064 | AD91: -7.447283271 | AE91: -7.277702978 | AF91: -7.457818212 | AG91: -7.462013079
C92: =+CONCATENATE("Total ",C83) -> Total Bulk water - headworks | H92: (Net considered Rural cost) | K92: =+SUM(K84:K91) -> 8 | L92: 0 | M92: 0 | N92: 0 | O92: 0 | P92: 0 | Q92: 0 | R92: -6.175590573 | S92: -5.699953053 | T92: -5.238790323 | U92: -6.331925205 | V92: -5.857719891 | W92: -4.772537101 | X92: =+SUM(X84:X91) -> -3.286947192 | Y92: =+SUM(Y84:Y91) -> -3.314917426 | Z92: =+SUM(Z84:Z91) -> -3.32140271 | AA92: =+SUM(AA84:AA91) -> -3.323144394 | AB92: =+SUM(AB84:AB91) -> -3.313778096 | AC92: =+SUM(AC84:AC91) -> -3.313365864 | AD92: -3.299227331 | AE92: -3.111092228 | AF92: -3.272436542 | AG92: -3.257640289
C94: Domestic and stock
D95: =+D73 -> Operations & Maintenance | K95: 1 | R95: 2.90659127 | S95: 2.512594311 | T95: 2.569596774 | U95: 2.699749585 | V95: 2.581491574 | W95: 2.6298068 | X95: 2.81982627 | Y95: 2.90161007 | Z95: 2.89535859 | AA95: 2.92498245 | AB95: 2.91823826 | AC95: 2.92764167 | AD95: 2.93042396 | AE95: 2.93322527 | AF95: 2.93604565 | AG95: 2.93888563
D96: Bulk Charges | K96: 1 | R96: 0 | S96: 0 | T96: 0 | U96: 0 | V96: 0 | W96: 0 | X96: 0 | Y96: 0 | Z96: 0 | AA96: 0 | AB96: 0 | AC96: 0 | AD96: 0 | AE96: 0 | AF96: 0 | AG96: 0
D97: Customer Service and billing | K97: 1 | R97: 0.940746097 | S97: 0.7278890963 | T97: 0.660483871 | U97: 0.8666718204 | V97: 0.8495006949 | W97: 0.48847061 | X97: 0.49924687 | Y97: 0.50002436 | Z97: 0.49656929 | AA97: 0.49332614 | AB97: 0.49068279 | AC97: 0.4912721 | AD97: 0.49252254 | AE97: 0.49378445 | AF97: 0.49505792 | AG97: 0.49634323
D98: GSL Payments | K98: 1 | R98: 0 | S98: 0 | T98: 0 | U98: 0 | V98: 0 | W98: 0 | X98: 0 | Y98: 0 | Z98: 0 | AA98: 0 | AB98: 0 | AC98: 0 | AD98: 0 | AE98: 0 | AF98: 0 | AG98: 0
D99: Licence fees | K99: 1 | R99: 0.02271246695 | S99: 0.01517854769 | T99: 0.007338709677 | U99: 0.00983631055 | V99: 0 | W99: 0 | X99: 0 | Y99: 0 | Z99: 0 | AA99: 0 | AB99: 0 | AC99: 0 | AD99: 0 | AE99: 0 | AF99: 0 | AG99: 0
D100: Corporate | K100: 1 | R100: 1.621267134 | S100: 1.411717718 | T100: 1.648064516 | U100: 1.402822682 | V100: 1.387175976 | W100: 1.25574275 | X100: 1.440244134 | Y100: 1.490215674 | Z100: 1.479540514 | AA100: 1.471324354 | AB100: 1.471209644 | AC100: 1.474264224 | AD100: 1.486915444 | AE100: 1.499725214 | AF100: 1.512696144 | AG100: 1.525830974
D101: Other operating expenditure | K101: 1 | R101: 4.45981982 | S101: 4.3509375 | T101: 4.227096774 | U101: 4.172120027 | V101: 4.117707948 | W101: 4.117707948 | X101: 3.233098393 | Y101: 3.233098393 | Z101: 3.233098393 | AA101: 3.233098393 | AB101: 3.233098393 | AC101: 3.233098393 | AD101: 3.233098393 | AE101: 3.233098393 | AF101: 3.233098393 | AG101: 3.233098393
C102: =+CONCATENATE("Total ",C94) -> Total Domestic and stock | K102: =+SUM(K95:K101) -> 7 | L102: 0 | M102: 0 | N102: 0 | O102: 0 | P102: 0 | Q102: 0 | R102: 9.951136787 | S102: 9.018317174 | T102: 9.112580645 | U102: 9.151200425 | V102: 8.935876193 | W102: 8.491728108 | X102: 7.992415667 | Y102: 8.124948497 | Z102: 8.104566787 | AA102: 8.122731337 | AB102: 8.113229087 | AC102: 8.126276387 | AD102: 8.142960337 | AE102: 8.159833327 | AF102: 8.176898107 | AG102: 8.194158227
C104: Surface water diversions
D105: =+D51 -> Operations & Maintenance | K105: 1 | R105: 0.003777750551 | S105: 0.006427010205 | T105: 0.004193548387 | U105: 0.02811675604 | V105: 0.01882815832 | W105: 0.02535748 | X105: 0.02504746 | Y105: 0.02474077 | Z105: 0.02443952 | AA105: 0.02414317 | AB105: 0.02385193 | AC105: 0.02389673 | AD105: 0.02394199 | AE105: 0.02398736 | AF105: 0.02403283 | AG105: 0.0240784
D106: Bulk Charges | K106: 1 | R106: 0 | S106: 0 | T106: 0 | U106: 0 | V106: 0 | W106: 0 | X106: 0 | Y106: 0 | Z106: 0 | AA106: 0 | AB106: 0 | AC106: 0 | AD106: 0 | AE106: 0 | AF106: 0 | AG106: 0
D107: Customer Service and billing | K107: 1 | R107: 0.004894021772 | S107: 0.004315014209 | T107: 0.004193548387 | U107: 0.01259563427 | V107: 0.008655009519 | W107: 0.01340656 | X107: 0.01332581 | Y107: 0.0132006 | Z107: 0.01309889 | AA107: 0.01300189 | AB107: 0.01291697 | AC107: 0.01293263 | AD107: 0.01296096 | AE107: 0.01298952 | AF107: 0.01301835 | AG107: 0.01304743
D108: GSL Payments | K108: 1 | R108: 0 | S108: 0 | T108: 0 | U108: 0 | V108: 0 | W108: 0 | X108: 0 | Y108: 0 | Z108: 0 | AA108: 0 | AB108: 0 | AC108: 0 | AD108: 0 | AE108: 0 | AF108: 0 | AG108: 0
D109: Licence fees | K109: 1 | R109: 0.0001197720729 | S109: 8.004265345e-05 | T109: 0 | U109: 4.137455764e-05 | V109: 0 | W109: 0 | X109: 0 | Y109: 0 | Z109: 0 | AA109: 0 | AB109: 0 | AC109: 0 | AD109: 0 | AE109: 0 | AF109: 0 | AG109: 0
D110: Corporate | K110: 1 | R110: 0.0670229038 | S110: 0.0716638197 | T110: 0.07024193548 | U110: 0.08964345695 | V110: 0.08062795901 | W110: 0.08131302 | X110: 0.03383402 | Y110: 0.03332655 | Z110: 0.03304438 | AA110: 0.03279754 | AB110: 0.0326612 | AC110: 0.03271446 | AD110: 0.03289663 | AE110: 0.03308095 | AF110: 0.03326771 | AG110: 0.0334568
D111: Other operating expenditure | K111: 1 | R111: 0 | S111: 0 | T111: 0 | U111: 8.039185393e-06 | V111: 0 | W111: 0 | X111: 0 | Y111: 0 | Z111: 0 | AA111: 0 | AB111: 0 | AC111: 0 | AD111: 0 | AE111: 0 | AF111: 0 | AG111: 0
C112: =+CONCATENATE("Total ",C104) -> Total Surface water diversions | K112: =+SUM(K105:K111) -> 7 | L112: 0 | M112: 0 | N112: 0 | O112: 0 | P112: 0 | Q112: 0 | R112: 0.0758144482 | S112: 0.08248588677 | T112: 0.07862903226 | U112: 0.130405261 | V112: 0.1081111268 | W112: 0.12007706 | X112: 0.07220729 | Y112: 0.07126792 | Z112: 0.07058279 | AA112: 0.0699426 | AB112: 0.0694301 | AC112: 0.06954382 | AD112: 0.06979958 | AE112: 0.07005783 | AF112: 0.07031889 | AG112: 0.07058263
C114: Groundwater diversions
D115: =+D51 -> Operations & Maintenance | K115: 1 | R115: 0.3909836432 | S115: 0.316409833 | T115: 0.1121774194 | U115: 0.2406610953 | V115: 0.148352449 | W115: 0.4294959 | X115: 0.42775485 | Y115: 0.42601427 | Z115: 0.42431307 | AA115: 0.42264052 | AB115: 0.42100076 | AC115: 0.4212541 | AD115: 0.42151505 | AE115: 0.42177664 | AF115: 0.42203886 | AG115: 0.4223017
D116: Bulk Charges | K116: 1 | R116: 0 | S116: 0 | T116: 0 | U116: 0 | V116: 0 | W116: 0 | X116: 0 | Y116: 0 | Z116: 0 | AA116: 0 | AB116: 0 | AC116: 0 | AD116: 0 | AE116: 0 | AF116: 0 | AG116: 0
D117: Customer Service and billing | K117: 1 | R117: 0.04519050696 | S117: 0.01893269663 | T117: 0.009435483871 | U117: 0.03094928076 | V117: 0.03258427472 | W117: 0.0535016 | X117: 0.05356415 | Y117: 0.05278498 | Z117: 0.05241236 | AA117: 0.05210211 | AB117: 0.05199487 | AC117: 0.05206085 | AD117: 0.05236581 | AE117: 0.0526743 | AF117: 0.05298641 | AG117: 0.05330218
D118: GSL Payments | K118: 1 | R118: 0 | S118: 0 | T118: 0 | U118: 0 | V118: 0 | W118: 0 | X118: 0 | Y118: 0 | Z118: 0 | AA118: 0 | AB118: 0 | AC118: 0 | AD118: 0 | AE118: 0 | AF118: 0 | AG118: 0
D119: Licence fees | K119: 1 | R119: 0.0007847515671 | S119: 0.0005244427705 | T119: 0 | U119: 0.0002664136114 | V119: 0 | W119: 0 | X119: 0 | Y119: 0 | Z119: 0 | AA119: 0 | AB119: 0 | AC119: 0 | AD119: 0 | AE119: 0 | AF119: 0 | AG119: 0
D120: Corporate | K120: 1 | R120: 0.3527931484 | S120: 0.3629146758 | T120: 0.2285483871 | U120: 0.3171279096 | V120: 0.2104389268 | W120: 0.45524141 | X120: 0.45823861 | Y120: 0.45150041 | Z120: 0.44885509 | AA120: 0.44682932 | AB120: 0.44686075 | AC120: 0.44746703 | AD120: 0.45050888 | AE120: 0.45358639 | AF120: 0.45670022 | AG120: 0.45985087
D121: Other operating expenditure | K121: 1 | R121: 0 | S121: 0 | T121: 0 | U121: 8.540987828e-05 | V121: 0 | W121: 0 | X121: 0 | Y121: 0 | Z121: 0 | AA121: 0 | AB121: 0 | AC121: 0 | AD121: 0 | AE121: 0 | AF121: 0 | AG121: 0
C122: =+CONCATENATE("Total ",C114) -> Total Groundwater diversions | K122: =+SUM(K115:K121) -> 7 | L122: 0 | M122: 0 | N122: 0 | O122: 0 | P122: 0 | Q122: 0 | R122: 0.7897520502 | S122: 0.6987816481 | T122: 0.3501612903 | U122: 0.5890901092 | V122: 0.3913756505 | W122: 0.93823891 | X122: 0.93955761 | Y122: 0.93029966 | Z122: 0.92558052 | AA122: 0.92157195 | AB122: 0.91985638 | AC122: 0.92078198 | AD122: 0.92438974 | AE122: 0.92803733 | AF122: 0.93172549 | AG122: 0.93545475
C125: External temporary water purchases | R125: 0 | S125: 0 | T125: 0 | U125: 0 | V125: 0 | W125: 0 | X125: 0 | Y125: 0 | Z125: 0 | AA125: 0 | AB125: 0 | AC125: 0 | AD125: 0 | AE125: 0 | AF125: 0 | AG125: 0
C128: Licence fees
D129: Essential Services Commission | R129: 0.09402012513 | S129: 0.06283284668 | T129: 0.02935483871 | U129: 0.03776968633 | V129: 0.03857255397 | W129: 0.03776968633 | X129: 0.03776968633 | Y129: 0.03776968633 | Z129: 0.03776968633 | AA129: 0.03776968633 | AB129: 0.03776968633 | AC129: 0.03776968633 | AD129: 0.03776968633 | AE129: 0.03776968633 | AF129: 0.03776968633 | AG129: 0.03776968633
D130: Department of Human Services | R130: 0.09603987487 | S130: 0.04495591064 | T130: 0.04508064516 | U130: 0.04552434457 | V130: 0.04649205245 | W130: 0.04552434457 | X130: 0.04552434457 | Y130: 0.04552434457 | Z130: 0.04552434457 | AA130: 0.04552434457 | AB130: 0.04552434457 | AC130: 0.04552434457 | AD130: 0.04552434457 | AE130: 0.04552434457 | AF130: 0.04552434457 | AG130: 0.04552434457
D131: Environment Protection Authority | R131: 0.01691724029 | S131: 0.0169170752 | T131: 0.01677419355 | U131: 0.01704058989 | V131: 0.01740282054 | W131: 0.01704058989 | X131: 0.01704058989 | Y131: 0.01704058989 | Z131: 0.01704058989 | AA131: 0.01704058989 | AB131: 0.01704058989 | AC131: 0.01704058989 | AD131: 0.01704058989 | AE131: 0.01704058989 | AF131: 0.01704058989 | AG131: 0.01704058989
C132: =+CONCATENATE("Total ",C128) -> Total Licence fees | K132: =+SUM(K129:K131) -> 0 | L132: =+SUM(L129:L131) -> 0 | M132: 0 | N132: 0 | O132: 0 | P132: 0 | Q132: 0 | R132: 0.2069772403 | S132: 0.1247058325 | T132: 0.09120967742 | U132: 0.1003346208 | V132: 0.102467427 | W132: 0.1003346208 | X132: =+SUM(X129:X131) -> 0.1003346208 | Y132: =+SUM(Y129:Y131) -> 0.1003346208 | Z132: =+SUM(Z129:Z131) -> 0.1003346208 | AA132: =+SUM(AA129:AA131) -> 0.1003346208 | AB132: =+SUM(AB129:AB131) -> 0.1003346208 | AC132: =+SUM(AC129:AC131) -> 0.1003346208 | AD132: 0.1003346208 | AE132: 0.1003346208 | AF132: 0.1003346208 | AG132: 0.1003346208
C134: Environment Contribution | R134: 1.463378378 | S134: 1.817207031 | T134: 1.765483871 | U134: 1.742340783 | V134: 1.719796673 | W134: 1.684 | X134: 2.084 | Y134: 2.084 | Z134: 2.084 | AA134: 2.084 | AB134: 2.084 | AC134: 2.084 | AD134: 2.084 | AE134: 2.084 | AF134: 2.084 | AG134: 2.084
C136: Other non-controllable
D137: NOTE: 2012-13 variance to Regulatory Accounts = Irrigation | R137: 0.2525395206
D138: [Non-controllable 2]
D139: [Non-controllable 3]
D140: [Non-controllable 4]
D141: [Non-controllable 5]
D142: [Non-controllable 6]
D143: [Non-controllable 7]
D144: [Non-controllable 8]
D145: [Non-controllable 9]
D146: [Non-controllable 10]
K147: =SUM(K137:K146) -> 0 | L147: 0 | M147: 0 | N147: 0 | O147: 0 | P147: 0 | Q147: 0 | R147: 0.2525395206 | S147: 0 | T147: 0 | U147: 0 | V147: 0 | W147: 0 | X147: 0 | Y147: 0 | Z147: 0 | AA147: 0 | AB147: 0 | AC147: 0 | AD147: 0 | AE147: 0 | AF147: 0 | AG147: =SUM(AG137:AG146) -> 0

Sheet Capex_FO input
B1: Capital Expenditure - Forecast Input
B2: =+Contents!H7 -> GWM Water
B3: Go to Table of Contents
C7: Input Summary | F7: FOURTH REG PERIOD | K7: FIFTH REG PERIOD
D9: =+O39 -> 2018-19 | E9: 2019-20 | F9: 2020-21 | G9: 2021-22 | H9: 2022-23 | I9: 2023-24 | J9: 2024-25 | K9: 2025-26 | L9: 2026-27 | M9: 2027-28 | P9: 4th Reg Period | S9: 5th Reg Period
C10: By Cost Driver | P10: Total | Q10: % of Total | S10: Total | T10: % of Total
C11: Net capital expenditure - Renewals | D11: =+SUMIF($F$42:$F$1019,"Renewals",AV$42:AV$1019) -> 9.22512076 | E11: 7.65129969 | F11: 5.34030042 | G11: 11.73136193 | H11: 6.31946426 | I11: 8.87880921 | J11: 8.77841269 | K11: 8.38154472 | L11: 6.9766692 | M11: 5.9128327 | P11: =SUM(D11:H11) -> 40.26754706 | Q11: =IFERROR(P11/$P$16,"-") -> 0.413036755 | S11: =SUM(I11:M11) -> 38.92826852 | T11: =IFERROR(S11/$S$16,"-") -> 0.4382159914
C12: Net capital expenditure - Growth | D12: =+SUMIF($F$42:$F$1019,"Growth",AV$42:AV$1019) -> -2.14242726 | E12: -0.84862726 | F12: -0.73742726 | G12: -0.73742726 | H12: -0.73742726 | I12: -0.73742726 | J12: -0.73742726 | K12: -0.73742726 | L12: -0.73742726 | M12: 0.13757274 | P12: =SUM(D12:H12) -> -5.2033363 | Q12: =IFERROR(P12/$P$16,"-") -> -0.05337223888 | S12: =SUM(I12:M12) -> -2.8121363 | T12: =IFERROR(S12/$S$16,"-") -> -0.03165625247
C13: Net capital expenditure - Improvements / Compliance | D13: =+SUMIF($F$42:$F$1019,"Improvements / Compliance",AV$42:AV$1019) -> 11.2641099 | E13: 11.40596211 | F13: 15.88788619 | G13: 6.72105423 | H13: 9.86201448 | I13: 16.95366661 | J13: 14.13432542 | K13: 6.22187181 | L13: 6.87606203 | M13: 5.03146074 | P13: 55.14102691 | Q13: 0.5655986641 | S13: 49.21738661 | T13: 0.5540407186
C14: Government Contributions | D14: =+Z41 -> 0 | E14: =+AA41 -> 0.1112 | F14: 0 | G14: 0 | H14: 0 | I14: 0 | J14: 0 | K14: 0 | L14: 0 | M14: 0 | P14: 0.1112 | Q14: 0.001140612988 | S14: 0 | T14: 0
C15: Customer Contributions | D15: =+AK41 -> 3.675 | E15: =+AL41 -> 0.875 | F15: 0.875 | G15: 0.875 | H15: 0.875 | I15: 0.875 | J15: 0.875 | K15: 0.875 | L15: 0.875 | M15: 0 | P15: 7.175 | Q15: 0.07359620672 | S15: 3.5 | T15: 0.03939954249
C16: Total prescribed capex | D16: =SUM(D11:D15) -> 22.0218034 | E16: 19.19483454 | F16: 21.36575935 | G16: 18.5899889 | H16: 16.31905148 | I16: 25.97004856 | J16: 23.05031085 | K16: 14.74098927 | L16: 13.99030397 | M16: 11.08186618 | P16: 97.49143767 | Q16: 1 | S16: 88.83351883 | T16: 1
C18: By Capital Type
C19: Top 10 Major Projects | D19: =+SUMIF($H$42:$H$1019,$C$19,O$42:O$1019) -> 15.30922548 | E19: 13.65253467 | F19: 16.17246295 | G19: 13.86499049 | H19: 12.11040258 | I19: 8.43603271 | J19: 6.91469152 | K19: 8.11539991 | L19: 7.77845113 | M19: 5.71456353 | P19: =SUM(D19:H19) -> 71.10961617 | Q19: =IFERROR(P19/$P$23,"-") -> 0.7293934511 | S19: =SUM(I19:M19) -> 36.9591388 | T19: =IFERROR(S19/$S$23,"-") -> 0.4160494742
C20: Significant projects | D20: =+SUMIF($H$42:$H$1019,$C$20,O$42:O$1019) -> 0 | E20: 0 | F20: 0 | G20: 0 | H20: 0 | I20: 0 | J20: 0 | K20: 0 | L20: 0 | M20: 0 | P20: =SUM(D20:H20) -> 0 | Q20: =IFERROR(P20/$P$23,"-") -> 0 | S20: =SUM(I20:M20) -> 0 | T20: =IFERROR(S20/$S$23,"-") -> 0
C21: Capital Programs / Allocation | D21: =+SUMIF($H$42:$H$1019,$C$21,O$42:O$1019) -> 6.71257792 | E21: 5.54229987 | F21: 5.1932964 | G21: 4.72499841 | H21: 4.2086489 | I21: 17.53401585 | J21: 16.13561933 | K21: 6.62558936 | L21: 6.21185284 | M21: 5.36730265 | P21: 26.3818215 | Q21: 0.2706065489 | S21: 51.87438003 | T21: 0.5839505258
C22: Other Capital expenditure | D22: =+SUMIF($H$42:$H$1019,$C$22,O$42:O$1019) -> 0 | E22: 0 | F22: 0 | G22: 0 | H22: 0 | I22: 0 | J22: 0 | K22: 0 | L22: 0 | M22: 0 | P22: 0 | Q22: 0 | S22: 0 | T22: 0
C23: Total prescribed capex | D23: =SUM(D19:D22) -> 22.0218034 | E23: =SUM(E19:E22) -> 19.19483454 | F23: 21.36575935 | G23: 18.5899889 | H23: 16.31905148 | I23: 25.97004856 | J23: 23.05031085 | K23: 14.74098927 | L23: 13.99030397 | M23: 11.08186618 | P23: 97.49143767 | Q23: 1 | S23: 88.83351883 | T23: 1
C25: Difference | D25: =+D23-D16 -> 0 | E25: =+E23-E16 -> 0 | F25: 0 | G25: 0 | H25: 0 | I25: 0 | J25: 0 | K25: 0 | L25: 0 | M25: 0
C26: Test | D26: =+D23=D16 -> TRUE | E26: TRUE | F26: TRUE | G26: TRUE | H26: TRUE | I26: TRUE | J26: TRUE | K26: TRUE | L26: TRUE | M26: TRUE
C29: Total prescribed capex | D29: =+D23 -> 22.0218034 | E29: =+E23 -> 19.19483454 | F29: 21.36575935 | G29: 18.5899889 | H29: 16.31905148 | I29: 25.97004856 | J29: 23.05031085 | K29: 14.74098927 | L29: 13.99030397 | M29: 11.08186618
C32: Regulatory Depreciation | D32: =+BG41 -> 0.2553519861 | E32: =+BH41 -> 0.9264177358 | F32: 1.557301428 | G32: 2.084203491 | H32: 2.625487417 | I32: 3.162553341 | J32: 3.729014667 | K32: 4.234220932 | L32: 4.696836473 | M32: 5.102609397
B35: $m, 01/01/18
O36: Gross capital expenditure | Z36: Government contributions | AK36: Customer contributions | AV36: Net capital expenditure | BG36: Regulatory Depreciation | BR36: Accumulated capex | CC36: Gross capital expenditure | CN36: Tax Depreciation
O37: $m, 01/01/18 | Z37: $m, 01/01/18 | AK37: $m, 01/01/18 | AV37: $m, 01/01/18 | BG37: $m, 01/01/18 | BR37: $m, 01/01/18 | CC37: Nominal,$ | CN37: Nominal,$
O39: 2018-19 | P39: 2019-20 | Q39: 2020-21 | R39: 2021-22 | S39: 2022-23 | T39: 2023-24 | U39: 2024-25 | V39: 2025-26 | W39: 2026-27 | X39: 2027-28 | Z39: 2018-19 | AA39: 2019-20 | AB39: 2020-21 | AC39: 2021-22 | AD39: 2022-23 | AE39: 2023-24 | AF39: 2024-25 | AG39: 2025-26 | AH39: 2026-27 | AI39: 2027-28 | AK39: 2018-19 | AL39: 2019-20 | AM39: 2020-21 | AN39: 2021-22 | AO39: 2022-23 | AP39: 2023-24 | AQ39: 2024-25 | AR39: 2025-26 | AS39: 2026-27 | AT39: 2027-28 | AV39: 2018-19 | AW39: 2019-20 | AX39: 2020-21 | AY39: 2021-22 | AZ39: 2022-23 | BA39: 2023-24 | BB39: 2024-25 | BC39: 2025-26 | BD39: 2026-27 | BE39: 2027-28 | BG39: 2018-19 | BH39: 2019-20 | BI39: 2020-21 | BJ39: 2021-22 | BK39: 2022-23 | BL39: 2023-24 | BM39: 2024-25 | BN39: 2025-26 | BO39: 2026-27 | BP39: 2027-28 | BR39: 2018-19 | BS39: 2019-20 | BT39: 2020-21 | BU39: 2021-22 | BV39: 2022-23 | BW39: 2023-24 | BX39: 2024-25 | BY39: 2025-26 | BZ39: 2026-27 | CA39: 2027-28 | CC39: 2018-19 | CD39: 2019-20 | CE39: 2020-21 | CF39: 2021-22 | CG39: 2022-23 | CH39: 2023-24 | CI39: 2024-25 | CJ39: 2025-26 | CK39: 2026-27 | CL39: 2027-28 | CN39: 2018-19 | CO39: 2019-20 | CP39: 2020-21 | CQ39: 2021-22 | CR39: 2022-23 | CS39: 2023-24 | CT39: 2024-25 | CU39: 2025-26 | CV39: 2026-27 | CW39: 2027-28
BG40: 1 | BH40: 2 | BI40: 3 | BJ40: 4 | BK40: 5 | BL40: 6 | BM40: 7 | BN40: 8 | BO40: 9 | BP40: 10 | CN40: 1 | CO40: 2 | CP40: 3 | CQ40: 4 | CR40: 5 | CS40: 6 | CT40: 7 | CU40: 8 | CV40: 9 | CW40: 10
C41: Project/program Name | E41: Service | F41: Major cost driver | G41: Asset category | H41: Capital type | J41: Depreciation Method | K41: Year asset operational | L41: Asset life (Regulatory) | M41: Asset life (Tax) | O41: =SUM(O42:O1019) -> 22.0218034 | P41: 19.19483454 | Q41: 21.36575935 | R41: 18.5899889 | S41: 16.31905148 | T41: 25.97004856 | U41: 23.05031085 | V41: 14.74098927 | W41: 13.99030397 | X41: 11.08186618 | Z41: =SUM(Z42:Z1019) -> 0 | AA41: 0.1112 | AB41: 0 | AC41: 0 | AD41: 0 | AE41: 0 | AF41: 0 | AG41: 0 | AH41: 0 | AI41: 0 | AK41: =SUM(AK42:AK1019) -> 3.675 | AL41: 0.875 | AM41: 0.875 | AN41: 0.875 | AO41: 0.875 | AP41: 0.875 | AQ41: 0.875 | AR41: 0.875 | AS41: 0.875 | AT41: 0 | AV41: =SUM(AV42:AV1019) -> 18.3468034 | AW41: 18.20863454 | AX41: 20.49075935 | AY41: 17.7149889 | AZ41: 15.44405148 | BA41: 25.09504856 | BB41: 22.17531085 | BC41: 13.86598927 | BD41: 13.11530397 | BE41: 11.08186618 | BG41: =SUM(BG42:BG1019) -> 0.2553519861 | BH41: 0.9264177358 | BI41: 1.557301428 | BJ41: 2.084203491 | BK41: 2.625487417 | BL41: 3.162553341 | BM41: 3.729014667 | BN41: 4.234220932 | BO41: 4.696836473 | BP41: 5.102609397 | BR41: =SUM(BR42:BR1019) -> 16.32799584 | BS41: 18.4324421 | BT41: 15.81075935 | BU41: 24.1899889 | BV41: 15.44405148 | BW41: 25.09504856 | BX41: 22.17531085 | BY41: 13.86598927 | BZ41: 13.11530397 | CA41: 11.08186618 | CC41: =SUM(CC42:CC1019) -> 22.52830488 | CD41: 20.087951 | CE41: 22.87416416 | CF41: 20.36018244 | CG41: 18.28407866 | CH41: 29.76641717 | CI41: 27.02752156 | CJ41: 17.68201277 | CK41: 17.16753154 | CL41: 13.91134876 | CN41: =SUM(CN42:CN1019) -> 0.3134679926 | CO41: 1.00493295 | CP41: 1.634954762 | CQ41: 2.1475688 | CR41: 2.649240284 | CS41: 3.210007323 | CT41: 3.806020821 | CU41: 4.361553552 | CV41: 4.893586372 | CW41: 5.376138203
C42: Major Project 1 Decommissioning of Redundant Assets (Rural and Urban) | E42: Urban Water | F42: Improvements / Compliance | G42: Headworks | H42: Top 10 Major Projects | J42: Straight line | K42: Ongoing | L42: 50 | M42: 0 | O42: 1.07 | P42: 1.01 | Q42: 0.86 | R42: 1.01 | S42: 0.86 | T42: 1.01 | U42: 0.86 | V42: 1.01 | W42: 0.86 | X42: 0 | AV42: =+O42-Z42-AK42 -> 1.07 | AW42: =+P42-AA42-AL42 -> 1.01 | AX42: 0.86 | AY42: 1.01 | AZ42: 0.86 | BA42: 1.01 | BB42: 0.86 | BC42: 1.01 | BD42: 0.86 | BE42: 0 | BG42: =IF($L42=0,0, IF($L42<=0.5,BR42, IF($J42="straight line", IF((LEFT(BG$39,4)*1)-INT($L42)<LEFT($BG$39,4)*1,0,((OFFSET(BR42,0,-INT($L42+0.5),1,1))/$L42)*(IF($L42-INT($L42)>0.5,$L42-0.5-INT($L42),IF($L42-INT($L42)<=0.5,$L42-0.5-INT($L42)+1,0)))) +BR42/$L42*0.5, IF($J42="Declining Balance",-$BG$38,0)))) -> 0.0107 | BH42: =IF($L42=0,0, IF($L42<=0.5,BS42, IF(AND($J42="straight line",$L42<1.51),(BR42-((BR42/$L42)*0.5))+BS42/$L42*0.5, IF($J42="straight line", IF((LEFT(BH$39,4)*1)-INT($L42)<LEFT($BG$39,4)*1,0,((OFFSET(BS42,0,-INT($L42+0.5),1,1))/$L42)*(IF($L42-INT($L42)>0.5,$L42-0.5-INT($L42),IF($L42-INT($L42)<=0.5,$L42-0.5-INT($L42)+1,0)))) +BS42/$L42*0.5 +SUM(OFFSET(BS42,0,MAX(-INT($L42+(0.5-(10^-12))),-BH$40)+1,1,MIN(INT($L42+(0.5-(10^-12))),BH$40)-1))*1/$L42, IF($J42="Declining Balance",-$BG$38,0))))) -> 0.0315 | BI42: =IF($L42=0,0, IF($L42<=0.5,BT42, IF(AND($J42="straight line",$L42<1.51),(BS42-((BS42/$L42)*0.5))+BT42/$L42*0.5, IF($J42="straight line", IF((LEFT(BI$39,4)*1)-INT($L42)<LEFT($BG$39,4)*1,0,((OFFSET(BT42,0,-INT($L42+0.5),1,1))/$L42)*(IF($L42-INT($L42)>0.5,$L42-0.5-INT($L42),IF($L42-INT($L42)<=0.5,$L42-0.5-INT($L42)+1,0)))) +BT42/$L42*0.5 +SUM(OFFSET(BT42,0,MAX(-INT($L42+(0.5-(10^-12))),-BI$40)+1,1,MIN(INT($L42+(0.5-(10^-12))),BI$40)-1))*1/$L42, IF($J42="Declining Balance",-$BG$38,0))))) -> 0.0502 | BJ42: 0.0689 | BK42: 0.0876 | BL42: 0.1063 | BM42: 0.125 | BN42: 0.1437 | BO42: 0.1624 | BP42: 0.171 | BR42: =+IF($K42="Ongoing",AV42,IF(RIGHT($K42,2)=RIGHT(BR$39,2),SUM($AV42:AV42),0)+IF(RIGHT(BR$39,2)>RIGHT($K42,2),AV42,0)) -> 1.07 | BS42: =+IF($K42="Ongoing",AW42,IF(RIGHT($K42,2)=RIGHT(BS$39,2),SUM($AV42:AW42),0)+IF(RIGHT(BS$39,2)>RIGHT($K42,2),AW42,0)) -> 1.01 | BT42: =+IF($K42="Ongoing",AX42,IF(RIGHT($K42,2)=RIGHT(BT$39,2),SUM($AV42:AX42),0)+IF(RIGHT(BT$39,2)>RIGHT($K42,2),AX42,0)) -> 0.86 | BU42: =+IF($K42="Ongoing",AY42,IF(RIGHT($K42,2)=RIGHT(BU$39,2),SUM($AV42:AY42),0)+IF(RIGHT(BU$39,2)>RIGHT($K42,2),AY42,0)) -> 1.01 | BV42: =+IF($K42="Ongoing",AZ42,IF(RIGHT($K42,2)=RIGHT(BV$39,2),SUM($AV42:AZ42),0)+IF(RIGHT(BV$39,2)>RIGHT($K42,2),AZ42,0)) -> 0.86 | BW42: =+IF($K42="Ongoing",BA42,IF(RIGHT($K42,2)=RIGHT(BW$39,2),SUM($AV42:BA42),0)+IF(RIGHT(BW$39,2)>RIGHT($K42,2),BA42,0)) -> 1.01 | BX42: =+IF($K42="Ongoing",BB42,IF(RIGHT($K42,2)=RIGHT(BX$39,2),SUM($AV42:BB42),0)+IF(RIGHT(BX$39,2)>RIGHT($K42,2),BB42,0)) -> 0.86 | BY42: =+IF($K42="Ongoing",BC42,IF(RIGHT($K42,2)=RIGHT(BY$39,2),SUM($AV42:BC42),0)+IF(RIGHT(BY$39,2)>RIGHT($K42,2),BC42,0)) -> 1.01 | BZ42: =+IF($K42="Ongoing",BD42,IF(RIGHT($K42,2)=RIGHT(BZ$39,2),SUM($AV42:BD42),0)+IF(RIGHT(BZ$39,2)>RIGHT($K42,2),BD42,0)) -> 0.86 | CA42: =+IF($K42="Ongoing",BE42,IF(RIGHT($K42,2)=RIGHT(CA$39,2),SUM($AV42:BE42),0)+IF(RIGHT(CA$39,2)>RIGHT($K42,2),BE42,0)) -> 0 | CC42: =+O42*KeyAssumptionsPriceControl_FO!X$15 -> 1.09461 | CD42: =+P42*KeyAssumptionsPriceControl_FO!Y$15 -> 1.05699429 | CE42: =+Q42*KeyAssumptionsPriceControl_FO!Z$15 -> 0.9207152836 | CF42: =+R42*KeyAssumptionsPriceControl_FO!AA$15 -> 1.106175177 | CG42: =+S42*KeyAssumptionsPriceControl_FO!AB$15 -> 0.9635552451 | CH42: =+T42*KeyAssumptionsPriceControl_FO!AC$15 -> 1.157644402 | CI42: =+U42*KeyAssumptionsPriceControl_FO!AD$15 -> 1.008388507 | CJ42: =+V42*KeyAssumptionsPriceControl_FO!AE$15 -> 1.211508439 | CK42: =+W42*KeyAssumptionsPriceControl_FO!AF$15 -> 1.055307816 | CL42: =+X42*KeyAssumptionsPriceControl_FO!AG$15 -> 0 | CN42: =IF($M42=0,0, IF($M42<=0.5,CC42, IF($J42="straight line", IF((LEFT(CN$39,4)*1)-INT($M42)<LEFT($CN$39,4)*1,0,((OFFSET(CC42,0,-INT($M42+0.5),1,1))/$M42)*(IF($M42-INT($M42)>0.5,$M42-0.5-INT($M42),IF($M42-INT($M42)<=0.5,$M42-0.5-INT($M42)+1,0)))) +CC42/$M42*0.5, IF($J42="Declining Balance",-$CN$38,0)))) -> 0 | CO42: =IF($M42=0,0, IF($M42<=0.5,CD42, IF(AND($J42="straight line",$M42<1.51),(CC42-((CC42/$M42)*0.5))+CD42/$M42*0.5, IF($J42="straight line", IF((LEFT(CO$39,4)*1)-INT($M42)<LEFT($CN$39,4)*1,0,((OFFSET(CD42,0,-INT($M42+0.5),1,1))/$M42)*(IF($M42-INT($M42)>0.5,$M42-0.5-INT($M42),IF($M42-INT($M42)<=0.5,$M42-0.5-INT($M42)+1,0)))) +CD42/$M42*0.5 +SUM(OFFSET(CD42,0,MAX(-INT($M42+(0.5-(10^-12))),-CO$40)+1,1,MIN(INT($M42+(0.5-(10^-12))),CO$40)-1))*1/$M42, IF($J42="Declining Balance",-$CN$38,0))))) -> 0 | CP42: =IF($M42=0,0, IF($M42<=0.5,CE42, IF(AND($J42="straight line",$M42<1.51),(CD42-((CD42/$M42)*0.5))+CE42/$M42*0.5, IF($J42="straight line", IF((LEFT(CP$39,4)*1)-INT($M42)<LEFT($CN$39,4)*1,0,((OFFSET(CE42,0,-INT($M42+0.5),1,1))/$M42)*(IF($M42-INT($M42)>0.5,$M42-0.5-INT($M42),IF($M42-INT($M42)<=0.5,$M42-0.5-INT($M42)+1,0)))) +CE42/$M42*0.5 +SUM(OFFSET(CE42,0,MAX(-INT($M42+(0.5-(10^-12))),-CP$40)+1,1,MIN(INT($M42+(0.5-(10^-12))),CP$40)-1))*1/$M42, IF($J42="Declining Balance",-$CN$38,0))))) -> 0 | CQ42: 0 | CR42: 0 | CS42: 0 | CT42: 0 | CU42: 0 | CV42: 0 | CW42: 0
C43: Major Project 2 Dam Safety Works – Lake Fyans | E43: Bulk water - headworks | F43: Renewals | G43: Headworks | H43: Top 10 Major Projects | J43: Straight line | K43: 2021-22 | L43: 100 | M43: 100 | R43: 5.884 | AV43: =+O43-Z43-AK43 -> 0 | AW43: 0 | AX43: 0 | AY43: 5.884 | AZ43: 0 | BA43: 0 | BB43: 0 | BC43: 0 | BD43: 0 | BE43: 0 | BG43: =IF($L43=0,0, IF($L43<=0.5,BR43, IF($J43="straight line", IF((LEFT(BG$39,4)*1)-INT($L43)<LEFT($BG$39,4)*1,0,((OFFSET(BR43,0,-INT($L43+0.5),1,1))/$L43)*(IF($L43-INT($L43)>0.5,$L43-0.5-INT($L43),IF($L43-INT($L43)<=0.5,$L43-0.5-INT($L43)+1,0)))) +BR43/$L43*0.5, IF($J43="Declining Balance",-$BG$38,0)))) -> 0 | BH43: =IF($L43=0,0, IF($L43<=0.5,BS43, IF(AND($J43="straight line",$L43<1.51),(BR43-((BR43/$L43)*0.5))+BS43/$L43*0.5, IF($J43="straight line", IF((LEFT(BH$39,4)*1)-INT($L43)<LEFT($BG$39,4)*1,0,((OFFSET(BS43,0,-INT($L43+0.5),1,1))/$L43)*(IF($L43-INT($L43)>0.5,$L43-0.5-INT($L43),IF($L43-INT($L43)<=0.5,$L43-0.5-INT($L43)+1,0)))) +BS43/$L43*0.5 +SUM(OFFSET(BS43,0,MAX(-INT($L43+(0.5-(10^-12))),-BH$40)+1,1,MIN(INT($L43+(0.5-(10^-12))),BH$40)-1))*1/$L43, IF($J43="Declining Balance",-$BG$38,0))))) -> 0 | BI43: 0 | BJ43: 0.02942 | BK43: 0.05884 | BL43: 0.05884 | BM43: 0.05884 | BN43: 0.05884 | BO43: 0.05884 | BP43: 0.05884 | BR43: =+IF($K43="Ongoing",AV43,IF(RIGHT($K43,2)=RIGHT(BR$39,2),SUM($AV43:AV43),0)+IF(RIGHT(BR$39,2)>RIGHT($K43,2),AV43,0)) -> 0 | BS43: =+IF($K43="Ongoing",AW43,IF(RIGHT($K43,2)=RIGHT(BS$39,2),SUM($AV43:AW43),0)+IF(RIGHT(BS$39,2)>RIGHT($K43,2),AW43,0)) -> 0 | BT43: =+IF($K43="Ongoing",AX43,IF(RIGHT($K43,2)=RIGHT(BT$39,2),SUM($AV43:AX43),0)+IF(RIGHT(BT$39,2)>RIGHT($K43,2),AX43,0)) -> 0 | BU43: =+IF($K43="Ongoing",AY43,IF(RIGHT($K43,2)=RIGHT(BU$39,2),SUM($AV43:AY43),0)+IF(RIGHT(BU$39,2)>RIGHT($K43,2),AY43,0)) -> 5.884 | BV43: =+IF($K43="Ongoing",AZ43,IF(RIGHT($K43,2)=RIGHT(BV$39,2),SUM($AV43:AZ43),0)+IF(RIGHT(BV$39,2)>RIGHT($K43,2),AZ43,0)) -> 0 | BW43: =+IF($K43="Ongoing",BA43,IF(RIGHT($K43,2)=RIGHT(BW$39,2),SUM($AV43:BA43),0)+IF(RIGHT(BW$39,2)>RIGHT($K43,2),BA43,0)) -> 0 | BX43: =+IF($K43="Ongoing",BB43,IF(RIGHT($K43,2)=RIGHT(BX$39,2),SUM($AV43:BB43),0)+IF(RIGHT(BX$39,2)>RIGHT($K43,2),BB43,0)) -> 0 | BY43: =+IF($K43="Ongoing",BC43,IF(RIGHT($K43,2)=RIGHT(BY$39,2),SUM($AV43:BC43),0)+IF(RIGHT(BY$39,2)>RIGHT($K43,2),BC43,0)) -> 0 | BZ43: =+IF($K43="Ongoing",BD43,IF(RIGHT($K43,2)=RIGHT(BZ$39,2),SUM($AV43:BD43),0)+IF(RIGHT(BZ$39,2)>RIGHT($K43,2),BD43,0)) -> 0 | CA43: =+IF($K43="Ongoing",BE43,IF(RIGHT($K43,2)=RIGHT(CA$39,2),SUM($AV43:BE43),0)+IF(RIGHT(CA$39,2)>RIGHT($K43,2),BE43,0)) -> 0 | CC43: =+O43*KeyAssumptionsPriceControl_FO!X$15 -> 0 | CD43: =+P43*KeyAssumptionsPriceControl_FO!Y$15 -> 0 | CE43: =+Q43*KeyAssumptionsPriceControl_FO!Z$15 -> 0 | CF43: =+R43*KeyAssumptionsPriceControl_FO!AA$15 -> 6.444291825 | CG43: =+S43*KeyAssumptionsPriceControl_FO!AB$15 -> 0 | CH43: =+T43*KeyAssumptionsPriceControl_FO!AC$15 -> 0 | CI43: =+U43*KeyAssumptionsPriceControl_FO!AD$15 -> 0 | CJ43: =+V43*KeyAssumptionsPriceControl_FO!AE$15 -> 0 | CK43: =+W43*KeyAssumptionsPriceControl_FO!AF$15 -> 0 | CL43: =+X43*KeyAssumptionsPriceControl_FO!AG$15 -> 0 | CN43: =IF($M43=0,0, IF($M43<=0.5,CC43, IF($J43="straight line", IF((LEFT(CN$39,4)*1)-INT($M43)<LEFT($CN$39,4)*1,0,((OFFSET(CC43,0,-INT($M43+0.5),1,1))/$M43)*(IF($M43-INT($M43)>0.5,$M43-0.5-INT($M43),IF($M43-INT($M43)<=0.5,$M43-0.5-INT($M43)+1,0)))) +CC43/$M43*0.5, IF($J43="Declining Balance",-$CN$38,0)))) -> 0 | CO43: =IF($M43=0,0, IF($M43<=0.5,CD43, IF(AND($J43="straight line",$M43<1.51),(CC43-((CC43/$M43)*0.5))+CD43/$M43*0.5, IF($J43="straight line", IF((LEFT(CO$39,4)*1)-INT($M43)<LEFT($CN$39,4)*1,0,((OFFSET(CD43,0,-INT($M43+0.5),1,1))/$M43)*(IF($M43-INT($M43)>0.5,$M43-0.5-INT($M43),IF($M43-INT($M43)<=0.5,$M43-0.5-INT($M43)+1,0)))) +CD43/$M43*0.5 +SUM(OFFSET(CD43,0,MAX(-INT($M43+(0.5-(10^-12))),-CO$40)+1,1,MIN(INT($M43+(0.5-(10^-12))),CO$40)-1))*1/$M43, IF($J43="Declining Balance",-$CN$38,0))))) -> 0 | CP43: 0 | CQ43: 0.03222145913 | CR43: 0.06444291825 | CS43: 0.06444291825 | CT43: 0.06444291825 | CU43: 0.06444291825 | CV43: 0.06444291825 | CW43: 0.06444291825
C44: Major Project 3 Treated Water Supply (Kaniva, Moyston, Ultima and Elmhurst) | E44: Urban Water | F44: Improvements / Compliance | G44: Treatment | H44: Top 10 Major Projects | J44: Straight line | K44: 2021-22 | L44: 55 | M44: 60 | P44: 1.645 | Q44: 4 | S44: 4.277 | AV44: 0 | AW44: 1.645 | AX44: 4 | AY44: 0 | AZ44: 4.277 | BA44: 0 | BB44: 0 | BC44: 0 | BD44: 0 | BE44: 0 | BG44: 0 | BH44: 0 | BI44: 0 | BJ44: 0.05131818182 | BK44: 0.1415181818 | BL44: 0.1804 | BM44: 0.1804 | BN44: 0.1804 | BO44: 0.1804 | BP44: 0.1804 | BR44: =+IF($K44="Ongoing",AV44,IF(RIGHT($K44,2)=RIGHT(BR$39,2),SUM($AV44:AV44),0)+IF(RIGHT(BR$39,2)>RIGHT($K44,2),AV44,0)) -> 0 | BS44: =+IF($K44="Ongoing",AW44,IF(RIGHT($K44,2)=RIGHT(BS$39,2),SUM($AV44:AW44),0)+IF(RIGHT(BS$39,2)>RIGHT($K44,2),AW44,0)) -> 0 | BT44: =+IF($K44="Ongoing",AX44,IF(RIGHT($K44,2)=RIGHT(BT$39,2),SUM($AV44:AX44),0)+IF(RIGHT(BT$39,2)>RIGHT($K44,2),AX44,0)) -> 0 | BU44: =+IF($K44="Ongoing",AY44,IF(RIGHT($K44,2)=RIGHT(BU$39,2),SUM($AV44:AY44),0)+IF(RIGHT(BU$39,2)>RIGHT($K44,2),AY44,0)) -> 5.645 | BV44: =+IF($K44="Ongoing",AZ44,IF(RIGHT($K44,2)=RIGHT(BV$39,2),SUM($AV44:AZ44),0)+IF(RIGHT(BV$39,2)>RIGHT($K44,2),AZ44,0)) -> 4.277 | BW44: =+IF($K44="Ongoing",BA44,IF(RIGHT($K44,2)=RIGHT(BW$39,2),SUM($AV44:BA44),0)+IF(RIGHT(BW$39,2)>RIGHT($K44,2),BA44,0)) -> 0 | BX44: =+IF($K44="Ongoing",BB44,IF(RIGHT($K44,2)=RIGHT(BX$39,2),SUM($AV44:BB44),0)+IF(RIGHT(BX$39,2)>RIGHT($K44,2),BB44,0)) -> 0 | BY44: =+IF($K44="Ongoing",BC44,IF(RIGHT($K44,2)=RIGHT(BY$39,2),SUM($AV44:BC44),0)+IF(RIGHT(BY$39,2)>RIGHT($K44,2),BC44,0)) -> 0 | BZ44: =+IF($K44="Ongoing",BD44,IF(RIGHT($K44,2)=RIGHT(BZ$39,2),SUM($AV44:BD44),0)+IF(RIGHT(BZ$39,2)>RIGHT($K44,2),BD44,0)) -> 0 | CA44: =+IF($K44="Ongoing",BE44,IF(RIGHT($K44,2)=RIGHT(CA$39,2),SUM($AV44:BE44),0)+IF(RIGHT(CA$39,2)>RIGHT($K44,2),BE44,0)) -> 0 | CC44: =+O44*KeyAssumptionsPriceControl_FO!X$15 -> 0 | CD44: =+P44*KeyAssumptionsPriceControl_FO!Y$15 -> 1.721540205 | CE44: =+Q44*KeyAssumptionsPriceControl_FO!Z$15 -> 4.282396668 | CF44: =+R44*KeyAssumptionsPriceControl_FO!AA$15 -> 0 | CG44: =+S44*KeyAssumptionsPriceControl_FO!AB$15 -> 4.792006725 | CH44: =+T44*KeyAssumptionsPriceControl_FO!AC$15 -> 0 | CI44: =+U44*KeyAssumptionsPriceControl_FO!AD$15 -> 0 | CJ44: =+V44*KeyAssumptionsPriceControl_FO!AE$15 -> 0 | CK44: =+W44*KeyAssumptionsPriceControl_FO!AF$15 -> 0 | CL44: =+X44*KeyAssumptionsPriceControl_FO!AG$15 -> 0 | CN44: 0 | CO44: 0.01434616837 | CP44: 0.06437897565 | CQ44: 0.1000656145 | CR44: 0.1399990039 | CS44: 0.1799323933 | CT44: 0.1799323933 | CU44: 0.1799323933 | CV44: 0.1799323933 | CW44: 0.1799323933
C45: Major Project 4 Goroke Sewerage | E45: Sewerage | F45: Growth | G45: Pipelines/network | H45: Top 10 Major Projects | J45: Straight line | K45: 2018-19 | L45: 65 | M45: 80 | O45: 1.395 | AA45: =139*0.0008 -> 0.1112 | AV45: 1.395 | AW45: -0.1112 | AX45: 0 | AY45: 0 | AZ45: 0 | BA45: 0 | BB45: 0 | BC45: 0 | BD45: 0 | BE45: 0 | BG45: 0.01073076923 | BH45: 0.02060615385 | BI45: 0.01975076923 | BJ45: 0.01975076923 | BK45: 0.01975076923 | BL45: 0.01975076923 | BM45: 0.01975076923 | BN45: 0.01975076923 | BO45: 0.01975076923 | BP45: 0.01975076923 | BR45: =+IF($K45="Ongoing",AV45,IF(RIGHT($K45,2)=RIGHT(BR$39,2),SUM($AV45:AV45),0)+IF(RIGHT(BR$39,2)>RIGHT($K45,2),AV45,0)) -> 1.395 | BS45: =+IF($K45="Ongoing",AW45,IF(RIGHT($K45,2)=RIGHT(BS$39,2),SUM($AV45:AW45),0)+IF(RIGHT(BS$39,2)>RIGHT($K45,2),AW45,0)) -> -0.1112 | BT45: =+IF($K45="Ongoing",AX45,IF(RIGHT($K45,2)=RIGHT(BT$39,2),SUM($AV45:AX45),0)+IF(RIGHT(BT$39,2)>RIGHT($K45,2),AX45,0)) -> 0 | BU45: =+IF($K45="Ongoing",AY45,IF(RIGHT($K45,2)=RIGHT(BU$39,2),SUM($AV45:AY45),0)+IF(RIGHT(BU$39,2)>RIGHT($K45,2),AY45,0)) -> 0 | BV45: =+IF($K45="Ongoing",AZ45,IF(RIGHT($K45,2)=RIGHT(BV$39,2),SUM($AV45:AZ45),0)+IF(RIGHT(BV$39,2)>RIGHT($K45,2),AZ45,0)) -> 0 | BW45: =+IF($K45="Ongoing",BA45,IF(RIGHT($K45,2)=RIGHT(BW$39,2),SUM($AV45:BA45),0)+IF(RIGHT(BW$39,2)>RIGHT($K45,2),BA45,0)) -> 0 | BX45: =+IF($K45="Ongoing",BB45,IF(RIGHT($K45,2)=RIGHT(BX$39,2),SUM($AV45:BB45),0)+IF(RIGHT(BX$39,2)>RIGHT($K45,2),BB45,0)) -> 0 | BY45: =+IF($K45="Ongoing",BC45,IF(RIGHT($K45,2)=RIGHT(BY$39,2),SUM($AV45:BC45),0)+IF(RIGHT(BY$39,2)>RIGHT($K45,2),BC45,0)) -> 0 | BZ45: =+IF($K45="Ongoing",BD45,IF(RIGHT($K45,2)=RIGHT(BZ$39,2),SUM($AV45:BD45),0)+IF(RIGHT(BZ$39,2)>RIGHT($K45,2),BD45,0)) -> 0 | CA45: =+IF($K45="Ongoing",BE45,IF(RIGHT($K45,2)=RIGHT(CA$39,2),SUM($AV45:BE45),0)+IF(RIGHT(CA$39,2)>RIGHT($K45,2),BE45,0)) -> 0 | CC45: =+O45*KeyAssumptionsPriceControl_FO!X$15 -> 1.427085 | CD45: =+P45*KeyAssumptionsPriceControl_FO!Y$15 -> 0 | CE45: =+Q45*KeyAssumptionsPriceControl_FO!Z$15 -> 0 | CF45: =+R45*KeyAssumptionsPriceControl_FO!AA$15 -> 0 | CG45: =+S45*KeyAssumptionsPriceControl_FO!AB$15 -> 0 | CH45: =+T45*KeyAssumptionsPriceControl_FO!AC$15 -> 0 | CI45: =+U45*KeyAssumptionsPriceControl_FO!AD$15 -> 0 | CJ45: =+V45*KeyAssumptionsPriceControl_FO!AE$15 -> 0 | CK45: =+W45*KeyAssumptionsPriceControl_FO!AF$15 -> 0 | CL45: =+X45*KeyAssumptionsPriceControl_FO!AG$15 -> 0 | CN45: 0.00891928125 | CO45: 0.0178385625 | CP45: 0.0178385625 | CQ45: 0.0178385625 | CR45: 0.0178385625 | CS45: 0.0178385625 | CT45: 0.0178385625 | CU45: 0.0178385625 | CV45: 0.0178385625 | CW45: 0.0178385625
C46: Major Project 5 Urban Remote Metering | E46: Urban Water | F46: Improvements / Compliance | G46: Pipelines/network | H46: Top 10 Major Projects | J46: Straight line | K46: 2019-20 | L46: 10 | M46: 10 | O46: 0.88880756 | P46: 2.97375559 | AV46: 0.88880756 | AW46: 2.97375559 | AX46: 0 | AY46: 0 | AZ46: 0 | BA46: 0 | BB46: 0 | BC46: 0 | BD46: 0 | BE46: 0 | BG46: 0 | BH46: 0.1931281575 | BI46: 0.386256315 | BJ46: 0.386256315 | BK46: 0.386256315 | BL46: 0.386256315 | BM46: 0.386256315 | BN46: 0.386256315 | BO46: 0.386256315 | BP46: 0.386256315 | BR46: =+IF($K46="Ongoing",AV46,IF(RIGHT($K46,2)=RIGHT(BR$39,2),SUM($AV46:AV46),0)+IF(RIGHT(BR$39,2)>RIGHT($K46,2),AV46,0)) -> 0 | BS46: =+IF($K46="Ongoing",AW46,IF(RIGHT($K46,2)=RIGHT(BS$39,2),SUM($AV46:AW46),0)+IF(RIGHT(BS$39,2)>RIGHT($K46,2),AW46,0)) -> 3.86256315 | BT46: =+IF($K46="Ongoing",AX46,IF(RIGHT($K46,2)=RIGHT(BT$39,2),SUM($AV46:AX46),0)+IF(RIGHT(BT$39,2)>RIGHT($K46,2),AX46,0)) -> 0 | BU46: =+IF($K46="Ongoing",AY46,IF(RIGHT($K46,2)=RIGHT(BU$39,2),SUM($AV46:AY46),0)+IF(RIGHT(BU$39,2)>RIGHT($K46,2),AY46,0)) -> 0 | BV46: =+IF($K46="Ongoing",AZ46,IF(RIGHT($K46,2)=RIGHT(BV$39,2),SUM($AV46:AZ46),0)+IF(RIGHT(BV$39,2)>RIGHT($K46,2),AZ46,0)) -> 0 | BW46: =+IF($K46="Ongoing",BA46,IF(RIGHT($K46,2)=RIGHT(BW$39,2),SUM($AV46:BA46),0)+IF(RIGHT(BW$39,2)>RIGHT($K46,2),BA46,0)) -> 0 | BX46: =+IF($K46="Ongoing",BB46,IF(RIGHT($K46,2)=RIGHT(BX$39,2),SUM($AV46:BB46),0)+IF(RIGHT(BX$39,2)>RIGHT($K46,2),BB46,0)) -> 0 | BY46: =+IF($K46="Ongoing",BC46,IF(RIGHT($K46,2)=RIGHT(BY$39,2),SUM($AV46:BC46),0)+IF(RIGHT(BY$39,2)>RIGHT($K46,2),BC46,0)) -> 0 | BZ46: =+IF($K46="Ongoing",BD46,IF(RIGHT($K46,2)=RIGHT(BZ$39,2),SUM($AV46:BD46),0)+IF(RIGHT(BZ$39,2)>RIGHT($K46,2),BD46,0)) -> 0 | CA46: =+IF($K46="Ongoing",BE46,IF(RIGHT($K46,2)=RIGHT(CA$39,2),SUM($AV46:BE46),0)+IF(RIGHT(CA$39,2)>RIGHT($K46,2),BE46,0)) -> 0 | CC46: =+O46*KeyAssumptionsPriceControl_FO!X$15 -> 0.9092501339 | CD46: =+P46*KeyAssumptionsPriceControl_FO!Y$15 -> 3.112121464 | CE46: =+Q46*KeyAssumptionsPriceControl_FO!Z$15 -> 0 | CF46: =+R46*KeyAssumptionsPriceControl_FO!AA$15 -> 0 | CG46: =+S46*KeyAssumptionsPriceControl_FO!AB$15 -> 0 | CH46: =+T46*KeyAssumptionsPriceControl_FO!AC$15 -> 0 | CI46: =+U46*KeyAssumptionsPriceControl_FO!AD$15 -> 0 | CJ46: =+V46*KeyAssumptionsPriceControl_FO!AE$15 -> 0 | CK46: =+W46*KeyAssumptionsPriceControl_FO!AF$15 -> 0 | CL46: =+X46*KeyAssumptionsPriceControl_FO!AG$15 -> 0 | CN46: 0.04546250669 | CO46: 0.2465310866 | CP46: 0.4021371598 | CQ46: 0.4021371598 | CR46: 0.4021371598 | CS46: 0.4021371598 | CT46: 0.4021371598 | CU46: 0.4021371598 | CV46: 0.4021371598 | CW46: 0.4021371598
C47: Major Project 6 Development Servicing - Pressure Improvements Commercial and Industrial - Fire Services | E47: Urban Water | F47: Improvements / Compliance | G47: Pipelines/network | H47: Top 10 Major Projects | J47: Straight line | K47: 2021-22 | L47: 55 | M47: 80 | Q47: 0.83 | R47: 1.045 | AV47: 0 | AW47: 0 | AX47: 0.83 | AY47: 1.045 | AZ47: 0 | BA47: 0 | BB47: 0 | BC47: 0 | BD47: 0 | BE47: 0 | BG47: 0 | BH47: 0 | BI47: 0 | BJ47: 0.01704545455 | BK47: 0.03409090909 | BL47: 0.03409090909 | BM47: 0.03409090909 | BN47: 0.03409090909 | BO47: 0.03409090909 | BP47: 0.03409090909 | BR47: =+IF($K47="Ongoing",AV47,IF(RIGHT($K47,2)=RIGHT(BR$39,2),SUM($AV47:AV47),0)+IF(RIGHT(BR$39,2)>RIGHT($K47,2),AV47,0)) -> 0 | BS47: =+IF($K47="Ongoing",AW47,IF(RIGHT($K47,2)=RIGHT(BS$39,2),SUM($AV47:AW47),0)+IF(RIGHT(BS$39,2)>RIGHT($K47,2),AW47,0)) -> 0 | BT47: =+IF($K47="Ongoing",AX47,IF(RIGHT($K47,2)=RIGHT(BT$39,2),SUM($AV47:AX47),0)+IF(RIGHT(BT$39,2)>RIGHT($K47,2),AX47,0)) -> 0 | BU47: =+IF($K47="Ongoing",AY47,IF(RIGHT($K47,2)=RIGHT(BU$39,2),SUM($AV47:AY47),0)+IF(RIGHT(BU$39,2)>RIGHT($K47,2),AY47,0)) -> 1.875 | BV47: =+IF($K47="Ongoing",AZ47,IF(RIGHT($K47,2)=RIGHT(BV$39,2),SUM($AV47:AZ47),0)+IF(RIGHT(BV$39,2)>RIGHT($K47,2),AZ47,0)) -> 0 | BW47: =+IF($K47="Ongoing",BA47,IF(RIGHT($K47,2)=RIGHT(BW$39,2),SUM($AV47:BA47),0)+IF(RIGHT(BW$39,2)>RIGHT($K47,2),BA47,0)) -> 0 | BX47: =+IF($K47="Ongoing",BB47,IF(RIGHT($K47,2)=RIGHT(BX$39,2),SUM($AV47:BB47),0)+IF(RIGHT(BX$39,2)>RIGHT($K47,2),BB47,0)) -> 0 | BY47: =+IF($K47="Ongoing",BC47,IF(RIGHT($K47,2)=RIGHT(BY$39,2),SUM($AV47:BC47),0)+IF(RIGHT(BY$39,2)>RIGHT($K47,2),BC47,0)) -> 0 | BZ47: =+IF($K47="Ongoing",BD47,IF(RIGHT($K47,2)=RIGHT(BZ$39,2),SUM($AV47:BD47),0)+IF(RIGHT(BZ$39,2)>RIGHT($K47,2),BD47,0)) -> 0 | CA47: =+IF($K47="Ongoing",BE47,IF(RIGHT($K47,2)=RIGHT(CA$39,2),SUM($AV47:BE47),0)+IF(RIGHT(CA$39,2)>RIGHT($K47,2),BE47,0)) -> 0 | CC47: =+O47*KeyAssumptionsPriceControl_FO!X$15 -> 0 | CD47: =+P47*KeyAssumptionsPriceControl_FO!Y$15 -> 0 | CE47: =+Q47*KeyAssumptionsPriceControl_FO!Z$15 -> 0.8885973086 | CF47: =+R47*KeyAssumptionsPriceControl_FO!AA$15 -> 1.14450798 | CG47: =+S47*KeyAssumptionsPriceControl_FO!AB$15 -> 0 | CH47: =+T47*KeyAssumptionsPriceControl_FO!AC$15 -> 0 | CI47: =+U47*KeyAssumptionsPriceControl_FO!AD$15 -> 0 | CJ47: =+V47*KeyAssumptionsPriceControl_FO!AE$15 -> 0 | CK47: =+W47*KeyAssumptionsPriceControl_FO!AF$15 -> 0 | CL47: =+X47*KeyAssumptionsPriceControl_FO!AG$15 -> 0 | CN47: 0 | CO47: 0 | CP47: 0.005553733179 | CQ47: 0.01826064124 | CR47: 0.02541381611 | CS47: 0.02541381611 | CT47: 0.02541381611 | CU47: 0.02541381611 | CV47: 0.02541381611 | CW47: 0.02541381611
C48: Major Project 7 Asset Renewal Water | E48: Urban Water | F48: Improvements / Compliance | G48: Pipelines/network | H48: Top 10 Major Projects | J48: Straight line | K48: Ongoing | L48: 55 | M48: 60 | O48: 5.19101089 | P48: 4.45011207 | Q48: 4.16238574 | R48: 3.48900278 | S48: 3.95588203 | T48: 5.06429516 | U48: 4.01512897 | V48: 4.18722736 | W48: 4.98439758 | X48: 3.99979629 | AV48: 5.19101089 | AW48: 4.45011207 | AX48: 4.16238574 | AY48: 3.48900278 | AZ48: 3.95588203 | BA48: 5.06429516 | BB48: 4.01512897 | BC48: 4.18722736 | BD48: 4.98439758 | BE48: 3.99979629 | BG48: 0.04719100809 | BH48: 0.1348375805 | BI48: 0.2131330151 | BJ48: 0.2826910925 | BK48: 0.3503718635 | BL48: 0.4323734744 | BM48: 0.5149136937 | BN48: 0.5894805695 | BO48: 0.672858978 | BP48: 0.7545334677 | BR48: =+IF($K48="Ongoing",AV48,IF(RIGHT($K48,2)=RIGHT(BR$39,2),SUM($AV48:AV48),0)+IF(RIGHT(BR$39,2)>RIGHT($K48,2),AV48,0)) -> 5.19101089 | BS48: =+IF($K48="Ongoing",AW48,IF(RIGHT($K48,2)=RIGHT(BS$39,2),SUM($AV48:AW48),0)+IF(RIGHT(BS$39,2)>RIGHT($K48,2),AW48,0)) -> 4.45011207 | BT48: =+IF($K48="Ongoing",AX48,IF(RIGHT($K48,2)=RIGHT(BT$39,2),SUM($AV48:AX48),0)+IF(RIGHT(BT$39,2)>RIGHT($K48,2),AX48,0)) -> 4.16238574 | BU48: =+IF($K48="Ongoing",AY48,IF(RIGHT($K48,2)=RIGHT(BU$39,2),SUM($AV48:AY48),0)+IF(RIGHT(BU$39,2)>RIGHT($K48,2),AY48,0)) -> 3.48900278 | BV48: =+IF($K48="Ongoing",AZ48,IF(RIGHT($K48,2)=RIGHT(BV$39,2),SUM($AV48:AZ48),0)+IF(RIGHT(BV$39,2)>RIGHT($K48,2),AZ48,0)) -> 3.95588203 | BW48: =+IF($K48="Ongoing",BA48,IF(RIGHT($K48,2)=RIGHT(BW$39,2),SUM($AV48:BA48),0)+IF(RIGHT(BW$39,2)>RIGHT($K48,2),BA48,0)) -> 5.06429516 | BX48: =+IF($K48="Ongoing",BB48,IF(RIGHT($K48,2)=RIGHT(BX$39,2),SUM($AV48:BB48),0)+IF(RIGHT(BX$39,2)>RIGHT($K48,2),BB48,0)) -> 4.01512897 | BY48: =+IF($K48="Ongoing",BC48,IF(RIGHT($K48,2)=RIGHT(BY$39,2),SUM($AV48:BC48),0)+IF(RIGHT(BY$39,2)>RIGHT($K48,2),BC48,0)) -> 4.18722736 | BZ48: =+IF($K48="Ongoing",BD48,IF(RIGHT($K48,2)=RIGHT(BZ$39,2),SUM($AV48:BD48),0)+IF(RIGHT(BZ$39,2)>RIGHT($K48,2),BD48,0)) -> 4.98439758 | CA48: =+IF($K48="Ongoing",BE48,IF(RIGHT($K48,2)=RIGHT(CA$39,2),SUM($AV48:BE48),0)+IF(RIGHT(CA$39,2)>RIGHT($K48,2),BE48,0)) -> 3.99979629 | CC48: =+O48*KeyAssumptionsPriceControl_FO!X$15 -> 5.31040414 | CD48: =+P48*KeyAssumptionsPriceControl_FO!Y$15 -> 4.657171335 | CE48: =+Q48*KeyAssumptionsPriceControl_FO!Z$15 -> 4.456246706 | CF48: =+R48*KeyAssumptionsPriceControl_FO!AA$15 -> 3.82123591 | CG48: =+S48*KeyAssumptionsPriceControl_FO!AB$15 -> 4.432221952 | CH48: =+T48*KeyAssumptionsPriceControl_FO!AC$15 -> 5.804606874 | CI48: =+U48*KeyAssumptionsPriceControl_FO!AD$15 -> 4.707918497 | CJ48: =+V48*KeyAssumptionsPriceControl_FO!AE$15 -> 5.022634931 | CK48: =+W48*KeyAssumptionsPriceControl_FO!AF$15 -> 6.116364795 | CL48: =+X48*KeyAssumptionsPriceControl_FO!AG$15 -> 5.021046118 | CN48: 0.04425336784 | CO48: 0.1273164968 | CP48: 0.2032616471 | CQ48: 0.2722406689 | CR48: 0.3410194844 | CS48: 0.4263263913 | CT48: 0.5139307694 | CU48: 0.5950187147 | CV48: 0.6878437124 | CW48: 0.78065547
C49: Major Project 8 Asset Renewal Wastewater | E49: Sewerage | F49: Renewals | G49: Pipelines/network | H49: Top 10 Major Projects | J49: Straight line | K49: Ongoing | L49: 65 | M49: 80 | O49: 5.63440703 | P49: 3.42366701 | Q49: 2.58507721 | R49: 2.43698771 | S49: 3.01752055 | T49: 2.36173755 | U49: 2.03956255 | V49: 2.91817255 | W49: 1.93405355 | X49: 1.71476724 | AV49: 5.63440703 | AW49: 3.42366701 | AX49: 2.58507721 | AY49: 2.43698771 | AZ49: 3.01752055 | BA49: 2.36173755 | BB49: 2.03956255 | BC49: 2.91817255 | BD49: 1.93405355 | BE49: 1.71476724 | BG49: 0.04334159254 | BH49: 0.1130190852 | BI49: 0.1592401945 | BJ49: 0.1978714632 | BK49: 0.239829219 | BL49: 0.2812081275 | BM49: 0.3150642821 | BN49: 0.3532007059 | BO49: 0.3905255221 | BP49: 0.4185933743 | BR49: =+IF($K49="Ongoing",AV49,IF(RIGHT($K49,2)=RIGHT(BR$39,2),SUM($AV49:AV49),0)+IF(RIGHT(BR$39,2)>RIGHT($K49,2),AV49,0)) -> 5.63440703 | BS49: =+IF($K49="Ongoing",AW49,IF(RIGHT($K49,2)=RIGHT(BS$39,2),SUM($AV49:AW49),0)+IF(RIGHT(BS$39,2)>RIGHT($K49,2),AW49,0)) -> 3.42366701 | BT49: =+IF($K49="Ongoing",AX49,IF(RIGHT($K49,2)=RIGHT(BT$39,2),SUM($AV49:AX49),0)+IF(RIGHT(BT$39,2)>RIGHT($K49,2),AX49,0)) -> 2.58507721 | BU49: =+IF($K49="Ongoing",AY49,IF(RIGHT($K49,2)=RIGHT(BU$39,2),SUM($AV49:AY49),0)+IF(RIGHT(BU$39,2)>RIGHT($K49,2),AY49,0)) -> 2.43698771 | BV49: =+IF($K49="Ongoing",AZ49,IF(RIGHT($K49,2)=RIGHT(BV$39,2),SUM($AV49:AZ49),0)+IF(RIGHT(BV$39,2)>RIGHT($K49,2),AZ49,0)) -> 3.01752055 | BW49: =+IF($K49="Ongoing",BA49,IF(RIGHT($K49,2)=RIGHT(BW$39,2),SUM($AV49:BA49),0)+IF(RIGHT(BW$39,2)>RIGHT($K49,2),BA49,0)) -> 2.36173755 | BX49: =+IF($K49="Ongoing",BB49,IF(RIGHT($K49,2)=RIGHT(BX$39,2),SUM($AV49:BB49),0)+IF(RIGHT(BX$39,2)>RIGHT($K49,2),BB49,0)) -> 2.03956255 | BY49: =+IF($K49="Ongoing",BC49,IF(RIGHT($K49,2)=RIGHT(BY$39,2),SUM($AV49:BC49),0)+IF(RIGHT(BY$39,2)>RIGHT($K49,2),BC49,0)) -> 2.91817255 | BZ49: =+IF($K49="Ongoing",BD49,IF(RIGHT($K49,2)=RIGHT(BZ$39,2),SUM($AV49:BD49),0)+IF(RIGHT(BZ$39,2)>RIGHT($K49,2),BD49,0)) -> 1.93405355 | CA49: =+IF($K49="Ongoing",BE49,IF(RIGHT($K49,2)=RIGHT(CA$39,2),SUM($AV49:BE49),0)+IF(RIGHT(CA$39,2)>RIGHT($K49,2),BE49,0)) -> 1.71476724 | CC49: =+O49*KeyAssumptionsPriceControl_FO!X$15 -> 5.763998392 | CD49: =+P49*KeyAssumptionsPriceControl_FO!Y$15 -> 3.582966812 | CE49: =+Q49*KeyAssumptionsPriceControl_FO!Z$15 -> 2.767581508 | CF49: =+R49*KeyAssumptionsPriceControl_FO!AA$15 -> 2.669044864 | CG49: =+S49*KeyAssumptionsPriceControl_FO!AB$15 -> 3.38086948 | CH49: =+T49*KeyAssumptionsPriceControl_FO!AC$15 -> 2.70698243 | CI49: =+U49*KeyAssumptionsPriceControl_FO!AD$15 -> 2.391478413 | CJ49: =+V49*KeyAssumptionsPriceControl_FO!AE$15 -> 3.500386801 | CK49: =+W49*KeyAssumptionsPriceControl_FO!AF$15 -> 2.373281195 | CL49: =+X49*KeyAssumptionsPriceControl_FO!AG$15 -> 2.152590974 | CN49: 0.03602498995 | CO49: 0.09444352247 | CP49: 0.1341344495 | CQ49: 0.1681133643 | CR49: 0.2059253289 | CS49: 0.2439744034 | CT49: 0.2758397836 | CU49: 0.3126639412 | CV49: 0.3493743662 | CW49: 0.3776610673
C50: Major Project 9 Donald Wastewater Treatment Plant | E50: Sewerage | F50: Improvements / Compliance | G50: Treatment | H50: Top 10 Major Projects | J50: Straight line | K50: 2020-21 | L50: 65 | M50: 80 | P50: 0.15 | Q50: 2.425 | AV50: 0 | AW50: 0.15 | AX50: 2.425 | AY50: 0 | AZ50: 0 | BA50: 0 | BB50: 0 | BC50: 0 | BD50: 0 | BE50: 0 | BG50: 0 | BH50: 0 | BI50: 0.01980769231 | BJ50: 0.03961538462 | BK50: 0.03961538462 | BL50: 0.03961538462 | BM50: 0.03961538462 | BN50: 0.03961538462 | BO50: 0.03961538462 | BP50: 0.03961538462 | BR50: =+IF($K50="Ongoing",AV50,IF(RIGHT($K50,2)=RIGHT(BR$39,2),SUM($AV50:AV50),0)+IF(RIGHT(BR$39,2)>RIGHT($K50,2),AV50,0)) -> 0 | BS50: =+IF($K50="Ongoing",AW50,IF(RIGHT($K50,2)=RIGHT(BS$39,2),SUM($AV50:AW50),0)+IF(RIGHT(BS$39,2)>RIGHT($K50,2),AW50,0)) -> 0 | BT50: =+IF($K50="Ongoing",AX50,IF(RIGHT($K50,2)=RIGHT(BT$39,2),SUM($AV50:AX50),0)+IF(RIGHT(BT$39,2)>RIGHT($K50,2),AX50,0)) -> 2.575 | BU50: =+IF($K50="Ongoing",AY50,IF(RIGHT($K50,2)=RIGHT(BU$39,2),SUM($AV50:AY50),0)+IF(RIGHT(BU$39,2)>RIGHT($K50,2),AY50,0)) -> 0 | BV50: =+IF($K50="Ongoing",AZ50,IF(RIGHT($K50,2)=RIGHT(BV$39,2),SUM($AV50:AZ50),0)+IF(RIGHT(BV$39,2)>RIGHT($K50,2),AZ50,0)) -> 0 | BW50: =+IF($K50="Ongoing",BA50,IF(RIGHT($K50,2)=RIGHT(BW$39,2),SUM($AV50:BA50),0)+IF(RIGHT(BW$39,2)>RIGHT($K50,2),BA50,0)) -> 0 | BX50: =+IF($K50="Ongoing",BB50,IF(RIGHT($K50,2)=RIGHT(BX$39,2),SUM($AV50:BB50),0)+IF(RIGHT(BX$39,2)>RIGHT($K50,2),BB50,0)) -> 0 | BY50: =+IF($K50="Ongoing",BC50,IF(RIGHT($K50,2)=RIGHT(BY$39,2),SUM($AV50:BC50),0)+IF(RIGHT(BY$39,2)>RIGHT($K50,2),BC50,0)) -> 0 | BZ50: =+IF($K50="Ongoing",BD50,IF(RIGHT($K50,2)=RIGHT(BZ$39,2),SUM($AV50:BD50),0)+IF(RIGHT(BZ$39,2)>RIGHT($K50,2),BD50,0)) -> 0 | CA50: =+IF($K50="Ongoing",BE50,IF(RIGHT($K50,2)=RIGHT(CA$39,2),SUM($AV50:BE50),0)+IF(RIGHT(CA$39,2)>RIGHT($K50,2),BE50,0)) -> 0 | CC50: =+O50*KeyAssumptionsPriceControl_FO!X$15 -> 0 | CD50: =+P50*KeyAssumptionsPriceControl_FO!Y$15 -> 0.15697935 | CE50: =+Q50*KeyAssumptionsPriceControl_FO!Z$15 -> 2.59620298 | CF50: =+R50*KeyAssumptionsPriceControl_FO!AA$15 -> 0 | CG50: =+S50*KeyAssumptionsPriceControl_FO!AB$15 -> 0 | CH50: =+T50*KeyAssumptionsPriceControl_FO!AC$15 -> 0 | CI50: =+U50*KeyAssumptionsPriceControl_FO!AD$15 -> 0 | CJ50: =+V50*KeyAssumptionsPriceControl_FO!AE$15 -> 0 | CK50: =+W50*KeyAssumptionsPriceControl_FO!AF$15 -> 0 | CL50: =+X50*KeyAssumptionsPriceControl_FO!AG$15 -> 0 | CN50: 0 | CO50: 0.0009811209375 | CP50: 0.0181885105 | CQ50: 0.03441477912 | CR50: 0.03441477912 | CS50: 0.03441477912 | CT50: 0.03441477912 | CU50: 0.03441477912 | CV50: 0.03441477912 | CW50: 0.03441477912
C51: Major Project 10 Safe Drinking Water Act - Health Based Targets | E51: Urban Water | F51: Improvements / Compliance | G51: Treatment | H51: Top 10 Major Projects | J51: Straight line | K51: 2019-20 | L51: 55 | M51: 60 | O51: 1.13 | Q51: 1.31 | AV51: 1.13 | AW51: 0 | AX51: 1.31 | AY51: 0 | AZ51: 0 | BA51: 0 | BB51: 0 | BC51: 0 | BD51: 0 | BE51: 0 | BG51: 0 | BH51: 0.01027272727 | BI51: 0.03245454545 | BJ51: 0.04436363636 | BK51: 0.04436363636 | BL51: 0.04436363636 | BM51: 0.04436363636 | BN51: 0.04436363636 | BO51: 0.04436363636 | BP51: 0.04436363636 | BR51: =+IF($K51="Ongoing",AV51,IF(RIGHT($K51,2)=RIGHT(BR$39,2),SUM($AV51:AV51),0)+IF(RIGHT(BR$39,2)>RIGHT($K51,2),AV51,0)) -> 0 | BS51: =+IF($K51="Ongoing",AW51,IF(RIGHT($K51,2)=RIGHT(BS$39,2),SUM($AV51:AW51),0)+IF(RIGHT(BS$39,2)>RIGHT($K51,2),AW51,0)) -> 1.13 | BT51: =+IF($K51="Ongoing",AX51,IF(RIGHT($K51,2)=RIGHT(BT$39,2),SUM($AV51:AX51),0)+IF(RIGHT(BT$39,2)>RIGHT($K51,2),AX51,0)) -> 1.31 | BU51: =+IF($K51="Ongoing",AY51,IF(RIGHT($K51,2)=RIGHT(BU$39,2),SUM($AV51:AY51),0)+IF(RIGHT(BU$39,2)>RIGHT($K51,2),AY51,0)) -> 0 | BV51: =+IF($K51="Ongoing",AZ51,IF(RIGHT($K51,2)=RIGHT(BV$39,2),SUM($AV51:AZ51),0)+IF(RIGHT(BV$39,2)>RIGHT($K51,2),AZ51,0)) -> 0 | BW51: =+IF($K51="Ongoing",BA51,IF(RIGHT($K51,2)=RIGHT(BW$39,2),SUM($AV51:BA51),0)+IF(RIGHT(BW$39,2)>RIGHT($K51,2),BA51,0)) -> 0 | BX51: =+IF($K51="Ongoing",BB51,IF(RIGHT($K51,2)=RIGHT(BX$39,2),SUM($AV51:BB51),0)+IF(RIGHT(BX$39,2)>RIGHT($K51,2),BB51,0)) -> 0 | BY51: =+IF($K51="Ongoing",BC51,IF(RIGHT($K51,2)=RIGHT(BY$39,2),SUM($AV51:BC51),0)+IF(RIGHT(BY$39,2)>RIGHT($K51,2),BC51,0)) -> 0 | BZ51: =+IF($K51="Ongoing",BD51,IF(RIGHT($K51,2)=RIGHT(BZ$39,2),SUM($AV51:BD51),0)+IF(RIGHT(BZ$39,2)>RIGHT($K51,2),BD51,0)) -> 0 | CA51: =+IF($K51="Ongoing",BE51,IF(RIGHT($K51,2)=RIGHT(CA$39,2),SUM($AV51:BE51),0)+IF(RIGHT(CA$39,2)>RIGHT($K51,2),BE51,0)) -> 0 | CC51: =+O51*KeyAssumptionsPriceControl_FO!X$15 -> 1.15599 | CD51: =+P51*KeyAssumptionsPriceControl_FO!Y$15 -> 0 | CE51: =+Q51*KeyAssumptionsPriceControl_FO!Z$15 -> 1.402484909 | CF51: =+R51*KeyAssumptionsPriceControl_FO!AA$15 -> 0 | CG51: =+S51*KeyAssumptionsPriceControl_FO!AB$15 -> 0 | CH51: =+T51*KeyAssumptionsPriceControl_FO!AC$15 -> 0 | CI51: =+U51*KeyAssumptionsPriceControl_FO!AD$15 -> 0 | CJ51: =+V51*KeyAssumptionsPriceControl_FO!AE$15 -> 0 | CK51: =+W51*KeyAssumptionsPriceControl_FO!AF$15 -> 0 | CL51: =+X51*KeyAssumptionsPriceControl_FO!AG$15 -> 0 | CN51: 0.00963325 | CO51: 0.0192665 | CP51: 0.03095387424 | CQ51: 0.04264124848 | CR51: 0.04264124848 | CS51: 0.04264124848 | CT51: 0.04264124848 | CU51: 0.04264124848 | CV51: 0.04264124848 | CW51: 0.04264124848
C53: Capex Included in 2017/18 South West Loddon Rural Water Supply | E53: Domestic and stock | F53: Growth | G53: Pipelines/network | H53: Significant projects | J53: Straight line | K53: 2018-19 | L53: 72.88058086 | M53: 70 | AK53: =5.6/2 -> 2.8 | AV53: -2.8 | AW53: 0 | AX53: 0 | AY53: 0 | AZ53: 0 | BA53: 0 | BB53: 0 | BC53: 0 | BD53: 0 | BE53: 0 | BG53: -0.01920950661 | BH53: -0.03841901323 | BI53: -0.03841901323 | BJ53: -0.03841901323 | BK53: -0.03841901323 | BL53: -0.03841901323 | BM53: -0.03841901323 | BN53: -0.03841901323 | BO53: -0.03841901323 | BP53: -0.03841901323 | BR53: =+IF($K53="Ongoing",AV53,IF(RIGHT($K53,2)=RIGHT(BR$39,2),SUM($AV53:AV53),0)+IF(RIGHT(BR$39,2)>RIGHT($K53,2),AV53,0)) -> -2.8 | BS53: =+IF($K53="Ongoing",AW53,IF(RIGHT($K53,2)=RIGHT(BS$39,2),SUM($AV53:AW53),0)+IF(RIGHT(BS$39,2)>RIGHT($K53,2),AW53,0)) -> 0 | BT53: =+IF($K53="Ongoing",AX53,IF(RIGHT($K53,2)=RIGHT(BT$39,2),SUM($AV53:AX53),0)+IF(RIGHT(BT$39,2)>RIGHT($K53,2),AX53,0)) -> 0 | BU53: =+IF($K53="Ongoing",AY53,IF(RIGHT($K53,2)=RIGHT(BU$39,2),SUM($AV53:AY53),0)+IF(RIGHT(BU$39,2)>RIGHT($K53,2),AY53,0)) -> 0 | BV53: =+IF($K53="Ongoing",AZ53,IF(RIGHT($K53,2)=RIGHT(BV$39,2),SUM($AV53:AZ53),0)+IF(RIGHT(BV$39,2)>RIGHT($K53,2),AZ53,0)) -> 0 | BW53: =+IF($K53="Ongoing",BA53,IF(RIGHT($K53,2)=RIGHT(BW$39,2),SUM($AV53:BA53),0)+IF(RIGHT(BW$39,2)>RIGHT($K53,2),BA53,0)) -> 0 | BX53: =+IF($K53="Ongoing",BB53,IF(RIGHT($K53,2)=RIGHT(BX$39,2),SUM($AV53:BB53),0)+IF(RIGHT(BX$39,2)>RIGHT($K53,2),BB53,0)) -> 0 | BY53: =+IF($K53="Ongoing",BC53,IF(RIGHT($K53,2)=RIGHT(BY$39,2),SUM($AV53:BC53),0)+IF(RIGHT(BY$39,2)>RIGHT($K53,2),BC53,0)) -> 0 | BZ53: =+IF($K53="Ongoing",BD53,IF(RIGHT($K53,2)=RIGHT(BZ$39,2),SUM($AV53:BD53),0)+IF(RIGHT(BZ$39,2)>RIGHT($K53,2),BD53,0)) -> 0 | CA53: =+IF($K53="Ongoing",BE53,IF(RIGHT($K53,2)=RIGHT(CA$39,2),SUM($AV53:BE53),0)+IF(RIGHT(CA$39,2)>RIGHT($K53,2),BE53,0)) -> 0 | CC53: =+O53*KeyAssumptionsPriceControl_FO!X$15 -> 0 | CD53: =+P53*KeyAssumptionsPriceControl_FO!Y$15 -> 0 | CE53: =+Q53*KeyAssumptionsPriceControl_FO!Z$15 -> 0 | CF53: =+R53*KeyAssumptionsPriceControl_FO!AA$15 -> 0 | CG53: =+S53*KeyAssumptionsPriceControl_FO!AB$15 -> 0 | CH53: =+T53*KeyAssumptionsPriceControl_FO!AC$15 -> 0 | CI53: =+U53*KeyAssumptionsPriceControl_FO!AD$15 -> 0 | CJ53: =+V53*KeyAssumptionsPriceControl_FO!AE$15 -> 0 | CK53: =+W53*KeyAssumptionsPriceControl_FO!AF$15 -> 0 | CL53: =+X53*KeyAssumptionsPriceControl_FO!AG$15 -> 0 | CN53: 0 | CO53: 0 | CP53: 0 | CQ53: 0 | CR53: 0 | CS53: 0 | CT53: 0 | CU53: 0 | CV53: 0 | CW53: 0
C54: Capex Included in 2017/18 Mallee Towns Treated Water Supply Project | E54: Urban Water | F54: Improvements / Compliance | G54: Treatment | H54: Significant projects | J54: Straight line | K54: 2018-19 | L54: 59 | M54: 60 | AV54: 0 | AW54: 0 | AX54: 0 | AY54: 0 | AZ54: 0 | BA54: 0 | BB54: 0 | BC54: 0 | BD54: 0 | BE54: 0 | BG54: 0 | BH54: 0 | BI54: 0 | BJ54: 0 | BK54: 0 | BL54: 0 | BM54: 0 | BN54: 0 | BO54: 0 | BP54: 0 | BR54: =+IF($K54="Ongoing",AV54,IF(RIGHT($K54,2)=RIGHT(BR$39,2),SUM($AV54:AV54),0)+IF(RIGHT(BR$39,2)>RIGHT($K54,2),AV54,0)) -> 0 | BS54: =+IF($K54="Ongoing",AW54,IF(RIGHT($K54,2)=RIGHT(BS$39,2),SUM($AV54:AW54),0)+IF(RIGHT(BS$39,2)>RIGHT($K54,2),AW54,0)) -> 0 | BT54: =+IF($K54="Ongoing",AX54,IF(RIGHT($K54,2)=RIGHT(BT$39,2),SUM($AV54:AX54),0)+IF(RIGHT(BT$39,2)>RIGHT($K54,2),AX54,0)) -> 0 | BU54: =+IF($K54="Ongoing",AY54,IF(RIGHT($K54,2)=RIGHT(BU$39,2),SUM($AV54:AY54),0)+IF(RIGHT(BU$39,2)>RIGHT($K54,2),AY54,0)) -> 0 | BV54: =+IF($K54="Ongoing",AZ54,IF(RIGHT($K54,2)=RIGHT(BV$39,2),SUM($AV54:AZ54),0)+IF(RIGHT(BV$39,2)>RIGHT($K54,2),AZ54,0)) -> 0 | BW54: =+IF($K54="Ongoing",BA54,IF(RIGHT($K54,2)=RIGHT(BW$39,2),SUM($AV54:BA54),0)+IF(RIGHT(BW$39,2)>RIGHT($K54,2),BA54,0)) -> 0 | BX54: =+IF($K54="Ongoing",BB54,IF(RIGHT($K54,2)=RIGHT(BX$39,2),SUM($AV54:BB54),0)+IF(RIGHT(BX$39,2)>RIGHT($K54,2),BB54,0)) -> 0 | BY54: =+IF($K54="Ongoing",BC54,IF(RIGHT($K54,2)=RIGHT(BY$39,2),SUM($AV54:BC54),0)+IF(RIGHT(BY$39,2)>RIGHT($K54,2),BC54,0)) -> 0 | BZ54: =+IF($K54="Ongoing",BD54,IF(RIGHT($K54,2)=RIGHT(BZ$39,2),SUM($AV54:BD54),0)+IF(RIGHT(BZ$39,2)>RIGHT($K54,2),BD54,0)) -> 0 | CA54: =+IF($K54="Ongoing",BE54,IF(RIGHT($K54,2)=RIGHT(CA$39,2),SUM($AV54:BE54),0)+IF(RIGHT(CA$39,2)>RIGHT($K54,2),BE54,0)) -> 0 | CC54: =+O54*KeyAssumptionsPriceControl_FO!X$15 -> 0 | CD54: =+P54*KeyAssumptionsPriceControl_FO!Y$15 -> 0 | CE54: =+Q54*KeyAssumptionsPriceControl_FO!Z$15 -> 0 | CF54: =+R54*KeyAssumptionsPriceControl_FO!AA$15 -> 0 | CG54: =+S54*KeyAssumptionsPriceControl_FO!AB$15 -> 0 | CH54: =+T54*KeyAssumptionsPriceControl_FO!AC$15 -> 0 | CI54: =+U54*KeyAssumptionsPriceControl_FO!AD$15 -> 0 | CJ54: =+V54*KeyAssumptionsPriceControl_FO!AE$15 -> 0 | CK54: =+W54*KeyAssumptionsPriceControl_FO!AF$15 -> 0 | CL54: =+X54*KeyAssumptionsPriceControl_FO!AG$15 -> 0 | CN54: 0 | CO54: 0 | CP54: 0 | CQ54: 0 | CR54: 0 | CS54: 0 | CT54: 0 | CU54: 0 | CV54: 0 | CW54: 0
C55: Water Major OH&S Upgrades | E55: Urban Water | F55: Improvements / Compliance | G55: Corporate | H55: Capital Programs / Allocation | J55: Straight line | K55: Ongoing | L55: 15 | M55: 15 | O55: 0.05999963 | P55: 0.05999963 | Q55: 0.05999963 | R55: 0.05999963 | S55: 0.05999963 | T55: 0.05999963 | U55: 0.05999963 | V55: 0.05999963 | W55: 0.05999963 | X55: 0.05999963 | AV55: 0.05999963 | AW55: 0.05999963 | AX55: 0.05999963 | AY55: 0.05999963 | AZ55: 0.05999963 | BA55: 0.05999963 | BB55: 0.05999963 | BC55: 0.05999963 | BD55: 0.05999963 | BE55: 0.05999963 | BG55: 0.001999987667 | BH55: 0.005999963 | BI55: 0.009999938333 | BJ55: 0.01399991367 | BK55: 0.017999889 | BL55: 0.02199986433 | BM55: 0.02599983967 | BN55: 0.029999815 | BO55: 0.03399979033 | BP55: 0.03799976567 | BR55: =+IF($K55="Ongoing",AV55,IF(RIGHT($K55,2)=RIGHT(BR$39,2),SUM($AV55:AV55),0)+IF(RIGHT(BR$39,2)>RIGHT($K55,2),AV55,0)) -> 0.05999963 | BS55: =+IF($K55="Ongoing",AW55,IF(RIGHT($K55,2)=RIGHT(BS$39,2),SUM($AV55:AW55),0)+IF(RIGHT(BS$39,2)>RIGHT($K55,2),AW55,0)) -> 0.05999963 | BT55: =+IF($K55="Ongoing",AX55,IF(RIGHT($K55,2)=RIGHT(BT$39,2),SUM($AV55:AX55),0)+IF(RIGHT(BT$39,2)>RIGHT($K55,2),AX55,0)) -> 0.05999963 | BU55: =+IF($K55="Ongoing",AY55,IF(RIGHT($K55,2)=RIGHT(BU$39,2),SUM($AV55:AY55),0)+IF(RIGHT(BU$39,2)>RIGHT($K55,2),AY55,0)) -> 0.05999963 | BV55: =+IF($K55="Ongoing",AZ55,IF(RIGHT($K55,2)=RIGHT(BV$39,2),SUM($AV55:AZ55),0)+IF(RIGHT(BV$39,2)>RIGHT($K55,2),AZ55,0)) -> 0.05999963 | BW55: =+IF($K55="Ongoing",BA55,IF(RIGHT($K55,2)=RIGHT(BW$39,2),SUM($AV55:BA55),0)+IF(RIGHT(BW$39,2)>RIGHT($K55,2),BA55,0)) -> 0.05999963 | BX55: =+IF($K55="Ongoing",BB55,IF(RIGHT($K55,2)=RIGHT(BX$39,2),SUM($AV55:BB55),0)+IF(RIGHT(BX$39,2)>RIGHT($K55,2),BB55,0)) -> 0.05999963 | BY55: =+IF($K55="Ongoing",BC55,IF(RIGHT($K55,2)=RIGHT(BY$39,2),SUM($AV55:BC55),0)+IF(RIGHT(BY$39,2)>RIGHT($K55,2),BC55,0)) -> 0.05999963 | BZ55: =+IF($K55="Ongoing",BD55,IF(RIGHT($K55,2)=RIGHT(BZ$39,2),SUM($AV55:BD55),0)+IF(RIGHT(BZ$39,2)>RIGHT($K55,2),BD55,0)) -> 0.05999963 | CA55: =+IF($K55="Ongoing",BE55,IF(RIGHT($K55,2)=RIGHT(CA$39,2),SUM($AV55:BE55),0)+IF(RIGHT(CA$39,2)>RIGHT($K55,2),BE55,0)) -> 0.05999963 | CC55: =+O55*KeyAssumptionsPriceControl_FO!X$15 -> 0.06137962149 | CD55: =+P55*KeyAssumptionsPriceControl_FO!Y$15 -> 0.06279135278 | CE55: =+Q55*KeyAssumptionsPriceControl_FO!Z$15 -> 0.0642355539 | CF55: =+R55*KeyAssumptionsPriceControl_FO!AA$15 -> 0.06571297164 | CG55: =+S55*KeyAssumptionsPriceControl_FO!AB$15 -> 0.06722436999 | CH55: =+T55*KeyAssumptionsPriceControl_FO!AC$15 -> 0.0687705305 | CI55: =+U55*KeyAssumptionsPriceControl_FO!AD$15 -> 0.0703522527 | CJ55: =+V55*KeyAssumptionsPriceControl_FO!AE$15 -> 0.07197035451 | CK55: =+W55*KeyAssumptionsPriceControl_FO!AF$15 -> 0.07362567266 | CL55: =+X55*KeyAssumptionsPriceControl_FO!AG$15 -> 0.07531906313 | CN55: 0.002045987383 | CO55: 0.006185019859 | CP55: 0.01041925008 | CQ55: 0.0147508676 | CR55: 0.01918211232 | CS55: 0.02371527567 | CT55: 0.02835270178 | CU55: 0.03309678868 | CV55: 0.03794998959 | CW55: 0.04291481412
C56: Water Infrastructure Cathodic Protection Upgrades | E56: Urban Water | F56: Improvements / Compliance | G56: Treatment | H56: Capital Programs / Allocation | J56: Straight line | K56: Ongoing | L56: 59 | M56: 20 | O56: 0 | P56: 0 | Q56: 0 | R56: 0 | S56: 0 | T56: 0 | U56: 0 | V56: 0 | W56: 0 | X56: 0 | AV56: 0 | AW56: 0 | AX56: 0 | AY56: 0 | AZ56: 0 | BA56: 0 | BB56: 0 | BC56: 0 | BD56: 0 | BE56: 0 | BG56: 0 | BH56: 0 | BI56: 0 | BJ56: 0 | BK56: 0 | BL56: 0 | BM56: 0 | BN56: 0 | BO56: 0 | BP56: 0 | BR56: =+IF($K56="Ongoing",AV56,IF(RIGHT($K56,2)=RIGHT(BR$39,2),SUM($AV56:AV56),0)+IF(RIGHT(BR$39,2)>RIGHT($K56,2),AV56,0)) -> 0 | BS56: =+IF($K56="Ongoing",AW56,IF(RIGHT($K56,2)=RIGHT(BS$39,2),SUM($AV56:AW56),0)+IF(RIGHT(BS$39,2)>RIGHT($K56,2),AW56,0)) -> 0 | BT56: =+IF($K56="Ongoing",AX56,IF(RIGHT($K56,2)=RIGHT(BT$39,2),SUM($AV56:AX56),0)+IF(RIGHT(BT$39,2)>RIGHT($K56,2),AX56,0)) -> 0 | BU56: =+IF($K56="Ongoing",AY56,IF(RIGHT($K56,2)=RIGHT(BU$39,2),SUM($AV56:AY56),0)+IF(RIGHT(BU$39,2)>RIGHT($K56,2),AY56,0)) -> 0 | BV56: =+IF($K56="Ongoing",AZ56,IF(RIGHT($K56,2)=RIGHT(BV$39,2),SUM($AV56:AZ56),0)+IF(RIGHT(BV$39,2)>RIGHT($K56,2),AZ56,0)) -> 0 | BW56: =+IF($K56="Ongoing",BA56,IF(RIGHT($K56,2)=RIGHT(BW$39,2),SUM($AV56:BA56),0)+IF(RIGHT(BW$39,2)>RIGHT($K56,2),BA56,0)) -> 0 | BX56: =+IF($K56="Ongoing",BB56,IF(RIGHT($K56,2)=RIGHT(BX$39,2),SUM($AV56:BB56),0)+IF(RIGHT(BX$39,2)>RIGHT($K56,2),BB56,0)) -> 0 | BY56: =+IF($K56="Ongoing",BC56,IF(RIGHT($K56,2)=RIGHT(BY$39,2),SUM($AV56:BC56),0)+IF(RIGHT(BY$39,2)>RIGHT($K56,2),BC56,0)) -> 0 | BZ56: =+IF($K56="Ongoing",BD56,IF(RIGHT($K56,2)=RIGHT(BZ$39,2),SUM($AV56:BD56),0)+IF(RIGHT(BZ$39,2)>RIGHT($K56,2),BD56,0)) -> 0 | CA56: =+IF($K56="Ongoing",BE56,IF(RIGHT($K56,2)=RIGHT(CA$39,2),SUM($AV56:BE56),0)+IF(RIGHT(CA$39,2)>RIGHT($K56,2),BE56,0)) -> 0 | CC56: =+O56*KeyAssumptionsPriceControl_FO!X$15 -> 0 | CD56: =+P56*KeyAssumptionsPriceControl_FO!Y$15 -> 0 | CE56: =+Q56*KeyAssumptionsPriceControl_FO!Z$15 -> 0 | CF56: =+R56*KeyAssumptionsPriceControl_FO!AA$15 -> 0 | CG56: =+S56*KeyAssumptionsPriceControl_FO!AB$15 -> 0 | CH56: =+T56*KeyAssumptionsPriceControl_FO!AC$15 -> 0 | CI56: =+U56*KeyAssumptionsPriceControl_FO!AD$15 -> 0 | CJ56: =+V56*KeyAssumptionsPriceControl_FO!AE$15 -> 0 | CK56: =+W56*KeyAssumptionsPriceControl_FO!AF$15 -> 0 | CL56: =+X56*KeyAssumptionsPriceControl_FO!AG$15 -> 0 | CN56: 0 | CO56: 0 | CP56: 0 | CQ56: 0 | CR56: 0 | CS56: 0 | CT56: 0 | CU56: 0 | CV56: 0 | CW56: 0
C57: Water Developer Works Planning & Supervision | E57: Urban Water | F57: Growth | G57: Corporate | H57: Capital Programs / Allocation | J57: Straight line | K57: Ongoing | L57: 55 | M57: 60 | O57: 0.04388045 | P57: 0.04388045 | Q57: 0.04388045 | R57: 0.04388045 | S57: 0.04388045 | T57: 0.04388045 | U57: 0.04388045 | V57: 0.04388045 | W57: 0.04388045 | X57: 0.04388045 | AV57: 0.04388045 | AW57: 0.04388045 | AX57: 0.04388045 | AY57: 0.04388045 | AZ57: 0.04388045 | BA57: 0.04388045 | BB57: 0.04388045 | BC57: 0.04388045 | BD57: 0.04388045 | BE57: 0.04388045 | BG57: 0.0003989131818 | BH57: 0.001196739545 | BI57: 0.001994565909 | BJ57: 0.002792392273 | BK57: 0.003590218636 | BL57: 0.004388045 | BM57: 0.005185871364 | BN57: 0.005983697727 | BO57: 0.006781524091 | BP57: 0.007579350455 | BR57: =+IF($K57="Ongoing",AV57,IF(RIGHT($K57,2)=RIGHT(BR$39,2),SUM($AV57:AV57),0)+IF(RIGHT(BR$39,2)>RIGHT($K57,2),AV57,0)) -> 0.04388045 | BS57: =+IF($K57="Ongoing",AW57,IF(RIGHT($K57,2)=RIGHT(BS$39,2),SUM($AV57:AW57),0)+IF(RIGHT(BS$39,2)>RIGHT($K57,2),AW57,0)) -> 0.04388045 | BT57: =+IF($K57="Ongoing",AX57,IF(RIGHT($K57,2)=RIGHT(BT$39,2),SUM($AV57:AX57),0)+IF(RIGHT(BT$39,2)>RIGHT($K57,2),AX57,0)) -> 0.04388045 | BU57: =+IF($K57="Ongoing",AY57,IF(RIGHT($K57,2)=RIGHT(BU$39,2),SUM($AV57:AY57),0)+IF(RIGHT(BU$39,2)>RIGHT($K57,2),AY57,0)) -> 0.04388045 | BV57: =+IF($K57="Ongoing",AZ57,IF(RIGHT($K57,2)=RIGHT(BV$39,2),SUM($AV57:AZ57),0)+IF(RIGHT(BV$39,2)>RIGHT($K57,2),AZ57,0)) -> 0.04388045 | BW57: =+IF($K57="Ongoing",BA57,IF(RIGHT($K57,2)=RIGHT(BW$39,2),SUM($AV57:BA57),0)+IF(RIGHT(BW$39,2)>RIGHT($K57,2),BA57,0)) -> 0.04388045 | BX57: =+IF($K57="Ongoing",BB57,IF(RIGHT($K57,2)=RIGHT(BX$39,2),SUM($AV57:BB57),0)+IF(RIGHT(BX$39,2)>RIGHT($K57,2),BB57,0)) -> 0.04388045 | BY57: =+IF($K57="Ongoing",BC57,IF(RIGHT($K57,2)=RIGHT(BY$39,2),SUM($AV57:BC57),0)+IF(RIGHT(BY$39,2)>RIGHT($K57,2),BC57,0)) -> 0.04388045 | BZ57: =+IF($K57="Ongoing",BD57,IF(RIGHT($K57,2)=RIGHT(BZ$39,2),SUM($AV57:BD57),0)+IF(RIGHT(BZ$39,2)>RIGHT($K57,2),BD57,0)) -> 0.04388045 | CA57: =+IF($K57="Ongoing",BE57,IF(RIGHT($K57,2)=RIGHT(CA$39,2),SUM($AV57:BE57),0)+IF(RIGHT(CA$39,2)>RIGHT($K57,2),BE57,0)) -> 0.04388045 | CC57: =+O57*KeyAssumptionsPriceControl_FO!X$15 -> 0.04488970035 | CD57: =+P57*KeyAssumptionsPriceControl_FO!Y$15 -> 0.04592216346 | CE57: =+Q57*KeyAssumptionsPriceControl_FO!Z$15 -> 0.04697837322 | CF57: =+R57*KeyAssumptionsPriceControl_FO!AA$15 -> 0.0480588758 | CG57: =+S57*KeyAssumptionsPriceControl_FO!AB$15 -> 0.04916422995 | CH57: =+T57*KeyAssumptionsPriceControl_FO!AC$15 -> 0.05029500723 | CI57: =+U57*KeyAssumptionsPriceControl_FO!AD$15 -> 0.0514517924 | CJ57: =+V57*KeyAssumptionsPriceControl_FO!AE$15 -> 0.05263518363 | CK57: =+W57*KeyAssumptionsPriceControl_FO!AF$15 -> 0.05384579285 | CL57: =+X57*KeyAssumptionsPriceControl_FO!AG$15 -> 0.05508424608 | CN57: 0.0003740808363 | CO57: 0.001130846368 | CP57: 0.001905017507 | CQ57: 0.002696994582 | CR57: 0.00350718713 | CS57: 0.004336014106 | CT57: 0.005183904103 | CU57: 0.00605129557 | CV57: 0.006938637041 | CW57: 0.007846387365
C58: Water Cont to Developer Works | E58: Urban Water | F58: Growth | G58: Corporate | H58: Capital Programs / Allocation | J58: Straight line | K58: Ongoing | L58: 55 | M58: 60 | O58: 0.0350845 | P58: 0.0350845 | Q58: 0.0350845 | R58: 0.0350845 | S58: 0.0350845 | T58: 0.0350845 | U58: 0.0350845 | V58: 0.0350845 | W58: 0.0350845 | X58: 0.0350845 | AV58: 0.0350845 | AW58: 0.0350845 | AX58: 0.0350845 | AY58: 0.0350845 | AZ58: 0.0350845 | BA58: 0.0350845 | BB58: 0.0350845 | BC58: 0.0350845 | BD58: 0.0350845 | BE58: 0.0350845 | BG58: 0.00031895 | BH58: 0.00095685 | BI58: 0.00159475 | BJ58: 0.00223265 | BK58: 0.00287055 | BL58: 0.00350845 | BM58: 0.00414635 | BN58: 0.00478425 | BO58: 0.00542215 | BP58: 0.00606005 | BR58: =+IF($K58="Ongoing",AV58,IF(RIGHT($K58,2)=RIGHT(BR$39,2),SUM($AV58:AV58),0)+IF(RIGHT(BR$39,2)>RIGHT($K58,2),AV58,0)) -> 0.0350845 | BS58: =+IF($K58="Ongoing",AW58,IF(RIGHT($K58,2)=RIGHT(BS$39,2),SUM($AV58:AW58),0)+IF(RIGHT(BS$39,2)>RIGHT($K58,2),AW58,0)) -> 0.0350845 | BT58: =+IF($K58="Ongoing",AX58,IF(RIGHT($K58,2)=RIGHT(BT$39,2),SUM($AV58:AX58),0)+IF(RIGHT(BT$39,2)>RIGHT($K58,2),AX58,0)) -> 0.0350845 | BU58: =+IF($K58="Ongoing",AY58,IF(RIGHT($K58,2)=RIGHT(BU$39,2),SUM($AV58:AY58),0)+IF(RIGHT(BU$39,2)>RIGHT($K58,2),AY58,0)) -> 0.0350845 | BV58: =+IF($K58="Ongoing",AZ58,IF(RIGHT($K58,2)=RIGHT(BV$39,2),SUM($AV58:AZ58),0)+IF(RIGHT(BV$39,2)>RIGHT($K58,2),AZ58,0)) -> 0.0350845 | BW58: =+IF($K58="Ongoing",BA58,IF(RIGHT($K58,2)=RIGHT(BW$39,2),SUM($AV58:BA58),0)+IF(RIGHT(BW$39,2)>RIGHT($K58,2),BA58,0)) -> 0.0350845 | BX58: =+IF($K58="Ongoing",BB58,IF(RIGHT($K58,2)=RIGHT(BX$39,2),SUM($AV58:BB58),0)+IF(RIGHT(BX$39,2)>RIGHT($K58,2),BB58,0)) -> 0.0350845 | BY58: =+IF($K58="Ongoing",BC58,IF(RIGHT($K58,2)=RIGHT(BY$39,2),SUM($AV58:BC58),0)+IF(RIGHT(BY$39,2)>RIGHT($K58,2),BC58,0)) -> 0.0350845 | BZ58: =+IF($K58="Ongoing",BD58,IF(RIGHT($K58,2)=RIGHT(BZ$39,2),SUM($AV58:BD58),0)+IF(RIGHT(BZ$39,2)>RIGHT($K58,2),BD58,0)) -> 0.0350845 | CA58: =+IF($K58="Ongoing",BE58,IF(RIGHT($K58,2)=RIGHT(CA$39,2),SUM($AV58:BE58),0)+IF(RIGHT(CA$39,2)>RIGHT($K58,2),BE58,0)) -> 0.0350845 | CC58: =+O58*KeyAssumptionsPriceControl_FO!X$15 -> 0.0358914435 | CD58: =+P58*KeyAssumptionsPriceControl_FO!Y$15 -> 0.0367169467 | CE58: =+Q58*KeyAssumptionsPriceControl_FO!Z$15 -> 0.03756143647 | CF58: =+R58*KeyAssumptionsPriceControl_FO!AA$15 -> 0.03842534951 | CG58: =+S58*KeyAssumptionsPriceControl_FO!AB$15 -> 0.03930913255 | CH58: =+T58*KeyAssumptionsPriceControl_FO!AC$15 -> 0.0402132426 | CI58: =+U58*KeyAssumptionsPriceControl_FO!AD$15 -> 0.04113814718 | CJ58: =+V58*KeyAssumptionsPriceControl_FO!AE$15 -> 0.04208432457 | CK58: =+W58*KeyAssumptionsPriceControl_FO!AF$15 -> 0.04305226403 | CL58: =+X58*KeyAssumptionsPriceControl_FO!AG$15 -> 0.0440424661 | CN58: 0.0002990953625 | CO58: 0.0009041652808 | CP58: 0.001523151807 | CQ58: 0.002156375024 | CR58: 0.002804162374 | CS58: 0.003466848834 | CT58: 0.004144777082 | CU58: 0.00483829768 | CV58: 0.005547769252 | CW58: 0.00627355867
C59: Major Project 5 Urban Remote Metering | AV59: 0 | AW59: 0 | AX59: 0 | AY59: 0 | AZ59: 0 | BA59: 0 | BB59: 0 | BC59: 0 | BD59: 0 | BE59: 0 | BG59: 0 | BH59: 0 | BI59: 0 | BJ59: 0 | BK59: 0 | BL59: 0 | BM59: 0 | BN59: 0 | BO59: 0 | BP59: 0 | BR59: =+IF($K59="Ongoing",AV59,IF(RIGHT($K59,2)=RIGHT(BR$39,2),SUM($AV59:AV59),0)+IF(RIGHT(BR$39,2)>RIGHT($K59,2),AV59,0)) -> 0 | BS59: =+IF($K59="Ongoing",AW59,IF(RIGHT($K59,2)=RIGHT(BS$39,2),SUM($AV59:AW59),0)+IF(RIGHT(BS$39,2)>RIGHT($K59,2),AW59,0)) -> 0 | BT59: =+IF($K59="Ongoing",AX59,IF(RIGHT($K59,2)=RIGHT(BT$39,2),SUM($AV59:AX59),0)+IF(RIGHT(BT$39,2)>RIGHT($K59,2),AX59,0)) -> 0 | BU59: =+IF($K59="Ongoing",AY59,IF(RIGHT($K59,2)=RIGHT(BU$39,2),SUM($AV59:AY59),0)+IF(RIGHT(BU$39,2)>RIGHT($K59,2),AY59,0)) -> 0 | BV59: =+IF($K59="Ongoing",AZ59,IF(RIGHT($K59,2)=RIGHT(BV$39,2),SUM($AV59:AZ59),0)+IF(RIGHT(BV$39,2)>RIGHT($K59,2),AZ59,0)) -> 0 | BW59: =+IF($K59="Ongoing",BA59,IF(RIGHT($K59,2)=RIGHT(BW$39,2),SUM($AV59:BA59),0)+IF(RIGHT(BW$39,2)>RIGHT($K59,2),BA59,0)) -> 0 | BX59: =+IF($K59="Ongoing",BB59,IF(RIGHT($K59,2)=RIGHT(BX$39,2),SUM($AV59:BB59),0)+IF(RIGHT(BX$39,2)>RIGHT($K59,2),BB59,0)) -> 0 | BY59: =+IF($K59="Ongoing",BC59,IF(RIGHT($K59,2)=RIGHT(BY$39,2),SUM($AV59:BC59),0)+IF(RIGHT(BY$39,2)>RIGHT($K59,2),BC59,0)) -> 0 | BZ59: =+IF($K59="Ongoing",BD59,IF(RIGHT($K59,2)=RIGHT(BZ$39,2),SUM($AV59:BD59),0)+IF(RIGHT(BZ$39,2)>RIGHT($K59,2),BD59,0)) -> 0 | CA59: =+IF($K59="Ongoing",BE59,IF(RIGHT($K59,2)=RIGHT(CA$39,2),SUM($AV59:BE59),0)+IF(RIGHT(CA$39,2)>RIGHT($K59,2),BE59,0)) -> 0 | CC59: =+O59*KeyAssumptionsPriceControl_FO!X$15 -> 0 | CD59: =+P59*KeyAssumptionsPriceControl_FO!Y$15 -> 0 | CE59: =+Q59*KeyAssumptionsPriceControl_FO!Z$15 -> 0 | CF59: =+R59*KeyAssumptionsPriceControl_FO!AA$15 -> 0 | CG59: =+S59*KeyAssumptionsPriceControl_FO!AB$15 -> 0 | CH59: =+T59*KeyAssumptionsPriceControl_FO!AC$15 -> 0 | CI59: =+U59*KeyAssumptionsPriceControl_FO!AD$15 -> 0 | CJ59: =+V59*KeyAssumptionsPriceControl_FO!AE$15 -> 0 | CK59: =+W59*KeyAssumptionsPriceControl_FO!AF$15 -> 0 | CL59: =+X59*KeyAssumptionsPriceControl_FO!AG$15 -> 0 | CN59: 0 | CO59: 0 | CP59: 0 | CQ59: 0 | CR59: 0 | CS59: 0 | CT59: 0 | CU59: 0 | CV59: 0 | CW59: 0
C60: Water Supply System Upgrades | E60: Urban Water | F60: Improvements / Compliance | G60: Pipelines/network | H60: Capital Programs / Allocation | J60: Straight line | K60: Ongoing | L60: 55 | M60: 60 | O60: 0.2002554 | P60: 0.2002554 | Q60: 0.2002554 | R60: 0.2002554 | S60: 0.2002554 | T60: 0.2002554 | U60: 0.2002554 | V60: 0.2002554 | W60: 0.2002554 | X60: 0.2002554 | AV60: 0.2002554 | AW60: 0.2002554 | AX60: 0.2002554 | AY60: 0.2002554 | AZ60: 0.2002554 | BA60: 0.2002554 | BB60: 0.2002554 | BC60: 0.2002554 | BD60: 0.2002554 | BE60: 0.2002554 | BG60: 0.001820503636 | BH60: 0.005461510909 | BI60: 0.009102518182 | BJ60: 0.01274352545 | BK60: 0.01638453273 | BL60: 0.02002554 | BM60: 0.02366654727 | BN60: 0.02730755455 | BO60: 0.03094856182 | BP60: 0.03458956909 | BR60: =+IF($K60="Ongoing",AV60,IF(RIGHT($K60,2)=RIGHT(BR$39,2),SUM($AV60:AV60),0)+IF(RIGHT(BR$39,2)>RIGHT($K60,2),AV60,0)) -> 0.2002554 | BS60: =+IF($K60="Ongoing",AW60,IF(RIGHT($K60,2)=RIGHT(BS$39,2),SUM($AV60:AW60),0)+IF(RIGHT(BS$39,2)>RIGHT($K60,2),AW60,0)) -> 0.2002554 | BT60: =+IF($K60="Ongoing",AX60,IF(RIGHT($K60,2)=RIGHT(BT$39,2),SUM($AV60:AX60),0)+IF(RIGHT(BT$39,2)>RIGHT($K60,2),AX60,0)) -> 0.2002554 | BU60: =+IF($K60="Ongoing",AY60,IF(RIGHT($K60,2)=RIGHT(BU$39,2),SUM($AV60:AY60),0)+IF(RIGHT(BU$39,2)>RIGHT($K60,2),AY60,0)) -> 0.2002554 | BV60: =+IF($K60="Ongoing",AZ60,IF(RIGHT($K60,2)=RIGHT(BV$39,2),SUM($AV60:AZ60),0)+IF(RIGHT(BV$39,2)>RIGHT($K60,2),AZ60,0)) -> 0.2002554 | BW60: =+IF($K60="Ongoing",BA60,IF(RIGHT($K60,2)=RIGHT(BW$39,2),SUM($AV60:BA60),0)+IF(RIGHT(BW$39,2)>RIGHT($K60,2),BA60,0)) -> 0.2002554 | BX60: =+IF($K60="Ongoing",BB60,IF(RIGHT($K60,2)=RIGHT(BX$39,2),SUM($AV60:BB60),0)+IF(RIGHT(BX$39,2)>RIGHT($K60,2),BB60,0)) -> 0.2002554 | BY60: =+IF($K60="Ongoing",BC60,IF(RIGHT($K60,2)=RIGHT(BY$39,2),SUM($AV60:BC60),0)+IF(RIGHT(BY$39,2)>RIGHT($K60,2),BC60,0)) -> 0.2002554 | BZ60: =+IF($K60="Ongoing",BD60,IF(RIGHT($K60,2)=RIGHT(BZ$39,2),SUM($AV60:BD60),0)+IF(RIGHT(BZ$39,2)>RIGHT($K60,2),BD60,0)) -> 0.2002554 | CA60: =+IF($K60="Ongoing",BE60,IF(RIGHT($K60,2)=RIGHT(CA$39,2),SUM($AV60:BE60),0)+IF(RIGHT(CA$39,2)>RIGHT($K60,2),BE60,0)) -> 0.2002554 | CC60: =+O60*KeyAssumptionsPriceControl_FO!X$15 -> 0.2048612742 | CD60: =+P60*KeyAssumptionsPriceControl_FO!Y$15 -> 0.2095730835 | CE60: =+Q60*KeyAssumptionsPriceControl_FO!Z$15 -> 0.2143932644 | CF60: =+R60*KeyAssumptionsPriceControl_FO!AA$15 -> 0.2193243095 | CG60: =+S60*KeyAssumptionsPriceControl_FO!AB$15 -> 0.2243687686 | CH60: =+T60*KeyAssumptionsPriceControl_FO!AC$15 -> 0.2295292503 | CI60: =+U60*KeyAssumptionsPriceControl_FO!AD$15 -> 0.2348084231 | CJ60: =+V60*KeyAssumptionsPriceControl_FO!AE$15 -> 0.2402090168 | CK60: =+W60*KeyAssumptionsPriceControl_FO!AF$15 -> 0.2457338242 | CL60: =+X60*KeyAssumptionsPriceControl_FO!AG$15 -> 0.2513857021 | CN60: 0.001707177285 | CO60: 0.005160796933 | CP60: 0.008693849832 | CQ60: 0.01230816295 | CR60: 0.01600560527 | CS60: 0.01978808876 | CT60: 0.02365756937 | CU60: 0.02761604803 | CV60: 0.03166557171 | CW60: 0.03580823443
AV61: 0 | AW61: 0 | AX61: 0 | AY61: 0 | AZ61: 0 | BA61: 0 | BB61: 0 | BC61: 0 | BD61: 0 | BE61: 0 | BG61: 0 | BH61: 0 | BI61: 0 | BJ61: 0 | BK61: 0 | BL61: 0 | BM61: 0 | BN61: 0 | BO61: 0 | BP61: 0 | BR61: =+IF($K61="Ongoing",AV61,IF(RIGHT($K61,2)=RIGHT(BR$39,2),SUM($AV61:AV61),0)+IF(RIGHT(BR$39,2)>RIGHT($K61,2),AV61,0)) -> 0 | BS61: =+IF($K61="Ongoing",AW61,IF(RIGHT($K61,2)=RIGHT(BS$39,2),SUM($AV61:AW61),0)+IF(RIGHT(BS$39,2)>RIGHT($K61,2),AW61,0)) -> 0 | BT61: =+IF($K61="Ongoing",AX61,IF(RIGHT($K61,2)=RIGHT(BT$39,2),SUM($AV61:AX61),0)+IF(RIGHT(BT$39,2)>RIGHT($K61,2),AX61,0)) -> 0 | BU61: =+IF($K61="Ongoing",AY61,IF(RIGHT($K61,2)=RIGHT(BU$39,2),SUM($AV61:AY61),0)+IF(RIGHT(BU$39,2)>RIGHT($K61,2),AY61,0)) -> 0 | BV61: =+IF($K61="Ongoing",AZ61,IF(RIGHT($K61,2)=RIGHT(BV$39,2),SUM($AV61:AZ61),0)+IF(RIGHT(BV$39,2)>RIGHT($K61,2),AZ61,0)) -> 0 | BW61: =+IF($K61="Ongoing",BA61,IF(RIGHT($K61,2)=RIGHT(BW$39,2),SUM($AV61:BA61),0)+IF(RIGHT(BW$39,2)>RIGHT($K61,2),BA61,0)) -> 0 | BX61: =+IF($K61="Ongoing",BB61,IF(RIGHT($K61,2)=RIGHT(BX$39,2),SUM($AV61:BB61),0)+IF(RIGHT(BX$39,2)>RIGHT($K61,2),BB61,0)) -> 0 | BY61: =+IF($K61="Ongoing",BC61,IF(RIGHT($K61,2)=RIGHT(BY$39,2),SUM($AV61:BC61),0)+IF(RIGHT(BY$39,2)>RIGHT($K61,2),BC61,0)) -> 0 | BZ61: =+IF($K61="Ongoing",BD61,IF(RIGHT($K61,2)=RIGHT(BZ$39,2),SUM($AV61:BD61),0)+IF(RIGHT(BZ$39,2)>RIGHT($K61,2),BD61,0)) -> 0 | CA61: =+IF($K61="Ongoing",BE61,IF(RIGHT($K61,2)=RIGHT(CA$39,2),SUM($AV61:BE61),0)+IF(RIGHT(CA$39,2)>RIGHT($K61,2),BE61,0)) -> 0 | CC61: =+O61*KeyAssumptionsPriceControl_FO!X$15 -> 0 | CD61: =+P61*KeyAssumptionsPriceControl_FO!Y$15 -> 0 | CE61: =+Q61*KeyAssumptionsPriceControl_FO!Z$15 -> 0 | CF61: =+R61*KeyAssumptionsPriceControl_FO!AA$15 -> 0 | CG61: =+S61*KeyAssumptionsPriceControl_FO!AB$15 -> 0 | CH61: =+T61*KeyAssumptionsPriceControl_FO!AC$15 -> 0 | CI61: =+U61*KeyAssumptionsPriceControl_FO!AD$15 -> 0 | CJ61: =+V61*KeyAssumptionsPriceControl_FO!AE$15 -> 0 | CK61: =+W61*KeyAssumptionsPriceControl_FO!AF$15 -> 0 | CL61: =+X61*KeyAssumptionsPriceControl_FO!AG$15 -> 0 | CN61: 0 | CO61: 0 | CP61: 0 | CQ61: 0 | CR61: 0 | CS61: 0 | CT61: 0 | CU61: 0 | CV61: 0 | CW61: 0
C62: WTP Upgrades and Modernisation | E62: Urban Water | F62: Improvements / Compliance | G62: Treatment | H62: Capital Programs / Allocation | J62: Straight line | K62: Ongoing | L62: 55 | M62: 60 | O62: 0.15274983 | P62: 0.18849983 | Q62: 0.14999983 | R62: 0.14999983 | S62: 0.14999983 | T62: 0.14999983 | U62: 0.14999983 | V62: 0.14999983 | W62: 0.14999983 | X62: 0.14999983 | AV62: 0.15274983 | AW62: 0.18849983 | AX62: 0.14999983 | AY62: 0.14999983 | AZ62: 0.14999983 | BA62: 0.14999983 | BB62: 0.14999983 | BC62: 0.14999983 | BD62: 0.14999983 | BE62: 0.14999983 | BG62: 0.001388634818 | BH62: 0.004490904455 | BI62: 0.007568174091 | BJ62: 0.01029544373 | BK62: 0.01302271336 | BL62: 0.015749983 | BM62: 0.01847725264 | BN62: 0.02120452227 | BO62: 0.02393179191 | BP62: 0.02665906155 | BR62: =+IF($K62="Ongoing",AV62,IF(RIGHT($K62,2)=RIGHT(BR$39,2),SUM($AV62:AV62),0)+IF(RIGHT(BR$39,2)>RIGHT($K62,2),AV62,0)) -> 0.15274983 | BS62: =+IF($K62="Ongoing",AW62,IF(RIGHT($K62,2)=RIGHT(BS$39,2),SUM($AV62:AW62),0)+IF(RIGHT(BS$39,2)>RIGHT($K62,2),AW62,0)) -> 0.18849983 | BT62: =+IF($K62="Ongoing",AX62,IF(RIGHT($K62,2)=RIGHT(BT$39,2),SUM($AV62:AX62),0)+IF(RIGHT(BT$39,2)>RIGHT($K62,2),AX62,0)) -> 0.14999983 | BU62: =+IF($K62="Ongoing",AY62,IF(RIGHT($K62,2)=RIGHT(BU$39,2),SUM($AV62:AY62),0)+IF(RIGHT(BU$39,2)>RIGHT($K62,2),AY62,0)) -> 0.14999983 | BV62: =+IF($K62="Ongoing",AZ62,IF(RIGHT($K62,2)=RIGHT(BV$39,2),SUM($AV62:AZ62),0)+IF(RIGHT(BV$39,2)>RIGHT($K62,2),AZ62,0)) -> 0.14999983 | BW62: =+IF($K62="Ongoing",BA62,IF(RIGHT($K62,2)=RIGHT(BW$39,2),SUM($AV62:BA62),0)+IF(RIGHT(BW$39,2)>RIGHT($K62,2),BA62,0)) -> 0.14999983 | BX62: =+IF($K62="Ongoing",BB62,IF(RIGHT($K62,2)=RIGHT(BX$39,2),SUM($AV62:BB62),0)+IF(RIGHT(BX$39,2)>RIGHT($K62,2),BB62,0)) -> 0.14999983 | BY62: =+IF($K62="Ongoing",BC62,IF(RIGHT($K62,2)=RIGHT(BY$39,2),SUM($AV62:BC62),0)+IF(RIGHT(BY$39,2)>RIGHT($K62,2),BC62,0)) -> 0.14999983 | BZ62: =+IF($K62="Ongoing",BD62,IF(RIGHT($K62,2)=RIGHT(BZ$39,2),SUM($AV62:BD62),0)+IF(RIGHT(BZ$39,2)>RIGHT($K62,2),BD62,0)) -> 0.14999983 | CA62: =+IF($K62="Ongoing",BE62,IF(RIGHT($K62,2)=RIGHT(CA$39,2),SUM($AV62:BE62),0)+IF(RIGHT(CA$39,2)>RIGHT($K62,2),BE62,0)) -> 0.14999983 | CC62: =+O62*KeyAssumptionsPriceControl_FO!X$15 -> 0.1562630761 | CD62: =+P62*KeyAssumptionsPriceControl_FO!Y$15 -> 0.1972705386 | CE62: =+Q62*KeyAssumptionsPriceControl_FO!Z$15 -> 0.160589693 | CF62: =+R62*KeyAssumptionsPriceControl_FO!AA$15 -> 0.164283256 | CG62: =+S62*KeyAssumptionsPriceControl_FO!AB$15 -> 0.1680617709 | CH62: =+T62*KeyAssumptionsPriceControl_FO!AC$15 -> 0.1719271916 | CI62: =+U62*KeyAssumptionsPriceControl_FO!AD$15 -> 0.175881517 | CJ62: =+V62*KeyAssumptionsPriceControl_FO!AE$15 -> 0.1799267919 | CK62: =+W62*KeyAssumptionsPriceControl_FO!AF$15 -> 0.1840651081 | CL62: =+X62*KeyAssumptionsPriceControl_FO!AG$15 -> 0.1882986056 | CN62: 0.001302192301 | CO62: 0.004248305756 | CP62: 0.007230474353 | CQ62: 0.009937748929 | CR62: 0.01270729082 | CS62: 0.01554053217 | CT62: 0.01843893808 | CU62: 0.02140400732 | CV62: 0.02443727315 | CW62: 0.0275403041
C63: Major Project 3 Treated Water Supply (Kaniva, Moyston, Ultima and Elmhurst) | AV63: 0 | AW63: 0 | AX63: 0 | AY63: 0 | AZ63: 0 | BA63: 0 | BB63: 0 | BC63: 0 | BD63: 0 | BE63: 0 | BG63: 0 | BH63: 0 | BI63: 0 | BJ63: 0 | BK63: 0 | BL63: 0 | BM63: 0 | BN63: 0 | BO63: 0 | BP63: 0 | BR63: =+IF($K63="Ongoing",AV63,IF(RIGHT($K63,2)=RIGHT(BR$39,2),SUM($AV63:AV63),0)+IF(RIGHT(BR$39,2)>RIGHT($K63,2),AV63,0)) -> 0 | BS63: =+IF($K63="Ongoing",AW63,IF(RIGHT($K63,2)=RIGHT(BS$39,2),SUM($AV63:AW63),0)+IF(RIGHT(BS$39,2)>RIGHT($K63,2),AW63,0)) -> 0 | BT63: =+IF($K63="Ongoing",AX63,IF(RIGHT($K63,2)=RIGHT(BT$39,2),SUM($AV63:AX63),0)+IF(RIGHT(BT$39,2)>RIGHT($K63,2),AX63,0)) -> 0 | BU63: =+IF($K63="Ongoing",AY63,IF(RIGHT($K63,2)=RIGHT(BU$39,2),SUM($AV63:AY63),0)+IF(RIGHT(BU$39,2)>RIGHT($K63,2),AY63,0)) -> 0 | BV63: =+IF($K63="Ongoing",AZ63,IF(RIGHT($K63,2)=RIGHT(BV$39,2),SUM($AV63:AZ63),0)+IF(RIGHT(BV$39,2)>RIGHT($K63,2),AZ63,0)) -> 0 | BW63: =+IF($K63="Ongoing",BA63,IF(RIGHT($K63,2)=RIGHT(BW$39,2),SUM($AV63:BA63),0)+IF(RIGHT(BW$39,2)>RIGHT($K63,2),BA63,0)) -> 0 | BX63: =+IF($K63="Ongoing",BB63,IF(RIGHT($K63,2)=RIGHT(BX$39,2),SUM($AV63:BB63),0)+IF(RIGHT(BX$39,2)>RIGHT($K63,2),BB63,0)) -> 0 | BY63: =+IF($K63="Ongoing",BC63,IF(RIGHT($K63,2)=RIGHT(BY$39,2),SUM($AV63:BC63),0)+IF(RIGHT(BY$39,2)>RIGHT($K63,2),BC63,0)) -> 0 | BZ63: =+IF($K63="Ongoing",BD63,IF(RIGHT($K63,2)=RIGHT(BZ$39,2),SUM($AV63:BD63),0)+IF(RIGHT(BZ$39,2)>RIGHT($K63,2),BD63,0)) -> 0 | CA63: =+IF($K63="Ongoing",BE63,IF(RIGHT($K63,2)=RIGHT(CA$39,2),SUM($AV63:BE63),0)+IF(RIGHT(CA$39,2)>RIGHT($K63,2),BE63,0)) -> 0 | CC63: =+O63*KeyAssumptionsPriceControl_FO!X$15 -> 0 | CD63: =+P63*KeyAssumptionsPriceControl_FO!Y$15 -> 0 | CE63: =+Q63*KeyAssumptionsPriceControl_FO!Z$15 -> 0 | CF63: =+R63*KeyAssumptionsPriceControl_FO!AA$15 -> 0 | CG63: =+S63*KeyAssumptionsPriceControl_FO!AB$15 -> 0 | CH63: =+T63*KeyAssumptionsPriceControl_FO!AC$15 -> 0 | CI63: =+U63*KeyAssumptionsPriceControl_FO!AD$15 -> 0 | CJ63: =+V63*KeyAssumptionsPriceControl_FO!AE$15 -> 0 | CK63: =+W63*KeyAssumptionsPriceControl_FO!AF$15 -> 0 | CL63: =+X63*KeyAssumptionsPriceControl_FO!AG$15 -> 0 | CN63: 0 | CO63: 0 | CP63: 0 | CQ63: 0 | CR63: 0 | CS63: 0 | CT63: 0 | CU63: 0 | CV63: 0 | CW63: 0
C64: Major Project 10 Safe Drinking Water Act - Health Based Targets | AV64: 0 | AW64: 0 | AX64: 0 | AY64: 0 | AZ64: 0 | BA64: 0 | BB64: 0 | BC64: 0 | BD64: 0 | BE64: 0 | BG64: 0 | BH64: 0 | BI64: 0 | BJ64: 0 | BK64: 0 | BL64: 0 | BM64: 0 | BN64: 0 | BO64: 0 | BP64: 0 | BR64: =+IF($K64="Ongoing",AV64,IF(RIGHT($K64,2)=RIGHT(BR$39,2),SUM($AV64:AV64),0)+IF(RIGHT(BR$39,2)>RIGHT($K64,2),AV64,0)) -> 0 | BS64: =+IF($K64="Ongoing",AW64,IF(RIGHT($K64,2)=RIGHT(BS$39,2),SUM($AV64:AW64),0)+IF(RIGHT(BS$39,2)>RIGHT($K64,2),AW64,0)) -> 0 | BT64: =+IF($K64="Ongoing",AX64,IF(RIGHT($K64,2)=RIGHT(BT$39,2),SUM($AV64:AX64),0)+IF(RIGHT(BT$39,2)>RIGHT($K64,2),AX64,0)) -> 0 | BU64: =+IF($K64="Ongoing",AY64,IF(RIGHT($K64,2)=RIGHT(BU$39,2),SUM($AV64:AY64),0)+IF(RIGHT(BU$39,2)>RIGHT($K64,2),AY64,0)) -> 0 | BV64: =+IF($K64="Ongoing",AZ64,IF(RIGHT($K64,2)=RIGHT(BV$39,2),SUM($AV64:AZ64),0)+IF(RIGHT(BV$39,2)>RIGHT($K64,2),AZ64,0)) -> 0 | BW64: =+IF($K64="Ongoing",BA64,IF(RIGHT($K64,2)=RIGHT(BW$39,2),SUM($AV64:BA64),0)+IF(RIGHT(BW$39,2)>RIGHT($K64,2),BA64,0)) -> 0 | BX64: =+IF($K64="Ongoing",BB64,IF(RIGHT($K64,2)=RIGHT(BX$39,2),SUM($AV64:BB64),0)+IF(RIGHT(BX$39,2)>RIGHT($K64,2),BB64,0)) -> 0 | BY64: =+IF($K64="Ongoing",BC64,IF(RIGHT($K64,2)=RIGHT(BY$39,2),SUM($AV64:BC64),0)+IF(RIGHT(BY$39,2)>RIGHT($K64,2),BC64,0)) -> 0 | BZ64: =+IF($K64="Ongoing",BD64,IF(RIGHT($K64,2)=RIGHT(BZ$39,2),SUM($AV64:BD64),0)+IF(RIGHT(BZ$39,2)>RIGHT($K64,2),BD64,0)) -> 0 | CA64: =+IF($K64="Ongoing",BE64,IF(RIGHT($K64,2)=RIGHT(CA$39,2),SUM($AV64:BE64),0)+IF(RIGHT(CA$39,2)>RIGHT($K64,2),BE64,0)) -> 0 | CC64: =+O64*KeyAssumptionsPriceControl_FO!X$15 -> 0 | CD64: =+P64*KeyAssumptionsPriceControl_FO!Y$15 -> 0 | CE64: =+Q64*KeyAssumptionsPriceControl_FO!Z$15 -> 0 | CF64: =+R64*KeyAssumptionsPriceControl_FO!AA$15 -> 0 | CG64: =+S64*KeyAssumptionsPriceControl_FO!AB$15 -> 0 | CH64: =+T64*KeyAssumptionsPriceControl_FO!AC$15 -> 0 | CI64: =+U64*KeyAssumptionsPriceControl_FO!AD$15 -> 0 | CJ64: =+V64*KeyAssumptionsPriceControl_FO!AE$15 -> 0 | CK64: =+W64*KeyAssumptionsPriceControl_FO!AF$15 -> 0 | CL64: =+X64*KeyAssumptionsPriceControl_FO!AG$15 -> 0 | CN64: 0 | CO64: 0 | CP64: 0 | CQ64: 0 | CR64: 0 | CS64: 0 | CT64: 0 | CU64: 0 | CV64: 0 | CW64: 0
C65: Water Quality Upgrade - Nullawil | E65: Urban Water | F65: Improvements / Compliance | G65: Treatment | H65: Capital Programs / Allocation | J65: Straight line | K65: Ongoing | L65: 55 | M65: 60 | O65: 0 | P65: 0 | Q65: 0 | R65: 0 | S65: 0 | T65: 1.55628 | U65: 0 | V65: 0 | W65: 0 | X65: 0 | AV65: 0 | AW65: 0 | AX65: 0 | AY65: 0 | AZ65: 0 | BA65: 1.55628 | BB65: 0 | BC65: 0 | BD65: 0 | BE65: 0 | BG65: 0 | BH65: 0 | BI65: 0 | BJ65: 0 | BK65: 0 | BL65: 0.014148 | BM65: 0.028296 | BN65: 0.028296 | BO65: 0.028296 | BP65: 0.028296 | BR65: =+IF($K65="Ongoing",AV65,IF(RIGHT($K65,2)=RIGHT(BR$39,2),SUM($AV65:AV65),0)+IF(RIGHT(BR$39,2)>RIGHT($K65,2),AV65,0)) -> 0 | BS65: =+IF($K65="Ongoing",AW65,IF(RIGHT($K65,2)=RIGHT(BS$39,2),SUM($AV65:AW65),0)+IF(RIGHT(BS$39,2)>RIGHT($K65,2),AW65,0)) -> 0 | BT65: =+IF($K65="Ongoing",AX65,IF(RIGHT($K65,2)=RIGHT(BT$39,2),SUM($AV65:AX65),0)+IF(RIGHT(BT$39,2)>RIGHT($K65,2),AX65,0)) -> 0 | BU65: =+IF($K65="Ongoing",AY65,IF(RIGHT($K65,2)=RIGHT(BU$39,2),SUM($AV65:AY65),0)+IF(RIGHT(BU$39,2)>RIGHT($K65,2),AY65,0)) -> 0 | BV65: =+IF($K65="Ongoing",AZ65,IF(RIGHT($K65,2)=RIGHT(BV$39,2),SUM($AV65:AZ65),0)+IF(RIGHT(BV$39,2)>RIGHT($K65,2),AZ65,0)) -> 0 | BW65: =+IF($K65="Ongoing",BA65,IF(RIGHT($K65,2)=RIGHT(BW$39,2),SUM($AV65:BA65),0)+IF(RIGHT(BW$39,2)>RIGHT($K65,2),BA65,0)) -> 1.55628 | BX65: =+IF($K65="Ongoing",BB65,IF(RIGHT($K65,2)=RIGHT(BX$39,2),SUM($AV65:BB65),0)+IF(RIGHT(BX$39,2)>RIGHT($K65,2),BB65,0)) -> 0 | BY65: =+IF($K65="Ongoing",BC65,IF(RIGHT($K65,2)=RIGHT(BY$39,2),SUM($AV65:BC65),0)+IF(RIGHT(BY$39,2)>RIGHT($K65,2),BC65,0)) -> 0 | BZ65: =+IF($K65="Ongoing",BD65,IF(RIGHT($K65,2)=RIGHT(BZ$39,2),SUM($AV65:BD65),0)+IF(RIGHT(BZ$39,2)>RIGHT($K65,2),BD65,0)) -> 0 | CA65: =+IF($K65="Ongoing",BE65,IF(RIGHT($K65,2)=RIGHT(CA$39,2),SUM($AV65:BE65),0)+IF(RIGHT(CA$39,2)>RIGHT($K65,2),BE65,0)) -> 0 | CC65: =+O65*KeyAssumptionsPriceControl_FO!X$15 -> 0 | CD65: =+P65*KeyAssumptionsPriceControl_FO!Y$15 -> 0 | CE65: =+Q65*KeyAssumptionsPriceControl_FO!Z$15 -> 0 | CF65: =+R65*KeyAssumptionsPriceControl_FO!AA$15 -> 0 | CG65: =+S65*KeyAssumptionsPriceControl_FO!AB$15 -> 0 | CH65: =+T65*KeyAssumptionsPriceControl_FO!AC$15 -> 1.78378102 | CI65: =+U65*KeyAssumptionsPriceControl_FO!AD$15 -> 0 | CJ65: =+V65*KeyAssumptionsPriceControl_FO!AE$15 -> 0 | CK65: =+W65*KeyAssumptionsPriceControl_FO!AF$15 -> 0 | CL65: =+X65*KeyAssumptionsPriceControl_FO!AG$15 -> 0 | CN65: 0 | CO65: 0 | CP65: 0 | CQ65: 0 | CR65: 0 | CS65: 0.01486484183 | CT65: 0.02972968367 | CU65: 0.02972968367 | CV65: 0.02972968367 | CW65: 0.02972968367
C66: Water Quality Upgrade - Brim | E66: Urban Water | F66: Improvements / Compliance | G66: Treatment | H66: Capital Programs / Allocation | J66: Straight line | K66: Ongoing | L66: 55 | M66: 60 | O66: 0 | P66: 0 | Q66: 0 | R66: 0 | S66: 0 | T66: 0 | U66: 0 | V66: 0 | W66: 0 | X66: 0 | AV66: 0 | AW66: 0 | AX66: 0 | AY66: 0 | AZ66: 0 | BA66: 0 | BB66: 0 | BC66: 0 | BD66: 0 | BE66: 0 | BG66: 0 | BH66: 0 | BI66: 0 | BJ66: 0 | BK66: 0 | BL66: 0 | BM66: 0 | BN66: 0 | BO66: 0 | BP66: 0 | BR66: =+IF($K66="Ongoing",AV66,IF(RIGHT($K66,2)=RIGHT(BR$39,2),SUM($AV66:AV66),0)+IF(RIGHT(BR$39,2)>RIGHT($K66,2),AV66,0)) -> 0 | BS66: =+IF($K66="Ongoing",AW66,IF(RIGHT($K66,2)=RIGHT(BS$39,2),SUM($AV66:AW66),0)+IF(RIGHT(BS$39,2)>RIGHT($K66,2),AW66,0)) -> 0 | BT66: =+IF($K66="Ongoing",AX66,IF(RIGHT($K66,2)=RIGHT(BT$39,2),SUM($AV66:AX66),0)+IF(RIGHT(BT$39,2)>RIGHT($K66,2),AX66,0)) -> 0 | BU66: =+IF($K66="Ongoing",AY66,IF(RIGHT($K66,2)=RIGHT(BU$39,2),SUM($AV66:AY66),0)+IF(RIGHT(BU$39,2)>RIGHT($K66,2),AY66,0)) -> 0 | BV66: =+IF($K66="Ongoing",AZ66,IF(RIGHT($K66,2)=RIGHT(BV$39,2),SUM($AV66:AZ66),0)+IF(RIGHT(BV$39,2)>RIGHT($K66,2),AZ66,0)) -> 0 | BW66: =+IF($K66="Ongoing",BA66,IF(RIGHT($K66,2)=RIGHT(BW$39,2),SUM($AV66:BA66),0)+IF(RIGHT(BW$39,2)>RIGHT($K66,2),BA66,0)) -> 0 | BX66: =+IF($K66="Ongoing",BB66,IF(RIGHT($K66,2)=RIGHT(BX$39,2),SUM($AV66:BB66),0)+IF(RIGHT(BX$39,2)>RIGHT($K66,2),BB66,0)) -> 0 | BY66: =+IF($K66="Ongoing",BC66,IF(RIGHT($K66,2)=RIGHT(BY$39,2),SUM($AV66:BC66),0)+IF(RIGHT(BY$39,2)>RIGHT($K66,2),BC66,0)) -> 0 | BZ66: =+IF($K66="Ongoing",BD66,IF(RIGHT($K66,2)=RIGHT(BZ$39,2),SUM($AV66:BD66),0)+IF(RIGHT(BZ$39,2)>RIGHT($K66,2),BD66,0)) -> 0 | CA66: =+IF($K66="Ongoing",BE66,IF(RIGHT($K66,2)=RIGHT(CA$39,2),SUM($AV66:BE66),0)+IF(RIGHT(CA$39,2)>RIGHT($K66,2),BE66,0)) -> 0 | CC66: =+O66*KeyAssumptionsPriceControl_FO!X$15 -> 0 | CD66: =+P66*KeyAssumptionsPriceControl_FO!Y$15 -> 0 | CE66: =+Q66*KeyAssumptionsPriceControl_FO!Z$15 -> 0 | CF66: =+R66*KeyAssumptionsPriceControl_FO!AA$15 -> 0 | CG66: =+S66*KeyAssumptionsPriceControl_FO!AB$15 -> 0 | CH66: =+T66*KeyAssumptionsPriceControl_FO!AC$15 -> 0 | CI66: =+U66*KeyAssumptionsPriceControl_FO!AD$15 -> 0 | CJ66: =+V66*KeyAssumptionsPriceControl_FO!AE$15 -> 0 | CK66: =+W66*KeyAssumptionsPriceControl_FO!AF$15 -> 0 | CL66: =+X66*KeyAssumptionsPriceControl_FO!AG$15 -> 0 | CN66: 0 | CO66: 0 | CP66: 0 | CQ66: 0 | CR66: 0 | CS66: 0 | CT66: 0 | CU66: 0 | CV66: 0 | CW66: 0
C67: Water Quality Upgrade - Lalbert | E67: Urban Water | F67: Improvements / Compliance | G67: Treatment | H67: Capital Programs / Allocation | J67: Straight line | K67: Ongoing | L67: 55 | M67: 60 | O67: 0 | P67: 0 | Q67: 0 | R67: 0 | S67: 0 | T67: 1.55628 | U67: 0 | V67: 0 | W67: 0 | X67: 0 | AV67: 0 | AW67: 0 | AX67: 0 | AY67: 0 | AZ67: 0 | BA67: 1.55628 | BB67: 0 | BC67: 0 | BD67: 0 | BE67: 0 | BG67: 0 | BH67: 0 | BI67: 0 | BJ67: 0 | BK67: 0 | BL67: 0.014148 | BM67: 0.028296 | BN67: 0.028296 | BO67: 0.028296 | BP67: 0.028296 | BR67: =+IF($K67="Ongoing",AV67,IF(RIGHT($K67,2)=RIGHT(BR$39,2),SUM($AV67:AV67),0)+IF(RIGHT(BR$39,2)>RIGHT($K67,2),AV67,0)) -> 0 | BS67: =+IF($K67="Ongoing",AW67,IF(RIGHT($K67,2)=RIGHT(BS$39,2),SUM($AV67:AW67),0)+IF(RIGHT(BS$39,2)>RIGHT($K67,2),AW67,0)) -> 0 | BT67: =+IF($K67="Ongoing",AX67,IF(RIGHT($K67,2)=RIGHT(BT$39,2),SUM($AV67:AX67),0)+IF(RIGHT(BT$39,2)>RIGHT($K67,2),AX67,0)) -> 0 | BU67: =+IF($K67="Ongoing",AY67,IF(RIGHT($K67,2)=RIGHT(BU$39,2),SUM($AV67:AY67),0)+IF(RIGHT(BU$39,2)>RIGHT($K67,2),AY67,0)) -> 0 | BV67: =+IF($K67="Ongoing",AZ67,IF(RIGHT($K67,2)=RIGHT(BV$39,2),SUM($AV67:AZ67),0)+IF(RIGHT(BV$39,2)>RIGHT($K67,2),AZ67,0)) -> 0 | BW67: =+IF($K67="Ongoing",BA67,IF(RIGHT($K67,2)=RIGHT(BW$39,2),SUM($AV67:BA67),0)+IF(RIGHT(BW$39,2)>RIGHT($K67,2),BA67,0)) -> 1.55628 | BX67: =+IF($K67="Ongoing",BB67,IF(RIGHT($K67,2)=RIGHT(BX$39,2),SUM($AV67:BB67),0)+IF(RIGHT(BX$39,2)>RIGHT($K67,2),BB67,0)) -> 0 | BY67: =+IF($K67="Ongoing",BC67,IF(RIGHT($K67,2)=RIGHT(BY$39,2),SUM($AV67:BC67),0)+IF(RIGHT(BY$39,2)>RIGHT($K67,2),BC67,0)) -> 0 | BZ67: =+IF($K67="Ongoing",BD67,IF(RIGHT($K67,2)=RIGHT(BZ$39,2),SUM($AV67:BD67),0)+IF(RIGHT(BZ$39,2)>RIGHT($K67,2),BD67,0)) -> 0 | CA67: =+IF($K67="Ongoing",BE67,IF(RIGHT($K67,2)=RIGHT(CA$39,2),SUM($AV67:BE67),0)+IF(RIGHT(CA$39,2)>RIGHT($K67,2),BE67,0)) -> 0 | CC67: =+O67*KeyAssumptionsPriceControl_FO!X$15 -> 0 | CD67: =+P67*KeyAssumptionsPriceControl_FO!Y$15 -> 0 | CE67: =+Q67*KeyAssumptionsPriceControl_FO!Z$15 -> 0 | CF67: =+R67*KeyAssumptionsPriceControl_FO!AA$15 -> 0 | CG67: =+S67*KeyAssumptionsPriceControl_FO!AB$15 -> 0 | CH67: =+T67*KeyAssumptionsPriceControl_FO!AC$15 -> 1.78378102 | CI67: =+U67*KeyAssumptionsPriceControl_FO!AD$15 -> 0 | CJ67: =+V67*KeyAssumptionsPriceControl_FO!AE$15 -> 0 | CK67: =+W67*KeyAssumptionsPriceControl_FO!AF$15 -> 0 | CL67: =+X67*KeyAssumptionsPriceControl_FO!AG$15 -> 0 | CN67: 0 | CO67: 0 | CP67: 0 | CQ67: 0 | CR67: 0 | CS67: 0.01486484183 | CT67: 0.02972968367 | CU67: 0.02972968367 | CV67: 0.02972968367 | CW67: 0.02972968367
C68: Water Quality Upgrade - Beulah | E68: Urban Water | F68: Improvements / Compliance | G68: Treatment | H68: Capital Programs / Allocation | J68: Straight line | K68: Ongoing | L68: 55 | M68: 60 | O68: 0.498 | P68: 0 | Q68: 0 | R68: 0 | S68: 0 | T68: 0 | U68: 0 | V68: 0 | W68: 0 | X68: 0 | AV68: 0.498 | AW68: 0 | AX68: 0 | AY68: 0 | AZ68: 0 | BA68: 0 | BB68: 0 | BC68: 0 | BD68: 0 | BE68: 0 | BG68: 0.004527272727 | BH68: 0.009054545455 | BI68: 0.009054545455 | BJ68: 0.009054545455 | BK68: 0.009054545455 | BL68: 0.009054545455 | BM68: 0.009054545455 | BN68: 0.009054545455 | BO68: 0.009054545455 | BP68: 0.009054545455 | BR68: =+IF($K68="Ongoing",AV68,IF(RIGHT($K68,2)=RIGHT(BR$39,2),SUM($AV68:AV68),0)+IF(RIGHT(BR$39,2)>RIGHT($K68,2),AV68,0)) -> 0.498 | BS68: =+IF($K68="Ongoing",AW68,IF(RIGHT($K68,2)=RIGHT(BS$39,2),SUM($AV68:AW68),0)+IF(RIGHT(BS$39,2)>RIGHT($K68,2),AW68,0)) -> 0 | BT68: =+IF($K68="Ongoing",AX68,IF(RIGHT($K68,2)=RIGHT(BT$39,2),SUM($AV68:AX68),0)+IF(RIGHT(BT$39,2)>RIGHT($K68,2),AX68,0)) -> 0 | BU68: =+IF($K68="Ongoing",AY68,IF(RIGHT($K68,2)=RIGHT(BU$39,2),SUM($AV68:AY68),0)+IF(RIGHT(BU$39,2)>RIGHT($K68,2),AY68,0)) -> 0 | BV68: =+IF($K68="Ongoing",AZ68,IF(RIGHT($K68,2)=RIGHT(BV$39,2),SUM($AV68:AZ68),0)+IF(RIGHT(BV$39,2)>RIGHT($K68,2),AZ68,0)) -> 0 | BW68: =+IF($K68="Ongoing",BA68,IF(RIGHT($K68,2)=RIGHT(BW$39,2),SUM($AV68:BA68),0)+IF(RIGHT(BW$39,2)>RIGHT($K68,2),BA68,0)) -> 0 | BX68: =+IF($K68="Ongoing",BB68,IF(RIGHT($K68,2)=RIGHT(BX$39,2),SUM($AV68:BB68),0)+IF(RIGHT(BX$39,2)>RIGHT($K68,2),BB68,0)) -> 0 | BY68: =+IF($K68="Ongoing",BC68,IF(RIGHT($K68,2)=RIGHT(BY$39,2),SUM($AV68:BC68),0)+IF(RIGHT(BY$39,2)>RIGHT($K68,2),BC68,0)) -> 0 | BZ68: =+IF($K68="Ongoing",BD68,IF(RIGHT($K68,2)=RIGHT(BZ$39,2),SUM($AV68:BD68),0)+IF(RIGHT(BZ$39,2)>RIGHT($K68,2),BD68,0)) -> 0 | CA68: =+IF($K68="Ongoing",BE68,IF(RIGHT($K68,2)=RIGHT(CA$39,2),SUM($AV68:BE68),0)+IF(RIGHT(CA$39,2)>RIGHT($K68,2),BE68,0)) -> 0 | CC68: =+O68*KeyAssumptionsPriceControl_FO!X$15 -> 0.509454 | CD68: =+P68*KeyAssumptionsPriceControl_FO!Y$15 -> 0 | CE68: =+Q68*KeyAssumptionsPriceControl_FO!Z$15 -> 0 | CF68: =+R68*KeyAssumptionsPriceControl_FO!AA$15 -> 0 | CG68: =+S68*KeyAssumptionsPriceControl_FO!AB$15 -> 0 | CH68: =+T68*KeyAssumptionsPriceControl_FO!AC$15 -> 0 | CI68: =+U68*KeyAssumptionsPriceControl_FO!AD$15 -> 0 | CJ68: =+V68*KeyAssumptionsPriceControl_FO!AE$15 -> 0 | CK68: =+W68*KeyAssumptionsPriceControl_FO!AF$15 -> 0 | CL68: =+X68*KeyAssumptionsPriceControl_FO!AG$15 -> 0 | CN68: 0.00424545 | CO68: 0.0084909 | CP68: 0.0084909 | CQ68: 0.0084909 | CR68: 0.0084909 | CS68: 0.0084909 | CT68: 0.0084909 | CU68: 0.0084909 | CV68: 0.0084909 | CW68: 0.0084909
C69: Water Quality Upgrade - Woomelang | E69: Urban Water | F69: Improvements / Compliance | G69: Treatment | H69: Capital Programs / Allocation | J69: Straight line | K69: Ongoing | L69: 55 | M69: 60 | O69: 0 | P69: 0 | Q69: 0 | R69: 0 | S69: 0 | T69: 0 | U69: 0 | V69: 0 | W69: 0 | X69: 0 | AV69: 0 | AW69: 0 | AX69: 0 | AY69: 0 | AZ69: 0 | BA69: 0 | BB69: 0 | BC69: 0 | BD69: 0 | BE69: 0 | BG69: 0 | BH69: 0 | BI69: 0 | BJ69: 0 | BK69: 0 | BL69: 0 | BM69: 0 | BN69: 0 | BO69: 0 | BP69: 0 | BR69: =+IF($K69="Ongoing",AV69,IF(RIGHT($K69,2)=RIGHT(BR$39,2),SUM($AV69:AV69),0)+IF(RIGHT(BR$39,2)>RIGHT($K69,2),AV69,0)) -> 0 | BS69: =+IF($K69="Ongoing",AW69,IF(RIGHT($K69,2)=RIGHT(BS$39,2),SUM($AV69:AW69),0)+IF(RIGHT(BS$39,2)>RIGHT($K69,2),AW69,0)) -> 0 | BT69: =+IF($K69="Ongoing",AX69,IF(RIGHT($K69,2)=RIGHT(BT$39,2),SUM($AV69:AX69),0)+IF(RIGHT(BT$39,2)>RIGHT($K69,2),AX69,0)) -> 0 | BU69: =+IF($K69="Ongoing",AY69,IF(RIGHT($K69,2)=RIGHT(BU$39,2),SUM($AV69:AY69),0)+IF(RIGHT(BU$39,2)>RIGHT($K69,2),AY69,0)) -> 0 | BV69: =+IF($K69="Ongoing",AZ69,IF(RIGHT($K69,2)=RIGHT(BV$39,2),SUM($AV69:AZ69),0)+IF(RIGHT(BV$39,2)>RIGHT($K69,2),AZ69,0)) -> 0 | BW69: =+IF($K69="Ongoing",BA69,IF(RIGHT($K69,2)=RIGHT(BW$39,2),SUM($AV69:BA69),0)+IF(RIGHT(BW$39,2)>RIGHT($K69,2),BA69,0)) -> 0 | BX69: =+IF($K69="Ongoing",BB69,IF(RIGHT($K69,2)=RIGHT(BX$39,2),SUM($AV69:BB69),0)+IF(RIGHT(BX$39,2)>RIGHT($K69,2),BB69,0)) -> 0 | BY69: =+IF($K69="Ongoing",BC69,IF(RIGHT($K69,2)=RIGHT(BY$39,2),SUM($AV69:BC69),0)+IF(RIGHT(BY$39,2)>RIGHT($K69,2),BC69,0)) -> 0 | BZ69: =+IF($K69="Ongoing",BD69,IF(RIGHT($K69,2)=RIGHT(BZ$39,2),SUM($AV69:BD69),0)+IF(RIGHT(BZ$39,2)>RIGHT($K69,2),BD69,0)) -> 0 | CA69: =+IF($K69="Ongoing",BE69,IF(RIGHT($K69,2)=RIGHT(CA$39,2),SUM($AV69:BE69),0)+IF(RIGHT(CA$39,2)>RIGHT($K69,2),BE69,0)) -> 0 | CC69: =+O69*KeyAssumptionsPriceControl_FO!X$15 -> 0 | CD69: =+P69*KeyAssumptionsPriceControl_FO!Y$15 -> 0 | CE69: =+Q69*KeyAssumptionsPriceControl_FO!Z$15 -> 0 | CF69: =+R69*KeyAssumptionsPriceControl_FO!AA$15 -> 0 | CG69: =+S69*KeyAssumptionsPriceControl_FO!AB$15 -> 0 | CH69: =+T69*KeyAssumptionsPriceControl_FO!AC$15 -> 0 | CI69: =+U69*KeyAssumptionsPriceControl_FO!AD$15 -> 0 | CJ69: =+V69*KeyAssumptionsPriceControl_FO!AE$15 -> 0 | CK69: =+W69*KeyAssumptionsPriceControl_FO!AF$15 -> 0 | CL69: =+X69*KeyAssumptionsPriceControl_FO!AG$15 -> 0 | CN69: 0 | CO69: 0 | CP69: 0 | CQ69: 0 | CR69: 0 | CS69: 0 | CT69: 0 | CU69: 0 | CV69: 0 | CW69: 0
C70: Water Treatment - Sea Lake | E70: Urban Water | F70: Improvements / Compliance | G70: Treatment | H70: Capital Programs / Allocation | J70: Straight line | K70: Ongoing | L70: 55 | M70: 60 | O70: 0 | P70: 0 | Q70: 0 | R70: 0 | S70: 0 | T70: 0 | U70: 0 | V70: 0 | W70: 0 | X70: 0 | AV70: 0 | AW70: 0 | AX70: 0 | AY70: 0 | AZ70: 0 | BA70: 0 | BB70: 0 | BC70: 0 | BD70: 0 | BE70: 0 | BG70: 0 | BH70: 0 | BI70: 0 | BJ70: 0 | BK70: 0 | BL70: 0 | BM70: 0 | BN70: 0 | BO70: 0 | BP70: 0 | BR70: =+IF($K70="Ongoing",AV70,IF(RIGHT($K70,2)=RIGHT(BR$39,2),SUM($AV70:AV70),0)+IF(RIGHT(BR$39,2)>RIGHT($K70,2),AV70,0)) -> 0 | BS70: =+IF($K70="Ongoing",AW70,IF(RIGHT($K70,2)=RIGHT(BS$39,2),SUM($AV70:AW70),0)+IF(RIGHT(BS$39,2)>RIGHT($K70,2),AW70,0)) -> 0 | BT70: =+IF($K70="Ongoing",AX70,IF(RIGHT($K70,2)=RIGHT(BT$39,2),SUM($AV70:AX70),0)+IF(RIGHT(BT$39,2)>RIGHT($K70,2),AX70,0)) -> 0 | BU70: =+IF($K70="Ongoing",AY70,IF(RIGHT($K70,2)=RIGHT(BU$39,2),SUM($AV70:AY70),0)+IF(RIGHT(BU$39,2)>RIGHT($K70,2),AY70,0)) -> 0 | BV70: =+IF($K70="Ongoing",AZ70,IF(RIGHT($K70,2)=RIGHT(BV$39,2),SUM($AV70:AZ70),0)+IF(RIGHT(BV$39,2)>RIGHT($K70,2),AZ70,0)) -> 0 | BW70: =+IF($K70="Ongoing",BA70,IF(RIGHT($K70,2)=RIGHT(BW$39,2),SUM($AV70:BA70),0)+IF(RIGHT(BW$39,2)>RIGHT($K70,2),BA70,0)) -> 0 | BX70: =+IF($K70="Ongoing",BB70,IF(RIGHT($K70,2)=RIGHT(BX$39,2),SUM($AV70:BB70),0)+IF(RIGHT(BX$39,2)>RIGHT($K70,2),BB70,0)) -> 0 | BY70: =+IF($K70="Ongoing",BC70,IF(RIGHT($K70,2)=RIGHT(BY$39,2),SUM($AV70:BC70),0)+IF(RIGHT(BY$39,2)>RIGHT($K70,2),BC70,0)) -> 0 | BZ70: =+IF($K70="Ongoing",BD70,IF(RIGHT($K70,2)=RIGHT(BZ$39,2),SUM($AV70:BD70),0)+IF(RIGHT(BZ$39,2)>RIGHT($K70,2),BD70,0)) -> 0 | CA70: =+IF($K70="Ongoing",BE70,IF(RIGHT($K70,2)=RIGHT(CA$39,2),SUM($AV70:BE70),0)+IF(RIGHT(CA$39,2)>RIGHT($K70,2),BE70,0)) -> 0 | CC70: =+O70*KeyAssumptionsPriceControl_FO!X$15 -> 0 | CD70: =+P70*KeyAssumptionsPriceControl_FO!Y$15 -> 0 | CE70: =+Q70*KeyAssumptionsPriceControl_FO!Z$15 -> 0 | CF70: =+R70*KeyAssumptionsPriceControl_FO!AA$15 -> 0 | CG70: =+S70*KeyAssumptionsPriceControl_FO!AB$15 -> 0 | CH70: =+T70*KeyAssumptionsPriceControl_FO!AC$15 -> 0 | CI70: =+U70*KeyAssumptionsPriceControl_FO!AD$15 -> 0 | CJ70: =+V70*KeyAssumptionsPriceControl_FO!AE$15 -> 0 | CK70: =+W70*KeyAssumptionsPriceControl_FO!AF$15 -> 0 | CL70: =+X70*KeyAssumptionsPriceControl_FO!AG$15 -> 0 | CN70: 0 | CO70: 0 | CP70: 0 | CQ70: 0 | CR70: 0 | CS70: 0 | CT70: 0 | CU70: 0 | CV70: 0 | CW70: 0
C71: Warracknabeal Clear Water Storage | E71: Urban Water | F71: Improvements / Compliance | G71: Treatment | H71: Capital Programs / Allocation | J71: Straight line | K71: Ongoing | L71: 55 | M71: 60 | O71: 1.255 | P71: 0 | Q71: 0 | R71: 0 | S71: 0 | T71: 0 | U71: 0 | V71: 0 | W71: 0 | X71: 0 | AV71: 1.255 | AW71: 0 | AX71: 0 | AY71: 0 | AZ71: 0 | BA71: 0 | BB71: 0 | BC71: 0 | BD71: 0 | BE71: 0 | BG71: 0.01140909091 | BH71: 0.02281818182 | BI71: 0.02281818182 | BJ71: 0.02281818182 | BK71: 0.02281818182 | BL71: 0.02281818182 | BM71: 0.02281818182 | BN71: 0.02281818182 | BO71: 0.02281818182 | BP71: 0.02281818182 | BR71: =+IF($K71="Ongoing",AV71,IF(RIGHT($K71,2)=RIGHT(BR$39,2),SUM($AV71:AV71),0)+IF(RIGHT(BR$39,2)>RIGHT($K71,2),AV71,0)) -> 1.255 | BS71: =+IF($K71="Ongoing",AW71,IF(RIGHT($K71,2)=RIGHT(BS$39,2),SUM($AV71:AW71),0)+IF(RIGHT(BS$39,2)>RIGHT($K71,2),AW71,0)) -> 0 | BT71: =+IF($K71="Ongoing",AX71,IF(RIGHT($K71,2)=RIGHT(BT$39,2),SUM($AV71:AX71),0)+IF(RIGHT(BT$39,2)>RIGHT($K71,2),AX71,0)) -> 0 | BU71: =+IF($K71="Ongoing",AY71,IF(RIGHT($K71,2)=RIGHT(BU$39,2),SUM($AV71:AY71),0)+IF(RIGHT(BU$39,2)>RIGHT($K71,2),AY71,0)) -> 0 | BV71: =+IF($K71="Ongoing",AZ71,IF(RIGHT($K71,2)=RIGHT(BV$39,2),SUM($AV71:AZ71),0)+IF(RIGHT(BV$39,2)>RIGHT($K71,2),AZ71,0)) -> 0 | BW71: =+IF($K71="Ongoing",BA71,IF(RIGHT($K71,2)=RIGHT(BW$39,2),SUM($AV71:BA71),0)+IF(RIGHT(BW$39,2)>RIGHT($K71,2),BA71,0)) -> 0 | BX71: =+IF($K71="Ongoing",BB71,IF(RIGHT($K71,2)=RIGHT(BX$39,2),SUM($AV71:BB71),0)+IF(RIGHT(BX$39,2)>RIGHT($K71,2),BB71,0)) -> 0 | BY71: =+IF($K71="Ongoing",BC71,IF(RIGHT($K71,2)=RIGHT(BY$39,2),SUM($AV71:BC71),0)+IF(RIGHT(BY$39,2)>RIGHT($K71,2),BC71,0)) -> 0 | BZ71: =+IF($K71="Ongoing",BD71,IF(RIGHT($K71,2)=RIGHT(BZ$39,2),SUM($AV71:BD71),0)+IF(RIGHT(BZ$39,2)>RIGHT($K71,2),BD71,0)) -> 0 | CA71: =+IF($K71="Ongoing",BE71,IF(RIGHT($K71,2)=RIGHT(CA$39,2),SUM($AV71:BE71),0)+IF(RIGHT(CA$39,2)>RIGHT($K71,2),BE71,0)) -> 0 | CC71: =+O71*KeyAssumptionsPriceControl_FO!X$15 -> 1.283865 | CD71: =+P71*KeyAssumptionsPriceControl_FO!Y$15 -> 0 | CE71: =+Q71*KeyAssumptionsPriceControl_FO!Z$15 -> 0 | CF71: =+R71*KeyAssumptionsPriceControl_FO!AA$15 -> 0 | CG71: =+S71*KeyAssumptionsPriceControl_FO!AB$15 -> 0 | CH71: =+T71*KeyAssumptionsPriceControl_FO!AC$15 -> 0 | CI71: =+U71*KeyAssumptionsPriceControl_FO!AD$15 -> 0 | CJ71: =+V71*KeyAssumptionsPriceControl_FO!AE$15 -> 0 | CK71: =+W71*KeyAssumptionsPriceControl_FO!AF$15 -> 0 | CL71: =+X71*KeyAssumptionsPriceControl_FO!AG$15 -> 0 | CN71: 0.010698875 | CO71: 0.02139775 | CP71: 0.02139775 | CQ71: 0.02139775 | CR71: 0.02139775 | CS71: 0.02139775 | CT71: 0.02139775 | CU71: 0.02139775 | CV71: 0.02139775 | CW71: 0.02139775
C72: Wastewater Treatment Facility Metering | E72: Sewerage | F72: Improvements / Compliance | G72: Corporate | H72: Capital Programs / Allocation | J72: Straight line | K72: Ongoing | L72: 65 | M72: 80 | O72: 0.089175 | P72: 0 | Q72: 0 | R72: 0 | S72: 0 | T72: 0 | U72: 0 | V72: 0 | W72: 0 | X72: 0 | AV72: 0.089175 | AW72: 0 | AX72: 0 | AY72: 0 | AZ72: 0 | BA72: 0 | BB72: 0 | BC72: 0 | BD72: 0 | BE72: 0 | BG72: 0.0006859615385 | BH72: 0.001371923077 | BI72: 0.001371923077 | BJ72: 0.001371923077 | BK72: 0.001371923077 | BL72: 0.001371923077 | BM72: 0.001371923077 | BN72: 0.001371923077 | BO72: 0.001371923077 | BP72: 0.001371923077 | BR72: =+IF($K72="Ongoing",AV72,IF(RIGHT($K72,2)=RIGHT(BR$39,2),SUM($AV72:AV72),0)+IF(RIGHT(BR$39,2)>RIGHT($K72,2),AV72,0)) -> 0.089175 | BS72: =+IF($K72="Ongoing",AW72,IF(RIGHT($K72,2)=RIGHT(BS$39,2),SUM($AV72:AW72),0)+IF(RIGHT(BS$39,2)>RIGHT($K72,2),AW72,0)) -> 0 | BT72: =+IF($K72="Ongoing",AX72,IF(RIGHT($K72,2)=RIGHT(BT$39,2),SUM($AV72:AX72),0)+IF(RIGHT(BT$39,2)>RIGHT($K72,2),AX72,0)) -> 0 | BU72: =+IF($K72="Ongoing",AY72,IF(RIGHT($K72,2)=RIGHT(BU$39,2),SUM($AV72:AY72),0)+IF(RIGHT(BU$39,2)>RIGHT($K72,2),AY72,0)) -> 0 | BV72: =+IF($K72="Ongoing",AZ72,IF(RIGHT($K72,2)=RIGHT(BV$39,2),SUM($AV72:AZ72),0)+IF(RIGHT(BV$39,2)>RIGHT($K72,2),AZ72,0)) -> 0 | BW72: =+IF($K72="Ongoing",BA72,IF(RIGHT($K72,2)=RIGHT(BW$39,2),SUM($AV72:BA72),0)+IF(RIGHT(BW$39,2)>RIGHT($K72,2),BA72,0)) -> 0 | BX72: =+IF($K72="Ongoing",BB72,IF(RIGHT($K72,2)=RIGHT(BX$39,2),SUM($AV72:BB72),0)+IF(RIGHT(BX$39,2)>RIGHT($K72,2),BB72,0)) -> 0 | BY72: =+IF($K72="Ongoing",BC72,IF(RIGHT($K72,2)=RIGHT(BY$39,2),SUM($AV72:BC72),0)+IF(RIGHT(BY$39,2)>RIGHT($K72,2),BC72,0)) -> 0 | BZ72: =+IF($K72="Ongoing",BD72,IF(RIGHT($K72,2)=RIGHT(BZ$39,2),SUM($AV72:BD72),0)+IF(RIGHT(BZ$39,2)>RIGHT($K72,2),BD72,0)) -> 0 | CA72: =+IF($K72="Ongoing",BE72,IF(RIGHT($K72,2)=RIGHT(CA$39,2),SUM($AV72:BE72),0)+IF(RIGHT(CA$39,2)>RIGHT($K72,2),BE72,0)) -> 0 | CC72: =+O72*KeyAssumptionsPriceControl_FO!X$15 -> 0.091226025 | CD72: =+P72*KeyAssumptionsPriceControl_FO!Y$15 -> 0 | CE72: =+Q72*KeyAssumptionsPriceControl_FO!Z$15 -> 0 | CF72: =+R72*KeyAssumptionsPriceControl_FO!AA$15 -> 0 | CG72: =+S72*KeyAssumptionsPriceControl_FO!AB$15 -> 0 | CH72: =+T72*KeyAssumptionsPriceControl_FO!AC$15 -> 0 | CI72: =+U72*KeyAssumptionsPriceControl_FO!AD$15 -> 0 | CJ72: =+V72*KeyAssumptionsPriceControl_FO!AE$15 -> 0 | CK72: =+W72*KeyAssumptionsPriceControl_FO!AF$15 -> 0 | CL72: =+X72*KeyAssumptionsPriceControl_FO!AG$15 -> 0 | CN72: 0.0005701626563 | CO72: 0.001140325313 | CP72: 0.001140325313 | CQ72: 0.001140325313 | CR72: 0.001140325313 | CS72: 0.001140325313 | CT72: 0.001140325313 | CU72: 0.001140325313 | CV72: 0.001140325313 | CW72: 0.001140325313
C73: Major Project 4 Goroke Sewerage | AV73: 0 | AW73: 0 | AX73: 0 | AY73: 0 | AZ73: 0 | BA73: 0 | BB73: 0 | BC73: 0 | BD73: 0 | BE73: 0 | BG73: 0 | BH73: 0 | BI73: 0 | BJ73: 0 | BK73: 0 | BL73: 0 | BM73: 0 | BN73: 0 | BO73: 0 | BP73: 0 | BR73: =+IF($K73="Ongoing",AV73,IF(RIGHT($K73,2)=RIGHT(BR$39,2),SUM($AV73:AV73),0)+IF(RIGHT(BR$39,2)>RIGHT($K73,2),AV73,0)) -> 0 | BS73: =+IF($K73="Ongoing",AW73,IF(RIGHT($K73,2)=RIGHT(BS$39,2),SUM($AV73:AW73),0)+IF(RIGHT(BS$39,2)>RIGHT($K73,2),AW73,0)) -> 0 | BT73: =+IF($K73="Ongoing",AX73,IF(RIGHT($K73,2)=RIGHT(BT$39,2),SUM($AV73:AX73),0)+IF(RIGHT(BT$39,2)>RIGHT($K73,2),AX73,0)) -> 0 | BU73: =+IF($K73="Ongoing",AY73,IF(RIGHT($K73,2)=RIGHT(BU$39,2),SUM($AV73:AY73),0)+IF(RIGHT(BU$39,2)>RIGHT($K73,2),AY73,0)) -> 0 | BV73: =+IF($K73="Ongoing",AZ73,IF(RIGHT($K73,2)=RIGHT(BV$39,2),SUM($AV73:AZ73),0)+IF(RIGHT(BV$39,2)>RIGHT($K73,2),AZ73,0)) -> 0 | BW73: =+IF($K73="Ongoing",BA73,IF(RIGHT($K73,2)=RIGHT(BW$39,2),SUM($AV73:BA73),0)+IF(RIGHT(BW$39,2)>RIGHT($K73,2),BA73,0)) -> 0 | BX73: =+IF($K73="Ongoing",BB73,IF(RIGHT($K73,2)=RIGHT(BX$39,2),SUM($AV73:BB73),0)+IF(RIGHT(BX$39,2)>RIGHT($K73,2),BB73,0)) -> 0 | BY73: =+IF($K73="Ongoing",BC73,IF(RIGHT($K73,2)=RIGHT(BY$39,2),SUM($AV73:BC73),0)+IF(RIGHT(BY$39,2)>RIGHT($K73,2),BC73,0)) -> 0 | BZ73: =+IF($K73="Ongoing",BD73,IF(RIGHT($K73,2)=RIGHT(BZ$39,2),SUM($AV73:BD73),0)+IF(RIGHT(BZ$39,2)>RIGHT($K73,2),BD73,0)) -> 0 | CA73: =+IF($K73="Ongoing",BE73,IF(RIGHT($K73,2)=RIGHT(CA$39,2),SUM($AV73:BE73),0)+IF(RIGHT(CA$39,2)>RIGHT($K73,2),BE73,0)) -> 0 | CC73: =+O73*KeyAssumptionsPriceControl_FO!X$15 -> 0 | CD73: =+P73*KeyAssumptionsPriceControl_FO!Y$15 -> 0 | CE73: =+Q73*KeyAssumptionsPriceControl_FO!Z$15 -> 0 | CF73: =+R73*KeyAssumptionsPriceControl_FO!AA$15 -> 0 | CG73: =+S73*KeyAssumptionsPriceControl_FO!AB$15 -> 0 | CH73: =+T73*KeyAssumptionsPriceControl_FO!AC$15 -> 0 | CI73: =+U73*KeyAssumptionsPriceControl_FO!AD$15 -> 0 | CJ73: =+V73*KeyAssumptionsPriceControl_FO!AE$15 -> 0 | CK73: =+W73*KeyAssumptionsPriceControl_FO!AF$15 -> 0 | CL73: =+X73*KeyAssumptionsPriceControl_FO!AG$15 -> 0 | CN73: 0 | CO73: 0 | CP73: 0 | CQ73: 0 | CR73: 0 | CS73: 0 | CT73: 0 | CU73: 0 | CV73: 0 | CW73: 0
C74: Wastewater Treatment Facility Upgrades | E74: Sewerage | F74: Improvements / Compliance | G74: Headworks | H74: Capital Programs / Allocation | J74: Straight line | K74: Ongoing | L74: 65 | M74: 80 | O74: 0.20505361 | P74: 0.20505361 | Q74: 0.60505361 | R74: 0.20505361 | S74: 0.20505361 | T74: 0.20505361 | U74: 0.20505361 | V74: 0.20505361 | W74: 0.20505361 | X74: 0.20505361 | AV74: 0.20505361 | AW74: 0.20505361 | AX74: 0.60505361 | AY74: 0.20505361 | AZ74: 0.20505361 | BA74: 0.20505361 | BB74: 0.20505361 | BC74: 0.20505361 | BD74: 0.20505361 | BE74: 0.20505361 | BG74: 0.001577335462 | BH74: 0.004732006385 | BI74: 0.01096360038 | BJ74: 0.01719519438 | BK74: 0.02034986531 | BL74: 0.02350453623 | BM74: 0.02665920715 | BN74: 0.02981387808 | BO74: 0.032968549 | BP74: 0.03612321992 | BR74: =+IF($K74="Ongoing",AV74,IF(RIGHT($K74,2)=RIGHT(BR$39,2),SUM($AV74:AV74),0)+IF(RIGHT(BR$39,2)>RIGHT($K74,2),AV74,0)) -> 0.20505361 | BS74: =+IF($K74="Ongoing",AW74,IF(RIGHT($K74,2)=RIGHT(BS$39,2),SUM($AV74:AW74),0)+IF(RIGHT(BS$39,2)>RIGHT($K74,2),AW74,0)) -> 0.20505361 | BT74: =+IF($K74="Ongoing",AX74,IF(RIGHT($K74,2)=RIGHT(BT$39,2),SUM($AV74:AX74),0)+IF(RIGHT(BT$39,2)>RIGHT($K74,2),AX74,0)) -> 0.60505361 | BU74: =+IF($K74="Ongoing",AY74,IF(RIGHT($K74,2)=RIGHT(BU$39,2),SUM($AV74:AY74),0)+IF(RIGHT(BU$39,2)>RIGHT($K74,2),AY74,0)) -> 0.20505361 | BV74: =+IF($K74="Ongoing",AZ74,IF(RIGHT($K74,2)=RIGHT(BV$39,2),SUM($AV74:AZ74),0)+IF(RIGHT(BV$39,2)>RIGHT($K74,2),AZ74,0)) -> 0.20505361 | BW74: =+IF($K74="Ongoing",BA74,IF(RIGHT($K74,2)=RIGHT(BW$39,2),SUM($AV74:BA74),0)+IF(RIGHT(BW$39,2)>RIGHT($K74,2),BA74,0)) -> 0.20505361 | BX74: =+IF($K74="Ongoing",BB74,IF(RIGHT($K74,2)=RIGHT(BX$39,2),SUM($AV74:BB74),0)+IF(RIGHT(BX$39,2)>RIGHT($K74,2),BB74,0)) -> 0.20505361 | BY74: =+IF($K74="Ongoing",BC74,IF(RIGHT($K74,2)=RIGHT(BY$39,2),SUM($AV74:BC74),0)+IF(RIGHT(BY$39,2)>RIGHT($K74,2),BC74,0)) -> 0.20505361 | BZ74: =+IF($K74="Ongoing",BD74,IF(RIGHT($K74,2)=RIGHT(BZ$39,2),SUM($AV74:BD74),0)+IF(RIGHT(BZ$39,2)>RIGHT($K74,2),BD74,0)) -> 0.20505361 | CA74: =+IF($K74="Ongoing",BE74,IF(RIGHT($K74,2)=RIGHT(CA$39,2),SUM($AV74:BE74),0)+IF(RIGHT(CA$39,2)>RIGHT($K74,2),BE74,0)) -> 0.20505361 | CC74: =+O74*KeyAssumptionsPriceControl_FO!X$15 -> 0.209769843 | CD74: =+P74*KeyAssumptionsPriceControl_FO!Y$15 -> 0.2145945494 | CE74: =+Q74*KeyAssumptionsPriceControl_FO!Z$15 -> 0.6477698909 | CF74: =+R74*KeyAssumptionsPriceControl_FO!AA$15 -> 0.2245794192 | CG74: =+S74*KeyAssumptionsPriceControl_FO!AB$15 -> 0.2297447459 | CH74: =+T74*KeyAssumptionsPriceControl_FO!AC$15 -> 0.235028875 | CI74: =+U74*KeyAssumptionsPriceControl_FO!AD$15 -> 0.2404345391 | CJ74: =+V74*KeyAssumptionsPriceControl_FO!AE$15 -> 0.2459645335 | CK74: =+W74*KeyAssumptionsPriceControl_FO!AF$15 -> 0.2516217178 | CL74: =+X74*KeyAssumptionsPriceControl_FO!AG$15 -> 0.2574090173 | CN74: 0.001311061519 | CO74: 0.003963338972 | CP74: 0.009353116723 | CQ74: 0.01480529991 | CR74: 0.01764482594 | CS74: 0.02054966107 | CT74: 0.02352130741 | CU74: 0.02656130162 | CV74: 0.02967121569 | CW74: 0.03285265778
C75: Upgrade WWTP & Reuse System - Dimboola | E75: Sewerage | F75: Improvements / Compliance | G75: Treatment | H75: Capital Programs / Allocation | J75: Straight line | K75: Ongoing | L75: 65 | M75: 80 | O75: 0 | P75: 0 | Q75: 0 | R75: 0 | S75: 0 | T75: 0 | U75: 0 | V75: 0 | W75: 0 | X75: 0 | AV75: 0 | AW75: 0 | AX75: 0 | AY75: 0 | AZ75: 0 | BA75: 0 | BB75: 0 | BC75: 0 | BD75: 0 | BE75: 0 | BG75: 0 | BH75: 0 | BI75: 0 | BJ75: 0 | BK75: 0 | BL75: 0 | BM75: 0 | BN75: 0 | BO75: 0 | BP75: 0 | BR75: =+IF($K75="Ongoing",AV75,IF(RIGHT($K75,2)=RIGHT(BR$39,2),SUM($AV75:AV75),0)+IF(RIGHT(BR$39,2)>RIGHT($K75,2),AV75,0)) -> 0 | BS75: =+IF($K75="Ongoing",AW75,IF(RIGHT($K75,2)=RIGHT(BS$39,2),SUM($AV75:AW75),0)+IF(RIGHT(BS$39,2)>RIGHT($K75,2),AW75,0)) -> 0 | BT75: =+IF($K75="Ongoing",AX75,IF(RIGHT($K75,2)=RIGHT(BT$39,2),SUM($AV75:AX75),0)+IF(RIGHT(BT$39,2)>RIGHT($K75,2),AX75,0)) -> 0 | BU75: =+IF($K75="Ongoing",AY75,IF(RIGHT($K75,2)=RIGHT(BU$39,2),SUM($AV75:AY75),0)+IF(RIGHT(BU$39,2)>RIGHT($K75,2),AY75,0)) -> 0 | BV75: =+IF($K75="Ongoing",AZ75,IF(RIGHT($K75,2)=RIGHT(BV$39,2),SUM($AV75:AZ75),0)+IF(RIGHT(BV$39,2)>RIGHT($K75,2),AZ75,0)) -> 0 | BW75: =+IF($K75="Ongoing",BA75,IF(RIGHT($K75,2)=RIGHT(BW$39,2),SUM($AV75:BA75),0)+IF(RIGHT(BW$39,2)>RIGHT($K75,2),BA75,0)) -> 0 | BX75: =+IF($K75="Ongoing",BB75,IF(RIGHT($K75,2)=RIGHT(BX$39,2),SUM($AV75:BB75),0)+IF(RIGHT(BX$39,2)>RIGHT($K75,2),BB75,0)) -> 0 | BY75: =+IF($K75="Ongoing",BC75,IF(RIGHT($K75,2)=RIGHT(BY$39,2),SUM($AV75:BC75),0)+IF(RIGHT(BY$39,2)>RIGHT($K75,2),BC75,0)) -> 0 | BZ75: =+IF($K75="Ongoing",BD75,IF(RIGHT($K75,2)=RIGHT(BZ$39,2),SUM($AV75:BD75),0)+IF(RIGHT(BZ$39,2)>RIGHT($K75,2),BD75,0)) -> 0 | CA75: =+IF($K75="Ongoing",BE75,IF(RIGHT($K75,2)=RIGHT(CA$39,2),SUM($AV75:BE75),0)+IF(RIGHT(CA$39,2)>RIGHT($K75,2),BE75,0)) -> 0 | CC75: =+O75*KeyAssumptionsPriceControl_FO!X$15 -> 0 | CD75: =+P75*KeyAssumptionsPriceControl_FO!Y$15 -> 0 | CE75: =+Q75*KeyAssumptionsPriceControl_FO!Z$15 -> 0 | CF75: =+R75*KeyAssumptionsPriceControl_FO!AA$15 -> 0 | CG75: =+S75*KeyAssumptionsPriceControl_FO!AB$15 -> 0 | CH75: =+T75*KeyAssumptionsPriceControl_FO!AC$15 -> 0 | CI75: =+U75*KeyAssumptionsPriceControl_FO!AD$15 -> 0 | CJ75: =+V75*KeyAssumptionsPriceControl_FO!AE$15 -> 0 | CK75: =+W75*KeyAssumptionsPriceControl_FO!AF$15 -> 0 | CL75: =+X75*KeyAssumptionsPriceControl_FO!AG$15 -> 0 | CN75: 0 | CO75: 0 | CP75: 0 | CQ75: 0 | CR75: 0 | CS75: 0 | CT75: 0 | CU75: 0 | CV75: 0 | CW75: 0
C76: Major Project 9 Donald Wastewater Treatment Plant | AV76: 0 | AW76: 0 | AX76: 0 | AY76: 0 | AZ76: 0 | BA76: 0 | BB76: 0 | BC76: 0 | BD76: 0 | BE76: 0 | BG76: 0 | BH76: 0 | BI76: 0 | BJ76: 0 | BK76: 0 | BL76: 0 | BM76: 0 | BN76: 0 | BO76: 0 | BP76: 0 | BR76: =+IF($K76="Ongoing",AV76,IF(RIGHT($K76,2)=RIGHT(BR$39,2),SUM($AV76:AV76),0)+IF(RIGHT(BR$39,2)>RIGHT($K76,2),AV76,0)) -> 0 | BS76: =+IF($K76="Ongoing",AW76,IF(RIGHT($K76,2)=RIGHT(BS$39,2),SUM($AV76:AW76),0)+IF(RIGHT(BS$39,2)>RIGHT($K76,2),AW76,0)) -> 0 | BT76: =+IF($K76="Ongoing",AX76,IF(RIGHT($K76,2)=RIGHT(BT$39,2),SUM($AV76:AX76),0)+IF(RIGHT(BT$39,2)>RIGHT($K76,2),AX76,0)) -> 0 | BU76: =+IF($K76="Ongoing",AY76,IF(RIGHT($K76,2)=RIGHT(BU$39,2),SUM($AV76:AY76),0)+IF(RIGHT(BU$39,2)>RIGHT($K76,2),AY76,0)) -> 0 | BV76: =+IF($K76="Ongoing",AZ76,IF(RIGHT($K76,2)=RIGHT(BV$39,2),SUM($AV76:AZ76),0)+IF(RIGHT(BV$39,2)>RIGHT($K76,2),AZ76,0)) -> 0 | BW76: =+IF($K76="Ongoing",BA76,IF(RIGHT($K76,2)=RIGHT(BW$39,2),SUM($AV76:BA76),0)+IF(RIGHT(BW$39,2)>RIGHT($K76,2),BA76,0)) -> 0 | BX76: =+IF($K76="Ongoing",BB76,IF(RIGHT($K76,2)=RIGHT(BX$39,2),SUM($AV76:BB76),0)+IF(RIGHT(BX$39,2)>RIGHT($K76,2),BB76,0)) -> 0 | BY76: =+IF($K76="Ongoing",BC76,IF(RIGHT($K76,2)=RIGHT(BY$39,2),SUM($AV76:BC76),0)+IF(RIGHT(BY$39,2)>RIGHT($K76,2),BC76,0)) -> 0 | BZ76: =+IF($K76="Ongoing",BD76,IF(RIGHT($K76,2)=RIGHT(BZ$39,2),SUM($AV76:BD76),0)+IF(RIGHT(BZ$39,2)>RIGHT($K76,2),BD76,0)) -> 0 | CA76: =+IF($K76="Ongoing",BE76,IF(RIGHT($K76,2)=RIGHT(CA$39,2),SUM($AV76:BE76),0)+IF(RIGHT(CA$39,2)>RIGHT($K76,2),BE76,0)) -> 0 | CC76: =+O76*KeyAssumptionsPriceControl_FO!X$15 -> 0 | CD76: =+P76*KeyAssumptionsPriceControl_FO!Y$15 -> 0 | CE76: =+Q76*KeyAssumptionsPriceControl_FO!Z$15 -> 0 | CF76: =+R76*KeyAssumptionsPriceControl_FO!AA$15 -> 0 | CG76: =+S76*KeyAssumptionsPriceControl_FO!AB$15 -> 0 | CH76: =+T76*KeyAssumptionsPriceControl_FO!AC$15 -> 0 | CI76: =+U76*KeyAssumptionsPriceControl_FO!AD$15 -> 0 | CJ76: =+V76*KeyAssumptionsPriceControl_FO!AE$15 -> 0 | CK76: =+W76*KeyAssumptionsPriceControl_FO!AF$15 -> 0 | CL76: =+X76*KeyAssumptionsPriceControl_FO!AG$15 -> 0 | CN76: 0 | CO76: 0 | CP76: 0 | CQ76: 0 | CR76: 0 | CS76: 0 | CT76: 0 | CU76: 0 | CV76: 0 | CW76: 0
C77: Horsham WWTP Rebuild | E77: Sewerage | F77: Improvements / Compliance | G77: Treatment | H77: Capital Programs / Allocation | J77: Straight line | K77: Ongoing | L77: 65 | M77: 80 | O77: 0 | P77: 0 | Q77: 0 | R77: 0 | S77: 0 | T77: 6.59 | U77: 0 | V77: 0 | W77: 0 | X77: 0 | AV77: 0 | AW77: 0 | AX77: 0 | AY77: 0 | AZ77: 0 | BA77: 6.59 | BB77: 0 | BC77: 0 | BD77: 0 | BE77: 0 | BG77: 0 | BH77: 0 | BI77: 0 | BJ77: 0 | BK77: 0 | BL77: 0.05069230769 | BM77: 0.1013846154 | BN77: 0.1013846154 | BO77: 0.1013846154 | BP77: 0.1013846154 | BR77: =+IF($K77="Ongoing",AV77,IF(RIGHT($K77,2)=RIGHT(BR$39,2),SUM($AV77:AV77),0)+IF(RIGHT(BR$39,2)>RIGHT($K77,2),AV77,0)) -> 0 | BS77: =+IF($K77="Ongoing",AW77,IF(RIGHT($K77,2)=RIGHT(BS$39,2),SUM($AV77:AW77),0)+IF(RIGHT(BS$39,2)>RIGHT($K77,2),AW77,0)) -> 0 | BT77: =+IF($K77="Ongoing",AX77,IF(RIGHT($K77,2)=RIGHT(BT$39,2),SUM($AV77:AX77),0)+IF(RIGHT(BT$39,2)>RIGHT($K77,2),AX77,0)) -> 0 | BU77: =+IF($K77="Ongoing",AY77,IF(RIGHT($K77,2)=RIGHT(BU$39,2),SUM($AV77:AY77),0)+IF(RIGHT(BU$39,2)>RIGHT($K77,2),AY77,0)) -> 0 | BV77: =+IF($K77="Ongoing",AZ77,IF(RIGHT($K77,2)=RIGHT(BV$39,2),SUM($AV77:AZ77),0)+IF(RIGHT(BV$39,2)>RIGHT($K77,2),AZ77,0)) -> 0 | BW77: =+IF($K77="Ongoing",BA77,IF(RIGHT($K77,2)=RIGHT(BW$39,2),SUM($AV77:BA77),0)+IF(RIGHT(BW$39,2)>RIGHT($K77,2),BA77,0)) -> 6.59 | BX77: =+IF($K77="Ongoing",BB77,IF(RIGHT($K77,2)=RIGHT(BX$39,2),SUM($AV77:BB77),0)+IF(RIGHT(BX$39,2)>RIGHT($K77,2),BB77,0)) -> 0 | BY77: =+IF($K77="Ongoing",BC77,IF(RIGHT($K77,2)=RIGHT(BY$39,2),SUM($AV77:BC77),0)+IF(RIGHT(BY$39,2)>RIGHT($K77,2),BC77,0)) -> 0 | BZ77: =+IF($K77="Ongoing",BD77,IF(RIGHT($K77,2)=RIGHT(BZ$39,2),SUM($AV77:BD77),0)+IF(RIGHT(BZ$39,2)>RIGHT($K77,2),BD77,0)) -> 0 | CA77: =+IF($K77="Ongoing",BE77,IF(RIGHT($K77,2)=RIGHT(CA$39,2),SUM($AV77:BE77),0)+IF(RIGHT(CA$39,2)>RIGHT($K77,2),BE77,0)) -> 0 | CC77: =+O77*KeyAssumptionsPriceControl_FO!X$15 -> 0 | CD77: =+P77*KeyAssumptionsPriceControl_FO!Y$15 -> 0 | CE77: =+Q77*KeyAssumptionsPriceControl_FO!Z$15 -> 0 | CF77: =+R77*KeyAssumptionsPriceControl_FO!AA$15 -> 0 | CG77: =+S77*KeyAssumptionsPriceControl_FO!AB$15 -> 0 | CH77: =+T77*KeyAssumptionsPriceControl_FO!AC$15 -> 7.553343178 | CI77: =+U77*KeyAssumptionsPriceControl_FO!AD$15 -> 0 | CJ77: =+V77*KeyAssumptionsPriceControl_FO!AE$15 -> 0 | CK77: =+W77*KeyAssumptionsPriceControl_FO!AF$15 -> 0 | CL77: =+X77*KeyAssumptionsPriceControl_FO!AG$15 -> 0 | CN77: 0 | CO77: 0 | CP77: 0 | CQ77: 0 | CR77: 0 | CS77: 0.04720839486 | CT77: 0.09441678973 | CU77: 0.09441678973 | CV77: 0.09441678973 | CW77: 0.09441678973
C78: St.Arnaud Reuse System Expansion | E78: Recycled Water | F78: Improvements / Compliance | G78: Treatment | H78: Capital Programs / Allocation | J78: Straight line | K78: Ongoing | L78: 65 | M78: 80 | O78: 0 | P78: 0 | Q78: 0 | R78: 0 | S78: 0 | T78: 0 | U78: 0 | V78: 0 | W78: 0 | X78: 0 | AV78: 0 | AW78: 0 | AX78: 0 | AY78: 0 | AZ78: 0 | BA78: 0 | BB78: 0 | BC78: 0 | BD78: 0 | BE78: 0 | BG78: 0 | BH78: 0 | BI78: 0 | BJ78: 0 | BK78: 0 | BL78: 0 | BM78: 0 | BN78: 0 | BO78: 0 | BP78: 0 | BR78: =+IF($K78="Ongoing",AV78,IF(RIGHT($K78,2)=RIGHT(BR$39,2),SUM($AV78:AV78),0)+IF(RIGHT(BR$39,2)>RIGHT($K78,2),AV78,0)) -> 0 | BS78: =+IF($K78="Ongoing",AW78,IF(RIGHT($K78,2)=RIGHT(BS$39,2),SUM($AV78:AW78),0)+IF(RIGHT(BS$39,2)>RIGHT($K78,2),AW78,0)) -> 0 | BT78: =+IF($K78="Ongoing",AX78,IF(RIGHT($K78,2)=RIGHT(BT$39,2),SUM($AV78:AX78),0)+IF(RIGHT(BT$39,2)>RIGHT($K78,2),AX78,0)) -> 0 | BU78: =+IF($K78="Ongoing",AY78,IF(RIGHT($K78,2)=RIGHT(BU$39,2),SUM($AV78:AY78),0)+IF(RIGHT(BU$39,2)>RIGHT($K78,2),AY78,0)) -> 0 | BV78: =+IF($K78="Ongoing",AZ78,IF(RIGHT($K78,2)=RIGHT(BV$39,2),SUM($AV78:AZ78),0)+IF(RIGHT(BV$39,2)>RIGHT($K78,2),AZ78,0)) -> 0 | BW78: =+IF($K78="Ongoing",BA78,IF(RIGHT($K78,2)=RIGHT(BW$39,2),SUM($AV78:BA78),0)+IF(RIGHT(BW$39,2)>RIGHT($K78,2),BA78,0)) -> 0 | BX78: =+IF($K78="Ongoing",BB78,IF(RIGHT($K78,2)=RIGHT(BX$39,2),SUM($AV78:BB78),0)+IF(RIGHT(BX$39,2)>RIGHT($K78,2),BB78,0)) -> 0 | BY78: =+IF($K78="Ongoing",BC78,IF(RIGHT($K78,2)=RIGHT(BY$39,2),SUM($AV78:BC78),0)+IF(RIGHT(BY$39,2)>RIGHT($K78,2),BC78,0)) -> 0 | BZ78: =+IF($K78="Ongoing",BD78,IF(RIGHT($K78,2)=RIGHT(BZ$39,2),SUM($AV78:BD78),0)+IF(RIGHT(BZ$39,2)>RIGHT($K78,2),BD78,0)) -> 0 | CA78: =+IF($K78="Ongoing",BE78,IF(RIGHT($K78,2)=RIGHT(CA$39,2),SUM($AV78:BE78),0)+IF(RIGHT(CA$39,2)>RIGHT($K78,2),BE78,0)) -> 0 | CC78: =+O78*KeyAssumptionsPriceControl_FO!X$15 -> 0 | CD78: =+P78*KeyAssumptionsPriceControl_FO!Y$15 -> 0 | CE78: =+Q78*KeyAssumptionsPriceControl_FO!Z$15 -> 0 | CF78: =+R78*KeyAssumptionsPriceControl_FO!AA$15 -> 0 | CG78: =+S78*KeyAssumptionsPriceControl_FO!AB$15 -> 0 | CH78: =+T78*KeyAssumptionsPriceControl_FO!AC$15 -> 0 | CI78: =+U78*KeyAssumptionsPriceControl_FO!AD$15 -> 0 | CJ78: =+V78*KeyAssumptionsPriceControl_FO!AE$15 -> 0 | CK78: =+W78*KeyAssumptionsPriceControl_FO!AF$15 -> 0 | CL78: =+X78*KeyAssumptionsPriceControl_FO!AG$15 -> 0 | CN78: 0 | CO78: 0 | CP78: 0 | CQ78: 0 | CR78: 0 | CS78: 0 | CT78: 0 | CU78: 0 | CV78: 0 | CW78: 0
C79: WWTP Instrument - Testing Equipment | E79: Sewerage | F79: Improvements / Compliance | G79: Treatment | H79: Capital Programs / Allocation | J79: Straight line | K79: Ongoing | L79: 65 | M79: 80 | O79: 0.015 | P79: 0.015 | Q79: 0.015 | R79: 0.015 | S79: 0.015 | T79: 0.015 | U79: 0.015 | V79: 0.015 | W79: 0.015 | X79: 0.015 | AV79: 0.015 | AW79: 0.015 | AX79: 0.015 | AY79: 0.015 | AZ79: 0.015 | BA79: 0.015 | BB79: 0.015 | BC79: 0.015 | BD79: 0.015 | BE79: 0.015 | BG79: 0.0001153846154 | BH79: 0.0003461538462 | BI79: 0.0005769230769 | BJ79: 0.0008076923077 | BK79: 0.001038461538 | BL79: 0.001269230769 | BM79: 0.0015 | BN79: 0.001730769231 | BO79: 0.001961538462 | BP79: 0.002192307692 | BR79: =+IF($K79="Ongoing",AV79,IF(RIGHT($K79,2)=RIGHT(BR$39,2),SUM($AV79:AV79),0)+IF(RIGHT(BR$39,2)>RIGHT($K79,2),AV79,0)) -> 0.015 | BS79: =+IF($K79="Ongoing",AW79,IF(RIGHT($K79,2)=RIGHT(BS$39,2),SUM($AV79:AW79),0)+IF(RIGHT(BS$39,2)>RIGHT($K79,2),AW79,0)) -> 0.015 | BT79: =+IF($K79="Ongoing",AX79,IF(RIGHT($K79,2)=RIGHT(BT$39,2),SUM($AV79:AX79),0)+IF(RIGHT(BT$39,2)>RIGHT($K79,2),AX79,0)) -> 0.015 | BU79: =+IF($K79="Ongoing",AY79,IF(RIGHT($K79,2)=RIGHT(BU$39,2),SUM($AV79:AY79),0)+IF(RIGHT(BU$39,2)>RIGHT($K79,2),AY79,0)) -> 0.015 | BV79: =+IF($K79="Ongoing",AZ79,IF(RIGHT($K79,2)=RIGHT(BV$39,2),SUM($AV79:AZ79),0)+IF(RIGHT(BV$39,2)>RIGHT($K79,2),AZ79,0)) -> 0.015 | BW79: =+IF($K79="Ongoing",BA79,IF(RIGHT($K79,2)=RIGHT(BW$39,2),SUM($AV79:BA79),0)+IF(RIGHT(BW$39,2)>RIGHT($K79,2),BA79,0)) -> 0.015 | BX79: =+IF($K79="Ongoing",BB79,IF(RIGHT($K79,2)=RIGHT(BX$39,2),SUM($AV79:BB79),0)+IF(RIGHT(BX$39,2)>RIGHT($K79,2),BB79,0)) -> 0.015 | BY79: =+IF($K79="Ongoing",BC79,IF(RIGHT($K79,2)=RIGHT(BY$39,2),SUM($AV79:BC79),0)+IF(RIGHT(BY$39,2)>RIGHT($K79,2),BC79,0)) -> 0.015 | BZ79: =+IF($K79="Ongoing",BD79,IF(RIGHT($K79,2)=RIGHT(BZ$39,2),SUM($AV79:BD79),0)+IF(RIGHT(BZ$39,2)>RIGHT($K79,2),BD79,0)) -> 0.015 | CA79: =+IF($K79="Ongoing",BE79,IF(RIGHT($K79,2)=RIGHT(CA$39,2),SUM($AV79:BE79),0)+IF(RIGHT(CA$39,2)>RIGHT($K79,2),BE79,0)) -> 0.015 | CC79: =+O79*KeyAssumptionsPriceControl_FO!X$15 -> 0.015345 | CD79: =+P79*KeyAssumptionsPriceControl_FO!Y$15 -> 0.015697935 | CE79: =+Q79*KeyAssumptionsPriceControl_FO!Z$15 -> 0.0160589875 | CF79: =+R79*KeyAssumptionsPriceControl_FO!AA$15 -> 0.01642834422 | CG79: =+S79*KeyAssumptionsPriceControl_FO!AB$15 -> 0.01680619613 | CH79: =+T79*KeyAssumptionsPriceControl_FO!AC$15 -> 0.01719273865 | CI79: =+U79*KeyAssumptionsPriceControl_FO!AD$15 -> 0.01758817163 | CJ79: =+V79*KeyAssumptionsPriceControl_FO!AE$15 -> 0.01799269958 | CK79: =+W79*KeyAssumptionsPriceControl_FO!AF$15 -> 0.01840653167 | CL79: =+X79*KeyAssumptionsPriceControl_FO!AG$15 -> 0.0188298819 | CN79: 9.590625e-05 | CO79: 0.0002899245937 | CP79: 0.0004884053594 | CQ79: 0.0006914511827 | CR79: 0.0008991670599 | CS79: 0.001111660402 | CT79: 0.001329041092 | CU79: 0.001551421537 | CV79: 0.001778916732 | CW79: 0.002011644317
C80: WWater Developer Works Planning & Supervision | E80: Sewerage | F80: Growth | G80: Corporate | H80: Capital Programs / Allocation | J80: Straight line | K80: Ongoing | L80: 65 | M80: 80 | O80: 0.0286088 | P80: 0.0286088 | Q80: 0.0286088 | R80: 0.0286088 | S80: 0.0286088 | T80: 0.0286088 | U80: 0.0286088 | V80: 0.0286088 | W80: 0.0286088 | X80: 0.0286088 | AV80: 0.0286088 | AW80: 0.0286088 | AX80: 0.0286088 | AY80: 0.0286088 | AZ80: 0.0286088 | BA80: 0.0286088 | BB80: 0.0286088 | BC80: 0.0286088 | BD80: 0.0286088 | BE80: 0.0286088 | BG80: 0.0002200676923 | BH80: 0.0006602030769 | BI80: 0.001100338462 | BJ80: 0.001540473846 | BK80: 0.001980609231 | BL80: 0.002420744615 | BM80: 0.00286088 | BN80: 0.003301015385 | BO80: 0.003741150769 | BP80: 0.004181286154 | BR80: =+IF($K80="Ongoing",AV80,IF(RIGHT($K80,2)=RIGHT(BR$39,2),SUM($AV80:AV80),0)+IF(RIGHT(BR$39,2)>RIGHT($K80,2),AV80,0)) -> 0.0286088 | BS80: =+IF($K80="Ongoing",AW80,IF(RIGHT($K80,2)=RIGHT(BS$39,2),SUM($AV80:AW80),0)+IF(RIGHT(BS$39,2)>RIGHT($K80,2),AW80,0)) -> 0.0286088 | BT80: =+IF($K80="Ongoing",AX80,IF(RIGHT($K80,2)=RIGHT(BT$39,2),SUM($AV80:AX80),0)+IF(RIGHT(BT$39,2)>RIGHT($K80,2),AX80,0)) -> 0.0286088 | BU80: =+IF($K80="Ongoing",AY80,IF(RIGHT($K80,2)=RIGHT(BU$39,2),SUM($AV80:AY80),0)+IF(RIGHT(BU$39,2)>RIGHT($K80,2),AY80,0)) -> 0.0286088 | BV80: =+IF($K80="Ongoing",AZ80,IF(RIGHT($K80,2)=RIGHT(BV$39,2),SUM($AV80:AZ80),0)+IF(RIGHT(BV$39,2)>RIGHT($K80,2),AZ80,0)) -> 0.0286088 | BW80: =+IF($K80="Ongoing",BA80,IF(RIGHT($K80,2)=RIGHT(BW$39,2),SUM($AV80:BA80),0)+IF(RIGHT(BW$39,2)>RIGHT($K80,2),BA80,0)) -> 0.0286088 | BX80: =+IF($K80="Ongoing",BB80,IF(RIGHT($K80,2)=RIGHT(BX$39,2),SUM($AV80:BB80),0)+IF(RIGHT(BX$39,2)>RIGHT($K80,2),BB80,0)) -> 0.0286088 | BY80: =+IF($K80="Ongoing",BC80,IF(RIGHT($K80,2)=RIGHT(BY$39,2),SUM($AV80:BC80),0)+IF(RIGHT(BY$39,2)>RIGHT($K80,2),BC80,0)) -> 0.0286088 | BZ80: =+IF($K80="Ongoing",BD80,IF(RIGHT($K80,2)=RIGHT(BZ$39,2),SUM($AV80:BD80),0)+IF(RIGHT(BZ$39,2)>RIGHT($K80,2),BD80,0)) -> 0.0286088 | CA80: =+IF($K80="Ongoing",BE80,IF(RIGHT($K80,2)=RIGHT(CA$39,2),SUM($AV80:BE80),0)+IF(RIGHT(CA$39,2)>RIGHT($K80,2),BE80,0)) -> 0.0286088 | CC80: =+O80*KeyAssumptionsPriceControl_FO!X$15 -> 0.0292668024 | CD80: =+P80*KeyAssumptionsPriceControl_FO!Y$15 -> 0.02993993886 | CE80: =+Q80*KeyAssumptionsPriceControl_FO!Z$15 -> 0.03062855745 | CF80: =+R80*KeyAssumptionsPriceControl_FO!AA$15 -> 0.03133301427 | CG80: =+S80*KeyAssumptionsPriceControl_FO!AB$15 -> 0.0320536736 | CH80: =+T80*KeyAssumptionsPriceControl_FO!AC$15 -> 0.03279090809 | CI80: =+U80*KeyAssumptionsPriceControl_FO!AD$15 -> 0.03354509898 | CJ80: =+V80*KeyAssumptionsPriceControl_FO!AE$15 -> 0.03431663625 | CK80: =+W80*KeyAssumptionsPriceControl_FO!AF$15 -> 0.03510591889 | CL80: =+X80*KeyAssumptionsPriceControl_FO!AG$15 -> 0.03591335502 | CN80: 0.000182917515 | CO80: 0.0005529596478 | CP80: 0.0009315127497 | CQ80: 0.001318772573 | CR80: 0.001714939372 | CS80: 0.002120218008 | CT80: 0.002534818052 | CU80: 0.002958953897 | CV80: 0.003392844867 | CW80: 0.003836715329
C81: WWater Cont to Developer Works | E81: Sewerage | F81: Growth | G81: Corporate | H81: Capital Programs / Allocation | J81: Straight line | K81: Ongoing | L81: 65 | M81: 80 | O81: 0.02999899 | P81: 0.02999899 | Q81: 0.02999899 | R81: 0.02999899 | S81: 0.02999899 | T81: 0.02999899 | U81: 0.02999899 | V81: 0.02999899 | W81: 0.02999899 | X81: 0.02999899 | AV81: 0.02999899 | AW81: 0.02999899 | AX81: 0.02999899 | AY81: 0.02999899 | AZ81: 0.02999899 | BA81: 0.02999899 | BB81: 0.02999899 | BC81: 0.02999899 | BD81: 0.02999899 | BE81: 0.02999899 | BG81: 0.0002307614615 | BH81: 0.0006922843846 | BI81: 0.001153807308 | BJ81: 0.001615330231 | BK81: 0.002076853154 | BL81: 0.002538376077 | BM81: 0.002999899 | BN81: 0.003461421923 | BO81: 0.003922944846 | BP81: 0.004384467769 | BR81: =+IF($K81="Ongoing",AV81,IF(RIGHT($K81,2)=RIGHT(BR$39,2),SUM($AV81:AV81),0)+IF(RIGHT(BR$39,2)>RIGHT($K81,2),AV81,0)) -> 0.02999899 | BS81: =+IF($K81="Ongoing",AW81,IF(RIGHT($K81,2)=RIGHT(BS$39,2),SUM($AV81:AW81),0)+IF(RIGHT(BS$39,2)>RIGHT($K81,2),AW81,0)) -> 0.02999899 | BT81: =+IF($K81="Ongoing",AX81,IF(RIGHT($K81,2)=RIGHT(BT$39,2),SUM($AV81:AX81),0)+IF(RIGHT(BT$39,2)>RIGHT($K81,2),AX81,0)) -> 0.02999899 | BU81: =+IF($K81="Ongoing",AY81,IF(RIGHT($K81,2)=RIGHT(BU$39,2),SUM($AV81:AY81),0)+IF(RIGHT(BU$39,2)>RIGHT($K81,2),AY81,0)) -> 0.02999899 | BV81: =+IF($K81="Ongoing",AZ81,IF(RIGHT($K81,2)=RIGHT(BV$39,2),SUM($AV81:AZ81),0)+IF(RIGHT(BV$39,2)>RIGHT($K81,2),AZ81,0)) -> 0.02999899 | BW81: =+IF($K81="Ongoing",BA81,IF(RIGHT($K81,2)=RIGHT(BW$39,2),SUM($AV81:BA81),0)+IF(RIGHT(BW$39,2)>RIGHT($K81,2),BA81,0)) -> 0.02999899 | BX81: =+IF($K81="Ongoing",BB81,IF(RIGHT($K81,2)=RIGHT(BX$39,2),SUM($AV81:BB81),0)+IF(RIGHT(BX$39,2)>RIGHT($K81,2),BB81,0)) -> 0.02999899 | BY81: =+IF($K81="Ongoing",BC81,IF(RIGHT($K81,2)=RIGHT(BY$39,2),SUM($AV81:BC81),0)+IF(RIGHT(BY$39,2)>RIGHT($K81,2),BC81,0)) -> 0.02999899 | BZ81: =+IF($K81="Ongoing",BD81,IF(RIGHT($K81,2)=RIGHT(BZ$39,2),SUM($AV81:BD81),0)+IF(RIGHT(BZ$39,2)>RIGHT($K81,2),BD81,0)) -> 0.02999899 | CA81: =+IF($K81="Ongoing",BE81,IF(RIGHT($K81,2)=RIGHT(CA$39,2),SUM($AV81:BE81),0)+IF(RIGHT(CA$39,2)>RIGHT($K81,2),BE81,0)) -> 0.02999899 | CC81: =+O81*KeyAssumptionsPriceControl_FO!X$15 -> 0.03068896677 | CD81: =+P81*KeyAssumptionsPriceControl_FO!Y$15 -> 0.03139481301 | CE81: =+Q81*KeyAssumptionsPriceControl_FO!Z$15 -> 0.0321168937 | CF81: =+R81*KeyAssumptionsPriceControl_FO!AA$15 -> 0.03285558226 | CG81: =+S81*KeyAssumptionsPriceControl_FO!AB$15 -> 0.03361126065 | CH81: =+T81*KeyAssumptionsPriceControl_FO!AC$15 -> 0.03438431965 | CI81: =+U81*KeyAssumptionsPriceControl_FO!AD$15 -> 0.035175159 | CJ81: =+V81*KeyAssumptionsPriceControl_FO!AE$15 -> 0.03598418766 | CK81: =+W81*KeyAssumptionsPriceControl_FO!AF$15 -> 0.03681182397 | CL81: =+X81*KeyAssumptionsPriceControl_FO!AG$15 -> 0.03765849592 | CN81: 0.0001918060423 | CO81: 0.0005798296659 | CP81: 0.0009767778329 | CQ81: 0.001382855808 | CR81: 0.001798273576 | CS81: 0.002223245953 | CT81: 0.002657992694 | CU81: 0.003102738611 | CV81: 0.003557713684 | CW81: 0.004023153183
C82: Horsham WWTP Inlet Works | E82: Sewerage | F82: Improvements / Compliance | G82: Treatment | H82: Capital Programs / Allocation | J82: Straight line | K82: Ongoing | L82: 65 | M82: 80 | O82: 0.2 | P82: 0 | Q82: 0 | R82: 0 | S82: 0 | T82: 0 | U82: 0 | V82: 0 | W82: 0 | X82: 0 | AV82: 0.2 | AW82: =+P82-AA82-AL82 -> 0 | AX82: 0 | AY82: 0 | AZ82: 0 | BA82: 0 | BB82: 0 | BC82: 0 | BD82: 0 | BE82: 0 | BG82: 0.001538461538 | BH82: 0.003076923077 | BI82: 0.003076923077 | BJ82: 0.003076923077 | BK82: 0.003076923077 | BL82: 0.003076923077 | BM82: 0.003076923077 | BN82: 0.003076923077 | BO82: 0.003076923077 | BP82: 0.003076923077 | BR82: =+IF($K82="Ongoing",AV82,IF(RIGHT($K82,2)=RIGHT(BR$39,2),SUM($AV82:AV82),0)+IF(RIGHT(BR$39,2)>RIGHT($K82,2),AV82,0)) -> 0.2 | BS82: =+IF($K82="Ongoing",AW82,IF(RIGHT($K82,2)=RIGHT(BS$39,2),SUM($AV82:AW82),0)+IF(RIGHT(BS$39,2)>RIGHT($K82,2),AW82,0)) -> 0 | BT82: =+IF($K82="Ongoing",AX82,IF(RIGHT($K82,2)=RIGHT(BT$39,2),SUM($AV82:AX82),0)+IF(RIGHT(BT$39,2)>RIGHT($K82,2),AX82,0)) -> 0 | BU82: =+IF($K82="Ongoing",AY82,IF(RIGHT($K82,2)=RIGHT(BU$39,2),SUM($AV82:AY82),0)+IF(RIGHT(BU$39,2)>RIGHT($K82,2),AY82,0)) -> 0 | BV82: =+IF($K82="Ongoing",AZ82,IF(RIGHT($K82,2)=RIGHT(BV$39,2),SUM($AV82:AZ82),0)+IF(RIGHT(BV$39,2)>RIGHT($K82,2),AZ82,0)) -> 0 | BW82: =+IF($K82="Ongoing",BA82,IF(RIGHT($K82,2)=RIGHT(BW$39,2),SUM($AV82:BA82),0)+IF(RIGHT(BW$39,2)>RIGHT($K82,2),BA82,0)) -> 0 | BX82: =+IF($K82="Ongoing",BB82,IF(RIGHT($K82,2)=RIGHT(BX$39,2),SUM($AV82:BB82),0)+IF(RIGHT(BX$39,2)>RIGHT($K82,2),BB82,0)) -> 0 | BY82: =+IF($K82="Ongoing",BC82,IF(RIGHT($K82,2)=RIGHT(BY$39,2),SUM($AV82:BC82),0)+IF(RIGHT(BY$39,2)>RIGHT($K82,2),BC82,0)) -> 0 | BZ82: =+IF($K82="Ongoing",BD82,IF(RIGHT($K82,2)=RIGHT(BZ$39,2),SUM($AV82:BD82),0)+IF(RIGHT(BZ$39,2)>RIGHT($K82,2),BD82,0)) -> 0 | CA82: =+IF($K82="Ongoing",BE82,IF(RIGHT($K82,2)=RIGHT(CA$39,2),SUM($AV82:BE82),0)+IF(RIGHT(CA$39,2)>RIGHT($K82,2),BE82,0)) -> 0 | CC82: =+O82*KeyAssumptionsPriceControl_FO!X$15 -> 0.2046 | CD82: =+P82*KeyAssumptionsPriceControl_FO!Y$15 -> 0 | CE82: =+Q82*KeyAssumptionsPriceControl_FO!Z$15 -> 0 | CF82: =+R82*KeyAssumptionsPriceControl_FO!AA$15 -> 0 | CG82: =+S82*KeyAssumptionsPriceControl_FO!AB$15 -> 0 | CH82: =+T82*KeyAssumptionsPriceControl_FO!AC$15 -> 0 | CI82: =+U82*KeyAssumptionsPriceControl_FO!AD$15 -> 0 | CJ82: =+V82*KeyAssumptionsPriceControl_FO!AE$15 -> 0 | CK82: =+W82*KeyAssumptionsPriceControl_FO!AF$15 -> 0 | CL82: =+X82*KeyAssumptionsPriceControl_FO!AG$15 -> 0 | CN82: 0.00127875 | CO82: 0.0025575 | CP82: 0.0025575 | CQ82: 0.0025575 | CR82: 0.0025575 | CS82: 0.0025575 | CT82: 0.0025575 | CU82: 0.0025575 | CV82: 0.0025575 | CW82: 0.0025575
C83: St.Arnaud Reuse | E83: Recycled Water | F83: Improvements / Compliance | G83: Treatment | H83: Capital Programs / Allocation | J83: Straight line | K83: Ongoing | L83: 65 | M83: 80 | O83: 0 | P83: 0.174 | Q83: 0 | R83: 0 | S83: 0 | T83: 0 | U83: 0 | V83: 0 | W83: 0 | X83: 0 | AV83: =+O83-Z83-AK83 -> 0 | AW83: 0.174 | AX83: 0 | AY83: 0 | AZ83: 0 | BA83: 0 | BB83: 0 | BC83: 0 | BD83: 0 | BE83: 0 | BG83: 0 | BH83: 0.001338461538 | BI83: 0.002676923077 | BJ83: 0.002676923077 | BK83: 0.002676923077 | BL83: 0.002676923077 | BM83: 0.002676923077 | BN83: 0.002676923077 | BO83: 0.002676923077 | BP83: 0.002676923077 | BR83: =+IF($K83="Ongoing",AV83,IF(RIGHT($K83,2)=RIGHT(BR$39,2),SUM($AV83:AV83),0)+IF(RIGHT(BR$39,2)>RIGHT($K83,2),AV83,0)) -> 0 | BS83: =+IF($K83="Ongoing",AW83,IF(RIGHT($K83,2)=RIGHT(BS$39,2),SUM($AV83:AW83),0)+IF(RIGHT(BS$39,2)>RIGHT($K83,2),AW83,0)) -> 0.174 | BT83: =+IF($K83="Ongoing",AX83,IF(RIGHT($K83,2)=RIGHT(BT$39,2),SUM($AV83:AX83),0)+IF(RIGHT(BT$39,2)>RIGHT($K83,2),AX83,0)) -> 0 | BU83: =+IF($K83="Ongoing",AY83,IF(RIGHT($K83,2)=RIGHT(BU$39,2),SUM($AV83:AY83),0)+IF(RIGHT(BU$39,2)>RIGHT($K83,2),AY83,0)) -> 0 | BV83: =+IF($K83="Ongoing",AZ83,IF(RIGHT($K83,2)=RIGHT(BV$39,2),SUM($AV83:AZ83),0)+IF(RIGHT(BV$39,2)>RIGHT($K83,2),AZ83,0)) -> 0 | BW83: =+IF($K83="Ongoing",BA83,IF(RIGHT($K83,2)=RIGHT(BW$39,2),SUM($AV83:BA83),0)+IF(RIGHT(BW$39,2)>RIGHT($K83,2),BA83,0)) -> 0 | BX83: =+IF($K83="Ongoing",BB83,IF(RIGHT($K83,2)=RIGHT(BX$39,2),SUM($AV83:BB83),0)+IF(RIGHT(BX$39,2)>RIGHT($K83,2),BB83,0)) -> 0 | BY83: =+IF($K83="Ongoing",BC83,IF(RIGHT($K83,2)=RIGHT(BY$39,2),SUM($AV83:BC83),0)+IF(RIGHT(BY$39,2)>RIGHT($K83,2),BC83,0)) -> 0 | BZ83: =+IF($K83="Ongoing",BD83,IF(RIGHT($K83,2)=RIGHT(BZ$39,2),SUM($AV83:BD83),0)+IF(RIGHT(BZ$39,2)>RIGHT($K83,2),BD83,0)) -> 0 | CA83: =+IF($K83="Ongoing",BE83,IF(RIGHT($K83,2)=RIGHT(CA$39,2),SUM($AV83:BE83),0)+IF(RIGHT(CA$39,2)>RIGHT($K83,2),BE83,0)) -> 0 | CC83: =+O83*KeyAssumptionsPriceControl_FO!X$15 -> 0 | CD83: =+P83*KeyAssumptionsPriceControl_FO!Y$15 -> 0.182096046 | CE83: =+Q83*KeyAssumptionsPriceControl_FO!Z$15 -> 0 | CF83: =+R83*KeyAssumptionsPriceControl_FO!AA$15 -> 0 | CG83: =+S83*KeyAssumptionsPriceControl_FO!AB$15 -> 0 | CH83: =+T83*KeyAssumptionsPriceControl_FO!AC$15 -> 0 | CI83: =+U83*KeyAssumptionsPriceControl_FO!AD$15 -> 0 | CJ83: =+V83*KeyAssumptionsPriceControl_FO!AE$15 -> 0 | CK83: =+W83*KeyAssumptionsPriceControl_FO!AF$15 -> 0 | CL83: =+X83*KeyAssumptionsPriceControl_FO!AG$15 -> 0 | CN83: 0 | CO83: 0.001138100287 | CP83: 0.002276200575 | CQ83: 0.002276200575 | CR83: 0.002276200575 | CS83: 0.002276200575 | CT83: 0.002276200575 | CU83: 0.002276200575 | CV83: 0.002276200575 | CW83: 0.002276200575
C84: Dam Safety Works | E84: Bulk water - headworks | F84: Improvements / Compliance | G84: Headworks | H84: Capital Programs / Allocation | J84: Straight line | K84: Ongoing | L84: 80 | M84: 100 | O84: 0.24532903 | P84: 0.25055703 | Q84: 1.18646303 | R84: 0.46301403 | S84: 0.05509503 | T84: 0.46277403 | U84: 8.54515903 | V84: 0.31060703 | W84: 0.31762703 | X84: 0.31762703 | AV84: 0.24532903 | AW84: 0.25055703 | AX84: 1.18646303 | AY84: 0.46301403 | AZ84: 0.05509503 | BA84: 0.46277403 | BB84: 8.54515903 | BC84: 0.31060703 | BD84: 0.31762703 | BE84: 0.31762703 | BG84: 0.001533306438 | BH84: 0.004632594313 | BI84: 0.01361396969 | BJ84: 0.02392320131 | BK84: 0.02716138294 | BL84: 0.03039806456 | BM84: 0.08669764619 | BN84: 0.1420461841 | BO84: =IF($L84=0,0, IF($L84<=0.5,BZ84, IF(AND($J84="straight line",$L84<1.51),(BY84-((BY84/$L84)*0.5))+BZ84/$L84*0.5, IF($J84="straight line", IF((LEFT(BO$39,4)*1)-INT($L84)<LEFT($BG$39,4)*1,0,((OFFSET(BZ84,0,-INT($L84+0.5),1,1))/$L84)*(IF($L84-INT($L84)>0.5,$L84-0.5-INT($L84),IF($L84-INT($L84)<=0.5,$L84-0.5-INT($L84)+1,0)))) +BZ84/$L84*0.5 +SUM(OFFSET(BZ84,0,MAX(-INT($L84+(0.5-(10^-12))),-BO$40)+1,1,MIN(INT($L84+(0.5-(10^-12))),BO$40)-1))*1/$L84, IF($J84="Declining Balance",-$BG$38,0))))) -> 0.1459726469 | BP84: 0.1499429848 | BR84: =+IF($K84="Ongoing",AV84,IF(RIGHT($K84,2)=RIGHT(BR$39,2),SUM($AV84:AV84),0)+IF(RIGHT(BR$39,2)>RIGHT($K84,2),AV84,0)) -> 0.24532903 | BS84: =+IF($K84="Ongoing",AW84,IF(RIGHT($K84,2)=RIGHT(BS$39,2),SUM($AV84:AW84),0)+IF(RIGHT(BS$39,2)>RIGHT($K84,2),AW84,0)) -> 0.25055703 | BT84: =+IF($K84="Ongoing",AX84,IF(RIGHT($K84,2)=RIGHT(BT$39,2),SUM($AV84:AX84),0)+IF(RIGHT(BT$39,2)>RIGHT($K84,2),AX84,0)) -> 1.18646303 | BU84: =+IF($K84="Ongoing",AY84,IF(RIGHT($K84,2)=RIGHT(BU$39,2),SUM($AV84:AY84),0)+IF(RIGHT(BU$39,2)>RIGHT($K84,2),AY84,0)) -> 0.46301403 | BV84: =+IF($K84="Ongoing",AZ84,IF(RIGHT($K84,2)=RIGHT(BV$39,2),SUM($AV84:AZ84),0)+IF(RIGHT(BV$39,2)>RIGHT($K84,2),AZ84,0)) -> 0.05509503 | BW84: =+IF($K84="Ongoing",BA84,IF(RIGHT($K84,2)=RIGHT(BW$39,2),SUM($AV84:BA84),0)+IF(RIGHT(BW$39,2)>RIGHT($K84,2),BA84,0)) -> 0.46277403 | BX84: =+IF($K84="Ongoing",BB84,IF(RIGHT($K84,2)=RIGHT(BX$39,2),SUM($AV84:BB84),0)+IF(RIGHT(BX$39,2)>RIGHT($K84,2),BB84,0)) -> 8.54515903 | BY84: =+IF($K84="Ongoing",BC84,IF(RIGHT($K84,2)=RIGHT(BY$39,2),SUM($AV84:BC84),0)+IF(RIGHT(BY$39,2)>RIGHT($K84,2),BC84,0)) -> 0.31060703 | BZ84: =+IF($K84="Ongoing",BD84,IF(RIGHT($K84,2)=RIGHT(BZ$39,2),SUM($AV84:BD84),0)+IF(RIGHT(BZ$39,2)>RIGHT($K84,2),BD84,0)) -> 0.31762703 | CA84: =+IF($K84="Ongoing",BE84,IF(RIGHT($K84,2)=RIGHT(CA$39,2),SUM($AV84:BE84),0)+IF(RIGHT(CA$39,2)>RIGHT($K84,2),BE84,0)) -> 0.31762703 | CC84: =+O84*KeyAssumptionsPriceControl_FO!X$15 -> 0.2509715977 | CD84: =+P84*KeyAssumptionsPriceControl_FO!Y$15 -> 0.262215198 | CE84: =+Q84*KeyAssumptionsPriceControl_FO!Z$15 -> 1.270226332 | CF84: =+R84*KeyAssumptionsPriceControl_FO!AA$15 -> 0.5071035908 | CG84: =+S84*KeyAssumptionsPriceControl_FO!AB$15 -> 0.06172919201 | CH84: =+T84*KeyAssumptionsPriceControl_FO!AC$15 -> 0.53042353 | CI84: =+U84*KeyAssumptionsPriceControl_FO!AD$15 -> 10.01958158 | CJ84: =+V84*KeyAssumptionsPriceControl_FO!AE$15 -> 0.3725772653 | CK84: =+W84*KeyAssumptionsPriceControl_FO!AF$15 -> 0.3897607992 | CL84: =+X84*KeyAssumptionsPriceControl_FO!AG$15 -> 0.3987252976 | CN84: 0.001254857988 | CO84: 0.003820791967 | CP84: 0.01148299962 | CQ84: 0.02036964923 | CR84: 0.02321381314 | CS84: 0.02617457675 | CT84: 0.07892460229 | CU84: 0.1308853965 | CV84: =IF($M84=0,0, IF($M84<=0.5,CK84, IF(AND($J84="straight line",$M84<1.51),(CJ84-((CJ84/$M84)*0.5))+CK84/$M84*0.5, IF($J84="straight line", IF((LEFT(CV$39,4)*1)-INT($M84)<LEFT($CN$39,4)*1,0,((OFFSET(CK84,0,-INT($M84+0.5),1,1))/$M84)*(IF($M84-INT($M84)>0.5,$M84-0.5-INT($M84),IF($M84-INT($M84)<=0.5,$M84-0.5-INT($M84)+1,0)))) +CK84/$M84*0.5 +SUM(OFFSET(CK84,0,MAX(-INT($M84+(0.5-(10^-12))),-CV$40)+1,1,MIN(INT($M84+(0.5-(10^-12))),CV$40)-1))*1/$M84, IF($J84="Declining Balance",-$CN$38,0))))) -> 0.1346970868 | CW84: 0.1386395173
C85: Major Project 2 Dam Safety Works – Lake Fyans | AV85: 0 | AW85: 0 | AX85: 0 | AY85: 0 | AZ85: 0 | BA85: 0 | BB85: 0 | BC85: 0 | BD85: 0 | BE85: 0 | BG85: 0 | BH85: =IF($L85=0,0, IF($L85<=0.5,BS85, IF(AND($J85="straight line",$L85<1.51),(BR85-((BR85/$L85)*0.5))+BS85/$L85*0.5, IF($J85="straight line", IF((LEFT(BH$39,4)*1)-INT($L85)<LEFT($BG$39,4)*1,0,((OFFSET(BS85,0,-INT($L85+0.5),1,1))/$L85)*(IF($L85-INT($L85)>0.5,$L85-0.5-INT($L85),IF($L85-INT($L85)<=0.5,$L85-0.5-INT($L85)+1,0)))) +BS85/$L85*0.5 +SUM(OFFSET(BS85,0,MAX(-INT($L85+(0.5-(10^-12))),-BH$40)+1,1,MIN(INT($L85+(0.5-(10^-12))),BH$40)-1))*1/$L85, IF($J85="Declining Balance",-$BG$38,0))))) -> 0 | BI85: 0 | BJ85: 0 | BK85: 0 | BL85: 0 | BM85: 0 | BN85: 0 | BO85: 0 | BP85: 0 | BR85: =+IF($K85="Ongoing",AV85,IF(RIGHT($K85,2)=RIGHT(BR$39,2),SUM($AV85:AV85),0)+IF(RIGHT(BR$39,2)>RIGHT($K85,2),AV85,0)) -> 0 | BS85: =+IF($K85="Ongoing",AW85,IF(RIGHT($K85,2)=RIGHT(BS$39,2),SUM($AV85:AW85),0)+IF(RIGHT(BS$39,2)>RIGHT($K85,2),AW85,0)) -> 0 | BT85: =+IF($K85="Ongoing",AX85,IF(RIGHT($K85,2)=RIGHT(BT$39,2),SUM($AV85:AX85),0)+IF(RIGHT(BT$39,2)>RIGHT($K85,2),AX85,0)) -> 0 | BU85: =+IF($K85="Ongoing",AY85,IF(RIGHT($K85,2)=RIGHT(BU$39,2),SUM($AV85:AY85),0)+IF(RIGHT(BU$39,2)>RIGHT($K85,2),AY85,0)) -> 0 | BV85: =+IF($K85="Ongoing",AZ85,IF(RIGHT($K85,2)=RIGHT(BV$39,2),SUM($AV85:AZ85),0)+IF(RIGHT(BV$39,2)>RIGHT($K85,2),AZ85,0)) -> 0 | BW85: =+IF($K85="Ongoing",BA85,IF(RIGHT($K85,2)=RIGHT(BW$39,2),SUM($AV85:BA85),0)+IF(RIGHT(BW$39,2)>RIGHT($K85,2),BA85,0)) -> 0 | BX85: =+IF($K85="Ongoing",BB85,IF(RIGHT($K85,2)=RIGHT(BX$39,2),SUM($AV85:BB85),0)+IF(RIGHT(BX$39,2)>RIGHT($K85,2),BB85,0)) -> 0 | BY85: =+IF($K85="Ongoing",BC85,IF(RIGHT($K85,2)=RIGHT(BY$39,2),SUM($AV85:BC85),0)+IF(RIGHT(BY$39,2)>RIGHT($K85,2),BC85,0)) -> 0 | BZ85: =+IF($K85="Ongoing",BD85,IF(RIGHT($K85,2)=RIGHT(BZ$39,2),SUM($AV85:BD85),0)+IF(RIGHT(BZ$39,2)>RIGHT($K85,2),BD85,0)) -> 0 | CA85: =+IF($K85="Ongoing",BE85,IF(RIGHT($K85,2)=RIGHT(CA$39,2),SUM($AV85:BE85),0)+IF(RIGHT(CA$39,2)>RIGHT($K85,2),BE85,0)) -> 0 | CC85: =+O85*KeyAssumptionsPriceControl_FO!X$15 -> 0 | CD85: =+P85*KeyAssumptionsPriceControl_FO!Y$15 -> 0 | CE85: =+Q85*KeyAssumptionsPriceControl_FO!Z$15 -> 0 | CF85: =+R85*KeyAssumptionsPriceControl_FO!AA$15 -> 0 | CG85: =+S85*KeyAssumptionsPriceControl_FO!AB$15 -> 0 | CH85: =+T85*KeyAssumptionsPriceControl_FO!AC$15 -> 0 | CI85: =+U85*KeyAssumptionsPriceControl_FO!AD$15 -> 0 | CJ85: =+V85*KeyAssumptionsPriceControl_FO!AE$15 -> 0 | CK85: =+W85*KeyAssumptionsPriceControl_FO!AF$15 -> 0 | CL85: =+X85*KeyAssumptionsPriceControl_FO!AG$15 -> 0 | CN85: 0 | CO85: =IF($M85=0,0, IF($M85<=0.5,CD85, IF(AND($J85="straight line",$M85<1.51),(CC85-((CC85/$M85)*0.5))+CD85/$M85*0.5, IF($J85="straight line", IF((LEFT(CO$39,4)*1)-INT($M85)<LEFT($CN$39,4)*1,0,((OFFSET(CD85,0,-INT($M85+0.5),1,1))/$M85)*(IF($M85-INT($M85)>0.5,$M85-0.5-INT($M85),IF($M85-INT($M85)<=0.5,$M85-0.5-INT($M85)+1,0)))) +CD85/$M85*0.5 +SUM(OFFSET(CD85,0,MAX(-INT($M85+(0.5-(10^-12))),-CO$40)+1,1,MIN(INT($M85+(0.5-(10^-12))),CO$40)-1))*1/$M85, IF($J85="Declining Balance",-$CN$38,0))))) -> 0 | CP85: 0 | CQ85: 0 | CR85: 0 | CS85: 0 | CT85: 0 | CU85: 0 | CV85: 0 | CW85: 0
C86: Water Monitor Station Renewals | E86: Bulk water - headworks | F86: Improvements / Compliance | G86: Headworks | H86: Capital Programs / Allocation | J86: Straight line | K86: Ongoing | L86: 80 | M86: 80 | O86: 0.03119407 | P86: 0.05119407 | Q86: 0.05119407 | R86: 0.05119407 | S86: 0.05119407 | T86: 0.05119407 | U86: 0.05119407 | V86: 0.05119407 | W86: 0.05119407 | X86: 0.05119407 | AV86: 0.03119407 | AW86: 0.05119407 | AX86: 0.05119407 | AY86: 0.05119407 | AZ86: 0.05119407 | BA86: 0.05119407 | BB86: 0.05119407 | BC86: 0.05119407 | BD86: 0.05119407 | BE86: 0.05119407 | BG86: 0.0001949629375 | BH86: 0.0007098888125 | BI86: 0.001349814688 | BJ86: 0.001989740562 | BK86: 0.002629666438 | BL86: 0.003269592313 | BM86: 0.003909518188 | BN86: 0.004549444063 | BO86: 0.005189369938 | BP86: 0.005829295813 | BR86: =+IF($K86="Ongoing",AV86,IF(RIGHT($K86,2)=RIGHT(BR$39,2),SUM($AV86:AV86),0)+IF(RIGHT(BR$39,2)>RIGHT($K86,2),AV86,0)) -> 0.03119407 | BS86: =+IF($K86="Ongoing",AW86,IF(RIGHT($K86,2)=RIGHT(BS$39,2),SUM($AV86:AW86),0)+IF(RIGHT(BS$39,2)>RIGHT($K86,2),AW86,0)) -> 0.05119407 | BT86: =+IF($K86="Ongoing",AX86,IF(RIGHT($K86,2)=RIGHT(BT$39,2),SUM($AV86:AX86),0)+IF(RIGHT(BT$39,2)>RIGHT($K86,2),AX86,0)) -> 0.05119407 | BU86: =+IF($K86="Ongoing",AY86,IF(RIGHT($K86,2)=RIGHT(BU$39,2),SUM($AV86:AY86),0)+IF(RIGHT(BU$39,2)>RIGHT($K86,2),AY86,0)) -> 0.05119407 | BV86: =+IF($K86="Ongoing",AZ86,IF(RIGHT($K86,2)=RIGHT(BV$39,2),SUM($AV86:AZ86),0)+IF(RIGHT(BV$39,2)>RIGHT($K86,2),AZ86,0)) -> 0.05119407 | BW86: =+IF($K86="Ongoing",BA86,IF(RIGHT($K86,2)=RIGHT(BW$39,2),SUM($AV86:BA86),0)+IF(RIGHT(BW$39,2)>RIGHT($K86,2),BA86,0)) -> 0.05119407 | BX86: =+IF($K86="Ongoing",BB86,IF(RIGHT($K86,2)=RIGHT(BX$39,2),SUM($AV86:BB86),0)+IF(RIGHT(BX$39,2)>RIGHT($K86,2),BB86,0)) -> 0.05119407 | BY86: =+IF($K86="Ongoing",BC86,IF(RIGHT($K86,2)=RIGHT(BY$39,2),SUM($AV86:BC86),0)+IF(RIGHT(BY$39,2)>RIGHT($K86,2),BC86,0)) -> 0.05119407 | BZ86: =+IF($K86="Ongoing",BD86,IF(RIGHT($K86,2)=RIGHT(BZ$39,2),SUM($AV86:BD86),0)+IF(RIGHT(BZ$39,2)>RIGHT($K86,2),BD86,0)) -> 0.05119407 | CA86: =+IF($K86="Ongoing",BE86,IF(RIGHT($K86,2)=RIGHT(CA$39,2),SUM($AV86:BE86),0)+IF(RIGHT(CA$39,2)>RIGHT($K86,2),BE86,0)) -> 0.05119407 | CC86: =+O86*KeyAssumptionsPriceControl_FO!X$15 -> 0.03191153361 | CD86: =+P86*KeyAssumptionsPriceControl_FO!Y$15 -> 0.05357607888 | CE86: =+Q86*KeyAssumptionsPriceControl_FO!Z$15 -> 0.0548083287 | CF86: =+R86*KeyAssumptionsPriceControl_FO!AA$15 -> 0.05606892026 | CG86: =+S86*KeyAssumptionsPriceControl_FO!AB$15 -> 0.05735850542 | CH86: =+T86*KeyAssumptionsPriceControl_FO!AC$15 -> 0.05867775105 | CI86: =+U86*KeyAssumptionsPriceControl_FO!AD$15 -> 0.06002733932 | CJ86: =+V86*KeyAssumptionsPriceControl_FO!AE$15 -> 0.06140796813 | CK86: =+W86*KeyAssumptionsPriceControl_FO!AF$15 -> 0.06282035139 | CL86: =+X86*KeyAssumptionsPriceControl_FO!AG$15 -> 0.06426521948 | CN86: 0.0001994470851 | CO86: 0.0007337446631 | CP86: 0.001411147211 | CQ86: 0.002104130016 | CR86: 0.002813051427 | CS86: 0.00353827803 | CT86: 0.004280184845 | CU86: 0.005039155516 | CV86: 0.005815582513 | CW86: 0.006609867331
C87: Domestic and Stock Supply System Upgrades | E87: Domestic and stock | F87: Improvements / Compliance | G87: Pipelines/network | H87: Capital Programs / Allocation | J87: Straight line | K87: Ongoing | L87: 73 | M87: 70 | O87: 0.03253488 | P87: 0.03253488 | Q87: 0.03253488 | R87: 0.03253488 | S87: 0.03253488 | T87: 0.03253488 | U87: 0.03253488 | V87: 0.03253488 | W87: 0.03253488 | X87: 0.03253488 | AV87: 0.03253488 | AW87: 0.03253488 | AX87: 0.03253488 | AY87: 0.03253488 | AZ87: 0.03253488 | BA87: 0.03253488 | BB87: 0.03253488 | BC87: 0.03253488 | BD87: 0.03253488 | BE87: 0.03253488 | BG87: 0.0002228416438 | BH87: 0.0006685249315 | BI87: 0.001114208219 | BJ87: 0.001559891507 | BK87: 0.002005574795 | BL87: 0.002451258082 | BM87: 0.00289694137 | BN87: 0.003342624658 | BO87: 0.003788307945 | BP87: 0.004233991233 | BR87: =+IF($K87="Ongoing",AV87,IF(RIGHT($K87,2)=RIGHT(BR$39,2),SUM($AV87:AV87),0)+IF(RIGHT(BR$39,2)>RIGHT($K87,2),AV87,0)) -> 0.03253488 | BS87: =+IF($K87="Ongoing",AW87,IF(RIGHT($K87,2)=RIGHT(BS$39,2),SUM($AV87:AW87),0)+IF(RIGHT(BS$39,2)>RIGHT($K87,2),AW87,0)) -> 0.03253488 | BT87: =+IF($K87="Ongoing",AX87,IF(RIGHT($K87,2)=RIGHT(BT$39,2),SUM($AV87:AX87),0)+IF(RIGHT(BT$39,2)>RIGHT($K87,2),AX87,0)) -> 0.03253488 | BU87: =+IF($K87="Ongoing",AY87,IF(RIGHT($K87,2)=RIGHT(BU$39,2),SUM($AV87:AY87),0)+IF(RIGHT(BU$39,2)>RIGHT($K87,2),AY87,0)) -> 0.03253488 | BV87: =+IF($K87="Ongoing",AZ87,IF(RIGHT($K87,2)=RIGHT(BV$39,2),SUM($AV87:AZ87),0)+IF(RIGHT(BV$39,2)>RIGHT($K87,2),AZ87,0)) -> 0.03253488 | BW87: =+IF($K87="Ongoing",BA87,IF(RIGHT($K87,2)=RIGHT(BW$39,2),SUM($AV87:BA87),0)+IF(RIGHT(BW$39,2)>RIGHT($K87,2),BA87,0)) -> 0.03253488 | BX87: =+IF($K87="Ongoing",BB87,IF(RIGHT($K87,2)=RIGHT(BX$39,2),SUM($AV87:BB87),0)+IF(RIGHT(BX$39,2)>RIGHT($K87,2),BB87,0)) -> 0.03253488 | BY87: =+IF($K87="Ongoing",BC87,IF(RIGHT($K87,2)=RIGHT(BY$39,2),SUM($AV87:BC87),0)+IF(RIGHT(BY$39,2)>RIGHT($K87,2),BC87,0)) -> 0.03253488 | BZ87: =+IF($K87="Ongoing",BD87,IF(RIGHT($K87,2)=RIGHT(BZ$39,2),SUM($AV87:BD87),0)+IF(RIGHT(BZ$39,2)>RIGHT($K87,2),BD87,0)) -> 0.03253488 | CA87: =+IF($K87="Ongoing",BE87,IF(RIGHT($K87,2)=RIGHT(CA$39,2),SUM($AV87:BE87),0)+IF(RIGHT(CA$39,2)>RIGHT($K87,2),BE87,0)) -> 0.03253488 | CC87: =+O87*KeyAssumptionsPriceControl_FO!X$15 -> 0.03328318224 | CD87: =+P87*KeyAssumptionsPriceControl_FO!Y$15 -> 0.03404869543 | CE87: =+Q87*KeyAssumptionsPriceControl_FO!Z$15 -> 0.03483181543 | CF87: =+R87*KeyAssumptionsPriceControl_FO!AA$15 -> 0.03563294718 | CG87: =+S87*KeyAssumptionsPriceControl_FO!AB$15 -> 0.03645250497 | CH87: =+T87*KeyAssumptionsPriceControl_FO!AC$15 -> 0.03729091258 | CI87: =+U87*KeyAssumptionsPriceControl_FO!AD$15 -> 0.03814860357 | CJ87: =+V87*KeyAssumptionsPriceControl_FO!AE$15 -> 0.03902602145 | CK87: =+W87*KeyAssumptionsPriceControl_FO!AF$15 -> 0.03992361995 | CL87: =+X87*KeyAssumptionsPriceControl_FO!AG$15 -> 0.0408418632 | CN87: 0.000237737016 | CO87: 0.0007186789994 | CP87: 0.001210682648 | CQ87: 0.001714002381 | CR87: 0.002228898468 | CS87: 0.002755637165 | CT87: 0.003294490852 | CU87: 0.003845738173 | CV87: 0.004409664183 | CW87: 0.004986560491
AV88: 0 | AW88: 0 | AX88: 0 | AY88: 0 | AZ88: 0 | BA88: 0 | BB88: 0 | BC88: 0 | BD88: 0 | BE88: 0 | BG88: 0 | BH88: 0 | BI88: 0 | BJ88: 0 | BK88: 0 | BL88: 0 | BM88: 0 | BN88: 0 | BO88: 0 | BP88: 0 | BR88: =+IF($K88="Ongoing",AV88,IF(RIGHT($K88,2)=RIGHT(BR$39,2),SUM($AV88:AV88),0)+IF(RIGHT(BR$39,2)>RIGHT($K88,2),AV88,0)) -> 0 | BS88: =+IF($K88="Ongoing",AW88,IF(RIGHT($K88,2)=RIGHT(BS$39,2),SUM($AV88:AW88),0)+IF(RIGHT(BS$39,2)>RIGHT($K88,2),AW88,0)) -> 0 | BT88: =+IF($K88="Ongoing",AX88,IF(RIGHT($K88,2)=RIGHT(BT$39,2),SUM($AV88:AX88),0)+IF(RIGHT(BT$39,2)>RIGHT($K88,2),AX88,0)) -> 0 | BU88: =+IF($K88="Ongoing",AY88,IF(RIGHT($K88,2)=RIGHT(BU$39,2),SUM($AV88:AY88),0)+IF(RIGHT(BU$39,2)>RIGHT($K88,2),AY88,0)) -> 0 | BV88: =+IF($K88="Ongoing",AZ88,IF(RIGHT($K88,2)=RIGHT(BV$39,2),SUM($AV88:AZ88),0)+IF(RIGHT(BV$39,2)>RIGHT($K88,2),AZ88,0)) -> 0 | BW88: =+IF($K88="Ongoing",BA88,IF(RIGHT($K88,2)=RIGHT(BW$39,2),SUM($AV88:BA88),0)+IF(RIGHT(BW$39,2)>RIGHT($K88,2),BA88,0)) -> 0 | BX88: =+IF($K88="Ongoing",BB88,IF(RIGHT($K88,2)=RIGHT(BX$39,2),SUM($AV88:BB88),0)+IF(RIGHT(BX$39,2)>RIGHT($K88,2),BB88,0)) -> 0 | BY88: =+IF($K88="Ongoing",BC88,IF(RIGHT($K88,2)=RIGHT(BY$39,2),SUM($AV88:BC88),0)+IF(RIGHT(BY$39,2)>RIGHT($K88,2),BC88,0)) -> 0 | BZ88: =+IF($K88="Ongoing",BD88,IF(RIGHT($K88,2)=RIGHT(BZ$39,2),SUM($AV88:BD88),0)+IF(RIGHT(BZ$39,2)>RIGHT($K88,2),BD88,0)) -> 0 | CA88: =+IF($K88="Ongoing",BE88,IF(RIGHT($K88,2)=RIGHT(CA$39,2),SUM($AV88:BE88),0)+IF(RIGHT(CA$39,2)>RIGHT($K88,2),BE88,0)) -> 0 | CC88: =+O88*KeyAssumptionsPriceControl_FO!X$15 -> 0 | CD88: =+P88*KeyAssumptionsPriceControl_FO!Y$15 -> 0 | CE88: =+Q88*KeyAssumptionsPriceControl_FO!Z$15 -> 0 | CF88: =+R88*KeyAssumptionsPriceControl_FO!AA$15 -> 0 | CG88: =+S88*KeyAssumptionsPriceControl_FO!AB$15 -> 0 | CH88: =+T88*KeyAssumptionsPriceControl_FO!AC$15 -> 0 | CI88: =+U88*KeyAssumptionsPriceControl_FO!AD$15 -> 0 | CJ88: =+V88*KeyAssumptionsPriceControl_FO!AE$15 -> 0 | CK88: =+W88*KeyAssumptionsPriceControl_FO!AF$15 -> 0 | CL88: =+X88*KeyAssumptionsPriceControl_FO!AG$15 -> 0 | CN88: 0 | CO88: 0 | CP88: 0 | CQ88: 0 | CR88: 0 | CS88: 0 | CT88: 0 | CU88: 0 | CV88: 0 | CW88: 0
AV89: 0 | AW89: 0 | AX89: 0 | AY89: 0 | AZ89: 0 | BA89: 0 | BB89: 0 | BC89: 0 | BD89: 0 | BE89: 0 | BG89: 0 | BH89: 0 | BI89: 0 | BJ89: 0 | BK89: 0 | BL89: 0 | BM89: 0 | BN89: 0 | BO89: 0 | BP89: 0 | BR89: =+IF($K89="Ongoing",AV89,IF(RIGHT($K89,2)=RIGHT(BR$39,2),SUM($AV89:AV89),0)+IF(RIGHT(BR$39,2)>RIGHT($K89,2),AV89,0)) -> 0 | BS89: =+IF($K89="Ongoing",AW89,IF(RIGHT($K89,2)=RIGHT(BS$39,2),SUM($AV89:AW89),0)+IF(RIGHT(BS$39,2)>RIGHT($K89,2),AW89,0)) -> 0 | BT89: =+IF($K89="Ongoing",AX89,IF(RIGHT($K89,2)=RIGHT(BT$39,2),SUM($AV89:AX89),0)+IF(RIGHT(BT$39,2)>RIGHT($K89,2),AX89,0)) -> 0 | BU89: =+IF($K89="Ongoing",AY89,IF(RIGHT($K89,2)=RIGHT(BU$39,2),SUM($AV89:AY89),0)+IF(RIGHT(BU$39,2)>RIGHT($K89,2),AY89,0)) -> 0 | BV89: =+IF($K89="Ongoing",AZ89,IF(RIGHT($K89,2)=RIGHT(BV$39,2),SUM($AV89:AZ89),0)+IF(RIGHT(BV$39,2)>RIGHT($K89,2),AZ89,0)) -> 0 | BW89: =+IF($K89="Ongoing",BA89,IF(RIGHT($K89,2)=RIGHT(BW$39,2),SUM($AV89:BA89),0)+IF(RIGHT(BW$39,2)>RIGHT($K89,2),BA89,0)) -> 0 | BX89: =+IF($K89="Ongoing",BB89,IF(RIGHT($K89,2)=RIGHT(BX$39,2),SUM($AV89:BB89),0)+IF(RIGHT(BX$39,2)>RIGHT($K89,2),BB89,0)) -> 0 | BY89: =+IF($K89="Ongoing",BC89,IF(RIGHT($K89,2)=RIGHT(BY$39,2),SUM($AV89:BC89),0)+IF(RIGHT(BY$39,2)>RIGHT($K89,2),BC89,0)) -> 0 | BZ89: =+IF($K89="Ongoing",BD89,IF(RIGHT($K89,2)=RIGHT(BZ$39,2),SUM($AV89:BD89),0)+IF(RIGHT(BZ$39,2)>RIGHT($K89,2),BD89,0)) -> 0 | CA89: =+IF($K89="Ongoing",BE89,IF(RIGHT($K89,2)=RIGHT(CA$39,2),SUM($AV89:BE89),0)+IF(RIGHT(CA$39,2)>RIGHT($K89,2),BE89,0)) -> 0 | CC89: =+O89*KeyAssumptionsPriceControl_FO!X$15 -> 0 | CD89: =+P89*KeyAssumptionsPriceControl_FO!Y$15 -> 0 | CE89: =+Q89*KeyAssumptionsPriceControl_FO!Z$15 -> 0 | CF89: =+R89*KeyAssumptionsPriceControl_FO!AA$15 -> 0 | CG89: =+S89*KeyAssumptionsPriceControl_FO!AB$15 -> 0 | CH89: =+T89*KeyAssumptionsPriceControl_FO!AC$15 -> 0 | CI89: =+U89*KeyAssumptionsPriceControl_FO!AD$15 -> 0 | CJ89: =+V89*KeyAssumptionsPriceControl_FO!AE$15 -> 0 | CK89: =+W89*KeyAssumptionsPriceControl_FO!AF$15 -> 0 | CL89: =+X89*KeyAssumptionsPriceControl_FO!AG$15 -> 0 | CN89: 0 | CO89: 0 | CP89: 0 | CQ89: 0 | CR89: 0 | CS89: 0 | CT89: 0 | CU89: 0 | CV89: 0 | CW89: 0
AV90: 0 | AW90: 0 | AX90: 0 | AY90: 0 | AZ90: 0 | BA90: 0 | BB90: 0 | BC90: 0 | BD90: 0 | BE90: 0 | BG90: 0 | BH90: 0 | BI90: 0 | BJ90: 0 | BK90: 0 | BL90: 0 | BM90: 0 | BN90: 0 | BO90: 0 | BP90: 0 | BR90: =+IF($K90="Ongoing",AV90,IF(RIGHT($K90,2)=RIGHT(BR$39,2),SUM($AV90:AV90),0)+IF(RIGHT(BR$39,2)>RIGHT($K90,2),AV90,0)) -> 0 | BS90: =+IF($K90="Ongoing",AW90,IF(RIGHT($K90,2)=RIGHT(BS$39,2),SUM($AV90:AW90),0)+IF(RIGHT(BS$39,2)>RIGHT($K90,2),AW90,0)) -> 0 | BT90: =+IF($K90="Ongoing",AX90,IF(RIGHT($K90,2)=RIGHT(BT$39,2),SUM($AV90:AX90),0)+IF(RIGHT(BT$39,2)>RIGHT($K90,2),AX90,0)) -> 0 | BU90: =+IF($K90="Ongoing",AY90,IF(RIGHT($K90,2)=RIGHT(BU$39,2),SUM($AV90:AY90),0)+IF(RIGHT(BU$39,2)>RIGHT($K90,2),AY90,0)) -> 0 | BV90: =+IF($K90="Ongoing",AZ90,IF(RIGHT($K90,2)=RIGHT(BV$39,2),SUM($AV90:AZ90),0)+IF(RIGHT(BV$39,2)>RIGHT($K90,2),AZ90,0)) -> 0 | BW90: =+IF($K90="Ongoing",BA90,IF(RIGHT($K90,2)=RIGHT(BW$39,2),SUM($AV90:BA90),0)+IF(RIGHT(BW$39,2)>RIGHT($K90,2),BA90,0)) -> 0 | BX90: =+IF($K90="Ongoing",BB90,IF(RIGHT($K90,2)=RIGHT(BX$39,2),SUM($AV90:BB90),0)+IF(RIGHT(BX$39,2)>RIGHT($K90,2),BB90,0)) -> 0 | BY90: =+IF($K90="Ongoing",BC90,IF(RIGHT($K90,2)=RIGHT(BY$39,2),SUM($AV90:BC90),0)+IF(RIGHT(BY$39,2)>RIGHT($K90,2),BC90,0)) -> 0 | BZ90: =+IF($K90="Ongoing",BD90,IF(RIGHT($K90,2)=RIGHT(BZ$39,2),SUM($AV90:BD90),0)+IF(RIGHT(BZ$39,2)>RIGHT($K90,2),BD90,0)) -> 0 | CA90: =+IF($K90="Ongoing",BE90,IF(RIGHT($K90,2)=RIGHT(CA$39,2),SUM($AV90:BE90),0)+IF(RIGHT(CA$39,2)>RIGHT($K90,2),BE90,0)) -> 0 | CC90: =+O90*KeyAssumptionsPriceControl_FO!X$15 -> 0 | CD90: =+P90*KeyAssumptionsPriceControl_FO!Y$15 -> 0 | CE90: =+Q90*KeyAssumptionsPriceControl_FO!Z$15 -> 0 | CF90: =+R90*KeyAssumptionsPriceControl_FO!AA$15 -> 0 | CG90: =+S90*KeyAssumptionsPriceControl_FO!AB$15 -> 0 | CH90: =+T90*KeyAssumptionsPriceControl_FO!AC$15 -> 0 | CI90: =+U90*KeyAssumptionsPriceControl_FO!AD$15 -> 0 | CJ90: =+V90*KeyAssumptionsPriceControl_FO!AE$15 -> 0 | CK90: =+W90*KeyAssumptionsPriceControl_FO!AF$15 -> 0 | CL90: =+X90*KeyAssumptionsPriceControl_FO!AG$15 -> 0 | CN90: 0 | CO90: 0 | CP90: 0 | CQ90: 0 | CR90: 0 | CS90: 0 | CT90: 0 | CU90: 0 | CV90: 0 | CW90: 0
AV91: 0 | AW91: 0 | AX91: 0 | AY91: 0 | AZ91: 0 | BA91: 0 | BB91: 0 | BC91: 0 | BD91: 0 | BE91: 0 | BG91: 0 | BH91: 0 | BI91: 0 | BJ91: 0 | BK91: 0 | BL91: 0 | BM91: 0 | BN91: 0 | BO91: 0 | BP91: 0 | BR91: =+IF($K91="Ongoing",AV91,IF(RIGHT($K91,2)=RIGHT(BR$39,2),SUM($AV91:AV91),0)+IF(RIGHT(BR$39,2)>RIGHT($K91,2),AV91,0)) -> 0 | BS91: =+IF($K91="Ongoing",AW91,IF(RIGHT($K91,2)=RIGHT(BS$39,2),SUM($AV91:AW91),0)+IF(RIGHT(BS$39,2)>RIGHT($K91,2),AW91,0)) -> 0 | BT91: =+IF($K91="Ongoing",AX91,IF(RIGHT($K91,2)=RIGHT(BT$39,2),SUM($AV91:AX91),0)+IF(RIGHT(BT$39,2)>RIGHT($K91,2),AX91,0)) -> 0 | BU91: =+IF($K91="Ongoing",AY91,IF(RIGHT($K91,2)=RIGHT(BU$39,2),SUM($AV91:AY91),0)+IF(RIGHT(BU$39,2)>RIGHT($K91,2),AY91,0)) -> 0 | BV91: =+IF($K91="Ongoing",AZ91,IF(RIGHT($K91,2)=RIGHT(BV$39,2),SUM($AV91:AZ91),0)+IF(RIGHT(BV$39,2)>RIGHT($K91,2),AZ91,0)) -> 0 | BW91: =+IF($K91="Ongoing",BA91,IF(RIGHT($K91,2)=RIGHT(BW$39,2),SUM($AV91:BA91),0)+IF(RIGHT(BW$39,2)>RIGHT($K91,2),BA91,0)) -> 0 | BX91: =+IF($K91="Ongoing",BB91,IF(RIGHT($K91,2)=RIGHT(BX$39,2),SUM($AV91:BB91),0)+IF(RIGHT(BX$39,2)>RIGHT($K91,2),BB91,0)) -> 0 | BY91: =+IF($K91="Ongoing",BC91,IF(RIGHT($K91,2)=RIGHT(BY$39,2),SUM($AV91:BC91),0)+IF(RIGHT(BY$39,2)>RIGHT($K91,2),BC91,0)) -> 0 | BZ91: =+IF($K91="Ongoing",BD91,IF(RIGHT($K91,2)=RIGHT(BZ$39,2),SUM($AV91:BD91),0)+IF(RIGHT(BZ$39,2)>RIGHT($K91,2),BD91,0)) -> 0 | CA91: =+IF($K91="Ongoing",BE91,IF(RIGHT($K91,2)=RIGHT(CA$39,2),SUM($AV91:BE91),0)+IF(RIGHT(CA$39,2)>RIGHT($K91,2),BE91,0)) -> 0 | CC91: =+O91*KeyAssumptionsPriceControl_FO!X$15 -> 0 | CD91: =+P91*KeyAssumptionsPriceControl_FO!Y$15 -> 0 | CE91: =+Q91*KeyAssumptionsPriceControl_FO!Z$15 -> 0 | CF91: =+R91*KeyAssumptionsPriceControl_FO!AA$15 -> 0 | CG91: =+S91*KeyAssumptionsPriceControl_FO!AB$15 -> 0 | CH91: =+T91*KeyAssumptionsPriceControl_FO!AC$15 -> 0 | CI91: =+U91*KeyAssumptionsPriceControl_FO!AD$15 -> 0 | CJ91: =+V91*KeyAssumptionsPriceControl_FO!AE$15 -> 0 | CK91: =+W91*KeyAssumptionsPriceControl_FO!AF$15 -> 0 | CL91: =+X91*KeyAssumptionsPriceControl_FO!AG$15 -> 0 | CN91: 0 | CO91: 0 | CP91: 0 | CQ91: 0 | CR91: 0 | CS91: 0 | CT91: 0 | CU91: 0 | CV91: 0 | CW91: 0
AV92: 0 | AW92: 0 | AX92: 0 | AY92: 0 | AZ92: 0 | BA92: 0 | BB92: 0 | BC92: 0 | BD92: 0 | BE92: 0 | BG92: 0 | BH92: 0 | BI92: 0 | BJ92: 0 | BK92: 0 | BL92: 0 | BM92: 0 | BN92: 0 | BO92: 0 | BP92: 0 | BR92: =+IF($K92="Ongoing",AV92,IF(RIGHT($K92,2)=RIGHT(BR$39,2),SUM($AV92:AV92),0)+IF(RIGHT(BR$39,2)>RIGHT($K92,2),AV92,0)) -> 0 | BS92: =+IF($K92="Ongoing",AW92,IF(RIGHT($K92,2)=RIGHT(BS$39,2),SUM($AV92:AW92),0)+IF(RIGHT(BS$39,2)>RIGHT($K92,2),AW92,0)) -> 0 | BT92: =+IF($K92="Ongoing",AX92,IF(RIGHT($K92,2)=RIGHT(BT$39,2),SUM($AV92:AX92),0)+IF(RIGHT(BT$39,2)>RIGHT($K92,2),AX92,0)) -> 0 | BU92: =+IF($K92="Ongoing",AY92,IF(RIGHT($K92,2)=RIGHT(BU$39,2),SUM($AV92:AY92),0)+IF(RIGHT(BU$39,2)>RIGHT($K92,2),AY92,0)) -> 0 | BV92: =+IF($K92="Ongoing",AZ92,IF(RIGHT($K92,2)=RIGHT(BV$39,2),SUM($AV92:AZ92),0)+IF(RIGHT(BV$39,2)>RIGHT($K92,2),AZ92,0)) -> 0 | BW92: =+IF($K92="Ongoing",BA92,IF(RIGHT($K92,2)=RIGHT(BW$39,2),SUM($AV92:BA92),0)+IF(RIGHT(BW$39,2)>RIGHT($K92,2),BA92,0)) -> 0 | BX92: =+IF($K92="Ongoing",BB92,IF(RIGHT($K92,2)=RIGHT(BX$39,2),SUM($AV92:BB92),0)+IF(RIGHT(BX$39,2)>RIGHT($K92,2),BB92,0)) -> 0 | BY92: =+IF($K92="Ongoing",BC92,IF(RIGHT($K92,2)=RIGHT(BY$39,2),SUM($AV92:BC92),0)+IF(RIGHT(BY$39,2)>RIGHT($K92,2),BC92,0)) -> 0 | BZ92: =+IF($K92="Ongoing",BD92,IF(RIGHT($K92,2)=RIGHT(BZ$39,2),SUM($AV92:BD92),0)+IF(RIGHT(BZ$39,2)>RIGHT($K92,2),BD92,0)) -> 0 | CA92: =+IF($K92="Ongoing",BE92,IF(RIGHT($K92,2)=RIGHT(CA$39,2),SUM($AV92:BE92),0)+IF(RIGHT(CA$39,2)>RIGHT($K92,2),BE92,0)) -> 0 | CC92: =+O92*KeyAssumptionsPriceControl_FO!X$15 -> 0 | CD92: =+P92*KeyAssumptionsPriceControl_FO!Y$15 -> 0 | CE92: =+Q92*KeyAssumptionsPriceControl_FO!Z$15 -> 0 | CF92: =+R92*KeyAssumptionsPriceControl_FO!AA$15 -> 0 | CG92: =+S92*KeyAssumptionsPriceControl_FO!AB$15 -> 0 | CH92: =+T92*KeyAssumptionsPriceControl_FO!AC$15 -> 0 | CI92: =+U92*KeyAssumptionsPriceControl_FO!AD$15 -> 0 | CJ92: =+V92*KeyAssumptionsPriceControl_FO!AE$15 -> 0 | CK92: =+W92*KeyAssumptionsPriceControl_FO!AF$15 -> 0 | CL92: =+X92*KeyAssumptionsPriceControl_FO!AG$15 -> 0 | CN92: 0 | CO92: 0 | CP92: 0 | CQ92: 0 | CR92: 0 | CS92: 0 | CT92: 0 | CU92: 0 | CV92: 0 | CW92: 0
AV93: 0 | AW93: 0 | AX93: 0 | AY93: 0 | AZ93: 0 | BA93: 0 | BB93: 0 | BC93: 0 | BD93: 0 | BE93: 0 | BG93: 0 | BH93: 0 | BI93: 0 | BJ93: 0 | BK93: 0 | BL93: 0 | BM93: 0 | BN93: 0 | BO93: 0 | BP93: 0 | BR93: =+IF($K93="Ongoing",AV93,IF(RIGHT($K93,2)=RIGHT(BR$39,2),SUM($AV93:AV93),0)+IF(RIGHT(BR$39,2)>RIGHT($K93,2),AV93,0)) -> 0 | BS93: =+IF($K93="Ongoing",AW93,IF(RIGHT($K93,2)=RIGHT(BS$39,2),SUM($AV93:AW93),0)+IF(RIGHT(BS$39,2)>RIGHT($K93,2),AW93,0)) -> 0 | BT93: =+IF($K93="Ongoing",AX93,IF(RIGHT($K93,2)=RIGHT(BT$39,2),SUM($AV93:AX93),0)+IF(RIGHT(BT$39,2)>RIGHT($K93,2),AX93,0)) -> 0 | BU93: =+IF($K93="Ongoing",AY93,IF(RIGHT($K93,2)=RIGHT(BU$39,2),SUM($AV93:AY93),0)+IF(RIGHT(BU$39,2)>RIGHT($K93,2),AY93,0)) -> 0 | BV93: =+IF($K93="Ongoing",AZ93,IF(RIGHT($K93,2)=RIGHT(BV$39,2),SUM($AV93:AZ93),0)+IF(RIGHT(BV$39,2)>RIGHT($K93,2),AZ93,0)) -> 0 | BW93: =+IF($K93="Ongoing",BA93,IF(RIGHT($K93,2)=RIGHT(BW$39,2),SUM($AV93:BA93),0)+IF(RIGHT(BW$39,2)>RIGHT($K93,2),BA93,0)) -> 0 | BX93: =+IF($K93="Ongoing",BB93,IF(RIGHT($K93,2)=RIGHT(BX$39,2),SUM($AV93:BB93),0)+IF(RIGHT(BX$39,2)>RIGHT($K93,2),BB93,0)) -> 0 | BY93: =+IF($K93="Ongoing",BC93,IF(RIGHT($K93,2)=RIGHT(BY$39,2),SUM($AV93:BC93),0)+IF(RIGHT(BY$39,2)>RIGHT($K93,2),BC93,0)) -> 0 | BZ93: =+IF($K93="Ongoing",BD93,IF(RIGHT($K93,2)=RIGHT(BZ$39,2),SUM($AV93:BD93),0)+IF(RIGHT(BZ$39,2)>RIGHT($K93,2),BD93,0)) -> 0 | CA93: =+IF($K93="Ongoing",BE93,IF(RIGHT($K93,2)=RIGHT(CA$39,2),SUM($AV93:BE93),0)+IF(RIGHT(CA$39,2)>RIGHT($K93,2),BE93,0)) -> 0 | CC93: =+O93*KeyAssumptionsPriceControl_FO!X$15 -> 0 | CD93: =+P93*KeyAssumptionsPriceControl_FO!Y$15 -> 0 | CE93: =+Q93*KeyAssumptionsPriceControl_FO!Z$15 -> 0 | CF93: =+R93*KeyAssumptionsPriceControl_FO!AA$15 -> 0 | CG93: =+S93*KeyAssumptionsPriceControl_FO!AB$15 -> 0 | CH93: =+T93*KeyAssumptionsPriceControl_FO!AC$15 -> 0 | CI93: =+U93*KeyAssumptionsPriceControl_FO!AD$15 -> 0 | CJ93: =+V93*KeyAssumptionsPriceControl_FO!AE$15 -> 0 | CK93: =+W93*KeyAssumptionsPriceControl_FO!AF$15 -> 0 | CL93: =+X93*KeyAssumptionsPriceControl_FO!AG$15 -> 0 | CN93: 0 | CO93: 0 | CP93: 0 | CQ93: 0 | CR93: 0 | CS93: 0 | CT93: 0 | CU93: 0 | CV93: 0 | CW93: 0
AV94: 0 | AW94: 0 | AX94: 0 | AY94: 0 | AZ94: 0 | BA94: 0 | BB94: 0 | BC94: 0 | BD94: 0 | BE94: 0 | BG94: 0 | BH94: 0 | BI94: 0 | BJ94: 0 | BK94: 0 | BL94: 0 | BM94: 0 | BN94: 0 | BO94: 0 | BP94: 0 | BR94: =+IF($K94="Ongoing",AV94,IF(RIGHT($K94,2)=RIGHT(BR$39,2),SUM($AV94:AV94),0)+IF(RIGHT(BR$39,2)>RIGHT($K94,2),AV94,0)) -> 0 | BS94: =+IF($K94="Ongoing",AW94,IF(RIGHT($K94,2)=RIGHT(BS$39,2),SUM($AV94:AW94),0)+IF(RIGHT(BS$39,2)>RIGHT($K94,2),AW94,0)) -> 0 | BT94: =+IF($K94="Ongoing",AX94,IF(RIGHT($K94,2)=RIGHT(BT$39,2),SUM($AV94:AX94),0)+IF(RIGHT(BT$39,2)>RIGHT($K94,2),AX94,0)) -> 0 | BU94: =+IF($K94="Ongoing",AY94,IF(RIGHT($K94,2)=RIGHT(BU$39,2),SUM($AV94:AY94),0)+IF(RIGHT(BU$39,2)>RIGHT($K94,2),AY94,0)) -> 0 | BV94: =+IF($K94="Ongoing",AZ94,IF(RIGHT($K94,2)=RIGHT(BV$39,2),SUM($AV94:AZ94),0)+IF(RIGHT(BV$39,2)>RIGHT($K94,2),AZ94,0)) -> 0 | BW94: =+IF($K94="Ongoing",BA94,IF(RIGHT($K94,2)=RIGHT(BW$39,2),SUM($AV94:BA94),0)+IF(RIGHT(BW$39,2)>RIGHT($K94,2),BA94,0)) -> 0 | BX94: =+IF($K94="Ongoing",BB94,IF(RIGHT($K94,2)=RIGHT(BX$39,2),SUM($AV94:BB94),0)+IF(RIGHT(BX$39,2)>RIGHT($K94,2),BB94,0)) -> 0 | BY94: =+IF($K94="Ongoing",BC94,IF(RIGHT($K94,2)=RIGHT(BY$39,2),SUM($AV94:BC94),0)+IF(RIGHT(BY$39,2)>RIGHT($K94,2),BC94,0)) -> 0 | BZ94: =+IF($K94="Ongoing",BD94,IF(RIGHT($K94,2)=RIGHT(BZ$39,2),SUM($AV94:BD94),0)+IF(RIGHT(BZ$39,2)>RIGHT($K94,2),BD94,0)) -> 0 | CA94: =+IF($K94="Ongoing",BE94,IF(RIGHT($K94,2)=RIGHT(CA$39,2),SUM($AV94:BE94),0)+IF(RIGHT(CA$39,2)>RIGHT($K94,2),BE94,0)) -> 0 | CC94: =+O94*KeyAssumptionsPriceControl_FO!X$15 -> 0 | CD94: =+P94*KeyAssumptionsPriceControl_FO!Y$15 -> 0 | CE94: =+Q94*KeyAssumptionsPriceControl_FO!Z$15 -> 0 | CF94: =+R94*KeyAssumptionsPriceControl_FO!AA$15 -> 0 | CG94: =+S94*KeyAssumptionsPriceControl_FO!AB$15 -> 0 | CH94: =+T94*KeyAssumptionsPriceControl_FO!AC$15 -> 0 | CI94: =+U94*KeyAssumptionsPriceControl_FO!AD$15 -> 0 | CJ94: =+V94*KeyAssumptionsPriceControl_FO!AE$15 -> 0 | CK94: =+W94*KeyAssumptionsPriceControl_FO!AF$15 -> 0 | CL94: =+X94*KeyAssumptionsPriceControl_FO!AG$15 -> 0 | CN94: 0 | CO94: 0 | CP94: 0 | CQ94: 0 | CR94: 0 | CS94: 0 | CT94: 0 | CU94: 0 | CV94: 0 | CW94: 0
C95: Plant & Equipment | E95: Urban Water | F95: Renewals | G95: Corporate | H95: Capital Programs / Allocation | J95: Straight line | K95: Ongoing | L95: 20 | M95: 20 | O95: 0.325526 | P95: 0.45670162 | Q95: 0.45950867 | R95: 0.1869747 | S95: 0.60498469 | T95: 0.67943093 | U95: 0.70796804 | V95: 0.64763715 | W95: 0.73916903 | X95: 0.59210311 | AV95: 0.325526 | AW95: 0.45670162 | AX95: 0.45950867 | AY95: 0.1869747 | AZ95: 0.60498469 | BA95: 0.67943093 | BB95: 0.70796804 | BC95: 0.64763715 | BD95: 0.73916903 | BE95: 0.59210311 | BG95: 0.00813815 | BH95: 0.0276938405 | BI95: 0.05059909775 | BJ95: 0.066761182 | BK95: 0.08656016675 | BL95: 0.1186705573 | BM95: 0.1533555315 | BN95: 0.1872456613 | BO95: 0.2219158157 | BP95: 0.2551976193 | BR95: =+IF($K95="Ongoing",AV95,IF(RIGHT($K95,2)=RIGHT(BR$39,2),SUM($AV95:AV95),0)+IF(RIGHT(BR$39,2)>RIGHT($K95,2),AV95,0)) -> 0.325526 | BS95: =+IF($K95="Ongoing",AW95,IF(RIGHT($K95,2)=RIGHT(BS$39,2),SUM($AV95:AW95),0)+IF(RIGHT(BS$39,2)>RIGHT($K95,2),AW95,0)) -> 0.45670162 | BT95: =+IF($K95="Ongoing",AX95,IF(RIGHT($K95,2)=RIGHT(BT$39,2),SUM($AV95:AX95),0)+IF(RIGHT(BT$39,2)>RIGHT($K95,2),AX95,0)) -> 0.45950867 | BU95: =+IF($K95="Ongoing",AY95,IF(RIGHT($K95,2)=RIGHT(BU$39,2),SUM($AV95:AY95),0)+IF(RIGHT(BU$39,2)>RIGHT($K95,2),AY95,0)) -> 0.1869747 | BV95: =+IF($K95="Ongoing",AZ95,IF(RIGHT($K95,2)=RIGHT(BV$39,2),SUM($AV95:AZ95),0)+IF(RIGHT(BV$39,2)>RIGHT($K95,2),AZ95,0)) -> 0.60498469 | BW95: =+IF($K95="Ongoing",BA95,IF(RIGHT($K95,2)=RIGHT(BW$39,2),SUM($AV95:BA95),0)+IF(RIGHT(BW$39,2)>RIGHT($K95,2),BA95,0)) -> 0.67943093 | BX95: =+IF($K95="Ongoing",BB95,IF(RIGHT($K95,2)=RIGHT(BX$39,2),SUM($AV95:BB95),0)+IF(RIGHT(BX$39,2)>RIGHT($K95,2),BB95,0)) -> 0.70796804 | BY95: =+IF($K95="Ongoing",BC95,IF(RIGHT($K95,2)=RIGHT(BY$39,2),SUM($AV95:BC95),0)+IF(RIGHT(BY$39,2)>RIGHT($K95,2),BC95,0)) -> 0.64763715 | BZ95: =+IF($K95="Ongoing",BD95,IF(RIGHT($K95,2)=RIGHT(BZ$39,2),SUM($AV95:BD95),0)+IF(RIGHT(BZ$39,2)>RIGHT($K95,2),BD95,0)) -> 0.73916903 | CA95: =+IF($K95="Ongoing",BE95,IF(RIGHT($K95,2)=RIGHT(CA$39,2),SUM($AV95:BE95),0)+IF(RIGHT(CA$39,2)>RIGHT($K95,2),BE95,0)) -> 0.59210311 | CC95: =+O95*KeyAssumptionsPriceControl_FO!X$15 -> 0.333013098 | CD95: =+P95*KeyAssumptionsPriceControl_FO!Y$15 -> 0.4779514897 | CE95: =+Q95*KeyAssumptionsPriceControl_FO!Z$15 -> 0.4919495993 | CF95: =+R95*KeyAssumptionsPriceControl_FO!AA$15 -> 0.2047789821 | CG95: =+S95*KeyAssumptionsPriceControl_FO!AB$15 -> 0.6778327572 | CH95: =+T95*KeyAssumptionsPriceControl_FO!AC$15 -> 0.7787518938 | CI95: =+U95*KeyAssumptionsPriceControl_FO!AD$15 -> 0.8301242266 | CJ95: =+V95*KeyAssumptionsPriceControl_FO!AE$15 -> 0.7768493785 | CK95: =+W95*KeyAssumptionsPriceControl_FO!AF$15 -> 0.9070358775 | CL95: =+X95*KeyAssumptionsPriceControl_FO!AG$15 -> 0.743282109 | CN95: 0.00832532745 | CO95: 0.02859944214 | CP95: 0.05284696937 | CQ95: 0.0702651839 | CR95: 0.09233047739 | CS95: 0.1287450937 | CT95: 0.1689669967 | CU95: 0.2091413368 | CV95: 0.2512384682 | CW95: 0.2924964179
AV96: 0 | AW96: 0 | AX96: 0 | AY96: 0 | AZ96: 0 | BA96: 0 | BB96: 0 | BC96: 0 | BD96: 0 | BE96: 0 | BG96: 0 | BH96: 0 | BI96: 0 | BJ96: 0 | BK96: 0 | BL96: 0 | BM96: 0 | BN96: 0 | BO96: 0 | BP96: 0 | BR96: =+IF($K96="Ongoing",AV96,IF(RIGHT($K96,2)=RIGHT(BR$39,2),SUM($AV96:AV96),0)+IF(RIGHT(BR$39,2)>RIGHT($K96,2),AV96,0)) -> 0 | BS96: =+IF($K96="Ongoing",AW96,IF(RIGHT($K96,2)=RIGHT(BS$39,2),SUM($AV96:AW96),0)+IF(RIGHT(BS$39,2)>RIGHT($K96,2),AW96,0)) -> 0 | BT96: =+IF($K96="Ongoing",AX96,IF(RIGHT($K96,2)=RIGHT(BT$39,2),SUM($AV96:AX96),0)+IF(RIGHT(BT$39,2)>RIGHT($K96,2),AX96,0)) -> 0 | BU96: =+IF($K96="Ongoing",AY96,IF(RIGHT($K96,2)=RIGHT(BU$39,2),SUM($AV96:AY96),0)+IF(RIGHT(BU$39,2)>RIGHT($K96,2),AY96,0)) -> 0 | BV96: =+IF($K96="Ongoing",AZ96,IF(RIGHT($K96,2)=RIGHT(BV$39,2),SUM($AV96:AZ96),0)+IF(RIGHT(BV$39,2)>RIGHT($K96,2),AZ96,0)) -> 0 | BW96: =+IF($K96="Ongoing",BA96,IF(RIGHT($K96,2)=RIGHT(BW$39,2),SUM($AV96:BA96),0)+IF(RIGHT(BW$39,2)>RIGHT($K96,2),BA96,0)) -> 0 | BX96: =+IF($K96="Ongoing",BB96,IF(RIGHT($K96,2)=RIGHT(BX$39,2),SUM($AV96:BB96),0)+IF(RIGHT(BX$39,2)>RIGHT($K96,2),BB96,0)) -> 0 | BY96: =+IF($K96="Ongoing",BC96,IF(RIGHT($K96,2)=RIGHT(BY$39,2),SUM($AV96:BC96),0)+IF(RIGHT(BY$39,2)>RIGHT($K96,2),BC96,0)) -> 0 | BZ96: =+IF($K96="Ongoing",BD96,IF(RIGHT($K96,2)=RIGHT(BZ$39,2),SUM($AV96:BD96),0)+IF(RIGHT(BZ$39,2)>RIGHT($K96,2),BD96,0)) -> 0 | CA96: =+IF($K96="Ongoing",BE96,IF(RIGHT($K96,2)=RIGHT(CA$39,2),SUM($AV96:BE96),0)+IF(RIGHT(CA$39,2)>RIGHT($K96,2),BE96,0)) -> 0 | CC96: =+O96*KeyAssumptionsPriceControl_FO!X$15 -> 0 | CD96: =+P96*KeyAssumptionsPriceControl_FO!Y$15 -> 0 | CE96: =+Q96*KeyAssumptionsPriceControl_FO!Z$15 -> 0 | CF96: =+R96*KeyAssumptionsPriceControl_FO!AA$15 -> 0 | CG96: =+S96*KeyAssumptionsPriceControl_FO!AB$15 -> 0 | CH96: =+T96*KeyAssumptionsPriceControl_FO!AC$15 -> 0 | CI96: =+U96*KeyAssumptionsPriceControl_FO!AD$15 -> 0 | CJ96: =+V96*KeyAssumptionsPriceControl_FO!AE$15 -> 0 | CK96: =+W96*KeyAssumptionsPriceControl_FO!AF$15 -> 0 | CL96: =+X96*KeyAssumptionsPriceControl_FO!AG$15 -> 0 | CN96: 0 | CO96: 0 | CP96: 0 | CQ96: 0 | CR96: 0 | CS96: 0 | CT96: 0 | CU96: 0 | CV96: 0 | CW96: 0
AV97: 0 | AW97: 0 | AX97: 0 | AY97: 0 | AZ97: 0 | BA97: 0 | BB97: 0 | BC97: 0 | BD97: 0 | BE97: 0 | BG97: 0 | BH97: 0 | BI97: 0 | BJ97: 0 | BK97: 0 | BL97: 0 | BM97: 0 | BN97: 0 | BO97: 0 | BP97: 0 | BR97: =+IF($K97="Ongoing",AV97,IF(RIGHT($K97,2)=RIGHT(BR$39,2),SUM($AV97:AV97),0)+IF(RIGHT(BR$39,2)>RIGHT($K97,2),AV97,0)) -> 0 | BS97: =+IF($K97="Ongoing",AW97,IF(RIGHT($K97,2)=RIGHT(BS$39,2),SUM($AV97:AW97),0)+IF(RIGHT(BS$39,2)>RIGHT($K97,2),AW97,0)) -> 0 | BT97: =+IF($K97="Ongoing",AX97,IF(RIGHT($K97,2)=RIGHT(BT$39,2),SUM($AV97:AX97),0)+IF(RIGHT(BT$39,2)>RIGHT($K97,2),AX97,0)) -> 0 | BU97: =+IF($K97="Ongoing",AY97,IF(RIGHT($K97,2)=RIGHT(BU$39,2),SUM($AV97:AY97),0)+IF(RIGHT(BU$39,2)>RIGHT($K97,2),AY97,0)) -> 0 | BV97: =+IF($K97="Ongoing",AZ97,IF(RIGHT($K97,2)=RIGHT(BV$39,2),SUM($AV97:AZ97),0)+IF(RIGHT(BV$39,2)>RIGHT($K97,2),AZ97,0)) -> 0 | BW97: =+IF($K97="Ongoing",BA97,IF(RIGHT($K97,2)=RIGHT(BW$39,2),SUM($AV97:BA97),0)+IF(RIGHT(BW$39,2)>RIGHT($K97,2),BA97,0)) -> 0 | BX97: =+IF($K97="Ongoing",BB97,IF(RIGHT($K97,2)=RIGHT(BX$39,2),SUM($AV97:BB97),0)+IF(RIGHT(BX$39,2)>RIGHT($K97,2),BB97,0)) -> 0 | BY97: =+IF($K97="Ongoing",BC97,IF(RIGHT($K97,2)=RIGHT(BY$39,2),SUM($AV97:BC97),0)+IF(RIGHT(BY$39,2)>RIGHT($K97,2),BC97,0)) -> 0 | BZ97: =+IF($K97="Ongoing",BD97,IF(RIGHT($K97,2)=RIGHT(BZ$39,2),SUM($AV97:BD97),0)+IF(RIGHT(BZ$39,2)>RIGHT($K97,2),BD97,0)) -> 0 | CA97: =+IF($K97="Ongoing",BE97,IF(RIGHT($K97,2)=RIGHT(CA$39,2),SUM($AV97:BE97),0)+IF(RIGHT(CA$39,2)>RIGHT($K97,2),BE97,0)) -> 0 | CC97: =+O97*KeyAssumptionsPriceControl_FO!X$15 -> 0 | CD97: =+P97*KeyAssumptionsPriceControl_FO!Y$15 -> 0 | CE97: =+Q97*KeyAssumptionsPriceControl_FO!Z$15 -> 0 | CF97: =+R97*KeyAssumptionsPriceControl_FO!AA$15 -> 0 | CG97: =+S97*KeyAssumptionsPriceControl_FO!AB$15 -> 0 | CH97: =+T97*KeyAssumptionsPriceControl_FO!AC$15 -> 0 | CI97: =+U97*KeyAssumptionsPriceControl_FO!AD$15 -> 0 | CJ97: =+V97*KeyAssumptionsPriceControl_FO!AE$15 -> 0 | CK97: =+W97*KeyAssumptionsPriceControl_FO!AF$15 -> 0 | CL97: =+X97*KeyAssumptionsPriceControl_FO!AG$15 -> 0 | CN97: 0 | CO97: 0 | CP97: 0 | CQ97: 0 | CR97: 0 | CS97: 0 | CT97: 0 | CU97: 0 | CV97: 0 | CW97: 0
AV98: 0 | AW98: 0 | AX98: 0 | AY98: 0 | AZ98: 0 | BA98: 0 | BB98: 0 | BC98: 0 | BD98: 0 | BE98: 0 | BG98: 0 | BH98: 0 | BI98: 0 | BJ98: 0 | BK98: 0 | BL98: 0 | BM98: 0 | BN98: 0 | BO98: 0 | BP98: 0 | BR98: =+IF($K98="Ongoing",AV98,IF(RIGHT($K98,2)=RIGHT(BR$39,2),SUM($AV98:AV98),0)+IF(RIGHT(BR$39,2)>RIGHT($K98,2),AV98,0)) -> 0 | BS98: =+IF($K98="Ongoing",AW98,IF(RIGHT($K98,2)=RIGHT(BS$39,2),SUM($AV98:AW98),0)+IF(RIGHT(BS$39,2)>RIGHT($K98,2),AW98,0)) -> 0 | BT98: =+IF($K98="Ongoing",AX98,IF(RIGHT($K98,2)=RIGHT(BT$39,2),SUM($AV98:AX98),0)+IF(RIGHT(BT$39,2)>RIGHT($K98,2),AX98,0)) -> 0 | BU98: =+IF($K98="Ongoing",AY98,IF(RIGHT($K98,2)=RIGHT(BU$39,2),SUM($AV98:AY98),0)+IF(RIGHT(BU$39,2)>RIGHT($K98,2),AY98,0)) -> 0 | BV98: =+IF($K98="Ongoing",AZ98,IF(RIGHT($K98,2)=RIGHT(BV$39,2),SUM($AV98:AZ98),0)+IF(RIGHT(BV$39,2)>RIGHT($K98,2),AZ98,0)) -> 0 | BW98: =+IF($K98="Ongoing",BA98,IF(RIGHT($K98,2)=RIGHT(BW$39,2),SUM($AV98:BA98),0)+IF(RIGHT(BW$39,2)>RIGHT($K98,2),BA98,0)) -> 0 | BX98: =+IF($K98="Ongoing",BB98,IF(RIGHT($K98,2)=RIGHT(BX$39,2),SUM($AV98:BB98),0)+IF(RIGHT(BX$39,2)>RIGHT($K98,2),BB98,0)) -> 0 | BY98: =+IF($K98="Ongoing",BC98,IF(RIGHT($K98,2)=RIGHT(BY$39,2),SUM($AV98:BC98),0)+IF(RIGHT(BY$39,2)>RIGHT($K98,2),BC98,0)) -> 0 | BZ98: =+IF($K98="Ongoing",BD98,IF(RIGHT($K98,2)=RIGHT(BZ$39,2),SUM($AV98:BD98),0)+IF(RIGHT(BZ$39,2)>RIGHT($K98,2),BD98,0)) -> 0 | CA98: =+IF($K98="Ongoing",BE98,IF(RIGHT($K98,2)=RIGHT(CA$39,2),SUM($AV98:BE98),0)+IF(RIGHT(CA$39,2)>RIGHT($K98,2),BE98,0)) -> 0 | CC98: =+O98*KeyAssumptionsPriceControl_FO!X$15 -> 0 | CD98: =+P98*KeyAssumptionsPriceControl_FO!Y$15 -> 0 | CE98: =+Q98*KeyAssumptionsPriceControl_FO!Z$15 -> 0 | CF98: =+R98*KeyAssumptionsPriceControl_FO!AA$15 -> 0 | CG98: =+S98*KeyAssumptionsPriceControl_FO!AB$15 -> 0 | CH98: =+T98*KeyAssumptionsPriceControl_FO!AC$15 -> 0 | CI98: =+U98*KeyAssumptionsPriceControl_FO!AD$15 -> 0 | CJ98: =+V98*KeyAssumptionsPriceControl_FO!AE$15 -> 0 | CK98: =+W98*KeyAssumptionsPriceControl_FO!AF$15 -> 0 | CL98: =+X98*KeyAssumptionsPriceControl_FO!AG$15 -> 0 | CN98: 0 | CO98: 0 | CP98: 0 | CQ98: 0 | CR98: 0 | CS98: 0 | CT98: 0 | CU98: 0 | CV98: 0 | CW98: 0
AV99: 0 | AW99: 0 | AX99: 0 | AY99: 0 | AZ99: 0 | BA99: 0 | BB99: 0 | BC99: 0 | BD99: 0 | BE99: 0 | BG99: 0 | BH99: 0 | BI99: 0 | BJ99: 0 | BK99: 0 | BL99: 0 | BM99: 0 | BN99: 0 | BO99: 0 | BP99: 0 | BR99: =+IF($K99="Ongoing",AV99,IF(RIGHT($K99,2)=RIGHT(BR$39,2),SUM($AV99:AV99),0)+IF(RIGHT(BR$39,2)>RIGHT($K99,2),AV99,0)) -> 0 | BS99: =+IF($K99="Ongoing",AW99,IF(RIGHT($K99,2)=RIGHT(BS$39,2),SUM($AV99:AW99),0)+IF(RIGHT(BS$39,2)>RIGHT($K99,2),AW99,0)) -> 0 | BT99: =+IF($K99="Ongoing",AX99,IF(RIGHT($K99,2)=RIGHT(BT$39,2),SUM($AV99:AX99),0)+IF(RIGHT(BT$39,2)>RIGHT($K99,2),AX99,0)) -> 0 | BU99: =+IF($K99="Ongoing",AY99,IF(RIGHT($K99,2)=RIGHT(BU$39,2),SUM($AV99:AY99),0)+IF(RIGHT(BU$39,2)>RIGHT($K99,2),AY99,0)) -> 0 | BV99: =+IF($K99="Ongoing",AZ99,IF(RIGHT($K99,2)=RIGHT(BV$39,2),SUM($AV99:AZ99),0)+IF(RIGHT(BV$39,2)>RIGHT($K99,2),AZ99,0)) -> 0 | BW99: =+IF($K99="Ongoing",BA99,IF(RIGHT($K99,2)=RIGHT(BW$39,2),SUM($AV99:BA99),0)+IF(RIGHT(BW$39,2)>RIGHT($K99,2),BA99,0)) -> 0 | BX99: =+IF($K99="Ongoing",BB99,IF(RIGHT($K99,2)=RIGHT(BX$39,2),SUM($AV99:BB99),0)+IF(RIGHT(BX$39,2)>RIGHT($K99,2),BB99,0)) -> 0 | BY99: =+IF($K99="Ongoing",BC99,IF(RIGHT($K99,2)=RIGHT(BY$39,2),SUM($AV99:BC99),0)+IF(RIGHT(BY$39,2)>RIGHT($K99,2),BC99,0)) -> 0 | BZ99: =+IF($K99="Ongoing",BD99,IF(RIGHT($K99,2)=RIGHT(BZ$39,2),SUM($AV99:BD99),0)+IF(RIGHT(BZ$39,2)>RIGHT($K99,2),BD99,0)) -> 0 | CA99: =+IF($K99="Ongoing",BE99,IF(RIGHT($K99,2)=RIGHT(CA$39,2),SUM($AV99:BE99),0)+IF(RIGHT(CA$39,2)>RIGHT($K99,2),BE99,0)) -> 0 | CC99: =+O99*KeyAssumptionsPriceControl_FO!X$15 -> 0 | CD99: =+P99*KeyAssumptionsPriceControl_FO!Y$15 -> 0 | CE99: =+Q99*KeyAssumptionsPriceControl_FO!Z$15 -> 0 | CF99: =+R99*KeyAssumptionsPriceControl_FO!AA$15 -> 0 | CG99: =+S99*KeyAssumptionsPriceControl_FO!AB$15 -> 0 | CH99: =+T99*KeyAssumptionsPriceControl_FO!AC$15 -> 0 | CI99: =+U99*KeyAssumptionsPriceControl_FO!AD$15 -> 0 | CJ99: =+V99*KeyAssumptionsPriceControl_FO!AE$15 -> 0 | CK99: =+W99*KeyAssumptionsPriceControl_FO!AF$15 -> 0 | CL99: =+X99*KeyAssumptionsPriceControl_FO!AG$15 -> 0 | CN99: 0 | CO99: 0 | CP99: 0 | CQ99: 0 | CR99: 0 | CS99: 0 | CT99: 0 | CU99: 0 | CV99: 0 | CW99: 0
AV100: 0 | AW100: 0 | AX100: 0 | AY100: 0 | AZ100: 0 | BA100: 0 | BB100: 0 | BC100: 0 | BD100: 0 | BE100: 0 | BG100: 0 | BH100: 0 | BI100: 0 | BJ100: 0 | BK100: 0 | BL100: 0 | BM100: 0 | BN100: 0 | BO100: 0 | BP100: 0 | BR100: =+IF($K100="Ongoing",AV100,IF(RIGHT($K100,2)=RIGHT(BR$39,2),SUM($AV100:AV100),0)+IF(RIGHT(BR$39,2)>RIGHT($K100,2),AV100,0)) -> 0 | BS100: =+IF($K100="Ongoing",AW100,IF(RIGHT($K100,2)=RIGHT(BS$39,2),SUM($AV100:AW100),0)+IF(RIGHT(BS$39,2)>RIGHT($K100,2),AW100,0)) -> 0 | BT100: =+IF($K100="Ongoing",AX100,IF(RIGHT($K100,2)=RIGHT(BT$39,2),SUM($AV100:AX100),0)+IF(RIGHT(BT$39,2)>RIGHT($K100,2),AX100,0)) -> 0 | BU100: =+IF($K100="Ongoing",AY100,IF(RIGHT($K100,2)=RIGHT(BU$39,2),SUM($AV100:AY100),0)+IF(RIGHT(BU$39,2)>RIGHT($K100,2),AY100,0)) -> 0 | BV100: =+IF($K100="Ongoing",AZ100,IF(RIGHT($K100,2)=RIGHT(BV$39,2),SUM($AV100:AZ100),0)+IF(RIGHT(BV$39,2)>RIGHT($K100,2),AZ100,0)) -> 0 | BW100: =+IF($K100="Ongoing",BA100,IF(RIGHT($K100,2)=RIGHT(BW$39,2),SUM($AV100:BA100),0)+IF(RIGHT(BW$39,2)>RIGHT($K100,2),BA100,0)) -> 0 | BX100: =+IF($K100="Ongoing",BB100,IF(RIGHT($K100,2)=RIGHT(BX$39,2),SUM($AV100:BB100),0)+IF(RIGHT(BX$39,2)>RIGHT($K100,2),BB100,0)) -> 0 | BY100: =+IF($K100="Ongoing",BC100,IF(RIGHT($K100,2)=RIGHT(BY$39,2),SUM($AV100:BC100),0)+IF(RIGHT(BY$39,2)>RIGHT($K100,2),BC100,0)) -> 0 | BZ100: =+IF($K100="Ongoing",BD100,IF(RIGHT($K100,2)=RIGHT(BZ$39,2),SUM($AV100:BD100),0)+IF(RIGHT(BZ$39,2)>RIGHT($K100,2),BD100,0)) -> 0 | CA100: =+IF($K100="Ongoing",BE100,IF(RIGHT($K100,2)=RIGHT(CA$39,2),SUM($AV100:BE100),0)+IF(RIGHT(CA$39,2)>RIGHT($K100,2),BE100,0)) -> 0 | CC100: =+O100*KeyAssumptionsPriceControl_FO!X$15 -> 0 | CD100: =+P100*KeyAssumptionsPriceControl_FO!Y$15 -> 0 | CE100: =+Q100*KeyAssumptionsPriceControl_FO!Z$15 -> 0 | CF100: =+R100*KeyAssumptionsPriceControl_FO!AA$15 -> 0 | CG100: =+S100*KeyAssumptionsPriceControl_FO!AB$15 -> 0 | CH100: =+T100*KeyAssumptionsPriceControl_FO!AC$15 -> 0 | CI100: =+U100*KeyAssumptionsPriceControl_FO!AD$15 -> 0 | CJ100: =+V100*KeyAssumptionsPriceControl_FO!AE$15 -> 0 | CK100: =+W100*KeyAssumptionsPriceControl_FO!AF$15 -> 0 | CL100: =+X100*KeyAssumptionsPriceControl_FO!AG$15 -> 0 | CN100: 0 | CO100: 0 | CP100: 0 | CQ100: 0 | CR100: 0 | CS100: 0 | CT100: 0 | CU100: 0 | CV100: 0 | CW100: 0
AV101: 0 | AW101: 0 | AX101: 0 | AY101: 0 | AZ101: 0 | BA101: 0 | BB101: 0 | BC101: 0 | BD101: 0 | BE101: 0 | BG101: 0 | BH101: 0 | BI101: 0 | BJ101: 0 | BK101: 0 | BL101: 0 | BM101: 0 | BN101: 0 | BO101: 0 | BP101: 0 | BR101: =+IF($K101="Ongoing",AV101,IF(RIGHT($K101,2)=RIGHT(BR$39,2),SUM($AV101:AV101),0)+IF(RIGHT(BR$39,2)>RIGHT($K101,2),AV101,0)) -> 0 | BS101: =+IF($K101="Ongoing",AW101,IF(RIGHT($K101,2)=RIGHT(BS$39,2),SUM($AV101:AW101),0)+IF(RIGHT(BS$39,2)>RIGHT($K101,2),AW101,0)) -> 0 | BT101: =+IF($K101="Ongoing",AX101,IF(RIGHT($K101,2)=RIGHT(BT$39,2),SUM($AV101:AX101),0)+IF(RIGHT(BT$39,2)>RIGHT($K101,2),AX101,0)) -> 0 | BU101: =+IF($K101="Ongoing",AY101,IF(RIGHT($K101,2)=RIGHT(BU$39,2),SUM($AV101:AY101),0)+IF(RIGHT(BU$39,2)>RIGHT($K101,2),AY101,0)) -> 0 | BV101: =+IF($K101="Ongoing",AZ101,IF(RIGHT($K101,2)=RIGHT(BV$39,2),SUM($AV101:AZ101),0)+IF(RIGHT(BV$39,2)>RIGHT($K101,2),AZ101,0)) -> 0 | BW101: =+IF($K101="Ongoing",BA101,IF(RIGHT($K101,2)=RIGHT(BW$39,2),SUM($AV101:BA101),0)+IF(RIGHT(BW$39,2)>RIGHT($K101,2),BA101,0)) -> 0 | BX101: =+IF($K101="Ongoing",BB101,IF(RIGHT($K101,2)=RIGHT(BX$39,2),SUM($AV101:BB101),0)+IF(RIGHT(BX$39,2)>RIGHT($K101,2),BB101,0)) -> 0 | BY101: =+IF($K101="Ongoing",BC101,IF(RIGHT($K101,2)=RIGHT(BY$39,2),SUM($AV101:BC101),0)+IF(RIGHT(BY$39,2)>RIGHT($K101,2),BC101,0)) -> 0 | BZ101: =+IF($K101="Ongoing",BD101,IF(RIGHT($K101,2)=RIGHT(BZ$39,2),SUM($AV101:BD101),0)+IF(RIGHT(BZ$39,2)>RIGHT($K101,2),BD101,0)) -> 0 | CA101: =+IF($K101="Ongoing",BE101,IF(RIGHT($K101,2)=RIGHT(CA$39,2),SUM($AV101:BE101),0)+IF(RIGHT(CA$39,2)>RIGHT($K101,2),BE101,0)) -> 0 | CC101: =+O101*KeyAssumptionsPriceControl_FO!X$15 -> 0 | CD101: =+P101*KeyAssumptionsPriceControl_FO!Y$15 -> 0 | CE101: =+Q101*KeyAssumptionsPriceControl_FO!Z$15 -> 0 | CF101: =+R101*KeyAssumptionsPriceControl_FO!AA$15 -> 0 | CG101: =+S101*KeyAssumptionsPriceControl_FO!AB$15 -> 0 | CH101: =+T101*KeyAssumptionsPriceControl_FO!AC$15 -> 0 | CI101: =+U101*KeyAssumptionsPriceControl_FO!AD$15 -> 0 | CJ101: =+V101*KeyAssumptionsPriceControl_FO!AE$15 -> 0 | CK101: =+W101*KeyAssumptionsPriceControl_FO!AF$15 -> 0 | CL101: =+X101*KeyAssumptionsPriceControl_FO!AG$15 -> 0 | CN101: 0 | CO101: 0 | CP101: 0 | CQ101: 0 | CR101: 0 | CS101: 0 | CT101: 0 | CU101: 0 | CV101: 0 | CW101: 0
AV102: 0 | AW102: 0 | AX102: 0 | AY102: 0 | AZ102: 0 | BA102: 0 | BB102: 0 | BC102: 0 | BD102: 0 | BE102: 0 | BG102: 0 | BH102: 0 | BI102: 0 | BJ102: 0 | BK102: 0 | BL102: 0 | BM102: 0 | BN102: 0 | BO102: 0 | BP102: 0 | BR102: =+IF($K102="Ongoing",AV102,IF(RIGHT($K102,2)=RIGHT(BR$39,2),SUM($AV102:AV102),0)+IF(RIGHT(BR$39,2)>RIGHT($K102,2),AV102,0)) -> 0 | BS102: =+IF($K102="Ongoing",AW102,IF(RIGHT($K102,2)=RIGHT(BS$39,2),SUM($AV102:AW102),0)+IF(RIGHT(BS$39,2)>RIGHT($K102,2),AW102,0)) -> 0 | BT102: =+IF($K102="Ongoing",AX102,IF(RIGHT($K102,2)=RIGHT(BT$39,2),SUM($AV102:AX102),0)+IF(RIGHT(BT$39,2)>RIGHT($K102,2),AX102,0)) -> 0 | BU102: =+IF($K102="Ongoing",AY102,IF(RIGHT($K102,2)=RIGHT(BU$39,2),SUM($AV102:AY102),0)+IF(RIGHT(BU$39,2)>RIGHT($K102,2),AY102,0)) -> 0 | BV102: =+IF($K102="Ongoing",AZ102,IF(RIGHT($K102,2)=RIGHT(BV$39,2),SUM($AV102:AZ102),0)+IF(RIGHT(BV$39,2)>RIGHT($K102,2),AZ102,0)) -> 0 | BW102: =+IF($K102="Ongoing",BA102,IF(RIGHT($K102,2)=RIGHT(BW$39,2),SUM($AV102:BA102),0)+IF(RIGHT(BW$39,2)>RIGHT($K102,2),BA102,0)) -> 0 | BX102: =+IF($K102="Ongoing",BB102,IF(RIGHT($K102,2)=RIGHT(BX$39,2),SUM($AV102:BB102),0)+IF(RIGHT(BX$39,2)>RIGHT($K102,2),BB102,0)) -> 0 | BY102: =+IF($K102="Ongoing",BC102,IF(RIGHT($K102,2)=RIGHT(BY$39,2),SUM($AV102:BC102),0)+IF(RIGHT(BY$39,2)>RIGHT($K102,2),BC102,0)) -> 0 | BZ102: =+IF($K102="Ongoing",BD102,IF(RIGHT($K102,2)=RIGHT(BZ$39,2),SUM($AV102:BD102),0)+IF(RIGHT(BZ$39,2)>RIGHT($K102,2),BD102,0)) -> 0 | CA102: =+IF($K102="Ongoing",BE102,IF(RIGHT($K102,2)=RIGHT(CA$39,2),SUM($AV102:BE102),0)+IF(RIGHT(CA$39,2)>RIGHT($K102,2),BE102,0)) -> 0 | CC102: =+O102*KeyAssumptionsPriceControl_FO!X$15 -> 0 | CD102: =+P102*KeyAssumptionsPriceControl_FO!Y$15 -> 0 | CE102: =+Q102*KeyAssumptionsPriceControl_FO!Z$15 -> 0 | CF102: =+R102*KeyAssumptionsPriceControl_FO!AA$15 -> 0 | CG102: =+S102*KeyAssumptionsPriceControl_FO!AB$15 -> 0 | CH102: =+T102*KeyAssumptionsPriceControl_FO!AC$15 -> 0 | CI102: =+U102*KeyAssumptionsPriceControl_FO!AD$15 -> 0 | CJ102: =+V102*KeyAssumptionsPriceControl_FO!AE$15 -> 0 | CK102: =+W102*KeyAssumptionsPriceControl_FO!AF$15 -> 0 | CL102: =+X102*KeyAssumptionsPriceControl_FO!AG$15 -> 0 | CN102: 0 | CO102: 0 | CP102: 0 | CQ102: 0 | CR102: 0 | CS102: 0 | CT102: 0 | CU102: 0 | CV102: 0 | CW102: 0
AV103: 0 | AW103: 0 | AX103: 0 | AY103: 0 | AZ103: 0 | BA103: 0 | BB103: 0 | BC103: 0 | BD103: 0 | BE103: 0 | BG103: 0 | BH103: 0 | BI103: 0 | BJ103: 0 | BK103: 0 | BL103: 0 | BM103: 0 | BN103: 0 | BO103: 0 | BP103: 0 | BR103: =+IF($K103="Ongoing",AV103,IF(RIGHT($K103,2)=RIGHT(BR$39,2),SUM($AV103:AV103),0)+IF(RIGHT(BR$39,2)>RIGHT($K103,2),AV103,0)) -> 0 | BS103: =+IF($K103="Ongoing",AW103,IF(RIGHT($K103,2)=RIGHT(BS$39,2),SUM($AV103:AW103),0)+IF(RIGHT(BS$39,2)>RIGHT($K103,2),AW103,0)) -> 0 | BT103: =+IF($K103="Ongoing",AX103,IF(RIGHT($K103,2)=RIGHT(BT$39,2),SUM($AV103:AX103),0)+IF(RIGHT(BT$39,2)>RIGHT($K103,2),AX103,0)) -> 0 | BU103: =+IF($K103="Ongoing",AY103,IF(RIGHT($K103,2)=RIGHT(BU$39,2),SUM($AV103:AY103),0)+IF(RIGHT(BU$39,2)>RIGHT($K103,2),AY103,0)) -> 0 | BV103: =+IF($K103="Ongoing",AZ103,IF(RIGHT($K103,2)=RIGHT(BV$39,2),SUM($AV103:AZ103),0)+IF(RIGHT(BV$39,2)>RIGHT($K103,2),AZ103,0)) -> 0 | BW103: =+IF($K103="Ongoing",BA103,IF(RIGHT($K103,2)=RIGHT(BW$39,2),SUM($AV103:BA103),0)+IF(RIGHT(BW$39,2)>RIGHT($K103,2),BA103,0)) -> 0 | BX103: =+IF($K103="Ongoing",BB103,IF(RIGHT($K103,2)=RIGHT(BX$39,2),SUM($AV103:BB103),0)+IF(RIGHT(BX$39,2)>RIGHT($K103,2),BB103,0)) -> 0 | BY103: =+IF($K103="Ongoing",BC103,IF(RIGHT($K103,2)=RIGHT(BY$39,2),SUM($AV103:BC103),0)+IF(RIGHT(BY$39,2)>RIGHT($K103,2),BC103,0)) -> 0 | BZ103: =+IF($K103="Ongoing",BD103,IF(RIGHT($K103,2)=RIGHT(BZ$39,2),SUM($AV103:BD103),0)+IF(RIGHT(BZ$39,2)>RIGHT($K103,2),BD103,0)) -> 0 | CA103: =+IF($K103="Ongoing",BE103,IF(RIGHT($K103,2)=RIGHT(CA$39,2),SUM($AV103:BE103),0)+IF(RIGHT(CA$39,2)>RIGHT($K103,2),BE103,0)) -> 0 | CC103: =+O103*KeyAssumptionsPriceControl_FO!X$15 -> 0 | CD103: =+P103*KeyAssumptionsPriceControl_FO!Y$15 -> 0 | CE103: =+Q103*KeyAssumptionsPriceControl_FO!Z$15 -> 0 | CF103: =+R103*KeyAssumptionsPriceControl_FO!AA$15 -> 0 | CG103: =+S103*KeyAssumptionsPriceControl_FO!AB$15 -> 0 | CH103: =+T103*KeyAssumptionsPriceControl_FO!AC$15 -> 0 | CI103: =+U103*KeyAssumptionsPriceControl_FO!AD$15 -> 0 | CJ103: =+V103*KeyAssumptionsPriceControl_FO!AE$15 -> 0 | CK103: =+W103*KeyAssumptionsPriceControl_FO!AF$15 -> 0 | CL103: =+X103*KeyAssumptionsPriceControl_FO!AG$15 -> 0 | CN103: 0 | CO103: 0 | CP103: 0 | CQ103: 0 | CR103: 0 | CS103: 0 | CT103: 0 | CU103: 0 | CV103: 0 | CW103: 0
AV104: 0 | AW104: 0 | AX104: 0 | AY104: 0 | AZ104: 0 | BA104: 0 | BB104: 0 | BC104: 0 | BD104: 0 | BE104: 0 | BG104: 0 | BH104: 0 | BI104: 0 | BJ104: 0 | BK104: 0 | BL104: 0 | BM104: 0 | BN104: 0 | BO104: 0 | BP104: 0 | BR104: =+IF($K104="Ongoing",AV104,IF(RIGHT($K104,2)=RIGHT(BR$39,2),SUM($AV104:AV104),0)+IF(RIGHT(BR$39,2)>RIGHT($K104,2),AV104,0)) -> 0 | BS104: =+IF($K104="Ongoing",AW104,IF(RIGHT($K104,2)=RIGHT(BS$39,2),SUM($AV104:AW104),0)+IF(RIGHT(BS$39,2)>RIGHT($K104,2),AW104,0)) -> 0 | BT104: =+IF($K104="Ongoing",AX104,IF(RIGHT($K104,2)=RIGHT(BT$39,2),SUM($AV104:AX104),0)+IF(RIGHT(BT$39,2)>RIGHT($K104,2),AX104,0)) -> 0 | BU104: =+IF($K104="Ongoing",AY104,IF(RIGHT($K104,2)=RIGHT(BU$39,2),SUM($AV104:AY104),0)+IF(RIGHT(BU$39,2)>RIGHT($K104,2),AY104,0)) -> 0 | BV104: =+IF($K104="Ongoing",AZ104,IF(RIGHT($K104,2)=RIGHT(BV$39,2),SUM($AV104:AZ104),0)+IF(RIGHT(BV$39,2)>RIGHT($K104,2),AZ104,0)) -> 0 | BW104: =+IF($K104="Ongoing",BA104,IF(RIGHT($K104,2)=RIGHT(BW$39,2),SUM($AV104:BA104),0)+IF(RIGHT(BW$39,2)>RIGHT($K104,2),BA104,0)) -> 0 | BX104: =+IF($K104="Ongoing",BB104,IF(RIGHT($K104,2)=RIGHT(BX$39,2),SUM($AV104:BB104),0)+IF(RIGHT(BX$39,2)>RIGHT($K104,2),BB104,0)) -> 0 | BY104: =+IF($K104="Ongoing",BC104,IF(RIGHT($K104,2)=RIGHT(BY$39,2),SUM($AV104:BC104),0)+IF(RIGHT(BY$39,2)>RIGHT($K104,2),BC104,0)) -> 0 | BZ104: =+IF($K104="Ongoing",BD104,IF(RIGHT($K104,2)=RIGHT(BZ$39,2),SUM($AV104:BD104),0)+IF(RIGHT(BZ$39,2)>RIGHT($K104,2),BD104,0)) -> 0 | CA104: =+IF($K104="Ongoing",BE104,IF(RIGHT($K104,2)=RIGHT(CA$39,2),SUM($AV104:BE104),0)+IF(RIGHT(CA$39,2)>RIGHT($K104,2),BE104,0)) -> 0 | CC104: =+O104*KeyAssumptionsPriceControl_FO!X$15 -> 0 | CD104: =+P104*KeyAssumptionsPriceControl_FO!Y$15 -> 0 | CE104: =+Q104*KeyAssumptionsPriceControl_FO!Z$15 -> 0 | CF104: =+R104*KeyAssumptionsPriceControl_FO!AA$15 -> 0 | CG104: =+S104*KeyAssumptionsPriceControl_FO!AB$15 -> 0 | CH104: =+T104*KeyAssumptionsPriceControl_FO!AC$15 -> 0 | CI104: =+U104*KeyAssumptionsPriceControl_FO!AD$15 -> 0 | CJ104: =+V104*KeyAssumptionsPriceControl_FO!AE$15 -> 0 | CK104: =+W104*KeyAssumptionsPriceControl_FO!AF$15 -> 0 | CL104: =+X104*KeyAssumptionsPriceControl_FO!AG$15 -> 0 | CN104: 0 | CO104: 0 | CP104: 0 | CQ104: 0 | CR104: 0 | CS104: 0 | CT104: 0 | CU104: 0 | CV104: 0 | CW104: 0
AV105: 0 | AW105: 0 | AX105: 0 | AY105: 0 | AZ105: 0 | BA105: 0 | BB105: 0 | BC105: 0 | BD105: 0 | BE105: 0 | BG105: 0 | BH105: 0 | BI105: 0 | BJ105: 0 | BK105: 0 | BL105: 0 | BM105: 0 | BN105: 0 | BO105: 0 | BP105: 0 | BR105: =+IF($K105="Ongoing",AV105,IF(RIGHT($K105,2)=RIGHT(BR$39,2),SUM($AV105:AV105),0)+IF(RIGHT(BR$39,2)>RIGHT($K105,2),AV105,0)) -> 0 | BS105: =+IF($K105="Ongoing",AW105,IF(RIGHT($K105,2)=RIGHT(BS$39,2),SUM($AV105:AW105),0)+IF(RIGHT(BS$39,2)>RIGHT($K105,2),AW105,0)) -> 0 | BT105: =+IF($K105="Ongoing",AX105,IF(RIGHT($K105,2)=RIGHT(BT$39,2),SUM($AV105:AX105),0)+IF(RIGHT(BT$39,2)>RIGHT($K105,2),AX105,0)) -> 0 | BU105: =+IF($K105="Ongoing",AY105,IF(RIGHT($K105,2)=RIGHT(BU$39,2),SUM($AV105:AY105),0)+IF(RIGHT(BU$39,2)>RIGHT($K105,2),AY105,0)) -> 0 | BV105: =+IF($K105="Ongoing",AZ105,IF(RIGHT($K105,2)=RIGHT(BV$39,2),SUM($AV105:AZ105),0)+IF(RIGHT(BV$39,2)>RIGHT($K105,2),AZ105,0)) -> 0 | BW105: =+IF($K105="Ongoing",BA105,IF(RIGHT($K105,2)=RIGHT(BW$39,2),SUM($AV105:BA105),0)+IF(RIGHT(BW$39,2)>RIGHT($K105,2),BA105,0)) -> 0 | BX105: =+IF($K105="Ongoing",BB105,IF(RIGHT($K105,2)=RIGHT(BX$39,2),SUM($AV105:BB105),0)+IF(RIGHT(BX$39,2)>RIGHT($K105,2),BB105,0)) -> 0 | BY105: =+IF($K105="Ongoing",BC105,IF(RIGHT($K105,2)=RIGHT(BY$39,2),SUM($AV105:BC105),0)+IF(RIGHT(BY$39,2)>RIGHT($K105,2),BC105,0)) -> 0 | BZ105: =+IF($K105="Ongoing",BD105,IF(RIGHT($K105,2)=RIGHT(BZ$39,2),SUM($AV105:BD105),0)+IF(RIGHT(BZ$39,2)>RIGHT($K105,2),BD105,0)) -> 0 | CA105: =+IF($K105="Ongoing",BE105,IF(RIGHT($K105,2)=RIGHT(CA$39,2),SUM($AV105:BE105),0)+IF(RIGHT(CA$39,2)>RIGHT($K105,2),BE105,0)) -> 0 | CC105: =+O105*KeyAssumptionsPriceControl_FO!X$15 -> 0 | CD105: =+P105*KeyAssumptionsPriceControl_FO!Y$15 -> 0 | CE105: =+Q105*KeyAssumptionsPriceControl_FO!Z$15 -> 0 | CF105: =+R105*KeyAssumptionsPriceControl_FO!AA$15 -> 0 | CG105: =+S105*KeyAssumptionsPriceControl_FO!AB$15 -> 0 | CH105: =+T105*KeyAssumptionsPriceControl_FO!AC$15 -> 0 | CI105: =+U105*KeyAssumptionsPriceControl_FO!AD$15 -> 0 | CJ105: =+V105*KeyAssumptionsPriceControl_FO!AE$15 -> 0 | CK105: =+W105*KeyAssumptionsPriceControl_FO!AF$15 -> 0 | CL105: =+X105*KeyAssumptionsPriceControl_FO!AG$15 -> 0 | CN105: 0 | CO105: 0 | CP105: 0 | CQ105: 0 | CR105: 0 | CS105: 0 | CT105: 0 | CU105: 0 | CV105: 0 | CW105: 0
AV106: 0 | AW106: 0 | AX106: 0 | AY106: 0 | AZ106: 0 | BA106: 0 | BB106: 0 | BC106: 0 | BD106: 0 | BE106: 0 | BG106: 0 | BH106: 0 | BI106: 0 | BJ106: 0 | BK106: 0 | BL106: 0 | BM106: 0 | BN106: 0 | BO106: 0 | BP106: 0 | BR106: =+IF($K106="Ongoing",AV106,IF(RIGHT($K106,2)=RIGHT(BR$39,2),SUM($AV106:AV106),0)+IF(RIGHT(BR$39,2)>RIGHT($K106,2),AV106,0)) -> 0 | BS106: =+IF($K106="Ongoing",AW106,IF(RIGHT($K106,2)=RIGHT(BS$39,2),SUM($AV106:AW106),0)+IF(RIGHT(BS$39,2)>RIGHT($K106,2),AW106,0)) -> 0 | BT106: =+IF($K106="Ongoing",AX106,IF(RIGHT($K106,2)=RIGHT(BT$39,2),SUM($AV106:AX106),0)+IF(RIGHT(BT$39,2)>RIGHT($K106,2),AX106,0)) -> 0 | BU106: =+IF($K106="Ongoing",AY106,IF(RIGHT($K106,2)=RIGHT(BU$39,2),SUM($AV106:AY106),0)+IF(RIGHT(BU$39,2)>RIGHT($K106,2),AY106,0)) -> 0 | BV106: =+IF($K106="Ongoing",AZ106,IF(RIGHT($K106,2)=RIGHT(BV$39,2),SUM($AV106:AZ106),0)+IF(RIGHT(BV$39,2)>RIGHT($K106,2),AZ106,0)) -> 0 | BW106: =+IF($K106="Ongoing",BA106,IF(RIGHT($K106,2)=RIGHT(BW$39,2),SUM($AV106:BA106),0)+IF(RIGHT(BW$39,2)>RIGHT($K106,2),BA106,0)) -> 0 | BX106: =+IF($K106="Ongoing",BB106,IF(RIGHT($K106,2)=RIGHT(BX$39,2),SUM($AV106:BB106),0)+IF(RIGHT(BX$39,2)>RIGHT($K106,2),BB106,0)) -> 0 | BY106: =+IF($K106="Ongoing",BC106,IF(RIGHT($K106,2)=RIGHT(BY$39,2),SUM($AV106:BC106),0)+IF(RIGHT(BY$39,2)>RIGHT($K106,2),BC106,0)) -> 0 | BZ106: =+IF($K106="Ongoing",BD106,IF(RIGHT($K106,2)=RIGHT(BZ$39,2),SUM($AV106:BD106),0)+IF(RIGHT(BZ$39,2)>RIGHT($K106,2),BD106,0)) -> 0 | CA106: =+IF($K106="Ongoing",BE106,IF(RIGHT($K106,2)=RIGHT(CA$39,2),SUM($AV106:BE106),0)+IF(RIGHT(CA$39,2)>RIGHT($K106,2),BE106,0)) -> 0 | CC106: =+O106*KeyAssumptionsPriceControl_FO!X$15 -> 0 | CD106: =+P106*KeyAssumptionsPriceControl_FO!Y$15 -> 0 | CE106: =+Q106*KeyAssumptionsPriceControl_FO!Z$15 -> 0 | CF106: =+R106*KeyAssumptionsPriceControl_FO!AA$15 -> 0 | CG106: =+S106*KeyAssumptionsPriceControl_FO!AB$15 -> 0 | CH106: =+T106*KeyAssumptionsPriceControl_FO!AC$15 -> 0 | CI106: =+U106*KeyAssumptionsPriceControl_FO!AD$15 -> 0 | CJ106: =+V106*KeyAssumptionsPriceControl_FO!AE$15 -> 0 | CK106: =+W106*KeyAssumptionsPriceControl_FO!AF$15 -> 0 | CL106: =+X106*KeyAssumptionsPriceControl_FO!AG$15 -> 0 | CN106: 0 | CO106: 0 | CP106: 0 | CQ106: 0 | CR106: 0 | CS106: 0 | CT106: 0 | CU106: 0 | CV106: 0 | CW106: 0
C107: Dam Safety Reviews | E107: Bulk water - headworks | F107: Renewals | G107: Headworks | H107: Capital Programs / Allocation | J107: Straight line | K107: Ongoing | L107: 80 | M107: 100 | O107: 0.07624302 | P107: 0.06724302 | Q107: 0.04024302 | R107: 0.04124302 | S107: 0.08824302 | T107: 0.11724302 | U107: 0.12724302 | V107: 0.07624302 | W107: 0.07824302 | X107: 0.07824302 | AV107: 0.07624302 | AW107: 0.06724302 | AX107: 0.04024302 | AY107: 0.04124302 | AZ107: 0.08824302 | BA107: 0.11724302 | BB107: 0.12724302 | BC107: 0.07624302 | BD107: 0.07824302 | BE107: 0.07824302 | BG107: =IF($L107=0,0, IF($L107<=0.5,BR107, IF($J107="straight line", IF((LEFT(BG$39,4)*1)-INT($L107)<LEFT($BG$39,4)*1,0,((OFFSET(BR107,0,-INT($L107+0.5),1,1))/$L107)*(IF($L107-INT($L107)>0.5,$L107-0.5-INT($L107),IF($L107-INT($L107)<=0.5,$L107-0.5-INT($L107)+1,0)))) +BR107/$L107*0.5, IF($J107="Declining Balance",-$BG$38,0)))) -> 0.000476518875 | BH107: 0.001373306625 | BI107: 0.002045094375 | BJ107: 0.002554382125 | BK107: 0.003363669875 | BL107: 0.004647957625 | BM107: 0.006175995375 | BN107: 0.007447783125 | BO107: 0.008413320875 | BP107: 0.009391358625 | BR107: =+IF($K107="Ongoing",AV107,IF(RIGHT($K107,2)=RIGHT(BR$39,2),SUM($AV107:AV107),0)+IF(RIGHT(BR$39,2)>RIGHT($K107,2),AV107,0)) -> 0.07624302 | BS107: =+IF($K107="Ongoing",AW107,IF(RIGHT($K107,2)=RIGHT(BS$39,2),SUM($AV107:AW107),0)+IF(RIGHT(BS$39,2)>RIGHT($K107,2),AW107,0)) -> 0.06724302 | BT107: =+IF($K107="Ongoing",AX107,IF(RIGHT($K107,2)=RIGHT(BT$39,2),SUM($AV107:AX107),0)+IF(RIGHT(BT$39,2)>RIGHT($K107,2),AX107,0)) -> 0.04024302 | BU107: =+IF($K107="Ongoing",AY107,IF(RIGHT($K107,2)=RIGHT(BU$39,2),SUM($AV107:AY107),0)+IF(RIGHT(BU$39,2)>RIGHT($K107,2),AY107,0)) -> 0.04124302 | BV107: =+IF($K107="Ongoing",AZ107,IF(RIGHT($K107,2)=RIGHT(BV$39,2),SUM($AV107:AZ107),0)+IF(RIGHT(BV$39,2)>RIGHT($K107,2),AZ107,0)) -> 0.08824302 | BW107: =+IF($K107="Ongoing",BA107,IF(RIGHT($K107,2)=RIGHT(BW$39,2),SUM($AV107:BA107),0)+IF(RIGHT(BW$39,2)>RIGHT($K107,2),BA107,0)) -> 0.11724302 | BX107: =+IF($K107="Ongoing",BB107,IF(RIGHT($K107,2)=RIGHT(BX$39,2),SUM($AV107:BB107),0)+IF(RIGHT(BX$39,2)>RIGHT($K107,2),BB107,0)) -> 0.12724302 | BY107: =+IF($K107="Ongoing",BC107,IF(RIGHT($K107,2)=RIGHT(BY$39,2),SUM($AV107:BC107),0)+IF(RIGHT(BY$39,2)>RIGHT($K107,2),BC107,0)) -> 0.07624302 | BZ107: =+IF($K107="Ongoing",BD107,IF(RIGHT($K107,2)=RIGHT(BZ$39,2),SUM($AV107:BD107),0)+IF(RIGHT(BZ$39,2)>RIGHT($K107,2),BD107,0)) -> 0.07824302 | CA107: =+IF($K107="Ongoing",BE107,IF(RIGHT($K107,2)=RIGHT(CA$39,2),SUM($AV107:BE107),0)+IF(RIGHT(CA$39,2)>RIGHT($K107,2),BE107,0)) -> 0.07824302 | CC107: =+O107*KeyAssumptionsPriceControl_FO!X$15 -> 0.07799660946 | CD107: =+P107*KeyAssumptionsPriceControl_FO!Y$15 -> 0.07037177048 | CE107: =+Q107*KeyAssumptionsPriceControl_FO!Z$15 -> 0.04308414369 | CF107: =+R107*KeyAssumptionsPriceControl_FO!AA$15 -> 0.04517030194 | CG107: =+S107*KeyAssumptionsPriceControl_FO!AB$15 -> 0.09886863344 | CH107: =+T107*KeyAssumptionsPriceControl_FO!AC$15 -> 0.1343819067 | CI107: =+U107*KeyAssumptionsPriceControl_FO!AD$15 -> 0.1491981383 | CJ107: =+V107*KeyAssumptionsPriceControl_FO!AE$15 -> 0.09145451694 | CK107: =+W107*KeyAssumptionsPriceControl_FO!AF$15 -> 0.09601217505 | CL107: =+X107*KeyAssumptionsPriceControl_FO!AG$15 -> 0.09822045508 | CN107: =IF($M107=0,0, IF($M107<=0.5,CC107, IF($J107="straight line", IF((LEFT(CN$39,4)*1)-INT($M107)<LEFT($CN$39,4)*1,0,((OFFSET(CC107,0,-INT($M107+0.5),1,1))/$M107)*(IF($M107-INT($M107)>0.5,$M107-0.5-INT($M107),IF($M107-INT($M107)<=0.5,$M107-0.5-INT($M107)+1,0)))) +CC107/$M107*0.5, IF($J107="Declining Balance",-$CN$38,0)))) -> 0.0003899830473 | CO107: 0.001131824947 | CP107: 0.001699104518 | CQ107: 0.002140376746 | CR107: 0.002860571423 | CS107: 0.004026824124 | CT107: 0.005444724349 | CU107: 0.006647987625 | CV107: 0.007585321085 | CW107: 0.008556484236
C108: Headworks Structure Renewals | E108: Bulk water - headworks | F108: Renewals | G108: Headworks | H108: Capital Programs / Allocation | J108: Straight line | K108: Ongoing | L108: 80 | M108: 100 | O108: 0.349981 | P108: 1.261785 | Q108: 0.29998 | R108: 0.299979 | S108: 0.299979 | T108: 3.231328 | U108: 2.778357 | V108: 0.88338699 | W108: 0.34106899 | X108: 0.081654 | AV108: 0.349981 | AW108: 1.261785 | AX108: 0.29998 | AY108: 0.299979 | AZ108: 0.299979 | BA108: 3.231328 | BB108: 2.778357 | BC108: 0.88338699 | BD108: 0.34106899 | BE108: 0.081654 | BG108: 0.00218738125 | BH108: 0.01226091875 | BI108: 0.02202195 | BJ108: 0.02577169375 | BK108: 0.02952143125 | BL108: 0.0515921 | BM108: 0.08915263125 | BN108: 0.1120385312 | BO108: 0.1196913811 | BP108: 0.1223333997 | BR108: =+IF($K108="Ongoing",AV108,IF(RIGHT($K108,2)=RIGHT(BR$39,2),SUM($AV108:AV108),0)+IF(RIGHT(BR$39,2)>RIGHT($K108,2),AV108,0)) -> 0.349981 | BS108: =+IF($K108="Ongoing",AW108,IF(RIGHT($K108,2)=RIGHT(BS$39,2),SUM($AV108:AW108),0)+IF(RIGHT(BS$39,2)>RIGHT($K108,2),AW108,0)) -> 1.261785 | BT108: =+IF($K108="Ongoing",AX108,IF(RIGHT($K108,2)=RIGHT(BT$39,2),SUM($AV108:AX108),0)+IF(RIGHT(BT$39,2)>RIGHT($K108,2),AX108,0)) -> 0.29998 | BU108: =+IF($K108="Ongoing",AY108,IF(RIGHT($K108,2)=RIGHT(BU$39,2),SUM($AV108:AY108),0)+IF(RIGHT(BU$39,2)>RIGHT($K108,2),AY108,0)) -> 0.299979 | BV108: =+IF($K108="Ongoing",AZ108,IF(RIGHT($K108,2)=RIGHT(BV$39,2),SUM($AV108:AZ108),0)+IF(RIGHT(BV$39,2)>RIGHT($K108,2),AZ108,0)) -> 0.299979 | BW108: =+IF($K108="Ongoing",BA108,IF(RIGHT($K108,2)=RIGHT(BW$39,2),SUM($AV108:BA108),0)+IF(RIGHT(BW$39,2)>RIGHT($K108,2),BA108,0)) -> 3.231328 | BX108: =+IF($K108="Ongoing",BB108,IF(RIGHT($K108,2)=RIGHT(BX$39,2),SUM($AV108:BB108),0)+IF(RIGHT(BX$39,2)>RIGHT($K108,2),BB108,0)) -> 2.778357 | BY108: =+IF($K108="Ongoing",BC108,IF(RIGHT($K108,2)=RIGHT(BY$39,2),SUM($AV108:BC108),0)+IF(RIGHT(BY$39,2)>RIGHT($K108,2),BC108,0)) -> 0.88338699 | BZ108: =+IF($K108="Ongoing",BD108,IF(RIGHT($K108,2)=RIGHT(BZ$39,2),SUM($AV108:BD108),0)+IF(RIGHT(BZ$39,2)>RIGHT($K108,2),BD108,0)) -> 0.34106899 | CA108: =+IF($K108="Ongoing",BE108,IF(RIGHT($K108,2)=RIGHT(CA$39,2),SUM($AV108:BE108),0)+IF(RIGHT(CA$39,2)>RIGHT($K108,2),BE108,0)) -> 0.081654 | CC108: =+O108*KeyAssumptionsPriceControl_FO!X$15 -> 0.358030563 | CD108: =+P108*KeyAssumptionsPriceControl_FO!Y$15 -> 1.320494594 | CE108: =+Q108*KeyAssumptionsPriceControl_FO!Z$15 -> 0.3211583381 | CF108: =+R108*KeyAssumptionsPriceControl_FO!AA$15 -> 0.3285438847 | CG108: =+S108*KeyAssumptionsPriceControl_FO!AB$15 -> 0.336100394 | CH108: =+T108*KeyAssumptionsPriceControl_FO!AC$15 -> 3.703691852 | CI108: =+U108*KeyAssumptionsPriceControl_FO!AD$15 -> 3.257747985 | CJ108: =+V108*KeyAssumptionsPriceControl_FO!AE$15 -> 1.059634448 | CK108: =+W108*KeyAssumptionsPriceControl_FO!AF$15 -> 0.4185264778 | CL108: =+X108*KeyAssumptionsPriceControl_FO!AG$15 -> 0.1025023451 | CN108: 0.001790152815 | CO108: 0.0101827786 | CP108: 0.01839104326 | CQ108: 0.02163955438 | CR108: 0.02496277577 | CS108: 0.045161737 | CT108: 0.07996893619 | CU108: 0.1015558484 | CV108: 0.108946653 | CW108: 0.1115517971
C109: Domestic and Stock Water Main Renewals | E109: Domestic and stock | F109: Renewals | G109: Pipelines/network | H109: Capital Programs / Allocation | J109: Straight line | K109: Ongoing | L109: 73 | M109: 70 | O109: 0 | P109: 0 | Q109: 0.000286 | R109: 0 | S109: 0 | T109: 0 | U109: 0 | V109: 0 | W109: 0 | X109: 0 | AV109: 0 | AW109: 0 | AX109: 0.000286 | AY109: 0 | AZ109: 0 | BA109: 0 | BB109: 0 | BC109: 0 | BD109: 0 | BE109: 0 | BG109: 0 | BH109: 0 | BI109: 1.95890411e-06 | BJ109: 3.917808219e-06 | BK109: 3.917808219e-06 | BL109: 3.917808219e-06 | BM109: 3.917808219e-06 | BN109: 3.917808219e-06 | BO109: 3.917808219e-06 | BP109: 3.917808219e-06 | BR109: =+IF($K109="Ongoing",AV109,IF(RIGHT($K109,2)=RIGHT(BR$39,2),SUM($AV109:AV109),0)+IF(RIGHT(BR$39,2)>RIGHT($K109,2),AV109,0)) -> 0 | BS109: =+IF($K109="Ongoing",AW109,IF(RIGHT($K109,2)=RIGHT(BS$39,2),SUM($AV109:AW109),0)+IF(RIGHT(BS$39,2)>RIGHT($K109,2),AW109,0)) -> 0 | BT109: =+IF($K109="Ongoing",AX109,IF(RIGHT($K109,2)=RIGHT(BT$39,2),SUM($AV109:AX109),0)+IF(RIGHT(BT$39,2)>RIGHT($K109,2),AX109,0)) -> 0.000286 | BU109: =+IF($K109="Ongoing",AY109,IF(RIGHT($K109,2)=RIGHT(BU$39,2),SUM($AV109:AY109),0)+IF(RIGHT(BU$39,2)>RIGHT($K109,2),AY109,0)) -> 0 | BV109: =+IF($K109="Ongoing",AZ109,IF(RIGHT($K109,2)=RIGHT(BV$39,2),SUM($AV109:AZ109),0)+IF(RIGHT(BV$39,2)>RIGHT($K109,2),AZ109,0)) -> 0 | BW109: =+IF($K109="Ongoing",BA109,IF(RIGHT($K109,2)=RIGHT(BW$39,2),SUM($AV109:BA109),0)+IF(RIGHT(BW$39,2)>RIGHT($K109,2),BA109,0)) -> 0 | BX109: =+IF($K109="Ongoing",BB109,IF(RIGHT($K109,2)=RIGHT(BX$39,2),SUM($AV109:BB109),0)+IF(RIGHT(BX$39,2)>RIGHT($K109,2),BB109,0)) -> 0 | BY109: =+IF($K109="Ongoing",BC109,IF(RIGHT($K109,2)=RIGHT(BY$39,2),SUM($AV109:BC109),0)+IF(RIGHT(BY$39,2)>RIGHT($K109,2),BC109,0)) -> 0 | BZ109: =+IF($K109="Ongoing",BD109,IF(RIGHT($K109,2)=RIGHT(BZ$39,2),SUM($AV109:BD109),0)+IF(RIGHT(BZ$39,2)>RIGHT($K109,2),BD109,0)) -> 0 | CA109: =+IF($K109="Ongoing",BE109,IF(RIGHT($K109,2)=RIGHT(CA$39,2),SUM($AV109:BE109),0)+IF(RIGHT(CA$39,2)>RIGHT($K109,2),BE109,0)) -> 0 | CC109: =+O109*KeyAssumptionsPriceControl_FO!X$15 -> 0 | CD109: =+P109*KeyAssumptionsPriceControl_FO!Y$15 -> 0 | CE109: =+Q109*KeyAssumptionsPriceControl_FO!Z$15 -> 0.0003061913618 | CF109: =+R109*KeyAssumptionsPriceControl_FO!AA$15 -> 0 | CG109: =+S109*KeyAssumptionsPriceControl_FO!AB$15 -> 0 | CH109: =+T109*KeyAssumptionsPriceControl_FO!AC$15 -> 0 | CI109: =+U109*KeyAssumptionsPriceControl_FO!AD$15 -> 0 | CJ109: =+V109*KeyAssumptionsPriceControl_FO!AE$15 -> 0 | CK109: =+W109*KeyAssumptionsPriceControl_FO!AF$15 -> 0 | CL109: =+X109*KeyAssumptionsPriceControl_FO!AG$15 -> 0 | CN109: 0 | CO109: 0 | CP109: 2.187081155e-06 | CQ109: 4.374162311e-06 | CR109: 4.374162311e-06 | CS109: 4.374162311e-06 | CT109: 4.374162311e-06 | CU109: 4.374162311e-06 | CV109: 4.374162311e-06 | CW109: 4.374162311e-06
C110: D&S Meter Replacements | E110: Domestic and stock | F110: Renewals | G110: Pipelines/network | H110: Capital Programs / Allocation | J110: Straight line | K110: Ongoing | L110: 10 | M110: 10 | O110: 0.05024898 | P110: 0.05168698 | Q110: 0.05316498 | R110: 0.05468298 | S110: 0.05624298 | T110: 0.05784498 | U110: 0.05949298 | V110: 0.06118498 | W110: 0.06292298 | X110: 0.05796298 | AV110: 0.05024898 | AW110: 0.05168698 | AX110: 0.05316498 | AY110: 0.05468298 | AZ110: =+S110-AD110-AO110 -> 0.05624298 | BA110: 0.05784498 | BB110: 0.05949298 | BC110: 0.06118498 | BD110: 0.06292298 | BE110: 0.05796298 | BG110: 0.002512449 | BH110: 0.007609247 | BI110: 0.012851845 | BJ110: 0.018244243 | BK110: 0.023790541 | BL110: 0.029494939 | BM110: 0.035361837 | BN110: 0.041395735 | BO110: 0.047601133 | BP110: 0.053645431 | BR110: =+IF($K110="Ongoing",AV110,IF(RIGHT($K110,2)=RIGHT(BR$39,2),SUM($AV110:AV110),0)+IF(RIGHT(BR$39,2)>RIGHT($K110,2),AV110,0)) -> 0.05024898 | BS110: =+IF($K110="Ongoing",AW110,IF(RIGHT($K110,2)=RIGHT(BS$39,2),SUM($AV110:AW110),0)+IF(RIGHT(BS$39,2)>RIGHT($K110,2),AW110,0)) -> 0.05168698 | BT110: =+IF($K110="Ongoing",AX110,IF(RIGHT($K110,2)=RIGHT(BT$39,2),SUM($AV110:AX110),0)+IF(RIGHT(BT$39,2)>RIGHT($K110,2),AX110,0)) -> 0.05316498 | BU110: =+IF($K110="Ongoing",AY110,IF(RIGHT($K110,2)=RIGHT(BU$39,2),SUM($AV110:AY110),0)+IF(RIGHT(BU$39,2)>RIGHT($K110,2),AY110,0)) -> 0.05468298 | BV110: =+IF($K110="Ongoing",AZ110,IF(RIGHT($K110,2)=RIGHT(BV$39,2),SUM($AV110:AZ110),0)+IF(RIGHT(BV$39,2)>RIGHT($K110,2),AZ110,0)) -> 0.05624298 | BW110: =+IF($K110="Ongoing",BA110,IF(RIGHT($K110,2)=RIGHT(BW$39,2),SUM($AV110:BA110),0)+IF(RIGHT(BW$39,2)>RIGHT($K110,2),BA110,0)) -> 0.05784498 | BX110: =+IF($K110="Ongoing",BB110,IF(RIGHT($K110,2)=RIGHT(BX$39,2),SUM($AV110:BB110),0)+IF(RIGHT(BX$39,2)>RIGHT($K110,2),BB110,0)) -> 0.05949298 | BY110: =+IF($K110="Ongoing",BC110,IF(RIGHT($K110,2)=RIGHT(BY$39,2),SUM($AV110:BC110),0)+IF(RIGHT(BY$39,2)>RIGHT($K110,2),BC110,0)) -> 0.06118498 | BZ110: =+IF($K110="Ongoing",BD110,IF(RIGHT($K110,2)=RIGHT(BZ$39,2),SUM($AV110:BD110),0)+IF(RIGHT(BZ$39,2)>RIGHT($K110,2),BD110,0)) -> 0.06292298 | CA110: =+IF($K110="Ongoing",BE110,IF(RIGHT($K110,2)=RIGHT(CA$39,2),SUM($AV110:BE110),0)+IF(RIGHT(CA$39,2)>RIGHT($K110,2),BE110,0)) -> 0.05796298 | CC110: =+O110*KeyAssumptionsPriceControl_FO!X$15 -> 0.05140470654 | CD110: =+P110*KeyAssumptionsPriceControl_FO!Y$15 -> 0.05409192349 | CE110: =+Q110*KeyAssumptionsPriceControl_FO!Z$15 -> 0.0569183833 | CF110: =+R110*KeyAssumptionsPriceControl_FO!AA$15 -> 0.05989005455 | CG110: =+S110*KeyAssumptionsPriceControl_FO!AB$15 -> 0.06301537021 | CH110: =+T110*KeyAssumptionsPriceControl_FO!AC$15 -> 0.06630090821 | CI110: =+U110*KeyAssumptionsPriceControl_FO!AD$15 -> 0.06975818289 | CJ110: =+V110*KeyAssumptionsPriceControl_FO!AE$15 -> 0.07339219761 | CK110: =+W110*KeyAssumptionsPriceControl_FO!AF$15 -> 0.07721292162 | CL110: =+X110*KeyAssumptionsPriceControl_FO!AG$15 -> 0.07276240454 | CN110: 0.002570235327 | CO110: 0.007845066829 | CP110: 0.01339558217 | CQ110: 0.01923600406 | CR110: 0.0253812753 | CS110: 0.03184708922 | CT110: 0.03865004377 | CU110: 0.0458075628 | CV110: 0.05333781876 | CW110: 0.06083658507
C111: Domestic and Stock Water Pump Stations Renewals | E111: Domestic and stock | F111: Renewals | G111: Pipelines/network | H111: Capital Programs / Allocation | J111: Straight line | K111: Ongoing | L111: 73 | M111: 70 | O111: 0.28600701 | P111: 0.26400401 | Q111: 0.17000401 | R111: 0.07000301 | S111: 0.30200401 | T111: 0.31600401 | U111: 1.15800401 | V111: 1.01700501 | W111: 1.67600101 | X111: 1.36300401 | AV111: 0.28600701 | AW111: 0.26400401 | AX111: 0.17000401 | AY111: 0.07000301 | AZ111: 0.30200401 | BA111: 0.31600401 | BB111: 1.15800401 | BC111: 1.01700501 | BD111: 1.67600101 | BE111: 1.36300401 | BG111: 0.001958952123 | BH111: 0.00572615089 | BI111: 0.008698808562 | BJ111: 0.01034269226 | BK111: 0.01289068555 | BL111: 0.01712361719 | BM111: 0.02721956253 | BN111: 0.04211688459 | BO111: 0.0605621313 | BP111: 0.08137723418 | BR111: =+IF($K111="Ongoing",AV111,IF(RIGHT($K111,2)=RIGHT(BR$39,2),SUM($AV111:AV111),0)+IF(RIGHT(BR$39,2)>RIGHT($K111,2),AV111,0)) -> 0.28600701 | BS111: =+IF($K111="Ongoing",AW111,IF(RIGHT($K111,2)=RIGHT(BS$39,2),SUM($AV111:AW111),0)+IF(RIGHT(BS$39,2)>RIGHT($K111,2),AW111,0)) -> 0.26400401 | BT111: =+IF($K111="Ongoing",AX111,IF(RIGHT($K111,2)=RIGHT(BT$39,2),SUM($AV111:AX111),0)+IF(RIGHT(BT$39,2)>RIGHT($K111,2),AX111,0)) -> 0.17000401 | BU111: =+IF($K111="Ongoing",AY111,IF(RIGHT($K111,2)=RIGHT(BU$39,2),SUM($AV111:AY111),0)+IF(RIGHT(BU$39,2)>RIGHT($K111,2),AY111,0)) -> 0.07000301 | BV111: =+IF($K111="Ongoing",AZ111,IF(RIGHT($K111,2)=RIGHT(BV$39,2),SUM($AV111:AZ111),0)+IF(RIGHT(BV$39,2)>RIGHT($K111,2),AZ111,0)) -> 0.30200401 | BW111: =+IF($K111="Ongoing",BA111,IF(RIGHT($K111,2)=RIGHT(BW$39,2),SUM($AV111:BA111),0)+IF(RIGHT(BW$39,2)>RIGHT($K111,2),BA111,0)) -> 0.31600401 | BX111: =+IF($K111="Ongoing",BB111,IF(RIGHT($K111,2)=RIGHT(BX$39,2),SUM($AV111:BB111),0)+IF(RIGHT(BX$39,2)>RIGHT($K111,2),BB111,0)) -> 1.15800401 | BY111: =+IF($K111="Ongoing",BC111,IF(RIGHT($K111,2)=RIGHT(BY$39,2),SUM($AV111:BC111),0)+IF(RIGHT(BY$39,2)>RIGHT($K111,2),BC111,0)) -> 1.01700501 | BZ111: =+IF($K111="Ongoing",BD111,IF(RIGHT($K111,2)=RIGHT(BZ$39,2),SUM($AV111:BD111),0)+IF(RIGHT(BZ$39,2)>RIGHT($K111,2),BD111,0)) -> 1.67600101 | CA111: =+IF($K111="Ongoing",BE111,IF(RIGHT($K111,2)=RIGHT(CA$39,2),SUM($AV111:BE111),0)+IF(RIGHT(CA$39,2)>RIGHT($K111,2),BE111,0)) -> 1.36300401 | CC111: =+O111*KeyAssumptionsPriceControl_FO!X$15 -> 0.2925851712 | CD111: =+P111*KeyAssumptionsPriceControl_FO!Y$15 -> 0.2762878526 | CE111: =+Q111*KeyAssumptionsPriceControl_FO!Z$15 -> 0.1820061515 | CF111: =+R111*KeyAssumptionsPriceControl_FO!AA$15 -> 0.07666890297 | CG111: =+S111*KeyAssumptionsPriceControl_FO!AB$15 -> 0.3383692417 | CH111: =+T111*KeyAssumptionsPriceControl_FO!AC$15 -> 0.3621982903 | CI111: =+U111*KeyAssumptionsPriceControl_FO!AD$15 -> 1.357811552 | CJ111: =+V111*KeyAssumptionsPriceControl_FO!AE$15 -> 1.219911041 | CK111: =+W111*KeyAssumptionsPriceControl_FO!AF$15 -> 2.056624378 | CL111: =+X111*KeyAssumptionsPriceControl_FO!AG$15 -> 1.711013636 | CN111: 0.00208989408 | CO111: 0.006153272822 | CP111: 0.009426801422 | CQ111: 0.01127448038 | CR111: 0.01423903856 | CS111: 0.01924309236 | CT111: 0.03152887695 | CU111: 0.04994118119 | CV111: 0.07334500561 | CW111: 0.1002567057
AV112: 0 | AW112: 0 | AX112: 0 | AY112: 0 | AZ112: 0 | BA112: 0 | BB112: 0 | BC112: 0 | BD112: 0 | BE112: 0 | BG112: 0 | BH112: 0 | BI112: 0 | BJ112: 0 | BK112: 0 | BL112: 0 | BM112: 0 | BN112: 0 | BO112: 0 | BP112: 0 | BR112: =+IF($K112="Ongoing",AV112,IF(RIGHT($K112,2)=RIGHT(BR$39,2),SUM($AV112:AV112),0)+IF(RIGHT(BR$39,2)>RIGHT($K112,2),AV112,0)) -> 0 | BS112: =+IF($K112="Ongoing",AW112,IF(RIGHT($K112,2)=RIGHT(BS$39,2),SUM($AV112:AW112),0)+IF(RIGHT(BS$39,2)>RIGHT($K112,2),AW112,0)) -> 0 | BT112: =+IF($K112="Ongoing",AX112,IF(RIGHT($K112,2)=RIGHT(BT$39,2),SUM($AV112:AX112),0)+IF(RIGHT(BT$39,2)>RIGHT($K112,2),AX112,0)) -> 0 | BU112: =+IF($K112="Ongoing",AY112,IF(RIGHT($K112,2)=RIGHT(BU$39,2),SUM($AV112:AY112),0)+IF(RIGHT(BU$39,2)>RIGHT($K112,2),AY112,0)) -> 0 | BV112: =+IF($K112="Ongoing",AZ112,IF(RIGHT($K112,2)=RIGHT(BV$39,2),SUM($AV112:AZ112),0)+IF(RIGHT(BV$39,2)>RIGHT($K112,2),AZ112,0)) -> 0 | BW112: =+IF($K112="Ongoing",BA112,IF(RIGHT($K112,2)=RIGHT(BW$39,2),SUM($AV112:BA112),0)+IF(RIGHT(BW$39,2)>RIGHT($K112,2),BA112,0)) -> 0 | BX112: =+IF($K112="Ongoing",BB112,IF(RIGHT($K112,2)=RIGHT(BX$39,2),SUM($AV112:BB112),0)+IF(RIGHT(BX$39,2)>RIGHT($K112,2),BB112,0)) -> 0 | BY112: =+IF($K112="Ongoing",BC112,IF(RIGHT($K112,2)=RIGHT(BY$39,2),SUM($AV112:BC112),0)+IF(RIGHT(BY$39,2)>RIGHT($K112,2),BC112,0)) -> 0 | BZ112: =+IF($K112="Ongoing",BD112,IF(RIGHT($K112,2)=RIGHT(BZ$39,2),SUM($AV112:BD112),0)+IF(RIGHT(BZ$39,2)>RIGHT($K112,2),BD112,0)) -> 0 | CA112: =+IF($K112="Ongoing",BE112,IF(RIGHT($K112,2)=RIGHT(CA$39,2),SUM($AV112:BE112),0)+IF(RIGHT(CA$39,2)>RIGHT($K112,2),BE112,0)) -> 0 | CC112: =+O112*KeyAssumptionsPriceControl_FO!X$15 -> 0 | CD112: =+P112*KeyAssumptionsPriceControl_FO!Y$15 -> 0 | CE112: =+Q112*KeyAssumptionsPriceControl_FO!Z$15 -> 0 | CF112: =+R112*KeyAssumptionsPriceControl_FO!AA$15 -> 0 | CG112: =+S112*KeyAssumptionsPriceControl_FO!AB$15 -> 0 | CH112: =+T112*KeyAssumptionsPriceControl_FO!AC$15 -> 0 | CI112: =+U112*KeyAssumptionsPriceControl_FO!AD$15 -> 0 | CJ112: =+V112*KeyAssumptionsPriceControl_FO!AE$15 -> 0 | CK112: =+W112*KeyAssumptionsPriceControl_FO!AF$15 -> 0 | CL112: =+X112*KeyAssumptionsPriceControl_FO!AG$15 -> 0 | CN112: 0 | CO112: 0 | CP112: 0 | CQ112: 0 | CR112: 0 | CS112: 0 | CT112: 0 | CU112: 0 | CV112: 0 | CW112: 0
AV113: 0 | AW113: 0 | AX113: 0 | AY113: 0 | AZ113: 0 | BA113: 0 | BB113: 0 | BC113: 0 | BD113: 0 | BE113: 0 | BG113: 0 | BH113: 0 | BI113: 0 | BJ113: 0 | BK113: 0 | BL113: 0 | BM113: 0 | BN113: 0 | BO113: 0 | BP113: 0 | BR113: =+IF($K113="Ongoing",AV113,IF(RIGHT($K113,2)=RIGHT(BR$39,2),SUM($AV113:AV113),0)+IF(RIGHT(BR$39,2)>RIGHT($K113,2),AV113,0)) -> 0 | BS113: =+IF($K113="Ongoing",AW113,IF(RIGHT($K113,2)=RIGHT(BS$39,2),SUM($AV113:AW113),0)+IF(RIGHT(BS$39,2)>RIGHT($K113,2),AW113,0)) -> 0 | BT113: =+IF($K113="Ongoing",AX113,IF(RIGHT($K113,2)=RIGHT(BT$39,2),SUM($AV113:AX113),0)+IF(RIGHT(BT$39,2)>RIGHT($K113,2),AX113,0)) -> 0 | BU113: =+IF($K113="Ongoing",AY113,IF(RIGHT($K113,2)=RIGHT(BU$39,2),SUM($AV113:AY113),0)+IF(RIGHT(BU$39,2)>RIGHT($K113,2),AY113,0)) -> 0 | BV113: =+IF($K113="Ongoing",AZ113,IF(RIGHT($K113,2)=RIGHT(BV$39,2),SUM($AV113:AZ113),0)+IF(RIGHT(BV$39,2)>RIGHT($K113,2),AZ113,0)) -> 0 | BW113: =+IF($K113="Ongoing",BA113,IF(RIGHT($K113,2)=RIGHT(BW$39,2),SUM($AV113:BA113),0)+IF(RIGHT(BW$39,2)>RIGHT($K113,2),BA113,0)) -> 0 | BX113: =+IF($K113="Ongoing",BB113,IF(RIGHT($K113,2)=RIGHT(BX$39,2),SUM($AV113:BB113),0)+IF(RIGHT(BX$39,2)>RIGHT($K113,2),BB113,0)) -> 0 | BY113: =+IF($K113="Ongoing",BC113,IF(RIGHT($K113,2)=RIGHT(BY$39,2),SUM($AV113:BC113),0)+IF(RIGHT(BY$39,2)>RIGHT($K113,2),BC113,0)) -> 0 | BZ113: =+IF($K113="Ongoing",BD113,IF(RIGHT($K113,2)=RIGHT(BZ$39,2),SUM($AV113:BD113),0)+IF(RIGHT(BZ$39,2)>RIGHT($K113,2),BD113,0)) -> 0 | CA113: =+IF($K113="Ongoing",BE113,IF(RIGHT($K113,2)=RIGHT(CA$39,2),SUM($AV113:BE113),0)+IF(RIGHT(CA$39,2)>RIGHT($K113,2),BE113,0)) -> 0 | CC113: =+O113*KeyAssumptionsPriceControl_FO!X$15 -> 0 | CD113: =+P113*KeyAssumptionsPriceControl_FO!Y$15 -> 0 | CE113: =+Q113*KeyAssumptionsPriceControl_FO!Z$15 -> 0 | CF113: =+R113*KeyAssumptionsPriceControl_FO!AA$15 -> 0 | CG113: =+S113*KeyAssumptionsPriceControl_FO!AB$15 -> 0 | CH113: =+T113*KeyAssumptionsPriceControl_FO!AC$15 -> 0 | CI113: =+U113*KeyAssumptionsPriceControl_FO!AD$15 -> 0 | CJ113: =+V113*KeyAssumptionsPriceControl_FO!AE$15 -> 0 | CK113: =+W113*KeyAssumptionsPriceControl_FO!AF$15 -> 0 | CL113: =+X113*KeyAssumptionsPriceControl_FO!AG$15 -> 0 | CN113: 0 | CO113: 0 | CP113: 0 | CQ113: 0 | CR113: 0 | CS113: 0 | CT113: 0 | CU113: 0 | CV113: 0 | CW113: 0
AV114: 0 | AW114: 0 | AX114: 0 | AY114: 0 | AZ114: 0 | BA114: 0 | BB114: 0 | BC114: 0 | BD114: 0 | BE114: 0 | BG114: 0 | BH114: 0 | BI114: 0 | BJ114: 0 | BK114: 0 | BL114: 0 | BM114: 0 | BN114: 0 | BO114: 0 | BP114: 0 | BR114: =+IF($K114="Ongoing",AV114,IF(RIGHT($K114,2)=RIGHT(BR$39,2),SUM($AV114:AV114),0)+IF(RIGHT(BR$39,2)>RIGHT($K114,2),AV114,0)) -> 0 | BS114: =+IF($K114="Ongoing",AW114,IF(RIGHT($K114,2)=RIGHT(BS$39,2),SUM($AV114:AW114),0)+IF(RIGHT(BS$39,2)>RIGHT($K114,2),AW114,0)) -> 0 | BT114: =+IF($K114="Ongoing",AX114,IF(RIGHT($K114,2)=RIGHT(BT$39,2),SUM($AV114:AX114),0)+IF(RIGHT(BT$39,2)>RIGHT($K114,2),AX114,0)) -> 0 | BU114: =+IF($K114="Ongoing",AY114,IF(RIGHT($K114,2)=RIGHT(BU$39,2),SUM($AV114:AY114),0)+IF(RIGHT(BU$39,2)>RIGHT($K114,2),AY114,0)) -> 0 | BV114: =+IF($K114="Ongoing",AZ114,IF(RIGHT($K114,2)=RIGHT(BV$39,2),SUM($AV114:AZ114),0)+IF(RIGHT(BV$39,2)>RIGHT($K114,2),AZ114,0)) -> 0 | BW114: =+IF($K114="Ongoing",BA114,IF(RIGHT($K114,2)=RIGHT(BW$39,2),SUM($AV114:BA114),0)+IF(RIGHT(BW$39,2)>RIGHT($K114,2),BA114,0)) -> 0 | BX114: =+IF($K114="Ongoing",BB114,IF(RIGHT($K114,2)=RIGHT(BX$39,2),SUM($AV114:BB114),0)+IF(RIGHT(BX$39,2)>RIGHT($K114,2),BB114,0)) -> 0 | BY114: =+IF($K114="Ongoing",BC114,IF(RIGHT($K114,2)=RIGHT(BY$39,2),SUM($AV114:BC114),0)+IF(RIGHT(BY$39,2)>RIGHT($K114,2),BC114,0)) -> 0 | BZ114: =+IF($K114="Ongoing",BD114,IF(RIGHT($K114,2)=RIGHT(BZ$39,2),SUM($AV114:BD114),0)+IF(RIGHT(BZ$39,2)>RIGHT($K114,2),BD114,0)) -> 0 | CA114: =+IF($K114="Ongoing",BE114,IF(RIGHT($K114,2)=RIGHT(CA$39,2),SUM($AV114:BE114),0)+IF(RIGHT(CA$39,2)>RIGHT($K114,2),BE114,0)) -> 0 | CC114: =+O114*KeyAssumptionsPriceControl_FO!X$15 -> 0 | CD114: =+P114*KeyAssumptionsPriceControl_FO!Y$15 -> 0 | CE114: =+Q114*KeyAssumptionsPriceControl_FO!Z$15 -> 0 | CF114: =+R114*KeyAssumptionsPriceControl_FO!AA$15 -> 0 | CG114: =+S114*KeyAssumptionsPriceControl_FO!AB$15 -> 0 | CH114: =+T114*KeyAssumptionsPriceControl_FO!AC$15 -> 0 | CI114: =+U114*KeyAssumptionsPriceControl_FO!AD$15 -> 0 | CJ114: =+V114*KeyAssumptionsPriceControl_FO!AE$15 -> 0 | CK114: =+W114*KeyAssumptionsPriceControl_FO!AF$15 -> 0 | CL114: =+X114*KeyAssumptionsPriceControl_FO!AG$15 -> 0 | CN114: 0 | CO114: 0 | CP114: 0 | CQ114: 0 | CR114: 0 | CS114: 0 | CT114: 0 | CU114: 0 | CV114: 0 | CW114: 0
AV115: 0 | AW115: 0 | AX115: 0 | AY115: 0 | AZ115: 0 | BA115: 0 | BB115: 0 | BC115: 0 | BD115: 0 | BE115: 0 | BG115: 0 | BH115: 0 | BI115: 0 | BJ115: 0 | BK115: 0 | BL115: 0 | BM115: 0 | BN115: 0 | BO115: 0 | BP115: 0 | BR115: =+IF($K115="Ongoing",AV115,IF(RIGHT($K115,2)=RIGHT(BR$39,2),SUM($AV115:AV115),0)+IF(RIGHT(BR$39,2)>RIGHT($K115,2),AV115,0)) -> 0 | BS115: =+IF($K115="Ongoing",AW115,IF(RIGHT($K115,2)=RIGHT(BS$39,2),SUM($AV115:AW115),0)+IF(RIGHT(BS$39,2)>RIGHT($K115,2),AW115,0)) -> 0 | BT115: =+IF($K115="Ongoing",AX115,IF(RIGHT($K115,2)=RIGHT(BT$39,2),SUM($AV115:AX115),0)+IF(RIGHT(BT$39,2)>RIGHT($K115,2),AX115,0)) -> 0 | BU115: =+IF($K115="Ongoing",AY115,IF(RIGHT($K115,2)=RIGHT(BU$39,2),SUM($AV115:AY115),0)+IF(RIGHT(BU$39,2)>RIGHT($K115,2),AY115,0)) -> 0 | BV115: =+IF($K115="Ongoing",AZ115,IF(RIGHT($K115,2)=RIGHT(BV$39,2),SUM($AV115:AZ115),0)+IF(RIGHT(BV$39,2)>RIGHT($K115,2),AZ115,0)) -> 0 | BW115: =+IF($K115="Ongoing",BA115,IF(RIGHT($K115,2)=RIGHT(BW$39,2),SUM($AV115:BA115),0)+IF(RIGHT(BW$39,2)>RIGHT($K115,2),BA115,0)) -> 0 | BX115: =+IF($K115="Ongoing",BB115,IF(RIGHT($K115,2)=RIGHT(BX$39,2),SUM($AV115:BB115),0)+IF(RIGHT(BX$39,2)>RIGHT($K115,2),BB115,0)) -> 0 | BY115: =+IF($K115="Ongoing",BC115,IF(RIGHT($K115,2)=RIGHT(BY$39,2),SUM($AV115:BC115),0)+IF(RIGHT(BY$39,2)>RIGHT($K115,2),BC115,0)) -> 0 | BZ115: =+IF($K115="Ongoing",BD115,IF(RIGHT($K115,2)=RIGHT(BZ$39,2),SUM($AV115:BD115),0)+IF(RIGHT(BZ$39,2)>RIGHT($K115,2),BD115,0)) -> 0 | CA115: =+IF($K115="Ongoing",BE115,IF(RIGHT($K115,2)=RIGHT(CA$39,2),SUM($AV115:BE115),0)+IF(RIGHT(CA$39,2)>RIGHT($K115,2),BE115,0)) -> 0 | CC115: =+O115*KeyAssumptionsPriceControl_FO!X$15 -> 0 | CD115: =+P115*KeyAssumptionsPriceControl_FO!Y$15 -> 0 | CE115: =+Q115*KeyAssumptionsPriceControl_FO!Z$15 -> 0 | CF115: =+R115*KeyAssumptionsPriceControl_FO!AA$15 -> 0 | CG115: =+S115*KeyAssumptionsPriceControl_FO!AB$15 -> 0 | CH115: =+T115*KeyAssumptionsPriceControl_FO!AC$15 -> 0 | CI115: =+U115*KeyAssumptionsPriceControl_FO!AD$15 -> 0 | CJ115: =+V115*KeyAssumptionsPriceControl_FO!AE$15 -> 0 | CK115: =+W115*KeyAssumptionsPriceControl_FO!AF$15 -> 0 | CL115: =+X115*KeyAssumptionsPriceControl_FO!AG$15 -> 0 | CN115: 0 | CO115: 0 | CP115: 0 | CQ115: 0 | CR115: 0 | CS115: 0 | CT115: 0 | CU115: 0 | CV115: 0 | CW115: 0
AV116: 0 | AW116: 0 | AX116: 0 | AY116: 0 | AZ116: 0 | BA116: 0 | BB116: 0 | BC116: 0 | BD116: 0 | BE116: 0 | BG116: 0 | BH116: 0 | BI116: 0 | BJ116: 0 | BK116: 0 | BL116: 0 | BM116: 0 | BN116: 0 | BO116: 0 | BP116: 0 | BR116: =+IF($K116="Ongoing",AV116,IF(RIGHT($K116,2)=RIGHT(BR$39,2),SUM($AV116:AV116),0)+IF(RIGHT(BR$39,2)>RIGHT($K116,2),AV116,0)) -> 0 | BS116: =+IF($K116="Ongoing",AW116,IF(RIGHT($K116,2)=RIGHT(BS$39,2),SUM($AV116:AW116),0)+IF(RIGHT(BS$39,2)>RIGHT($K116,2),AW116,0)) -> 0 | BT116: =+IF($K116="Ongoing",AX116,IF(RIGHT($K116,2)=RIGHT(BT$39,2),SUM($AV116:AX116),0)+IF(RIGHT(BT$39,2)>RIGHT($K116,2),AX116,0)) -> 0 | BU116: =+IF($K116="Ongoing",AY116,IF(RIGHT($K116,2)=RIGHT(BU$39,2),SUM($AV116:AY116),0)+IF(RIGHT(BU$39,2)>RIGHT($K116,2),AY116,0)) -> 0 | BV116: =+IF($K116="Ongoing",AZ116,IF(RIGHT($K116,2)=RIGHT(BV$39,2),SUM($AV116:AZ116),0)+IF(RIGHT(BV$39,2)>RIGHT($K116,2),AZ116,0)) -> 0 | BW116: =+IF($K116="Ongoing",BA116,IF(RIGHT($K116,2)=RIGHT(BW$39,2),SUM($AV116:BA116),0)+IF(RIGHT(BW$39,2)>RIGHT($K116,2),BA116,0)) -> 0 | BX116: =+IF($K116="Ongoing",BB116,IF(RIGHT($K116,2)=RIGHT(BX$39,2),SUM($AV116:BB116),0)+IF(RIGHT(BX$39,2)>RIGHT($K116,2),BB116,0)) -> 0 | BY116: =+IF($K116="Ongoing",BC116,IF(RIGHT($K116,2)=RIGHT(BY$39,2),SUM($AV116:BC116),0)+IF(RIGHT(BY$39,2)>RIGHT($K116,2),BC116,0)) -> 0 | BZ116: =+IF($K116="Ongoing",BD116,IF(RIGHT($K116,2)=RIGHT(BZ$39,2),SUM($AV116:BD116),0)+IF(RIGHT(BZ$39,2)>RIGHT($K116,2),BD116,0)) -> 0 | CA116: =+IF($K116="Ongoing",BE116,IF(RIGHT($K116,2)=RIGHT(CA$39,2),SUM($AV116:BE116),0)+IF(RIGHT(CA$39,2)>RIGHT($K116,2),BE116,0)) -> 0 | CC116: =+O116*KeyAssumptionsPriceControl_FO!X$15 -> 0 | CD116: =+P116*KeyAssumptionsPriceControl_FO!Y$15 -> 0 | CE116: =+Q116*KeyAssumptionsPriceControl_FO!Z$15 -> 0 | CF116: =+R116*KeyAssumptionsPriceControl_FO!AA$15 -> 0 | CG116: =+S116*KeyAssumptionsPriceControl_FO!AB$15 -> 0 | CH116: =+T116*KeyAssumptionsPriceControl_FO!AC$15 -> 0 | CI116: =+U116*KeyAssumptionsPriceControl_FO!AD$15 -> 0 | CJ116: =+V116*KeyAssumptionsPriceControl_FO!AE$15 -> 0 | CK116: =+W116*KeyAssumptionsPriceControl_FO!AF$15 -> 0 | CL116: =+X116*KeyAssumptionsPriceControl_FO!AG$15 -> 0 | CN116: 0 | CO116: 0 | CP116: 0 | CQ116: 0 | CR116: 0 | CS116: 0 | CT116: 0 | CU116: 0 | CV116: 0 | CW116: 0
C117: Corporate Allocation - Water | E117: Urban Water | F117: Renewals | G117: Corporate | H117: Capital Programs / Allocation | J117: Straight line | K117: Ongoing | L117: 10 | M117: 10 | O117: 1.041663263 | P117: 0.8790840423 | Q117: 0.716527067 | R117: 1.135708965 | S117: 0.7938030314 | T117: 0.8627679974 | U117: 0.7707700855 | V117: 1.111435981 | W117: 0.8497978772 | X117: 0.7892971375 | AV117: 1.041663263 | AW117: 0.8790840423 | AX117: 0.716527067 | AY117: 1.135708965 | AZ117: 0.7938030314 | BA117: 0.8627679974 | BB117: 0.7707700855 | BC117: 1.111435981 | BD117: 0.8497978772 | BE117: 0.7892971375 | BG117: 0.05208316314 | BH117: 0.1481205284 | BI117: 0.2279010839 | BJ117: 0.3205128855 | BK117: 0.4169884853 | BL117: 0.4998170367 | BM117: 0.5814939409 | BN117: 0.6756042442 | BO117: 0.7736659372 | BP117: 0.8556206879 | BR117: =+IF($K117="Ongoing",AV117,IF(RIGHT($K117,2)=RIGHT(BR$39,2),SUM($AV117:AV117),0)+IF(RIGHT(BR$39,2)>RIGHT($K117,2),AV117,0)) -> 1.041663263 | BS117: =+IF($K117="Ongoing",AW117,IF(RIGHT($K117,2)=RIGHT(BS$39,2),SUM($AV117:AW117),0)+IF(RIGHT(BS$39,2)>RIGHT($K117,2),AW117,0)) -> 0.8790840423 | BT117: =+IF($K117="Ongoing",AX117,IF(RIGHT($K117,2)=RIGHT(BT$39,2),SUM($AV117:AX117),0)+IF(RIGHT(BT$39,2)>RIGHT($K117,2),AX117,0)) -> 0.716527067 | BU117: =+IF($K117="Ongoing",AY117,IF(RIGHT($K117,2)=RIGHT(BU$39,2),SUM($AV117:AY117),0)+IF(RIGHT(BU$39,2)>RIGHT($K117,2),AY117,0)) -> 1.135708965 | BV117: =+IF($K117="Ongoing",AZ117,IF(RIGHT($K117,2)=RIGHT(BV$39,2),SUM($AV117:AZ117),0)+IF(RIGHT(BV$39,2)>RIGHT($K117,2),AZ117,0)) -> 0.7938030314 | BW117: =+IF($K117="Ongoing",BA117,IF(RIGHT($K117,2)=RIGHT(BW$39,2),SUM($AV117:BA117),0)+IF(RIGHT(BW$39,2)>RIGHT($K117,2),BA117,0)) -> 0.8627679974 | BX117: =+IF($K117="Ongoing",BB117,IF(RIGHT($K117,2)=RIGHT(BX$39,2),SUM($AV117:BB117),0)+IF(RIGHT(BX$39,2)>RIGHT($K117,2),BB117,0)) -> 0.7707700855 | BY117: =+IF($K117="Ongoing",BC117,IF(RIGHT($K117,2)=RIGHT(BY$39,2),SUM($AV117:BC117),0)+IF(RIGHT(BY$39,2)>RIGHT($K117,2),BC117,0)) -> 1.111435981 | BZ117: =+IF($K117="Ongoing",BD117,IF(RIGHT($K117,2)=RIGHT(BZ$39,2),SUM($AV117:BD117),0)+IF(RIGHT(BZ$39,2)>RIGHT($K117,2),BD117,0)) -> 0.8497978772 | CA117: =+IF($K117="Ongoing",BE117,IF(RIGHT($K117,2)=RIGHT(CA$39,2),SUM($AV117:BE117),0)+IF(RIGHT(CA$39,2)>RIGHT($K117,2),BE117,0)) -> 0.7892971375 | CC117: =+O117*KeyAssumptionsPriceControl_FO!X$15 -> 1.065621518 | CD117: =+P117*KeyAssumptionsPriceControl_FO!Y$15 -> 0.9199869437 | CE117: =+Q117*KeyAssumptionsPriceControl_FO!Z$15 -> 0.7671132811 | CF117: =+R117*KeyAssumptionsPriceControl_FO!AA$15 -> 1.243854521 | CG117: =+S117*KeyAssumptionsPriceControl_FO!AB$15 -> 0.8893872958 | CH117: =+T117*KeyAssumptionsPriceControl_FO!AC$15 -> 0.9888896461 | CI117: =+U117*KeyAssumptionsPriceControl_FO!AD$15 -> 0.903762437 | CJ117: =+V117*KeyAssumptionsPriceControl_FO!AE$15 -> 1.333182248 | CK117: =+W117*KeyAssumptionsPriceControl_FO!AF$15 -> 1.042788769 | CL117: =+X117*KeyAssumptionsPriceControl_FO!AG$15 -> 0.9908247923 | CN117: 0.0532810759 | CO117: 0.152561499 | CP117: 0.2369165102 | CQ117: 0.3374649003 | CR117: 0.4441269911 | CS117: 0.5380408382 | CT117: 0.6326734424 | CU117: 0.7445206766 | CV117: 0.8633192275 | CW117: 0.9649999056
C118: Corporate Allocation - Wastewater | E118: Sewerage | F118: Renewals | G118: Corporate | H118: Capital Programs / Allocation | J118: Straight line | K118: Ongoing | L118: 10 | M118: 10 | O118: 0.6685161801 | P118: 0.5652004224 | Q118: 0.4566273382 | R118: 0.7278944722 | S118: 0.5181939442 | T118: 0.5610638066 | U118: 0.5093209212 | V118: 0.746448044 | W118: 0.5802061194 | X118: 0.5569094923 | AV118: 0.6685161801 | AW118: 0.5652004224 | AX118: 0.4566273382 | AY118: 0.7278944722 | AZ118: 0.5181939442 | BA118: 0.5610638066 | BB118: 0.5093209212 | BC118: 0.746448044 | BD118: 0.5802061194 | BE118: 0.5569094923 | BG118: 0.03342580901 | BH118: 0.09511163913 | BI118: 0.1462030272 | BJ118: 0.2054291177 | BK118: 0.2677335385 | BL118: 0.321696426 | BM118: 0.3752156624 | BN118: 0.4380041107 | BO118: 0.5043368189 | BP118: 0.5611925995 | BR118: =+IF($K118="Ongoing",AV118,IF(RIGHT($K118,2)=RIGHT(BR$39,2),SUM($AV118:AV118),0)+IF(RIGHT(BR$39,2)>RIGHT($K118,2),AV118,0)) -> 0.6685161801 | BS118: =+IF($K118="Ongoing",AW118,IF(RIGHT($K118,2)=RIGHT(BS$39,2),SUM($AV118:AW118),0)+IF(RIGHT(BS$39,2)>RIGHT($K118,2),AW118,0)) -> 0.5652004224 | BT118: =+IF($K118="Ongoing",AX118,IF(RIGHT($K118,2)=RIGHT(BT$39,2),SUM($AV118:AX118),0)+IF(RIGHT(BT$39,2)>RIGHT($K118,2),AX118,0)) -> 0.4566273382 | BU118: =+IF($K118="Ongoing",AY118,IF(RIGHT($K118,2)=RIGHT(BU$39,2),SUM($AV118:AY118),0)+IF(RIGHT(BU$39,2)>RIGHT($K118,2),AY118,0)) -> 0.7278944722 | BV118: =+IF($K118="Ongoing",AZ118,IF(RIGHT($K118,2)=RIGHT(BV$39,2),SUM($AV118:AZ118),0)+IF(RIGHT(BV$39,2)>RIGHT($K118,2),AZ118,0)) -> 0.5181939442 | BW118: =+IF($K118="Ongoing",BA118,IF(RIGHT($K118,2)=RIGHT(BW$39,2),SUM($AV118:BA118),0)+IF(RIGHT(BW$39,2)>RIGHT($K118,2),BA118,0)) -> 0.5610638066 | BX118: =+IF($K118="Ongoing",BB118,IF(RIGHT($K118,2)=RIGHT(BX$39,2),SUM($AV118:BB118),0)+IF(RIGHT(BX$39,2)>RIGHT($K118,2),BB118,0)) -> 0.5093209212 | BY118: =+IF($K118="Ongoing",BC118,IF(RIGHT($K118,2)=RIGHT(BY$39,2),SUM($AV118:BC118),0)+IF(RIGHT(BY$39,2)>RIGHT($K118,2),BC118,0)) -> 0.746448044 | BZ118: =+IF($K118="Ongoing",BD118,IF(RIGHT($K118,2)=RIGHT(BZ$39,2),SUM($AV118:BD118),0)+IF(RIGHT(BZ$39,2)>RIGHT($K118,2),BD118,0)) -> 0.5802061194 | CA118: =+IF($K118="Ongoing",BE118,IF(RIGHT($K118,2)=RIGHT(CA$39,2),SUM($AV118:BE118),0)+IF(RIGHT(CA$39,2)>RIGHT($K118,2),BE118,0)) -> 0.5569094923 | CC118: =+O118*KeyAssumptionsPriceControl_FO!X$15 -> 0.6838920523 | CD118: =+P118*KeyAssumptionsPriceControl_FO!Y$15 -> 0.5914986329 | CE118: =+Q118*KeyAssumptionsPriceControl_FO!Z$15 -> 0.4888648479 | CF118: =+R118*KeyAssumptionsPriceControl_FO!AA$15 -> 0.7972067296 | CG118: =+S118*KeyAssumptionsPriceControl_FO!AB$15 -> 0.5805912707 | CH118: =+T118*KeyAssumptionsPriceControl_FO!AC$15 -> 0.6430815594 | CI118: =+U118*KeyAssumptionsPriceControl_FO!AD$15 -> 0.5972015853 | CJ118: =+V118*KeyAssumptionsPriceControl_FO!AE$15 -> 0.8953743606 | CK118: =+W118*KeyAssumptionsPriceControl_FO!AF$15 -> 0.7119721542 | CL118: =+X118*KeyAssumptionsPriceControl_FO!AG$15 -> 0.6991026647 | CN118: 0.03419460261 | CO118: 0.09796413687 | CP118: 0.1519823109 | CQ118: 0.2162858898 | CR118: 0.2851757898 | CS118: 0.3463594313 | CT118: 0.4083735885 | CU118: 0.4830023858 | CV118: 0.5633697116 | CW118: 0.6339234525
C119: Corporate Allocation - Domestic & Stock | E119: Domestic and stock | F119: Renewals | G119: Corporate | H119: Capital Programs / Allocation | J119: Straight line | K119: Ongoing | L119: 10 | M119: 10 | O119: 0.2977404808 | P119: 0.2636934646 | Q119: 0.2154634557 | R119: 0.3435880585 | S119: 0.2446934005 | T119: 0.2650426919 | U119: 0.2406959447 | V119: 0.3528990169 | W119: 0.2744143085 | X119: 0.2605571021 | AV119: 0.2977404808 | AW119: 0.2636934646 | AX119: 0.2154634557 | AY119: 0.3435880585 | AZ119: 0.2446934005 | BA119: 0.2650426919 | BB119: 0.2406959447 | BC119: 0.3528990169 | BD119: 0.2744143085 | BE119: 0.2605571021 | BG119: 0.01488702404 | BH119: 0.04295872131 | BI119: 0.06691656732 | BJ119: 0.09486914303 | BK119: 0.124283216 | BL119: 0.1497700206 | BM119: 0.1750569524 | BN119: 0.2047367005 | BO119: 0.2361023668 | BP119: 0.2628509373 | BR119: =+IF($K119="Ongoing",AV119,IF(RIGHT($K119,2)=RIGHT(BR$39,2),SUM($AV119:AV119),0)+IF(RIGHT(BR$39,2)>RIGHT($K119,2),AV119,0)) -> 0.2977404808 | BS119: =+IF($K119="Ongoing",AW119,IF(RIGHT($K119,2)=RIGHT(BS$39,2),SUM($AV119:AW119),0)+IF(RIGHT(BS$39,2)>RIGHT($K119,2),AW119,0)) -> 0.2636934646 | BT119: =+IF($K119="Ongoing",AX119,IF(RIGHT($K119,2)=RIGHT(BT$39,2),SUM($AV119:AX119),0)+IF(RIGHT(BT$39,2)>RIGHT($K119,2),AX119,0)) -> 0.2154634557 | BU119: =+IF($K119="Ongoing",AY119,IF(RIGHT($K119,2)=RIGHT(BU$39,2),SUM($AV119:AY119),0)+IF(RIGHT(BU$39,2)>RIGHT($K119,2),AY119,0)) -> 0.3435880585 | BV119: =+IF($K119="Ongoing",AZ119,IF(RIGHT($K119,2)=RIGHT(BV$39,2),SUM($AV119:AZ119),0)+IF(RIGHT(BV$39,2)>RIGHT($K119,2),AZ119,0)) -> 0.2446934005 | BW119: =+IF($K119="Ongoing",BA119,IF(RIGHT($K119,2)=RIGHT(BW$39,2),SUM($AV119:BA119),0)+IF(RIGHT(BW$39,2)>RIGHT($K119,2),BA119,0)) -> 0.2650426919 | BX119: =+IF($K119="Ongoing",BB119,IF(RIGHT($K119,2)=RIGHT(BX$39,2),SUM($AV119:BB119),0)+IF(RIGHT(BX$39,2)>RIGHT($K119,2),BB119,0)) -> 0.2406959447 | BY119: =+IF($K119="Ongoing",BC119,IF(RIGHT($K119,2)=RIGHT(BY$39,2),SUM($AV119:BC119),0)+IF(RIGHT(BY$39,2)>RIGHT($K119,2),BC119,0)) -> 0.3528990169 | BZ119: =+IF($K119="Ongoing",BD119,IF(RIGHT($K119,2)=RIGHT(BZ$39,2),SUM($AV119:BD119),0)+IF(RIGHT(BZ$39,2)>RIGHT($K119,2),BD119,0)) -> 0.2744143085 | CA119: =+IF($K119="Ongoing",BE119,IF(RIGHT($K119,2)=RIGHT(CA$39,2),SUM($AV119:BE119),0)+IF(RIGHT(CA$39,2)>RIGHT($K119,2),BE119,0)) -> 0.2605571021 | CC119: =+O119*KeyAssumptionsPriceControl_FO!X$15 -> 0.3045885119 | CD119: =+P119*KeyAssumptionsPriceControl_FO!Y$15 -> 0.2759628578 | CE119: =+Q119*KeyAssumptionsPriceControl_FO!Z$15 -> 0.2306749962 | CF119: =+R119*KeyAssumptionsPriceControl_FO!AA$15 -> 0.3763055263 | CG119: =+S119*KeyAssumptionsPriceControl_FO!AB$15 -> 0.2741576854 | CH119: =+T119*KeyAssumptionsPriceControl_FO!AC$15 -> 0.3037873154 | CI119: =+U119*KeyAssumptionsPriceControl_FO!AD$15 -> 0.2822267725 | CJ119: =+V119*KeyAssumptionsPriceControl_FO!AE$15 -> 0.4233070662 | CK119: =+W119*KeyAssumptionsPriceControl_FO!AF$15 -> 0.3367343774 | CL119: =+X119*KeyAssumptionsPriceControl_FO!AG$15 -> 0.3270839641 | CN119: 0.01522942559 | CO119: 0.04425699407 | CP119: 0.06958888677 | CQ119: 0.0999379129 | CR119: 0.1324610735 | CS119: 0.1613583235 | CT119: 0.1906590279 | CU119: 0.2259357199 | CV119: 0.263937792 | CW119: 0.2971287091
C120: Corporate Allocation - Diversions | E120: Surface water diversions | F120: Renewals | G120: Corporate | H120: Capital Programs / Allocation | J120: Straight line | K120: Ongoing | L120: 10 | M120: 10 | O120: 0.006168580603 | P120: 0.00515000551 | Q120: 0.004176767863 | R120: 0.006610770196 | S120: 0.004672758758 | T120: 0.005064969178 | U120: 0.004602984661 | V120: 0.006753526436 | W120: 0.00525527896 | X120: 0.004993444708 | AV120: 0.006168580603 | AW120: 0.00515000551 | AX120: 0.004176767863 | AY120: 0.006610770196 | AZ120: 0.004672758758 | BA120: 0.005064969178 | BB120: 0.004602984661 | BC120: 0.006753526436 | BD120: 0.00525527896 | BE120: 0.004993444708 | BG120: 0.0003084290301 | BH120: 0.0008743583357 | BI120: 0.001340697004 | BJ120: 0.001880073907 | BK120: 0.002444250355 | BL120: 0.002931136752 | BM120: 0.003414534444 | BN120: 0.003982359999 | BO120: 0.004582800268 | BP120: 0.005095236452 | BR120: =+IF($K120="Ongoing",AV120,IF(RIGHT($K120,2)=RIGHT(BR$39,2),SUM($AV120:AV120),0)+IF(RIGHT(BR$39,2)>RIGHT($K120,2),AV120,0)) -> 0.006168580603 | BS120: =+IF($K120="Ongoing",AW120,IF(RIGHT($K120,2)=RIGHT(BS$39,2),SUM($AV120:AW120),0)+IF(RIGHT(BS$39,2)>RIGHT($K120,2),AW120,0)) -> 0.00515000551 | BT120: =+IF($K120="Ongoing",AX120,IF(RIGHT($K120,2)=RIGHT(BT$39,2),SUM($AV120:AX120),0)+IF(RIGHT(BT$39,2)>RIGHT($K120,2),AX120,0)) -> 0.004176767863 | BU120: =+IF($K120="Ongoing",AY120,IF(RIGHT($K120,2)=RIGHT(BU$39,2),SUM($AV120:AY120),0)+IF(RIGHT(BU$39,2)>RIGHT($K120,2),AY120,0)) -> 0.006610770196 | BV120: =+IF($K120="Ongoing",AZ120,IF(RIGHT($K120,2)=RIGHT(BV$39,2),SUM($AV120:AZ120),0)+IF(RIGHT(BV$39,2)>RIGHT($K120,2),AZ120,0)) -> 0.004672758758 | BW120: =+IF($K120="Ongoing",BA120,IF(RIGHT($K120,2)=RIGHT(BW$39,2),SUM($AV120:BA120),0)+IF(RIGHT(BW$39,2)>RIGHT($K120,2),BA120,0)) -> 0.005064969178 | BX120: =+IF($K120="Ongoing",BB120,IF(RIGHT($K120,2)=RIGHT(BX$39,2),SUM($AV120:BB120),0)+IF(RIGHT(BX$39,2)>RIGHT($K120,2),BB120,0)) -> 0.004602984661 | BY120: =+IF($K120="Ongoing",BC120,IF(RIGHT($K120,2)=RIGHT(BY$39,2),SUM($AV120:BC120),0)+IF(RIGHT(BY$39,2)>RIGHT($K120,2),BC120,0)) -> 0.006753526436 | BZ120: =+IF($K120="Ongoing",BD120,IF(RIGHT($K120,2)=RIGHT(BZ$39,2),SUM($AV120:BD120),0)+IF(RIGHT(BZ$39,2)>RIGHT($K120,2),BD120,0)) -> 0.00525527896 | CA120: =+IF($K120="Ongoing",BE120,IF(RIGHT($K120,2)=RIGHT(CA$39,2),SUM($AV120:BE120),0)+IF(RIGHT(CA$39,2)>RIGHT($K120,2),BE120,0)) -> 0.004993444708 | CC120: =+O120*KeyAssumptionsPriceControl_FO!X$15 -> 0.006310457956 | CD120: =+P120*KeyAssumptionsPriceControl_FO!Y$15 -> 0.005389630116 | CE120: =+Q120*KeyAssumptionsPriceControl_FO!Z$15 -> 0.004471644195 | CF120: =+R120*KeyAssumptionsPriceControl_FO!AA$15 -> 0.007240267221 | CG120: =+S120*KeyAssumptionsPriceControl_FO!AB$15 -> 0.005235420012 | CH120: =+T120*KeyAssumptionsPriceControl_FO!AC$15 -> 0.005805379422 | CI120: =+U120*KeyAssumptionsPriceControl_FO!AD$15 -> 0.005397205616 | CJ120: =+V120*KeyAssumptionsPriceControl_FO!AE$15 -> 0.008100944819 | CK120: =+W120*KeyAssumptionsPriceControl_FO!AF$15 -> 0.006448763908 | CL120: =+X120*KeyAssumptionsPriceControl_FO!AG$15 -> 0.006268398276 | CN120: 0.0003155228978 | CO120: 0.0009005273014 | CP120: 0.001393591017 | CQ120: 0.001979186588 | CR120: 0.002602970949 | CS120: 0.003155010921 | CT120: 0.003715140173 | CU120: 0.004390047695 | CV120: 0.005117533131 | CW120: 0.00575339124
C121: Corporate Allocation - Groundwater | E121: Groundwater diversions | F121: Renewals | G121: Corporate | H121: Capital Programs / Allocation | J121: Straight line | K121: Ongoing | L121: 10 | M121: 10 | O121: 0.1132752728 | P121: 0.09534348985 | Q121: 0.07795875679 | R121: 0.1244011173 | S121: 0.0886540446 | T121: 0.09597374307 | U121: 0.0871095175 | V121: 0.1276461207 | W121: 0.09920286638 | X121: 0.09414140974 | AV121: 0.1132752728 | AW121: 0.09534348985 | AX121: 0.07795875679 | AY121: 0.1244011173 | AZ121: 0.0886540446 | BA121: 0.09597374307 | BB121: 0.0871095175 | BC121: 0.1276461207 | BD121: 0.09920286638 | BE121: 0.09414140974 | BG121: 0.005663763639 | BH121: 0.01609470177 | BI121: 0.0247598141 | BJ121: 0.03487780781 | BK121: =IF($L121=0,0, IF($L121<=0.5,BV121, IF(AND($J121="straight line",$L121<1.51),(BU121-((BU121/$L121)*0.5))+BV121/$L121*0.5, IF($J121="straight line", IF((LEFT(BK$39,4)*1)-INT($L121)<LEFT($BG$39,4)*1,0,((OFFSET(BV121,0,-INT($L121+0.5),1,1))/$L121)*(IF($L121-INT($L121)>0.5,$L121-0.5-INT($L121),IF($L121-INT($L121)<=0.5,$L121-0.5-INT($L121)+1,0)))) +BV121/$L121*0.5 +SUM(OFFSET(BV121,0,MAX(-INT($L121+(0.5-(10^-12))),-BK$40)+1,1,MIN(INT($L121+(0.5-(10^-12))),BK$40)-1))*1/$L121, IF($J121="Declining Balance",-$BG$38,0))))) -> 0.04553056591 | BL121: 0.05476195529 | BM121: 0.06391611832 | BN121: 0.07465390023 | BO121: 0.08599634958 | BP121: 0.09566356339 | BR121: =+IF($K121="Ongoing",AV121,IF(RIGHT($K121,2)=RIGHT(BR$39,2),SUM($AV121:AV121),0)+IF(RIGHT(BR$39,2)>RIGHT($K121,2),AV121,0)) -> 0.1132752728 | BS121: =+IF($K121="Ongoing",AW121,IF(RIGHT($K121,2)=RIGHT(BS$39,2),SUM($AV121:AW121),0)+IF(RIGHT(BS$39,2)>RIGHT($K121,2),AW121,0)) -> 0.09534348985 | BT121: =+IF($K121="Ongoing",AX121,IF(RIGHT($K121,2)=RIGHT(BT$39,2),SUM($AV121:AX121),0)+IF(RIGHT(BT$39,2)>RIGHT($K121,2),AX121,0)) -> 0.07795875679 | BU121: =+IF($K121="Ongoing",AY121,IF(RIGHT($K121,2)=RIGHT(BU$39,2),SUM($AV121:AY121),0)+IF(RIGHT(BU$39,2)>RIGHT($K121,2),AY121,0)) -> 0.1244011173 | BV121: =+IF($K121="Ongoing",AZ121,IF(RIGHT($K121,2)=RIGHT(BV$39,2),SUM($AV121:AZ121),0)+IF(RIGHT(BV$39,2)>RIGHT($K121,2),AZ121,0)) -> 0.0886540446 | BW121: =+IF($K121="Ongoing",BA121,IF(RIGHT($K121,2)=RIGHT(BW$39,2),SUM($AV121:BA121),0)+IF(RIGHT(BW$39,2)>RIGHT($K121,2),BA121,0)) -> 0.09597374307 | BX121: =+IF($K121="Ongoing",BB121,IF(RIGHT($K121,2)=RIGHT(BX$39,2),SUM($AV121:BB121),0)+IF(RIGHT(BX$39,2)>RIGHT($K121,2),BB121,0)) -> 0.0871095175 | BY121: =+IF($K121="Ongoing",BC121,IF(RIGHT($K121,2)=RIGHT(BY$39,2),SUM($AV121:BC121),0)+IF(RIGHT(BY$39,2)>RIGHT($K121,2),BC121,0)) -> 0.1276461207 | BZ121: =+IF($K121="Ongoing",BD121,IF(RIGHT($K121,2)=RIGHT(BZ$39,2),SUM($AV121:BD121),0)+IF(RIGHT(BZ$39,2)>RIGHT($K121,2),BD121,0)) -> 0.09920286638 | CA121: =+IF($K121="Ongoing",BE121,IF(RIGHT($K121,2)=RIGHT(CA$39,2),SUM($AV121:BE121),0)+IF(RIGHT(CA$39,2)>RIGHT($K121,2),BE121,0)) -> 0.09414140974 | CC121: =+O121*KeyAssumptionsPriceControl_FO!X$15 -> 0.1158806041 | CD121: =+P121*KeyAssumptionsPriceControl_FO!Y$15 -> 0.09977972709 | CE121: =+Q121*KeyAssumptionsPriceControl_FO!Z$15 -> 0.08346258008 | CF121: =+R121*KeyAssumptionsPriceControl_FO!AA$15 -> 0.1362469584 | CG121: =+S121*KeyAssumptionsPriceControl_FO!AB$15 -> 0.09932915078 | CH121: =+T121*KeyAssumptionsPriceControl_FO!AC$15 -> 0.1100034321 | CI121: =+U121*KeyAssumptionsPriceControl_FO!AD$15 -> 0.1021398097 | CJ121: =+V121*KeyAssumptionsPriceControl_FO!AE$15 -> 0.1531132202 | CK121: =+W121*KeyAssumptionsPriceControl_FO!AF$15 -> 0.1217320468 | CL121: =+X121*KeyAssumptionsPriceControl_FO!AG$15 -> 0.1181781085 | CN121: 0.005794030203 | CO121: 0.01657704676 | CP121: 0.02573916212 | CQ121: 0.03672463904 | CR121: =IF($M121=0,0, IF($M121<=0.5,CG121, IF(AND($J121="straight line",$M121<1.51),(CF121-((CF121/$M121)*0.5))+CG121/$M121*0.5, IF($J121="straight line", IF((LEFT(CR$39,4)*1)-INT($M121)<LEFT($CN$39,4)*1,0,((OFFSET(CG121,0,-INT($M121+0.5),1,1))/$M121)*(IF($M121-INT($M121)>0.5,$M121-0.5-INT($M121),IF($M121-INT($M121)<=0.5,$M121-0.5-INT($M121)+1,0)))) +CG121/$M121*0.5 +SUM(OFFSET(CG121,0,MAX(-INT($M121+(0.5-(10^-12))),-CR$40)+1,1,MIN(INT($M121+(0.5-(10^-12))),CR$40)-1))*1/$M121, IF($J121="Declining Balance",-$CN$38,0))))) -> 0.0485034445 | CS121: 0.05897007365 | CT121: 0.06957723574 | CU121: 0.08233988723 | CV121: 0.09608215057 | CW121: 0.1080776583
C122: Corporate Allocation - Headworks | E122: Bulk water - headworks | F122: Renewals | G122: Corporate | H122: Capital Programs / Allocation | J122: Straight line | K122: Ongoing | L122: 10 | M122: 10 | O122: 0.3753439428 | P122: 0.3177406253 | Q122: 0.2612831444 | R122: 0.4192881265 | S122: 0.3004728306 | T122: 0.3253075119 | U122: 0.2952856364 | V122: 0.4327323306 | W122: 0.3363341696 | X122: 0.3191997536 | AV122: 0.3753439428 | AW122: 0.3177406253 | AX122: 0.2612831444 | AY122: 0.4192881265 | AZ122: 0.3004728306 | BA122: 0.3253075119 | BB122: 0.2952856364 | BC122: 0.4327323306 | BD122: 0.3363341696 | BE122: 0.3191997536 | BG122: 0.01876719714 | BH122: =IF($L122=0,0, IF($L122<=0.5,BS122, IF(AND($J122="straight line",$L122<1.51),(BR122-((BR122/$L122)*0.5))+BS122/$L122*0.5, IF($J122="straight line", IF((LEFT(BH$39,4)*1)-INT($L122)<LEFT($BG$39,4)*1,0,((OFFSET(BS122,0,-INT($L122+0.5),1,1))/$L122)*(IF($L122-INT($L122)>0.5,$L122-0.5-INT($L122),IF($L122-INT($L122)<=0.5,$L122-0.5-INT($L122)+1,0)))) +BS122/$L122*0.5 +SUM(OFFSET(BS122,0,MAX(-INT($L122+(0.5-(10^-12))),-BH$40)+1,1,MIN(INT($L122+(0.5-(10^-12))),BH$40)-1))*1/$L122, IF($J122="Declining Balance",-$BG$38,0))))) -> 0.05342142555 | BI122: 0.08237261404 | BJ122: 0.1164011776 | BK122: 0.1523892254 | BL122: 0.1836782426 | BM122: 0.2147079 | BN122: 0.2511087983 | BO122: 0.2895621233 | BP122: 0.3223388195 | BR122: =+IF($K122="Ongoing",AV122,IF(RIGHT($K122,2)=RIGHT(BR$39,2),SUM($AV122:AV122),0)+IF(RIGHT(BR$39,2)>RIGHT($K122,2),AV122,0)) -> 0.3753439428 | BS122: =+IF($K122="Ongoing",AW122,IF(RIGHT($K122,2)=RIGHT(BS$39,2),SUM($AV122:AW122),0)+IF(RIGHT(BS$39,2)>RIGHT($K122,2),AW122,0)) -> 0.3177406253 | BT122: =+IF($K122="Ongoing",AX122,IF(RIGHT($K122,2)=RIGHT(BT$39,2),SUM($AV122:AX122),0)+IF(RIGHT(BT$39,2)>RIGHT($K122,2),AX122,0)) -> 0.2612831444 | BU122: =+IF($K122="Ongoing",AY122,IF(RIGHT($K122,2)=RIGHT(BU$39,2),SUM($AV122:AY122),0)+IF(RIGHT(BU$39,2)>RIGHT($K122,2),AY122,0)) -> 0.4192881265 | BV122: =+IF($K122="Ongoing",AZ122,IF(RIGHT($K122,2)=RIGHT(BV$39,2),SUM($AV122:AZ122),0)+IF(RIGHT(BV$39,2)>RIGHT($K122,2),AZ122,0)) -> 0.3004728306 | BW122: =+IF($K122="Ongoing",BA122,IF(RIGHT($K122,2)=RIGHT(BW$39,2),SUM($AV122:BA122),0)+IF(RIGHT(BW$39,2)>RIGHT($K122,2),BA122,0)) -> 0.3253075119 | BX122: =+IF($K122="Ongoing",BB122,IF(RIGHT($K122,2)=RIGHT(BX$39,2),SUM($AV122:BB122),0)+IF(RIGHT(BX$39,2)>RIGHT($K122,2),BB122,0)) -> 0.2952856364 | BY122: =+IF($K122="Ongoing",BC122,IF(RIGHT($K122,2)=RIGHT(BY$39,2),SUM($AV122:BC122),0)+IF(RIGHT(BY$39,2)>RIGHT($K122,2),BC122,0)) -> 0.4327323306 | BZ122: =+IF($K122="Ongoing",BD122,IF(RIGHT($K122,2)=RIGHT(BZ$39,2),SUM($AV122:BD122),0)+IF(RIGHT(BZ$39,2)>RIGHT($K122,2),BD122,0)) -> 0.3363341696 | CA122: =+IF($K122="Ongoing",BE122,IF(RIGHT($K122,2)=RIGHT(CA$39,2),SUM($AV122:BE122),0)+IF(RIGHT(CA$39,2)>RIGHT($K122,2),BE122,0)) -> 0.3191997536 | CC122: =+O122*KeyAssumptionsPriceControl_FO!X$15 -> 0.3839768535 | CD122: =+P122*KeyAssumptionsPriceControl_FO!Y$15 -> 0.3325247789 | CE122: =+Q122*KeyAssumptionsPriceControl_FO!Z$15 -> 0.2797295167 | CF122: =+R122*KeyAssumptionsPriceControl_FO!AA$15 -> 0.4592139779 | CG122: =+S122*KeyAssumptionsPriceControl_FO!AB$15 -> 0.3366536883 | CH122: =+T122*KeyAssumptionsPriceControl_FO!AC$15 -> 0.3728618021 | CI122: =+U122*KeyAssumptionsPriceControl_FO!AD$15 -> 0.3462356303 | CJ122: =+V122*KeyAssumptionsPriceControl_FO!AE$15 -> 0.5190681882 | CK122: =+W122*KeyAssumptionsPriceControl_FO!AF$15 -> 0.4127163697 | CL122: =+X122*KeyAssumptionsPriceControl_FO!AG$15 -> 0.4006995775 | CN122: 0.01919884268 | CO122: =IF($M122=0,0, IF($M122<=0.5,CD122, IF(AND($J122="straight line",$M122<1.51),(CC122-((CC122/$M122)*0.5))+CD122/$M122*0.5, IF($J122="straight line", IF((LEFT(CO$39,4)*1)-INT($M122)<LEFT($CN$39,4)*1,0,((OFFSET(CD122,0,-INT($M122+0.5),1,1))/$M122)*(IF($M122-INT($M122)>0.5,$M122-0.5-INT($M122),IF($M122-INT($M122)<=0.5,$M122-0.5-INT($M122)+1,0)))) +CD122/$M122*0.5 +SUM(OFFSET(CD122,0,MAX(-INT($M122+(0.5-(10^-12))),-CO$40)+1,1,MIN(INT($M122+(0.5-(10^-12))),CO$40)-1))*1/$M122, IF($J122="Declining Balance",-$CN$38,0))))) -> 0.0550239243 | CP122: 0.08563663908 | CQ122: 0.1225838138 | CR122: 0.1623771971 | CS122: 0.1978529716 | CT122: 0.2338078433 | CU122: 0.2770730342 | CV122: 0.3236622621 | CW122: 0.3643330594
